Workbook

Sheet Cover
A1: RIIO price control model
B2: Electricity Transmission
C3: =MID(CELL("filename"),SEARCH("[",CELL("filename"))+1,SEARCH("]",CELL("filename"))-SEARCH("[",CELL("filename"))-1) -> ET1 PCFM November 2017 DryRun3.1.xlsm
C4: DISCLAIMER: This purpose of this model is used to calculate Base Revenue (PU) at Final Proposals and MOD terms in subsequent years for Licensees on the basis of Financial Handbook and Licence conditions of the relevant Network Operator
B5: =IF(m_PCFM_year_t=1,"RIIO ET1 Price Control Financial Model for the Annual Iteration Process that will take place by 30 November 2013-14","RIIO ET1 Price Control Financial Model for the Annual Iteration Process that will take place by 30 November " & YEAR(UserInterface!$G$10)-2) -> RIIO ET1 Price Control Financial Model for the Annual Iteration Process that will take place by 30 November 2017
B7: Model key
E9: Sample | G9: Calculated value | I9: Sample | K9: Information and interface
E10: Sample | G10: Import | I10: Sample | K10: FP fixed input value
E11: Sample | G11: Export | I11: Sample | K11: Annual update input
E12: Sample | G12: Named range | I12: Sample | K12: Input linked from annual update
E13: Sample | G13: Formula change in cells to the right | I13: Sample | K13: Notes and instructions
B16: Contents
E18: INTERFACE > | I18: COMPANY SPECIFIC INPUT SHEETS >
E19: Cover | G19: Model key and content directory
E20: UserInterface | G20: Model operation | I20: SHE-T PLC (Blank - not used) | K20: Inputs for SHE-Tranmission PLC TO
E21: TaxTrigger | G21: Tax trigger calculations | I21: SPTL | K21: Inputs for SPTL TO
E22: INPUT SELECTION > | I22: NGET TO | K22: Inputs for NGET TO
E23: MOD Summary | I23: NGET SO | K23: Inputs for NGET SO
E24: Input | G24: Inputs for selected licensee
E25: CALCULATION >
E26: Totex | G26: Totex allowance and actuals
E27: TIM | G27: Totex Incentive Mechanism and capitalisation
E28: DARTs | G28: Direct Allowance Revenue Terms
E29: Depn | G29: Electricity transmission regulatory depreciation
E30: SystemOperator | G30: System operator calculations
E31: Return&RAV | G31: RAV and return calculations
E32: TaxPools | G32: Tax pools and capital allowances
E33: Finance&Tax | G33: Net debt, equity issuance, financing costs and tax
E34: NonCore | G34: Calculations for non-core regulatory assets (TIRG)
E35: Revenue | G35: Revenue and MOD
E36: OUTPUT >
E37: ResultsLive | G37: Results for selected company
E38: ResultsLive(SO) | G38: Results for SO (for selected company)
E39: SavedResults | G39: Saved results for all companies
B45: End of sheet

Sheet UserInterface
A1: User Interface
B3: Model operation
C5: PCFM year t
C6: Instruction: Use the following drop-down list to identify year t in the model. Year t is identified here by its end date.
E8: Year t selection:
E10: Year t selected: | G10: =EOMONTH(41364,G54*12) -> 2019-03-31
C12: Active company
C13: Instruction: Use the following drop-down list to select the active company in the model.
E15: Company selection:
E17: Selected company: | G17: =INDEX(E46:E48, E49) -> SHE-Transmission PLC
C19: Model state
C20: Instruction: Use the following drop-down list to set the model state and run it as either the "Licence Model" or the "Tax Trigger Tool."
C21: Note: "Tax Trigger Tool" must be selected here for functionality on the "TaxTrigger" sheet to function.
C22: Selecting "Licence Model" ensures that the Tax Trigger Tool functionality is deactivated and does not affect the calculations in the model.
E24: Model status selection:
E26: Selected model status: | G26: =INDEX(E53:E54,m_model_state) -> Licence Model
C28: Run model for all licensees
C29: Instruction: Click on the left button to save results for the selected company only. Click the right button to save results for all.
C30: Note: Annual iterations must have been completed for all prior years before running the model to generate MOD.
C31: The macros save results and values required for future years which cannot be recreated once inputs are revised.
C32: Running the macro saves the output from year t's iteration for use in future iterations.
C33: Results for the selected company can be found on the "LiveResults" sheet and also on the "SavedResults" sheet once saved by a macro.
B39: User selection lists
B40: Note: The lists below drive the drop-down lists above.
B41: Using the drop-down lists above returns an integer in the "cell link" positioned below their "source list."
B42: The number returned in the cell link corresponds to the position of the selected item in the source list.
B43: The company selection output is set as a "named range." This gives a stable anchor point for the "RunForAll" macro to change the company.
E45: ="Source for ''"&C12&"'' drop-down list" -> Source for ''Active company'' drop-down list | G45: ="Source for ''"&C5&"'' drop-down list" -> Source for ''PCFM year t'' drop-down list
E46: SHE-Transmission PLC | G46: 2014-03-31
E47: SPTL | G47: 2015-03-31
E48: NGET TO | G48: 2016-03-31
E49: 1 | G49: 2017-03-31
E50: Adjacent named range: m_identity | G50: 2018-03-31
G51: 2019-03-31
E52: ="Source for ''"&C19&"'' drop-down list" -> Source for ''Model state'' drop-down list | G52: 2020-03-31
E53: Licence Model | G53: 2021-03-31
E54: Tax Trigger Tool | G54: 6
E55: 1 | G55: Adjacent named range: m_PCFM_year_t
E56: Adjacent named range: m_model_state
B58: End of sheet

Sheet TaxTrigger
A1: Tax Trigger
B2: =UserInterface!G17 -> SHE-Transmission PLC
E3: Parameter | G3: Units | I3: Constant | AH3: Annual values
E4: PCFM year ending | I4: =UserInterface!$G$10 -> 2019-03-31 | K4: 1991-03-31 | L4: 1992-03-31 | M4: 1993-03-31 | N4: 1994-03-31 | O4: 1995-03-31 | P4: 1996-03-31 | Q4: 1997-03-31 | R4: 1998-03-31 | S4: 1999-03-31 | T4: 2000-03-31 | U4: 2001-03-31 | V4: 2002-03-31 | W4: 2003-03-31 | X4: 2004-03-31 | Y4: 2005-03-31 | Z4: 2006-03-31 | AA4: 2007-03-31 | AB4: 2008-03-31 | AC4: 2009-03-31 | AD4: 2010-03-31 | AE4: 2011-03-31 | AF4: 2012-03-31 | AG4: 2013-03-31 | AH4: 2014-03-31 | AI4: 2015-03-31 | AJ4: 2016-03-31 | AK4: 2017-03-31 | AL4: 2018-03-31 | AM4: 2019-03-31 | AN4: 2020-03-31 | AO4: 2021-03-31
B6: Tax trigger calculation
C8: Test operation
C9: Instruction: To run the model as the Tax Trigger Tool, the "model state" must be set to "Tax Trigger Tool" on the "UserInterface" sheet. The model state selected is shown below.
C10: Clicking the macro button below runs the "TaxTrigger" macro, performing the Tax Trigger adjustment calculation for the selected licensee for year t.
C11: The output generated by the macro can be replicated manually using the following steps:
C12: 1. Clear any values from previous tests in the "Test state output" section below (named range "m_saved_original_results")
C13: 2. Set testing state to "Licence Model"
C14: 3. Copy the cells marked as the "m_calculated_tax" named range and paste them at the named range "m_saved_original_test."
C15: 4. Set testing state to "Tax Trigger Calculation"
C16: Note: The Tax Trigger Tool is disabled if the "Model state" below reads "Licence Model."
E18: Model state
E19: =UserInterface!G26 -> Licence Model
E22: State selection
E25: State options
E26: Licence Model
E27: Tax Trigger Calculation
E28: 1
E29: Adjacent named range: m_tax_trigger_state
E31: State selected
E32: =IF(E19 = "Licence Model", "Licence Model", INDEX(E26:E27, E28)) -> Licence Model
E34: Run macro
C39: Transmission operator
D41: Tax calculation
I43: Instruction
E44: Profits attributable to corporation tax | AH44: ='Finance&Tax'!AH199*Input!$AD$46/Input!AH$46 -> 26.20009952 | AI44: ='Finance&Tax'!AI199*Input!$AD$46/Input!AI$46 -> 21.85679812 | AJ44: ='Finance&Tax'!AJ199*Input!$AD$46/Input!AJ$46 -> 37.11836974 | AK44: ='Finance&Tax'!AK199*Input!$AD$46/Input!AK$46 -> 32.40529457 | AL44: ='Finance&Tax'!AL199*Input!$AD$46/Input!AL$46 -> 21.25907686 | AM44: ='Finance&Tax'!AM199*Input!$AD$46/Input!AM$46 -> 21.64628114 | AN44: ='Finance&Tax'!AN199*Input!$AD$46/Input!AN$46 -> 20.94394692 | AO44: ='Finance&Tax'!AO199*Input!$AD$46/Input!AO$46 -> 30.3699779
E45: Corporation tax rate | AH45: ='Finance&Tax'!AH217 -> 0.23 | AI45: ='Finance&Tax'!AI217 -> 0.21 | AJ45: ='Finance&Tax'!AJ217 -> 0.21 | AK45: ='Finance&Tax'!AK217 -> 0.21 | AL45: ='Finance&Tax'!AL217 -> 0.21 | AM45: ='Finance&Tax'!AM217 -> 0.21 | AN45: ='Finance&Tax'!AN217 -> 0.21 | AO45: ='Finance&Tax'!AO217 -> 0.21
E46: Grossing-up factor for tax on tax charge | AH46: ='Finance&Tax'!AH220 -> 1.298701299 | AI46: ='Finance&Tax'!AI220 -> 1.265822785 | AJ46: ='Finance&Tax'!AJ220 -> 1.265822785 | AK46: ='Finance&Tax'!AK220 -> 1.265822785 | AL46: ='Finance&Tax'!AL220 -> 1.265822785 | AM46: ='Finance&Tax'!AM220 -> 1.265822785 | AN46: ='Finance&Tax'!AN220 -> 1.265822785 | AO46: ='Finance&Tax'!AO220 -> 1.265822785
E47: Corporation tax charge (tax allowance) before losses | AH47: =AH45*AH44*AH46 -> 7.826003753 | AI47: =AI45*AI44*AI46 -> 5.810034942 | AJ47: 9.866908412 | AK47: 8.614065645 | AL47: 5.651147014 | AM47: 5.754074734 | AN47: 5.567378296 | AO47: 8.0730321
E49: Tax allowance (pre losses) before tax trigger | G49: £m 09/10 prices | AH49: =AH47 -> 7.826003753 | AI49: =AI47 -> 5.810034942 | AJ49: 9.866908412 | AK49: 8.614065645 | AL49: 5.651147014 | AM49: 5.754074734 | AN49: 5.567378296 | AO49: 8.0730321
E50: B event value | G50: £m 09/10 prices | AH50: =AH161 -> 0 | AI50: =AI161 -> 0 | AJ50: 0 | AK50: 0 | AL50: 0 | AM50: 0 | AN50: 0 | AO50: 0
E51: Threshold value adjustment | G51: £m 09/10 prices | AH51: =AH106 -> 0 | AI51: =AI106 -> 0 | AJ51: =AJ106 -> 0 | AK51: 0 | AL51: 0 | AM51: 0 | AN51: 0 | AO51: 0
E52: Tax allowance | G52: £m 09/10 prices | I52: =IF( m_tax_trigger_state = 1, "Copy cells -->","-") -> Copy cells --> | AH52: =SUM(AH49:AH51) -> 7.826003753 | AI52: 5.810034942 | AJ52: 9.866908412 | AK52: 8.614065645 | AL52: 5.651147014 | AM52: 5.754074734 | AN52: 5.567378296 | AO52: 8.0730321
AH53: Adjacent named range: m_calculated_tax
D54: Test state output
D55: Note: The formula determines whether the recalculated tax is above or below the threshold and sets the adjustment accordingly
I57: Instruction
E58: Value with original settings | G58: £m 09/10 prices | I58: =IF( m_tax_trigger_state = 1, "Paste cells -->","-") -> Paste cells --> | AG58: m_tax_trigger_results
AH59: Adjacent named range: m_saved_original_test
E60: Value with new settings and threshold adjustment | G60: text | AH60: =AH52 -> 7.826003753 | AI60: =AI52 -> 5.810034942 | AJ60: 9.866908412 | AK60: 8.614065645 | AL60: 5.651147014 | AM60: 5.754074734 | AN60: 5.567378296 | AO60: 8.0730321
D62: Result and output
D63: Note: Once the test is complete, the "Tax Trigger adjustment" below can be taken from below and inputted to the PCFM set to run as the Licence Model, rather than the Tax Trigger Tool.
E65: TO tax trigger adjustment | G65: £m 09/10 prices | AH65: =IF(AND(m_tax_trigger_state=2,m_model_state=2),IF(ABS((AH49+AH50)-AH58)> ABS(AH106), AH60 - AH58, 0),0) -> 0 | AI65: 0 | AJ65: 0 | AK65: 0 | AL65: 0 | AM65: 0 | AN65: 0 | AO65: 0
C67: System operator
D69: SO tax calculation
I70: Instruction
E71: Profits attributable to corporation tax | AH71: =SystemOperator!AH328 * Input!$AD$46 / Input!AH$46 -> 0 | AI71: =SystemOperator!AI328 * Input!$AD$46 / Input!AI$46 -> 0 | AJ71: =SystemOperator!AJ328 * Input!$AD$46 / Input!AJ$46 -> 0 | AK71: =SystemOperator!AK328 * Input!$AD$46 / Input!AK$46 -> 0 | AL71: =SystemOperator!AL328 * Input!$AD$46 / Input!AL$46 -> 0 | AM71: =SystemOperator!AM328 * Input!$AD$46 / Input!AM$46 -> 0 | AN71: =SystemOperator!AN328 * Input!$AD$46 / Input!AN$46 -> 0 | AO71: =SystemOperator!AO328 * Input!$AD$46 / Input!AO$46 -> 0
E72: Corporation tax rate | AH72: =SystemOperator!AH349 -> 0.23 | AI72: =SystemOperator!AI349 -> 0.21 | AJ72: =SystemOperator!AJ349 -> 0.21 | AK72: =SystemOperator!AK349 -> 0.21 | AL72: =SystemOperator!AL349 -> 0.21 | AM72: =SystemOperator!AM349 -> 0.21 | AN72: =SystemOperator!AN349 -> 0.21 | AO72: =SystemOperator!AO349 -> 0.21
E73: Grossing-up factor for tax on tax charge | AH73: =SystemOperator!AH352 -> 1.298701299 | AI73: =SystemOperator!AI352 -> 1.265822785 | AJ73: =SystemOperator!AJ352 -> 1.265822785 | AK73: =SystemOperator!AK352 -> 1.265822785 | AL73: =SystemOperator!AL352 -> 1.265822785 | AM73: =SystemOperator!AM352 -> 1.265822785 | AN73: =SystemOperator!AN352 -> 1.265822785 | AO73: =SystemOperator!AO352 -> 1.265822785
E74: Corporation tax charge (tax allowance) before losses | AH74: =AH72*AH71*AH73 -> 0 | AI74: =AI72*AI71*AI73 -> 0 | AJ74: 0 | AK74: 0 | AL74: 0 | AM74: 0 | AN74: 0 | AO74: 0
E76: Tax allowance (pre losses) before tax trigger | G76: £m 09/10 prices | AH76: =AH74 -> 0 | AI76: =AI74 -> 0 | AJ76: 0 | AK76: 0 | AL76: 0 | AM76: 0 | AN76: 0 | AO76: 0
E77: B event value | G77: £m 09/10 prices | AH77: =AH168 -> 0 | AI77: =AI168 -> 0 | AJ77: 0 | AK77: 0 | AL77: 0 | AM77: 0 | AN77: 0 | AO77: 0
E78: Threshold value adjustment | G78: £m 09/10 prices | AH78: =AH112 -> 0 | AI78: =AI112 -> 0 | AJ78: 0 | AK78: 0 | AL78: 0 | AM78: 0 | AN78: 0 | AO78: 0
E79: Tax allowance | G79: £m 09/10 prices | I79: =IF( m_tax_trigger_state = 1, "Copy cells -->","") -> Copy cells --> | AH79: =SUM(AH76:AH78) -> 0 | AI79: 0 | AJ79: 0 | AK79: 0 | AL79: 0 | AM79: 0 | AN79: 0 | AO79: 0
AH80: Adjacent named range: m_SO_calculated_tax
D81: Test state output
D82: Note: The formula determines whether the recalculated tax is above or below the threshold and sets the adjustment accordingly
I84: Instruction
E85: Value with original settings | G85: £m 09/10 prices | I85: =IF( m_tax_trigger_state = 1, "Paste cells -->","") -> Paste cells --> | AG85: m_tax_trigger_results
AH86: Adjacent named range: m_SO_saved_original_test
E87: Value with new settings and threshold adjustment | G87: text | AH87: =AH79 -> 0 | AI87: =AI79 -> 0 | AJ87: 0 | AK87: 0 | AL87: 0 | AM87: 0 | AN87: 0 | AO87: 0
D89: Result and output
D90: Note: Once the test is complete, the "Tax Trigger adjustment" below can be taken from below and inputted to the PCFM set to run as the Licence Model, rather than the Tax Trigger Tool.
E92: SO tax trigger adjustment | G92: £m 09/10 prices | AH92: =IF(AND(m_tax_trigger_state=2,m_model_state=2),IF(ABS((AH76+AH77)-AH85)> ABS(AH112), AH87 - AH85, 0),0) -> 0 | AI92: 0 | AJ92: 0 | AK92: 0 | AL92: 0 | AM92: 0 | AN92: 0 | AO92: 0
B94: Tax trigger parameters
B95: Instruction: Enter values in the yellow cells below for use in the Tax Trigger test.
B96: Note: Flags are used throughout to indicate whether the original or Tax Trigger value is being used. The live values below are exported for use throughout the model.
C98: Active policy
E100: Tax trigger tax settings are used | G100: flag | AH100: =IF(AND(AH$4 <= $I4, m_tax_trigger_state = 2, m_model_state=2), TRUE, FALSE) -> FALSE | AI100: FALSE | AJ100: FALSE | AK100: FALSE | AL100: FALSE | AM100: FALSE | AN100: FALSE | AO100: FALSE
C102: TO threshold
E104: Threshold value | G104: £m 09/10 prices | AH104: =CHOOSE(m_identity,AH174,AH175,AH176) -> 0.5330128439 | AI104: 0.7700507315 | AJ104: 0.918116989 | AK104: 0.9840273952 | AL104: 1.019281906 | AM104: 1.070223405 | AN104: 1.136778454 | AO104: 1.227677495
E106: Threshold value applied | G106: £m 09/10 prices | AH106: =IF(OR((AH49+AH50)= AH58, AH58 = ""), 0, IF(AH58 < (AH49+AH50), -AH104, +AH104)) -> 0 | AI106: =IF(OR((AI49+AI50)= AI58, AI58 = ""), 0, IF(AI58 < (AI49+AI50), -AI104, +AI104)) -> 0 | AJ106: 0 | AK106: 0 | AL106: 0 | AM106: 0 | AN106: 0 | AO106: 0
C108: SO threshold
E110: Threshold value | G110: £m 09/10 prices | AH110: =CHOOSE(m_identity,0,0,AH180) -> 0 | AI110: 0 | AJ110: 0 | AK110: 0 | AL110: 0 | AM110: 0 | AN110: 0 | AO110: 0
E112: Threshold value applied | G112: £m 09/10 prices | AH112: =IF(OR((AH76+AH77) = AH85, AH85 = ""), 0, IF(AH85 < (AH76+AH77), -AH110, +AH110)) -> 0 | AI112: =IF(OR((AI76+AI77) = AI85, AI85 = ""), 0, IF(AI85 < (AI76+AI77), -AI110, +AI110)) -> 0 | AJ112: 0 | AK112: 0 | AL112: 0 | AM112: 0 | AN112: 0 | AO112: 0
C114: Corporation tax rate
E116: Active | G116: text | AH116: =AH$100 = FALSE() -> TRUE | AI116: TRUE | AJ116: TRUE | AK116: TRUE | AL116: TRUE | AM116: TRUE | AN116: TRUE | AO116: TRUE
E117: RIIO | G117: % | J117: > | Y117: =Input!Y301 -> 0.3 | Z117: =Input!Z301 -> 0.3 | AA117: =Input!AA301 -> 0.3 | AB117: =Input!AB301 -> 0.3 | AC117: =Input!AC301 -> 0.28 | AD117: =Input!AD301 -> 0.28 | AE117: =Input!AE301 -> 0.28 | AF117: =Input!AF301 -> 0.26 | AG117: =Input!AG301 -> 0.24 | AH117: =Input!AH301 -> 0.23 | AI117: =Input!AI301 -> 0.21 | AJ117: =Input!AJ301 -> 0.21 | AK117: =Input!AK301 -> 0.21 | AL117: =Input!AL301 -> 0.21 | AM117: =Input!AM301 -> 0.21 | AN117: =Input!AN301 -> 0.21 | AO117: =Input!AO301 -> 0.21
E119: Active | G119: text | AH119: =AH$100 -> FALSE | AI119: FALSE | AJ119: FALSE | AK119: FALSE | AL119: FALSE | AM119: FALSE | AN119: FALSE | AO119: FALSE
E120: Tax trigger | G120: % | AH120: 0.23 | AI120: 0.21 | AJ120: 0.2 | AK120: 0.2 | AL120: 0.19 | AM120: 0.19 | AN120: 0.19 | AO120: 0.17
E122: Applied | G122: % | J122: > | Y122: =Y117 -> 0.3 | Z122: =Z117 -> 0.3 | AA122: =AA117 -> 0.3 | AB122: 0.3 | AC122: 0.28 | AD122: 0.28 | AE122: 0.28 | AF122: 0.26 | AG122: 0.24 | AH122: =(AH116 * AH117) + (AH119 * AH120) -> 0.23 | AI122: =(AI116 * AI117) + (AI119 * AI120) -> 0.21 | AJ122: 0.21 | AK122: 0.21 | AL122: 0.21 | AM122: 0.21 | AN122: 0.21 | AO122: 0.21
C124: Capital allowance rate
D126: General pool
E128: Active | G128: text | AH128: =AH$100 = FALSE() -> TRUE | AI128: TRUE | AJ128: TRUE | AK128: TRUE | AL128: TRUE | AM128: TRUE | AN128: TRUE | AO128: TRUE
E129: RIIO | G129: % | V129: =Input!V303 -> 0.25 | W129: =Input!W303 -> 0.25 | X129: =Input!X303 -> 0.25 | Y129: =Input!Y303 -> 0.25 | Z129: =Input!Z303 -> 0.25 | AA129: =Input!AA303 -> 0.25 | AB129: =Input!AB303 -> 0.25 | AC129: =Input!AC303 -> 0.2 | AD129: =Input!AD303 -> 0.2 | AE129: =Input!AE303 -> 0.2 | AF129: =Input!AF303 -> 0.2 | AG129: =Input!AG303 -> 0.18 | AH129: =Input!AH303 -> 0.18 | AI129: =Input!AI303 -> 0.18 | AJ129: =Input!AJ303 -> 0.18 | AK129: =Input!AK303 -> 0.18 | AL129: =Input!AL303 -> 0.18 | AM129: =Input!AM303 -> 0.18 | AN129: =Input!AN303 -> 0.18 | AO129: =Input!AO303 -> 0.18
E131: Active | G131: text | AH131: =AH$100 -> FALSE | AI131: FALSE | AJ131: FALSE | AK131: FALSE | AL131: FALSE | AM131: FALSE | AN131: FALSE | AO131: FALSE
E132: Tax trigger | G132: % | AH132: =AH129 -> 0.18 | AI132: =AI129 -> 0.18 | AJ132: 0.18 | AK132: 0.18 | AL132: 0.18 | AM132: 0.18 | AN132: 0.18 | AO132: 0.18
E134: Applied | G134: % | V134: =V129 -> 0.25 | W134: 0.25 | X134: 0.25 | Y134: 0.25 | Z134: 0.25 | AA134: 0.25 | AB134: 0.25 | AC134: 0.2 | AD134: 0.2 | AE134: 0.2 | AF134: 0.2 | AG134: =AG129 -> 0.18 | AH134: =(AH128 * AH129) + (AH131 * AH132) -> 0.18 | AI134: 0.18 | AJ134: 0.18 | AK134: 0.18 | AL134: 0.18 | AM134: 0.18 | AN134: 0.18 | AO134: 0.18
D136: Special Rate pool
E138: Active | G138: text | AH138: =AH$100 = FALSE() -> TRUE | AI138: TRUE | AJ138: TRUE | AK138: TRUE | AL138: TRUE | AM138: TRUE | AN138: TRUE | AO138: TRUE
E139: RIIO | G139: % | J139: > | V139: =Input!V304 -> 0.06 | W139: =Input!W304 -> 0.06 | X139: =Input!X304 -> 0.06 | Y139: =Input!Y304 -> 0.06 | Z139: =Input!Z304 -> 0.06 | AA139: =Input!AA304 -> 0.06 | AB139: =Input!AB304 -> 0.06 | AC139: =Input!AC304 -> 0.1 | AD139: =Input!AD304 -> 0.1 | AE139: =Input!AE304 -> 0.1 | AF139: =Input!AF304 -> 0.1 | AG139: =Input!AG304 -> 0.08 | AH139: =Input!AH304 -> 0.08 | AI139: =Input!AI304 -> 0.08 | AJ139: =Input!AJ304 -> 0.08 | AK139: =Input!AK304 -> 0.08 | AL139: =Input!AL304 -> 0.08 | AM139: =Input!AM304 -> 0.08 | AN139: =Input!AN304 -> 0.08 | AO139: =Input!AO304 -> 0.08
E141: Active | G141: text | AH141: =AH$100 -> FALSE | AI141: FALSE | AJ141: FALSE | AK141: FALSE | AL141: FALSE | AM141: FALSE | AN141: FALSE | AO141: FALSE
E142: Tax trigger | G142: % | AH142: =AH139 -> 0.08 | AI142: =AI139 -> 0.08 | AJ142: 0.08 | AK142: 0.08 | AL142: 0.08 | AM142: 0.08 | AN142: 0.08 | AO142: 0.08
E144: Applied | G144: % | J144: > | V144: =V139 -> 0.06 | W144: =W139 -> 0.06 | X144: =X139 -> 0.06 | Y144: =Y139 -> 0.06 | Z144: =Z139 -> 0.06 | AA144: =AA139 -> 0.06 | AB144: 0.06 | AC144: 0.1 | AD144: 0.1 | AE144: 0.1 | AF144: 0.1 | AG144: 0.08 | AH144: =(AH138 * AH139) + (AH141 * AH142) -> 0.08 | AI144: 0.08 | AJ144: 0.08 | AK144: 0.08 | AL144: 0.08 | AM144: 0.08 | AN144: 0.08 | AO144: 0.08
D146: Deferred revenue writing down allowance rate
E148: Active | G148: text | AH148: =AH$100 = FALSE() -> TRUE | AI148: TRUE | AJ148: TRUE | AK148: TRUE | AL148: TRUE | AM148: TRUE | AN148: TRUE | AO148: TRUE
E149: RIIO | G149: % | J149: > | V149: =Input!V305 -> 0 | W149: =Input!W305 -> 0 | X149: =Input!X305 -> 0 | Y149: =Input!Y305 -> 0 | Z149: =Input!Z305 -> 0 | AA149: =Input!AA305 -> 0 | AB149: =Input!AB305 -> 0 | AC149: =Input!AC305 -> 0 | AD149: =Input!AD305 -> 0 | AE149: =Input!AE305 -> 0 | AF149: =Input!AF305 -> 0 | AG149: =Input!AG305 -> 0 | AH149: =Input!AH305 -> 0.03 | AI149: =Input!AI305 -> 0.03 | AJ149: =Input!AJ305 -> 0.03 | AK149: =Input!AK305 -> 0.03 | AL149: =Input!AL305 -> 0.03 | AM149: =Input!AM305 -> 0.03 | AN149: =Input!AN305 -> 0.03 | AO149: =Input!AO305 -> 0.03
E151: Active | G151: text | AH151: =AH$100 -> FALSE | AI151: FALSE | AJ151: FALSE | AK151: FALSE | AL151: FALSE | AM151: FALSE | AN151: FALSE | AO151: FALSE
E152: Tax trigger | G152: % | AH152: =AH149 -> 0.03 | AI152: =AI149 -> 0.03 | AJ152: 0.03 | AK152: 0.03 | AL152: 0.03 | AM152: 0.03 | AN152: 0.03 | AO152: 0.03
E154: Applied | G154: % | J154: > | V154: =V149 -> 0 | W154: 0 | X154: 0 | Y154: 0 | Z154: 0 | AA154: 0 | AB154: 0 | AC154: 0 | AD154: 0 | AE154: 0 | AF154: 0 | AG154: =AG149 -> 0 | AH154: =(AH148 * AH149) + (AH151 * AH152) -> 0.03 | AI154: 0.03 | AJ154: 0.03 | AK154: 0.03 | AL154: 0.03 | AM154: 0.03 | AN154: 0.03 | AO154: 0.03
C156: TO B event value
E158: Active | G158: text | AH158: =AH$100 -> FALSE | AI158: FALSE | AJ158: FALSE | AK158: FALSE | AL158: FALSE | AM158: FALSE | AN158: FALSE | AO158: FALSE
E159: Tax trigger | G159: £m 09/10 prices | AH159: =INDEX(AH186:AH188,MATCH($B$2,$E$186:$E$188,0),1) -> 0 | AI159: =INDEX(AI186:AI188,MATCH($B$2,$E$186:$E$188,0),1) -> 0 | AJ159: 0 | AK159: 0 | AL159: 0 | AM159: 0 | AN159: 0 | AO159: 0
E161: Applied | G161: £m 09/10 prices | AH161: =AH158 * AH159 -> 0 | AI161: =AI158 * AI159 -> 0 | AJ161: 0 | AK161: 0 | AL161: 0 | AM161: 0 | AN161: 0 | AO161: 0
C163: SO B event value
E165: Active | G165: text | AH165: =AH$100 -> FALSE | AI165: FALSE | AJ165: FALSE | AK165: FALSE | AL165: FALSE | AM165: FALSE | AN165: FALSE | AO165: FALSE
E166: Tax trigger | G166: £m 09/10 prices | AH166: 0 | AI166: 0 | AJ166: 0 | AK166: 0 | AL166: 0 | AM166: 0 | AN166: 0 | AO166: 0
E168: Applied | G168: £m 09/10 prices | AH168: =AH165 * AH166 -> 0 | AI168: =AI165 * AI166 -> 0 | AJ168: 0 | AK168: 0 | AL168: 0 | AM168: 0 | AN168: 0 | AO168: 0
C170: Tax Trigger Deadbands
E172: TO
E174: SHE-Transmission PLC | AH174: ='SHE-Transmission PLC'!AH370 -> 0.5330128439 | AI174: ='SHE-Transmission PLC'!AI370 -> 0.7700507315 | AJ174: ='SHE-Transmission PLC'!AJ370 -> 0.918116989 | AK174: ='SHE-Transmission PLC'!AK370 -> 0.9840273952 | AL174: ='SHE-Transmission PLC'!AL370 -> 1.019281906 | AM174: ='SHE-Transmission PLC'!AM370 -> 1.070223405 | AN174: ='SHE-Transmission PLC'!AN370 -> 1.136778454 | AO174: ='SHE-Transmission PLC'!AO370 -> 1.227677495
E175: SPTL | AH175: =SPTL!AH370 -> 0.7448434056 | AI175: =SPTL!AI370 -> 0.7939215702 | AJ175: =SPTL!AJ370 -> 0.887009614 | AK175: =SPTL!AK370 -> 0.8725060802 | AL175: =SPTL!AL370 -> 0.9092160731 | AM175: =SPTL!AM370 -> 0.9394639204 | AN175: =SPTL!AN370 -> 0.9578290354 | AO175: =SPTL!AO370 -> 0.9346259702
E176: NGET | AH176: ='NGET TO'!AH370 -> 4.496076532 | AI176: ='NGET TO'!AI370 -> 4.93087424 | AJ176: ='NGET TO'!AJ370 -> 5.219754524 | AK176: ='NGET TO'!AK370 -> 5.525369543 | AL176: ='NGET TO'!AL370 -> 5.567777439 | AM176: ='NGET TO'!AM370 -> 5.896922257 | AN176: ='NGET TO'!AN370 -> 5.779975933 | AO176: ='NGET TO'!AO370 -> 5.736164938
E178: SO
E180: NGET | AH180: ='NGET SO'!AH113 -> 0.4131222462 | AI180: ='NGET SO'!AI113 -> 0.3756243029 | AJ180: ='NGET SO'!AJ113 -> 0.3789432909 | AK180: ='NGET SO'!AK113 -> 0.3867094001 | AL180: ='NGET SO'!AL113 -> 0.4063375706 | AM180: ='NGET SO'!AM113 -> 0.3896703952 | AN180: ='NGET SO'!AN113 -> 0.4131302731 | AO180: ='NGET SO'!AO113 -> 0.4181245165
C182: TO Type B event values for each Operator
E184: TO
E186: SHE-Transmission PLC | G186: £m 09/10 prices | AH186: 0 | AI186: 0 | AJ186: 0 | AK186: 0 | AL186: 0 | AM186: 0 | AN186: 0 | AO186: 0
E187: SPTL | G187: £m 09/10 prices | AH187: 0 | AI187: 0 | AJ187: 0 | AK187: 0 | AL187: 0 | AM187: 0 | AN187: 0 | AO187: 0
E188: NGET TO | G188: £m 09/10 prices | AH188: 0 | AI188: 0 | AJ188: 0 | AK188: 0 | AL188: 0 | AM188: 0 | AN188: 0 | AO188: 0
B190: End of sheet

Sheet MOD
A1: MOD Summary
B2: =UserInterface!G17 -> SHE-Transmission PLC
E3: Parameter | G3: Units | I3: Constant | AH3: Annual values
E4: PCFM year ending | I4: =UserInterface!$G$10 -> 2019-03-31 | K4: 1991-03-31 | L4: 1992-03-31 | M4: 1993-03-31 | N4: 1994-03-31 | O4: 1995-03-31 | P4: 1996-03-31 | Q4: 1997-03-31 | R4: 1998-03-31 | S4: 1999-03-31 | T4: 2000-03-31 | U4: 2001-03-31 | V4: 2002-03-31 | W4: 2003-03-31 | X4: 2004-03-31 | Y4: 2005-03-31 | Z4: 2006-03-31 | AA4: 2007-03-31 | AB4: 2008-03-31 | AC4: 2009-03-31 | AD4: 2010-03-31 | AE4: 2011-03-31 | AF4: 2012-03-31 | AG4: 2013-03-31 | AH4: 2014-03-31 | AI4: 2015-03-31 | AJ4: 2016-03-31 | AK4: 2017-03-31 | AL4: 2018-03-31 | AM4: 2019-03-31 | AN4: 2020-03-31 | AO4: 2021-03-31
E5: Note: Base revenue referred to in the PCFM is not the BRt terms quoted in the licence as this also includes the terms TRUE and RPIFt which relate to retail price index adjustments
E6: =UserInterface!E10 -> Year t selected: | G6: =UserInterface!G10 -> 2019-03-31
E8: =Revenue!E64 -> Final Proposals base revenue | AH8: =Revenue!AH64 -> 104.5394136 | AI8: =Revenue!AI64 -> 111.5153538 | AJ8: =Revenue!AJ64 -> 124.1386285 | AK8: =Revenue!AK64 -> 123.6345269 | AL8: =Revenue!AL64 -> 119.5972853 | AM8: =Revenue!AM64 -> 119.9999227 | AN8: =Revenue!AN64 -> 122.0971822 | AO8: =Revenue!AO64 -> 122.5254859
E9: =Revenue!E65 -> MOD | AH9: =Revenue!AH65 -> 0 | AI9: =Revenue!AI65 -> 8.713416573 | AJ9: =Revenue!AJ65 -> 85.16027094 | AK9: =Revenue!AK65 -> 87.61219141 | AL9: =Revenue!AL65 -> 52.68753 | AM9: =Revenue!AM65 -> 76.25751624 | AN9: =Revenue!AN65 -> 0 | AO9: =Revenue!AO65 -> 0
E10: =Revenue!E66 -> Base revenue | AH10: =Revenue!AH66 -> 104.5394136 | AI10: =Revenue!AI66 -> 120.2287704 | AJ10: =Revenue!AJ66 -> 209.2988994 | AK10: =Revenue!AK66 -> 211.2467183 | AL10: =Revenue!AL66 -> 172.2848153 | AM10: =Revenue!AM66 -> 196.257439 | AN10: =Revenue!AN66 -> 122.0971822 | AO10: =Revenue!AO66 -> 122.5254859
B12: End of sheet

Sheet Input
A1: Input
B2: =UserInterface!G17 -> SHE-Transmission PLC | G2: Price shock:
E3: Parameter | F3: Licence condition | G3: Units | H3: Term | I3: Constant | AH3: Annual values
E4: PCFM year ending | F4: =Cover!C3 -> ET1 PCFM November 2017 DryRun3.1.xlsm | I4: =UserInterface!$G$10 -> 2019-03-31 | K4: 1991-03-31 | L4: 1992-03-31 | M4: 1993-03-31 | N4: 1994-03-31 | O4: 1995-03-31 | P4: 1996-03-31 | Q4: 1997-03-31 | R4: 1998-03-31 | S4: 1999-03-31 | T4: 2000-03-31 | U4: 2001-03-31 | V4: 2002-03-31 | W4: 2003-03-31 | X4: 2004-03-31 | Y4: 2005-03-31 | Z4: 2006-03-31 | AA4: 2007-03-31 | AB4: 2008-03-31 | AC4: 2009-03-31 | AD4: 2010-03-31 | AE4: 2011-03-31 | AF4: 2012-03-31 | AG4: 2013-03-31 | AH4: 2014-03-31 | AI4: 2015-03-31 | AJ4: 2016-03-31 | AK4: 2017-03-31 | AL4: 2018-03-31 | AM4: 2019-03-31 | AN4: 2020-03-31 | AO4: 2021-03-31
B6: PCFM Variable Values Table
E8: Allowed percentage cost of debt | F8: 6D | G8: annual real % | H8: CDE / SO CDE | AH8: =(CHOOSE(m_identity,'SHE-Transmission PLC'!AH8, SPTL!AH8, 'NGET TO'!AH8)) -> 0.0292 | AI8: =(CHOOSE(m_identity,'SHE-Transmission PLC'!AI8, SPTL!AI8, 'NGET TO'!AI8)) -> 0.025 | AJ8: =(CHOOSE(m_identity,'SHE-Transmission PLC'!AJ8, SPTL!AJ8, 'NGET TO'!AJ8)) -> 0.0215 | AK8: =(CHOOSE(m_identity,'SHE-Transmission PLC'!AK8, SPTL!AK8, 'NGET TO'!AK8)) -> 0.0179 | AL8: =(CHOOSE(m_identity,'SHE-Transmission PLC'!AL8, SPTL!AL8, 'NGET TO'!AL8)) -> 0.0151 | AM8: =(CHOOSE(m_identity,'SHE-Transmission PLC'!AM8, SPTL!AM8, 'NGET TO'!AM8)) -> 0.0122 | AN8: =(CHOOSE(m_identity,'SHE-Transmission PLC'!AN8, SPTL!AN8, 'NGET TO'!AN8)) -> 0.0122 | AO8: =(CHOOSE(m_identity,'SHE-Transmission PLC'!AO8, SPTL!AO8, 'NGET TO'!AO8)) -> 0.0122
E9: Actual load related capex expenditure | F9: 6C | G9: £m 09/10 prices | H9: ALC | AH9: =(CHOOSE(m_identity,'SHE-Transmission PLC'!AH9, SPTL!AH9, 'NGET TO'!AH9)) -> 121.1049399 | AI9: =(CHOOSE(m_identity,'SHE-Transmission PLC'!AI9, SPTL!AI9, 'NGET TO'!AI9)) -> 250.5817313 | AJ9: =(CHOOSE(m_identity,'SHE-Transmission PLC'!AJ9, SPTL!AJ9, 'NGET TO'!AJ9)) -> 402.9318734 | AK9: =(CHOOSE(m_identity,'SHE-Transmission PLC'!AK9, SPTL!AK9, 'NGET TO'!AK9)) -> 326.521178 | AL9: =(CHOOSE(m_identity,'SHE-Transmission PLC'!AL9, SPTL!AL9, 'NGET TO'!AL9)) -> 0 | AM9: =(CHOOSE(m_identity,'SHE-Transmission PLC'!AM9, SPTL!AM9, 'NGET TO'!AM9)) -> 0 | AN9: =(CHOOSE(m_identity,'SHE-Transmission PLC'!AN9, SPTL!AN9, 'NGET TO'!AN9)) -> 0 | AO9: =(CHOOSE(m_identity,'SHE-Transmission PLC'!AO9, SPTL!AO9, 'NGET TO'!AO9)) -> 0
E10: Actual asset replacement capex expenditure | F10: 6C | G10: £m 09/10 prices | H10: ARC | AH10: =(CHOOSE(m_identity,'SHE-Transmission PLC'!AH10, SPTL!AH10, 'NGET TO'!AH10)) -> 16.41388356 | AI10: =(CHOOSE(m_identity,'SHE-Transmission PLC'!AI10, SPTL!AI10, 'NGET TO'!AI10)) -> 16.39762548 | AJ10: =(CHOOSE(m_identity,'SHE-Transmission PLC'!AJ10, SPTL!AJ10, 'NGET TO'!AJ10)) -> 10.8536811 | AK10: =(CHOOSE(m_identity,'SHE-Transmission PLC'!AK10, SPTL!AK10, 'NGET TO'!AK10)) -> 17.143907 | AL10: =(CHOOSE(m_identity,'SHE-Transmission PLC'!AL10, SPTL!AL10, 'NGET TO'!AL10)) -> 0 | AM10: =(CHOOSE(m_identity,'SHE-Transmission PLC'!AM10, SPTL!AM10, 'NGET TO'!AM10)) -> 0 | AN10: =(CHOOSE(m_identity,'SHE-Transmission PLC'!AN10, SPTL!AN10, 'NGET TO'!AN10)) -> 0 | AO10: =(CHOOSE(m_identity,'SHE-Transmission PLC'!AO10, SPTL!AO10, 'NGET TO'!AO10)) -> 0
E11: Actual other capex expenditure | F11: 6C | G11: £m 09/10 prices | H11: AOC | AH11: =(CHOOSE(m_identity,'SHE-Transmission PLC'!AH11, SPTL!AH11, 'NGET TO'!AH11)) -> 0.5571292071 | AI11: =(CHOOSE(m_identity,'SHE-Transmission PLC'!AI11, SPTL!AI11, 'NGET TO'!AI11)) -> 2.244865424 | AJ11: =(CHOOSE(m_identity,'SHE-Transmission PLC'!AJ11, SPTL!AJ11, 'NGET TO'!AJ11)) -> 3.860739369 | AK11: =(CHOOSE(m_identity,'SHE-Transmission PLC'!AK11, SPTL!AK11, 'NGET TO'!AK11)) -> 8.503054673 | AL11: =(CHOOSE(m_identity,'SHE-Transmission PLC'!AL11, SPTL!AL11, 'NGET TO'!AL11)) -> 0 | AM11: =(CHOOSE(m_identity,'SHE-Transmission PLC'!AM11, SPTL!AM11, 'NGET TO'!AM11)) -> 0 | AN11: =(CHOOSE(m_identity,'SHE-Transmission PLC'!AN11, SPTL!AN11, 'NGET TO'!AN11)) -> 0 | AO11: =(CHOOSE(m_identity,'SHE-Transmission PLC'!AO11, SPTL!AO11, 'NGET TO'!AO11)) -> 0
E12: Actual controllable opex | F12: 6C | G12: £m 09/10 prices | H12: ACO | AH12: =(CHOOSE(m_identity,'SHE-Transmission PLC'!AH12, SPTL!AH12, 'NGET TO'!AH12)) -> 11.14012921 | AI12: =(CHOOSE(m_identity,'SHE-Transmission PLC'!AI12, SPTL!AI12, 'NGET TO'!AI12)) -> 13.74568652 | AJ12: =(CHOOSE(m_identity,'SHE-Transmission PLC'!AJ12, SPTL!AJ12, 'NGET TO'!AJ12)) -> 16.66154151 | AK12: =(CHOOSE(m_identity,'SHE-Transmission PLC'!AK12, SPTL!AK12, 'NGET TO'!AK12)) -> 19.65718406 | AL12: =(CHOOSE(m_identity,'SHE-Transmission PLC'!AL12, SPTL!AL12, 'NGET TO'!AL12)) -> 0 | AM12: =(CHOOSE(m_identity,'SHE-Transmission PLC'!AM12, SPTL!AM12, 'NGET TO'!AM12)) -> 0 | AN12: =(CHOOSE(m_identity,'SHE-Transmission PLC'!AN12, SPTL!AN12, 'NGET TO'!AN12)) -> 0 | AO12: =(CHOOSE(m_identity,'SHE-Transmission PLC'!AO12, SPTL!AO12, 'NGET TO'!AO12)) -> 0
E13: Actual non-operational capex | F13: 6C | G13: £m 09/10 prices | H13: ANC | AH13: =(CHOOSE(m_identity,'SHE-Transmission PLC'!AH13, SPTL!AH13, 'NGET TO'!AH13)) -> 0.2571365571 | AI13: =(CHOOSE(m_identity,'SHE-Transmission PLC'!AI13, SPTL!AI13, 'NGET TO'!AI13)) -> 1.615720095 | AJ13: =(CHOOSE(m_identity,'SHE-Transmission PLC'!AJ13, SPTL!AJ13, 'NGET TO'!AJ13)) -> 1.374739349 | AK13: =(CHOOSE(m_identity,'SHE-Transmission PLC'!AK13, SPTL!AK13, 'NGET TO'!AK13)) -> 4.021134144 | AL13: =(CHOOSE(m_identity,'SHE-Transmission PLC'!AL13, SPTL!AL13, 'NGET TO'!AL13)) -> 0 | AM13: =(CHOOSE(m_identity,'SHE-Transmission PLC'!AM13, SPTL!AM13, 'NGET TO'!AM13)) -> 0 | AN13: =(CHOOSE(m_identity,'SHE-Transmission PLC'!AN13, SPTL!AN13, 'NGET TO'!AN13)) -> 0 | AO13: =(CHOOSE(m_identity,'SHE-Transmission PLC'!AO13, SPTL!AO13, 'NGET TO'!AO13)) -> 0
E14: Uncertain costs - enhanced security | F14: 6H | G14: £m 09/10 prices | H14: IAEEPS | AH14: =(CHOOSE(m_identity,'SHE-Transmission PLC'!AH14, SPTL!AH14, 'NGET TO'!AH14)) -> 0 | AI14: =(CHOOSE(m_identity,'SHE-Transmission PLC'!AI14, SPTL!AI14, 'NGET TO'!AI14)) -> 0 | AJ14: =(CHOOSE(m_identity,'SHE-Transmission PLC'!AJ14, SPTL!AJ14, 'NGET TO'!AJ14)) -> 0 | AK14: =(CHOOSE(m_identity,'SHE-Transmission PLC'!AK14, SPTL!AK14, 'NGET TO'!AK14)) -> 0 | AL14: =(CHOOSE(m_identity,'SHE-Transmission PLC'!AL14, SPTL!AL14, 'NGET TO'!AL14)) -> 0 | AM14: =(CHOOSE(m_identity,'SHE-Transmission PLC'!AM14, SPTL!AM14, 'NGET TO'!AM14)) -> 0 | AN14: =(CHOOSE(m_identity,'SHE-Transmission PLC'!AN14, SPTL!AN14, 'NGET TO'!AN14)) -> 0 | AO14: =(CHOOSE(m_identity,'SHE-Transmission PLC'!AO14, SPTL!AO14, 'NGET TO'!AO14)) -> 0
E15: Uncertain costs – workforce renewal (SPTL only) | F15: 6H | G15: £m 09/10 prices | H15: IAEWR | AH15: =(CHOOSE(m_identity,'SHE-Transmission PLC'!AH15, SPTL!AH15, 'NGET TO'!AH15)) -> 0 | AI15: =(CHOOSE(m_identity,'SHE-Transmission PLC'!AI15, SPTL!AI15, 'NGET TO'!AI15)) -> 0 | AJ15: =(CHOOSE(m_identity,'SHE-Transmission PLC'!AJ15, SPTL!AJ15, 'NGET TO'!AJ15)) -> 0 | AK15: =(CHOOSE(m_identity,'SHE-Transmission PLC'!AK15, SPTL!AK15, 'NGET TO'!AK15)) -> 0 | AL15: =(CHOOSE(m_identity,'SHE-Transmission PLC'!AL15, SPTL!AL15, 'NGET TO'!AL15)) -> 0 | AM15: =(CHOOSE(m_identity,'SHE-Transmission PLC'!AM15, SPTL!AM15, 'NGET TO'!AM15)) -> 0 | AN15: =(CHOOSE(m_identity,'SHE-Transmission PLC'!AN15, SPTL!AN15, 'NGET TO'!AN15)) -> 0 | AO15: =(CHOOSE(m_identity,'SHE-Transmission PLC'!AO15, SPTL!AO15, 'NGET TO'!AO15)) -> 0
E16: Uncertain costs – BT 21st Century (SHETPLC only) | F16: 6H | G16: £m 09/10 prices | H16: IAEBT | AH16: =(CHOOSE(m_identity,'SHE-Transmission PLC'!AH16, SPTL!AH16, 'NGET TO'!AH16)) -> 0 | AI16: =(CHOOSE(m_identity,'SHE-Transmission PLC'!AI16, SPTL!AI16, 'NGET TO'!AI16)) -> 0 | AJ16: =(CHOOSE(m_identity,'SHE-Transmission PLC'!AJ16, SPTL!AJ16, 'NGET TO'!AJ16)) -> 0 | AK16: =(CHOOSE(m_identity,'SHE-Transmission PLC'!AK16, SPTL!AK16, 'NGET TO'!AK16)) -> 0 | AL16: =(CHOOSE(m_identity,'SHE-Transmission PLC'!AL16, SPTL!AL16, 'NGET TO'!AL16)) -> 0 | AM16: =(CHOOSE(m_identity,'SHE-Transmission PLC'!AM16, SPTL!AM16, 'NGET TO'!AM16)) -> 0 | AN16: =(CHOOSE(m_identity,'SHE-Transmission PLC'!AN16, SPTL!AN16, 'NGET TO'!AN16)) -> 0 | AO16: =(CHOOSE(m_identity,'SHE-Transmission PLC'!AO16, SPTL!AO16, 'NGET TO'!AO16)) -> 0
E17: Uncertain costs – compensation costs for landowners for wayleave (SHETPLC only) | F17: 6H | G17: £m 09/10 prices | H17: IAEWL | AH17: =(CHOOSE(m_identity,'SHE-Transmission PLC'!AH17, SPTL!AH17, 'NGET TO'!AH17)) -> 0 | AI17: =(CHOOSE(m_identity,'SHE-Transmission PLC'!AI17, SPTL!AI17, 'NGET TO'!AI17)) -> 0 | AJ17: =(CHOOSE(m_identity,'SHE-Transmission PLC'!AJ17, SPTL!AJ17, 'NGET TO'!AJ17)) -> 0 | AK17: =(CHOOSE(m_identity,'SHE-Transmission PLC'!AK17, SPTL!AK17, 'NGET TO'!AK17)) -> 0 | AL17: =(CHOOSE(m_identity,'SHE-Transmission PLC'!AL17, SPTL!AL17, 'NGET TO'!AL17)) -> 0 | AM17: =(CHOOSE(m_identity,'SHE-Transmission PLC'!AM17, SPTL!AM17, 'NGET TO'!AM17)) -> 0 | AN17: =(CHOOSE(m_identity,'SHE-Transmission PLC'!AN17, SPTL!AN17, 'NGET TO'!AN17)) -> 0 | AO17: =(CHOOSE(m_identity,'SHE-Transmission PLC'!AO17, SPTL!AO17, 'NGET TO'!AO17)) -> 0
E18: Baseline and strategic wider works outputs | F18: 6I | G18: £m 09/10 prices | H18: WWE | AH18: =(CHOOSE(m_identity,'SHE-Transmission PLC'!AH18, SPTL!AH18, 'NGET TO'!AH18)) -> 35.33 | AI18: =(CHOOSE(m_identity,'SHE-Transmission PLC'!AI18, SPTL!AI18, 'NGET TO'!AI18)) -> 164.105 | AJ18: =(CHOOSE(m_identity,'SHE-Transmission PLC'!AJ18, SPTL!AJ18, 'NGET TO'!AJ18)) -> 415.698 | AK18: =(CHOOSE(m_identity,'SHE-Transmission PLC'!AK18, SPTL!AK18, 'NGET TO'!AK18)) -> 359.286 | AL18: =(CHOOSE(m_identity,'SHE-Transmission PLC'!AL18, SPTL!AL18, 'NGET TO'!AL18)) -> 172.348 | AM18: =(CHOOSE(m_identity,'SHE-Transmission PLC'!AM18, SPTL!AM18, 'NGET TO'!AM18)) -> 18.048 | AN18: =(CHOOSE(m_identity,'SHE-Transmission PLC'!AN18, SPTL!AN18, 'NGET TO'!AN18)) -> 7.108 | AO18: =(CHOOSE(m_identity,'SHE-Transmission PLC'!AO18, SPTL!AO18, 'NGET TO'!AO18)) -> 5.817
E19: Network development and wider works volume driver (NGET only) | F19: 6J | G19: £m 09/10 prices | H19: IWW | AH19: =(CHOOSE(m_identity,'SHE-Transmission PLC'!AH19, SPTL!AH19, 'NGET TO'!AH19)) -> 0 | AI19: =(CHOOSE(m_identity,'SHE-Transmission PLC'!AI19, SPTL!AI19, 'NGET TO'!AI19)) -> 0 | AJ19: =(CHOOSE(m_identity,'SHE-Transmission PLC'!AJ19, SPTL!AJ19, 'NGET TO'!AJ19)) -> 0 | AK19: =(CHOOSE(m_identity,'SHE-Transmission PLC'!AK19, SPTL!AK19, 'NGET TO'!AK19)) -> 0 | AL19: =(CHOOSE(m_identity,'SHE-Transmission PLC'!AL19, SPTL!AL19, 'NGET TO'!AL19)) -> 0 | AM19: =(CHOOSE(m_identity,'SHE-Transmission PLC'!AM19, SPTL!AM19, 'NGET TO'!AM19)) -> 0 | AN19: =(CHOOSE(m_identity,'SHE-Transmission PLC'!AN19, SPTL!AN19, 'NGET TO'!AN19)) -> 0 | AO19: =(CHOOSE(m_identity,'SHE-Transmission PLC'!AO19, SPTL!AO19, 'NGET TO'!AO19)) -> 0
E20: Enhancements to pre-existing infrastructure | F20: 6G | G20: £m 09/10 prices | H20: EPIE | AH20: =(CHOOSE(m_identity,'SHE-Transmission PLC'!AH20, SPTL!AH20, 'NGET TO'!AH20)) -> 0 | AI20: =(CHOOSE(m_identity,'SHE-Transmission PLC'!AI20, SPTL!AI20, 'NGET TO'!AI20)) -> 0 | AJ20: =(CHOOSE(m_identity,'SHE-Transmission PLC'!AJ20, SPTL!AJ20, 'NGET TO'!AJ20)) -> 0 | AK20: =(CHOOSE(m_identity,'SHE-Transmission PLC'!AK20, SPTL!AK20, 'NGET TO'!AK20)) -> 0 | AL20: =(CHOOSE(m_identity,'SHE-Transmission PLC'!AL20, SPTL!AL20, 'NGET TO'!AL20)) -> 0 | AM20: =(CHOOSE(m_identity,'SHE-Transmission PLC'!AM20, SPTL!AM20, 'NGET TO'!AM20)) -> 0 | AN20: =(CHOOSE(m_identity,'SHE-Transmission PLC'!AN20, SPTL!AN20, 'NGET TO'!AN20)) -> 0 | AO20: =(CHOOSE(m_identity,'SHE-Transmission PLC'!AO20, SPTL!AO20, 'NGET TO'!AO20)) -> 0
E21: Demand related infrastructure volume driver | F21: 6L | G21: £m 09/10 prices | H21: DRI | AH21: =(CHOOSE(m_identity,'SHE-Transmission PLC'!AH21, SPTL!AH21, 'NGET TO'!AH21)) -> 0 | AI21: =(CHOOSE(m_identity,'SHE-Transmission PLC'!AI21, SPTL!AI21, 'NGET TO'!AI21)) -> 0 | AJ21: =(CHOOSE(m_identity,'SHE-Transmission PLC'!AJ21, SPTL!AJ21, 'NGET TO'!AJ21)) -> 0 | AK21: =(CHOOSE(m_identity,'SHE-Transmission PLC'!AK21, SPTL!AK21, 'NGET TO'!AK21)) -> 0 | AL21: =(CHOOSE(m_identity,'SHE-Transmission PLC'!AL21, SPTL!AL21, 'NGET TO'!AL21)) -> 0 | AM21: =(CHOOSE(m_identity,'SHE-Transmission PLC'!AM21, SPTL!AM21, 'NGET TO'!AM21)) -> 0 | AN21: =(CHOOSE(m_identity,'SHE-Transmission PLC'!AN21, SPTL!AN21, 'NGET TO'!AN21)) -> 0 | AO21: =(CHOOSE(m_identity,'SHE-Transmission PLC'!AO21, SPTL!AO21, 'NGET TO'!AO21)) -> 0
E22: Undergrounding volume driver | F22: 6K | G22: £m 09/10 prices | H22: UCE | AH22: =(CHOOSE(m_identity,'SHE-Transmission PLC'!AH22, SPTL!AH22, 'NGET TO'!AH22)) -> 0 | AI22: =(CHOOSE(m_identity,'SHE-Transmission PLC'!AI22, SPTL!AI22, 'NGET TO'!AI22)) -> 0 | AJ22: =(CHOOSE(m_identity,'SHE-Transmission PLC'!AJ22, SPTL!AJ22, 'NGET TO'!AJ22)) -> 0 | AK22: =(CHOOSE(m_identity,'SHE-Transmission PLC'!AK22, SPTL!AK22, 'NGET TO'!AK22)) -> 0 | AL22: =(CHOOSE(m_identity,'SHE-Transmission PLC'!AL22, SPTL!AL22, 'NGET TO'!AL22)) -> 0 | AM22: =(CHOOSE(m_identity,'SHE-Transmission PLC'!AM22, SPTL!AM22, 'NGET TO'!AM22)) -> 0 | AN22: =(CHOOSE(m_identity,'SHE-Transmission PLC'!AN22, SPTL!AN22, 'NGET TO'!AN22)) -> 0 | AO22: =(CHOOSE(m_identity,'SHE-Transmission PLC'!AO22, SPTL!AO22, 'NGET TO'!AO22)) -> 0
E23: Generation connections volume driver | F23: 6F | G23: £m 09/10 prices | H23: GCE | AH23: =(CHOOSE(m_identity,'SHE-Transmission PLC'!AH23, SPTL!AH23, 'NGET TO'!AH23)) -> 36.11097287 | AI23: =(CHOOSE(m_identity,'SHE-Transmission PLC'!AI23, SPTL!AI23, 'NGET TO'!AI23)) -> 30.38992295 | AJ23: =(CHOOSE(m_identity,'SHE-Transmission PLC'!AJ23, SPTL!AJ23, 'NGET TO'!AJ23)) -> 121.1044938 | AK23: =(CHOOSE(m_identity,'SHE-Transmission PLC'!AK23, SPTL!AK23, 'NGET TO'!AK23)) -> 103.0568288 | AL23: =(CHOOSE(m_identity,'SHE-Transmission PLC'!AL23, SPTL!AL23, 'NGET TO'!AL23)) -> 102.7633787 | AM23: =(CHOOSE(m_identity,'SHE-Transmission PLC'!AM23, SPTL!AM23, 'NGET TO'!AM23)) -> 134.0134554 | AN23: =(CHOOSE(m_identity,'SHE-Transmission PLC'!AN23, SPTL!AN23, 'NGET TO'!AN23)) -> 0 | AO23: =(CHOOSE(m_identity,'SHE-Transmission PLC'!AO23, SPTL!AO23, 'NGET TO'!AO23)) -> 0
E24: Innovation roll out mechanism | F24: 6E | G24: £m 09/10 prices | H24: IRM | AH24: =(CHOOSE(m_identity,'SHE-Transmission PLC'!AH24, SPTL!AH24, 'NGET TO'!AH24)) -> 0 | AI24: =(CHOOSE(m_identity,'SHE-Transmission PLC'!AI24, SPTL!AI24, 'NGET TO'!AI24)) -> 0 | AJ24: =(CHOOSE(m_identity,'SHE-Transmission PLC'!AJ24, SPTL!AJ24, 'NGET TO'!AJ24)) -> 0 | AK24: =(CHOOSE(m_identity,'SHE-Transmission PLC'!AK24, SPTL!AK24, 'NGET TO'!AK24)) -> 0 | AL24: =(CHOOSE(m_identity,'SHE-Transmission PLC'!AL24, SPTL!AL24, 'NGET TO'!AL24)) -> 0 | AM24: =(CHOOSE(m_identity,'SHE-Transmission PLC'!AM24, SPTL!AM24, 'NGET TO'!AM24)) -> 0 | AN24: =(CHOOSE(m_identity,'SHE-Transmission PLC'!AN24, SPTL!AN24, 'NGET TO'!AN24)) -> 0 | AO24: =(CHOOSE(m_identity,'SHE-Transmission PLC'!AO24, SPTL!AO24, 'NGET TO'!AO24)) -> 0
E25: Exceptional Sub Sea Cable Faults | F25: 6H | G25: £m 09/10 prices | H25: IAESSCM | AH25: =(CHOOSE(m_identity,'SHE-Transmission PLC'!AH25, SPTL!AH25, 'NGET TO'!AH25)) -> 0 | AI25: =(CHOOSE(m_identity,'SHE-Transmission PLC'!AI25, SPTL!AI25, 'NGET TO'!AI25)) -> 0 | AJ25: =(CHOOSE(m_identity,'SHE-Transmission PLC'!AJ25, SPTL!AJ25, 'NGET TO'!AJ25)) -> 0 | AK25: =(CHOOSE(m_identity,'SHE-Transmission PLC'!AK25, SPTL!AK25, 'NGET TO'!AK25)) -> 0 | AL25: =(CHOOSE(m_identity,'SHE-Transmission PLC'!AL25, SPTL!AL25, 'NGET TO'!AL25)) -> 0 | AM25: =(CHOOSE(m_identity,'SHE-Transmission PLC'!AM25, SPTL!AM25, 'NGET TO'!AM25)) -> 0 | AN25: =(CHOOSE(m_identity,'SHE-Transmission PLC'!AN25, SPTL!AN25, 'NGET TO'!AN25)) -> 0 | AO25: =(CHOOSE(m_identity,'SHE-Transmission PLC'!AO25, SPTL!AO25, 'NGET TO'!AO25)) -> 0
E26: Non-load Related Work Costs | F26: 6H | G26: £m 09/10 prices | H26: IAENLUM | AH26: =(CHOOSE(m_identity,'SHE-Transmission PLC'!AH26, SPTL!AH26, 'NGET TO'!AH26)) -> 0 | AI26: =(CHOOSE(m_identity,'SHE-Transmission PLC'!AI26, SPTL!AI26, 'NGET TO'!AI26)) -> 0 | AJ26: =(CHOOSE(m_identity,'SHE-Transmission PLC'!AJ26, SPTL!AJ26, 'NGET TO'!AJ26)) -> 0 | AK26: =(CHOOSE(m_identity,'SHE-Transmission PLC'!AK26, SPTL!AK26, 'NGET TO'!AK26)) -> 0 | AL26: =(CHOOSE(m_identity,'SHE-Transmission PLC'!AL26, SPTL!AL26, 'NGET TO'!AL26)) -> 0 | AM26: =(CHOOSE(m_identity,'SHE-Transmission PLC'!AM26, SPTL!AM26, 'NGET TO'!AM26)) -> 0 | AN26: =(CHOOSE(m_identity,'SHE-Transmission PLC'!AN26, SPTL!AN26, 'NGET TO'!AN26)) -> 0 | AO26: =(CHOOSE(m_identity,'SHE-Transmission PLC'!AO26, SPTL!AO26, 'NGET TO'!AO26)) -> 0
E27: Tax liability - gearing/interest costs | F27: 6D | G27: £m nominal | H27: TGIE | AH27: =(CHOOSE(m_identity,'SHE-Transmission PLC'!AH27, SPTL!AH27, 'NGET TO'!AH27)) -> 0 | AI27: =(CHOOSE(m_identity,'SHE-Transmission PLC'!AI27, SPTL!AI27, 'NGET TO'!AI27)) -> 0 | AJ27: =(CHOOSE(m_identity,'SHE-Transmission PLC'!AJ27, SPTL!AJ27, 'NGET TO'!AJ27)) -> 0 | AK27: =(CHOOSE(m_identity,'SHE-Transmission PLC'!AK27, SPTL!AK27, 'NGET TO'!AK27)) -> 0 | AL27: =(CHOOSE(m_identity,'SHE-Transmission PLC'!AL27, SPTL!AL27, 'NGET TO'!AL27)) -> 0 | AM27: =(CHOOSE(m_identity,'SHE-Transmission PLC'!AM27, SPTL!AM27, 'NGET TO'!AM27)) -> 0 | AN27: =(CHOOSE(m_identity,'SHE-Transmission PLC'!AN27, SPTL!AN27, 'NGET TO'!AN27)) -> 0 | AO27: =(CHOOSE(m_identity,'SHE-Transmission PLC'!AO27, SPTL!AO27, 'NGET TO'!AO27)) -> 0
E28: Tax liability - tax trigger events | F28: 6D | G28: £m 09/10 prices | H28: TTE | AH28: =(CHOOSE(m_identity,'SHE-Transmission PLC'!AH28, SPTL!AH28, 'NGET TO'!AH28)) -> 0 | AI28: =(CHOOSE(m_identity,'SHE-Transmission PLC'!AI28, SPTL!AI28, 'NGET TO'!AI28)) -> 0 | AJ28: =(CHOOSE(m_identity,'SHE-Transmission PLC'!AJ28, SPTL!AJ28, 'NGET TO'!AJ28)) -> 0 | AK28: =(CHOOSE(m_identity,'SHE-Transmission PLC'!AK28, SPTL!AK28, 'NGET TO'!AK28)) -> 0 | AL28: =(CHOOSE(m_identity,'SHE-Transmission PLC'!AL28, SPTL!AL28, 'NGET TO'!AL28)) -> 0 | AM28: =(CHOOSE(m_identity,'SHE-Transmission PLC'!AM28, SPTL!AM28, 'NGET TO'!AM28)) -> 0 | AN28: =(CHOOSE(m_identity,'SHE-Transmission PLC'!AN28, SPTL!AN28, 'NGET TO'!AN28)) -> 0 | AO28: =(CHOOSE(m_identity,'SHE-Transmission PLC'!AO28, SPTL!AO28, 'NGET TO'!AO28)) -> 0
E29: Pension scheme administration and Pension Protection Fund Levy | F29: 6D | G29: £m 09/10 prices | H29: APFE | AH29: =(CHOOSE(m_identity,'SHE-Transmission PLC'!AH29, SPTL!AH29, 'NGET TO'!AH29)) -> 0 | AI29: =(CHOOSE(m_identity,'SHE-Transmission PLC'!AI29, SPTL!AI29, 'NGET TO'!AI29)) -> 0 | AJ29: =(CHOOSE(m_identity,'SHE-Transmission PLC'!AJ29, SPTL!AJ29, 'NGET TO'!AJ29)) -> 0 | AK29: =(CHOOSE(m_identity,'SHE-Transmission PLC'!AK29, SPTL!AK29, 'NGET TO'!AK29)) -> 0 | AL29: =(CHOOSE(m_identity,'SHE-Transmission PLC'!AL29, SPTL!AL29, 'NGET TO'!AL29)) -> 0 | AM29: =(CHOOSE(m_identity,'SHE-Transmission PLC'!AM29, SPTL!AM29, 'NGET TO'!AM29)) -> 0 | AN29: =(CHOOSE(m_identity,'SHE-Transmission PLC'!AN29, SPTL!AN29, 'NGET TO'!AN29)) -> 0 | AO29: =(CHOOSE(m_identity,'SHE-Transmission PLC'!AO29, SPTL!AO29, 'NGET TO'!AO29)) -> 0
E30: Pension Scheme Established Deficit | F30: 6D | G30: £m 09/10 prices | H30: EDE | AH30: =(CHOOSE(m_identity,'SHE-Transmission PLC'!AH30, SPTL!AH30, 'NGET TO'!AH30)) -> 0.465567766 | AI30: =(CHOOSE(m_identity,'SHE-Transmission PLC'!AI30, SPTL!AI30, 'NGET TO'!AI30)) -> 0.465567766 | AJ30: =(CHOOSE(m_identity,'SHE-Transmission PLC'!AJ30, SPTL!AJ30, 'NGET TO'!AJ30)) -> 1.488322777 | AK30: =(CHOOSE(m_identity,'SHE-Transmission PLC'!AK30, SPTL!AK30, 'NGET TO'!AK30)) -> 1.488322777 | AL30: =(CHOOSE(m_identity,'SHE-Transmission PLC'!AL30, SPTL!AL30, 'NGET TO'!AL30)) -> 1.488322777 | AM30: =(CHOOSE(m_identity,'SHE-Transmission PLC'!AM30, SPTL!AM30, 'NGET TO'!AM30)) -> 2.687796414 | AN30: =(CHOOSE(m_identity,'SHE-Transmission PLC'!AN30, SPTL!AN30, 'NGET TO'!AN30)) -> 2.142059101 | AO30: =(CHOOSE(m_identity,'SHE-Transmission PLC'!AO30, SPTL!AO30, 'NGET TO'!AO30)) -> 0
E31: Legacy price control adjustments to allowed revenue | F31: 6A | G31: £m 09/10 prices | H31: LAR | AH31: =(CHOOSE(m_identity,'SHE-Transmission PLC'!AH31, SPTL!AH31, 'NGET TO'!AH31)) -> 18.52469422
E32: Legacy price control adjustments to RAV | F32: 6A | G32: £m 09/10 prices | H32: LRAV | AH32: =(CHOOSE(m_identity,'SHE-Transmission PLC'!AH32, SPTL!AH32, 'NGET TO'!AH32)) -> -70.85787523
B34: Policy
C36: Cost of capital
E38: Cost of debt | G38: annual real % | AH38: =AH8 -> 0.0292 | AI38: 0.025 | AJ38: 0.0215 | AK38: 0.0179 | AL38: 0.0151 | AM38: 0.0122 | AN38: 0.0122 | AO38: 0.0122
E39: Cost of equity | G39: annual real % | AH39: =(CHOOSE(m_identity,'SHE-Transmission PLC'!AH39, SPTL!AH39, 'NGET TO'!AH39)) -> 0.07 | AI39: =(CHOOSE(m_identity,'SHE-Transmission PLC'!AI39, SPTL!AI39, 'NGET TO'!AI39)) -> 0.07 | AJ39: =(CHOOSE(m_identity,'SHE-Transmission PLC'!AJ39, SPTL!AJ39, 'NGET TO'!AJ39)) -> 0.07 | AK39: =(CHOOSE(m_identity,'SHE-Transmission PLC'!AK39, SPTL!AK39, 'NGET TO'!AK39)) -> 0.07 | AL39: =(CHOOSE(m_identity,'SHE-Transmission PLC'!AL39, SPTL!AL39, 'NGET TO'!AL39)) -> 0.07 | AM39: =(CHOOSE(m_identity,'SHE-Transmission PLC'!AM39, SPTL!AM39, 'NGET TO'!AM39)) -> 0.07 | AN39: =(CHOOSE(m_identity,'SHE-Transmission PLC'!AN39, SPTL!AN39, 'NGET TO'!AN39)) -> 0.07 | AO39: =(CHOOSE(m_identity,'SHE-Transmission PLC'!AO39, SPTL!AO39, 'NGET TO'!AO39)) -> 0.07
E40: Notional gearing | G40: % | J40: > | AG40: =(CHOOSE(m_identity,'SHE-Transmission PLC'!AG40, SPTL!AG40, 'NGET TO'!AG40)) -> 0.55 | AH40: =(CHOOSE(m_identity,'SHE-Transmission PLC'!AH40, SPTL!AH40, 'NGET TO'!AH40)) -> 0.55 | AI40: =(CHOOSE(m_identity,'SHE-Transmission PLC'!AI40, SPTL!AI40, 'NGET TO'!AI40)) -> 0.55 | AJ40: =(CHOOSE(m_identity,'SHE-Transmission PLC'!AJ40, SPTL!AJ40, 'NGET TO'!AJ40)) -> 0.55 | AK40: =(CHOOSE(m_identity,'SHE-Transmission PLC'!AK40, SPTL!AK40, 'NGET TO'!AK40)) -> 0.55 | AL40: =(CHOOSE(m_identity,'SHE-Transmission PLC'!AL40, SPTL!AL40, 'NGET TO'!AL40)) -> 0.55 | AM40: =(CHOOSE(m_identity,'SHE-Transmission PLC'!AM40, SPTL!AM40, 'NGET TO'!AM40)) -> 0.55 | AN40: =(CHOOSE(m_identity,'SHE-Transmission PLC'!AN40, SPTL!AN40, 'NGET TO'!AN40)) -> 0.55 | AO40: =(CHOOSE(m_identity,'SHE-Transmission PLC'!AO40, SPTL!AO40, 'NGET TO'!AO40)) -> 0.55
E42: Vanilla WACC | G42: annual real % | AH42: =(AH38 * AH40) + (AH39 * (1 - AH40)) -> 0.04756 | AI42: 0.04525 | AJ42: 0.043325 | AK42: 0.041345 | AL42: 0.039805 | AM42: 0.03821 | AN42: 0.03821 | AO42: 0.03821
E44: Pre-RIIO closing notional gearing | G44: % | I44: =(CHOOSE(m_identity,'SHE-Transmission PLC'!I44, SPTL!I44, 'NGET TO'!I44)) -> 0.6
E46: Forecast RPI (simple average year to March) | G46: index value | J46: > | V46: =(CHOOSE(m_identity,'SHE-Transmission PLC'!V46, SPTL!V46, 'NGET TO'!V46)) -> 173.875 | W46: =(CHOOSE(m_identity,'SHE-Transmission PLC'!W46, SPTL!W46, 'NGET TO'!W46)) -> 177.517 | X46: =(CHOOSE(m_identity,'SHE-Transmission PLC'!X46, SPTL!X46, 'NGET TO'!X46)) -> 182.475 | Y46: =(CHOOSE(m_identity,'SHE-Transmission PLC'!Y46, SPTL!Y46, 'NGET TO'!Y46)) -> 188.15 | Z46: =(CHOOSE(m_identity,'SHE-Transmission PLC'!Z46, SPTL!Z46, 'NGET TO'!Z46)) -> 193.108 | AA46: =(CHOOSE(m_identity,'SHE-Transmission PLC'!AA46, SPTL!AA46, 'NGET TO'!AA46)) -> 200.317 | AB46: =(CHOOSE(m_identity,'SHE-Transmission PLC'!AB46, SPTL!AB46, 'NGET TO'!AB46)) -> 208.592 | AC46: =(CHOOSE(m_identity,'SHE-Transmission PLC'!AC46, SPTL!AC46, 'NGET TO'!AC46)) -> 214.783 | AD46: =(CHOOSE(m_identity,'SHE-Transmission PLC'!AD46, SPTL!AD46, 'NGET TO'!AD46)) -> 215.767 | AE46: =(CHOOSE(m_identity,'SHE-Transmission PLC'!AE46, SPTL!AE46, 'NGET TO'!AE46)) -> 226.475 | AF46: =(CHOOSE(m_identity,'SHE-Transmission PLC'!AF46, SPTL!AF46, 'NGET TO'!AF46)) -> 237.342 | AG46: =(CHOOSE(m_identity,'SHE-Transmission PLC'!AG46, SPTL!AG46, 'NGET TO'!AG46)) -> 243.988 | AH46: =(CHOOSE(m_identity,'SHE-Transmission PLC'!AH46, SPTL!AH46, 'NGET TO'!AH46)) -> 250.82 | AI46: =(CHOOSE(m_identity,'SHE-Transmission PLC'!AI46, SPTL!AI46, 'NGET TO'!AI46)) -> 257.843 | AJ46: =(CHOOSE(m_identity,'SHE-Transmission PLC'!AJ46, SPTL!AJ46, 'NGET TO'!AJ46)) -> 265.063 | AK46: =(CHOOSE(m_identity,'SHE-Transmission PLC'!AK46, SPTL!AK46, 'NGET TO'!AK46)) -> 272.485 | AL46: =(CHOOSE(m_identity,'SHE-Transmission PLC'!AL46, SPTL!AL46, 'NGET TO'!AL46)) -> 280.115 | AM46: =(CHOOSE(m_identity,'SHE-Transmission PLC'!AM46, SPTL!AM46, 'NGET TO'!AM46)) -> 287.958 | AN46: =(CHOOSE(m_identity,'SHE-Transmission PLC'!AN46, SPTL!AN46, 'NGET TO'!AN46)) -> 296.021 | AO46: =(CHOOSE(m_identity,'SHE-Transmission PLC'!AO46, SPTL!AO46, 'NGET TO'!AO46)) -> 304.31
E47: Cost of Debt Inflation | G47: index value | J47: > | V47: =(CHOOSE(m_identity,'SHE-Transmission PLC'!V47, SPTL!V47, 'NGET TO'!V47)) -> 173.875 | W47: =(CHOOSE(m_identity,'SHE-Transmission PLC'!W47, SPTL!W47, 'NGET TO'!W47)) -> 177.517 | X47: =(CHOOSE(m_identity,'SHE-Transmission PLC'!X47, SPTL!X47, 'NGET TO'!X47)) -> 182.475 | Y47: =(CHOOSE(m_identity,'SHE-Transmission PLC'!Y47, SPTL!Y47, 'NGET TO'!Y47)) -> 188.15 | Z47: =(CHOOSE(m_identity,'SHE-Transmission PLC'!Z47, SPTL!Z47, 'NGET TO'!Z47)) -> 193.108 | AA47: =(CHOOSE(m_identity,'SHE-Transmission PLC'!AA47, SPTL!AA47, 'NGET TO'!AA47)) -> 200.317 | AB47: =(CHOOSE(m_identity,'SHE-Transmission PLC'!AB47, SPTL!AB47, 'NGET TO'!AB47)) -> 208.592 | AC47: =(CHOOSE(m_identity,'SHE-Transmission PLC'!AC47, SPTL!AC47, 'NGET TO'!AC47)) -> 214.783 | AD47: =(CHOOSE(m_identity,'SHE-Transmission PLC'!AD47, SPTL!AD47, 'NGET TO'!AD47)) -> 215.767 | AE47: =(CHOOSE(m_identity,'SHE-Transmission PLC'!AE47, SPTL!AE47, 'NGET TO'!AE47)) -> 226.475 | AF47: =(CHOOSE(m_identity,'SHE-Transmission PLC'!AF47, SPTL!AF47, 'NGET TO'!AF47)) -> 237.342 | AG47: =(CHOOSE(m_identity,'SHE-Transmission PLC'!AG47, SPTL!AG47, 'NGET TO'!AG47)) -> 243.988 | AH47: =(CHOOSE(m_identity,'SHE-Transmission PLC'!AH47, SPTL!AH47, 'NGET TO'!AH47)) -> 250.82 | AI47: =(CHOOSE(m_identity,'SHE-Transmission PLC'!AI47, SPTL!AI47, 'NGET TO'!AI47)) -> 257.843 | AJ47: =(CHOOSE(m_identity,'SHE-Transmission PLC'!AJ47, SPTL!AJ47, 'NGET TO'!AJ47)) -> 265.063 | AK47: =(CHOOSE(m_identity,'SHE-Transmission PLC'!AK47, SPTL!AK47, 'NGET TO'!AK47)) -> 272.485 | AL47: =(CHOOSE(m_identity,'SHE-Transmission PLC'!AL47, SPTL!AL47, 'NGET TO'!AL47)) -> 280.115 | AM47: =(CHOOSE(m_identity,'SHE-Transmission PLC'!AM47, SPTL!AM47, 'NGET TO'!AM47)) -> 287.958 | AN47: =(CHOOSE(m_identity,'SHE-Transmission PLC'!AN47, SPTL!AN47, 'NGET TO'!AN47)) -> 296.021 | AO47: =(CHOOSE(m_identity,'SHE-Transmission PLC'!AO47, SPTL!AO47, 'NGET TO'!AO47)) -> 304.31
C48: TIM and capitalisation
E50: Years from t until normal reporting of actual costs | G50: years | I50: =(CHOOSE(m_identity,'SHE-Transmission PLC'!I50, SPTL!I50, 'NGET TO'!I50)) -> 2
E52: Capitalised share of totex | G52: % | AH52: =(CHOOSE(m_identity,'SHE-Transmission PLC'!AH52, SPTL!AH52, 'NGET TO'!AH52)) -> 0.9 | AI52: =(CHOOSE(m_identity,'SHE-Transmission PLC'!AI52, SPTL!AI52, 'NGET TO'!AI52)) -> 0.9 | AJ52: =(CHOOSE(m_identity,'SHE-Transmission PLC'!AJ52, SPTL!AJ52, 'NGET TO'!AJ52)) -> 0.9 | AK52: =(CHOOSE(m_identity,'SHE-Transmission PLC'!AK52, SPTL!AK52, 'NGET TO'!AK52)) -> 0.9 | AL52: =(CHOOSE(m_identity,'SHE-Transmission PLC'!AL52, SPTL!AL52, 'NGET TO'!AL52)) -> 0.9 | AM52: =(CHOOSE(m_identity,'SHE-Transmission PLC'!AM52, SPTL!AM52, 'NGET TO'!AM52)) -> 0.9 | AN52: =(CHOOSE(m_identity,'SHE-Transmission PLC'!AN52, SPTL!AN52, 'NGET TO'!AN52)) -> 0.9 | AO52: =(CHOOSE(m_identity,'SHE-Transmission PLC'!AO52, SPTL!AO52, 'NGET TO'!AO52)) -> 0.9
E53: Capitalised share of wider works | G53: % | AH53: =(CHOOSE(m_identity,'SHE-Transmission PLC'!AH53, SPTL!AH53, 'NGET TO'!AH53)) -> 0.9 | AI53: =(CHOOSE(m_identity,'SHE-Transmission PLC'!AI53, SPTL!AI53, 'NGET TO'!AI53)) -> 0.9 | AJ53: =(CHOOSE(m_identity,'SHE-Transmission PLC'!AJ53, SPTL!AJ53, 'NGET TO'!AJ53)) -> 0.9 | AK53: =(CHOOSE(m_identity,'SHE-Transmission PLC'!AK53, SPTL!AK53, 'NGET TO'!AK53)) -> 0.9 | AL53: =(CHOOSE(m_identity,'SHE-Transmission PLC'!AL53, SPTL!AL53, 'NGET TO'!AL53)) -> 0.9 | AM53: =(CHOOSE(m_identity,'SHE-Transmission PLC'!AM53, SPTL!AM53, 'NGET TO'!AM53)) -> 0.9 | AN53: =(CHOOSE(m_identity,'SHE-Transmission PLC'!AN53, SPTL!AN53, 'NGET TO'!AN53)) -> 0.9 | AO53: =(CHOOSE(m_identity,'SHE-Transmission PLC'!AO53, SPTL!AO53, 'NGET TO'!AO53)) -> 0.9
E55: Incentive rate (slope) | G55: scalar | I55: =(CHOOSE(m_identity,'SHE-Transmission PLC'!I55, SPTL!I55, 'NGET TO'!I55)) -> -0.0025
E56: Incentive rate (intercept) | G56: scalar | I56: =(CHOOSE(m_identity,'SHE-Transmission PLC'!I56, SPTL!I56, 'NGET TO'!I56)) -> 0.75
E57: Additional income (intercept) | G57: scalar | I57: =(CHOOSE(m_identity,'SHE-Transmission PLC'!I57, SPTL!I57, 'NGET TO'!I57)) -> 8.75
E58: Additional Income (adjustment) | G58: £m 09/10 prices | AH58: =(CHOOSE(m_identity,'SHE-Transmission PLC'!AH58, SPTL!AH58, 'NGET TO'!AH58)) -> 0 | AI58: =(CHOOSE(m_identity,'SHE-Transmission PLC'!AI58, SPTL!AI58, 'NGET TO'!AI58)) -> 0 | AJ58: =(CHOOSE(m_identity,'SHE-Transmission PLC'!AJ58, SPTL!AJ58, 'NGET TO'!AJ58)) -> 0 | AK58: =(CHOOSE(m_identity,'SHE-Transmission PLC'!AK58, SPTL!AK58, 'NGET TO'!AK58)) -> 0 | AL58: =(CHOOSE(m_identity,'SHE-Transmission PLC'!AL58, SPTL!AL58, 'NGET TO'!AL58)) -> 0 | AM58: =(CHOOSE(m_identity,'SHE-Transmission PLC'!AM58, SPTL!AM58, 'NGET TO'!AM58)) -> 0 | AN58: =(CHOOSE(m_identity,'SHE-Transmission PLC'!AN58, SPTL!AN58, 'NGET TO'!AN58)) -> 0 | AO58: =(CHOOSE(m_identity,'SHE-Transmission PLC'!AO58, SPTL!AO58, 'NGET TO'!AO58)) -> 0
E59: Weight of Ofgem's view on price control totex | G59: % | I59: =(CHOOSE(m_identity,'SHE-Transmission PLC'!I59, SPTL!I59, 'NGET TO'!I59)) -> 0.75
E60: Weight of operator's view on price control totex | G60: % | I60: =(CHOOSE(m_identity,'SHE-Transmission PLC'!I60, SPTL!I60, 'NGET TO'!I60)) -> 0.25
E62: Ofgem's view of licensee totex | G62: £m 09/10 prices | I62: =(CHOOSE(m_identity,'SHE-Transmission PLC'!I62, SPTL!I62, 'NGET TO'!I62)) -> 1228.3
E63: Operator's view of licensee totex | G63: £m 09/10 prices | I63: =(CHOOSE(m_identity,'SHE-Transmission PLC'!I63, SPTL!I63, 'NGET TO'!I63)) -> 1228.3
E65: Ofgem's view of group price control totex | G65: £m 09/10 prices | I65: =(CHOOSE(m_identity,'SHE-Transmission PLC'!I65, SPTL!I65, 'NGET TO'!I65)) -> 1228.3
E66: Operator's view of group price control totex | G66: £m 09/10 prices | I66: =(CHOOSE(m_identity,'SHE-Transmission PLC'!I66, SPTL!I66, 'NGET TO'!I66)) -> 1228.3
C68: Finance
E70: Minimum equity issuance threshold | G70: % | I70: =(CHOOSE(m_identity,'SHE-Transmission PLC'!I70, SPTL!I70, 'NGET TO'!I70)) -> 0
E71: Equity issuance costs | G71: % | I71: =(CHOOSE(m_identity,'SHE-Transmission PLC'!I71, SPTL!I71, 'NGET TO'!I71)) -> 0.05
E72: Assumed dividends as % of notional equity portion of RAV | G72: % | I72: =(CHOOSE(m_identity,'SHE-Transmission PLC'!I72, SPTL!I72, 'NGET TO'!I72)) -> 0.05
E74: Equity issuance gearing target | G74: % | AH74: =(CHOOSE(m_identity,'SHE-Transmission PLC'!AH74, SPTL!AH74, 'NGET TO'!AH74)) -> 0.55 | AI74: =(CHOOSE(m_identity,'SHE-Transmission PLC'!AI74, SPTL!AI74, 'NGET TO'!AI74)) -> 0.55 | AJ74: =(CHOOSE(m_identity,'SHE-Transmission PLC'!AJ74, SPTL!AJ74, 'NGET TO'!AJ74)) -> 0.55 | AK74: =(CHOOSE(m_identity,'SHE-Transmission PLC'!AK74, SPTL!AK74, 'NGET TO'!AK74)) -> 0.55 | AL74: =(CHOOSE(m_identity,'SHE-Transmission PLC'!AL74, SPTL!AL74, 'NGET TO'!AL74)) -> 0.55 | AM74: =(CHOOSE(m_identity,'SHE-Transmission PLC'!AM74, SPTL!AM74, 'NGET TO'!AM74)) -> 0.55 | AN74: =(CHOOSE(m_identity,'SHE-Transmission PLC'!AN74, SPTL!AN74, 'NGET TO'!AN74)) -> 0.55 | AO74: =(CHOOSE(m_identity,'SHE-Transmission PLC'!AO74, SPTL!AO74, 'NGET TO'!AO74)) -> 0.55
E76: Index-linked debt as a percentage of net debt | G76: % | AH76: =(CHOOSE(m_identity,'SHE-Transmission PLC'!AH76, SPTL!AH76, 'NGET TO'!AH76)) -> 0 | AI76: =(CHOOSE(m_identity,'SHE-Transmission PLC'!AI76, SPTL!AI76, 'NGET TO'!AI76)) -> 0 | AJ76: =(CHOOSE(m_identity,'SHE-Transmission PLC'!AJ76, SPTL!AJ76, 'NGET TO'!AJ76)) -> 0 | AK76: =(CHOOSE(m_identity,'SHE-Transmission PLC'!AK76, SPTL!AK76, 'NGET TO'!AK76)) -> 0 | AL76: =(CHOOSE(m_identity,'SHE-Transmission PLC'!AL76, SPTL!AL76, 'NGET TO'!AL76)) -> 0 | AM76: =(CHOOSE(m_identity,'SHE-Transmission PLC'!AM76, SPTL!AM76, 'NGET TO'!AM76)) -> 0 | AN76: =(CHOOSE(m_identity,'SHE-Transmission PLC'!AN76, SPTL!AN76, 'NGET TO'!AN76)) -> 0 | AO76: =(CHOOSE(m_identity,'SHE-Transmission PLC'!AO76, SPTL!AO76, 'NGET TO'!AO76)) -> 0
B78: Expenditure
C80: Totex
D82: Non-variant allowances
E84: Non-variant allowed load related capex expenditure | G84: £m 09/10 prices | AH84: =(CHOOSE(m_identity,'SHE-Transmission PLC'!AH84, SPTL!AH84, 'NGET TO'!AH84)) -> 94.44586143 | AI84: =(CHOOSE(m_identity,'SHE-Transmission PLC'!AI84, SPTL!AI84, 'NGET TO'!AI84)) -> 96.31468141 | AJ84: =(CHOOSE(m_identity,'SHE-Transmission PLC'!AJ84, SPTL!AJ84, 'NGET TO'!AJ84)) -> 110.3124338 | AK84: =(CHOOSE(m_identity,'SHE-Transmission PLC'!AK84, SPTL!AK84, 'NGET TO'!AK84)) -> 54.56181927 | AL84: =(CHOOSE(m_identity,'SHE-Transmission PLC'!AL84, SPTL!AL84, 'NGET TO'!AL84)) -> 25.6699424 | AM84: =(CHOOSE(m_identity,'SHE-Transmission PLC'!AM84, SPTL!AM84, 'NGET TO'!AM84)) -> 24.95824947 | AN84: =(CHOOSE(m_identity,'SHE-Transmission PLC'!AN84, SPTL!AN84, 'NGET TO'!AN84)) -> 22.31016269 | AO84: =(CHOOSE(m_identity,'SHE-Transmission PLC'!AO84, SPTL!AO84, 'NGET TO'!AO84)) -> 22.08955401
E85: Non-variant allowed asset replacement capex expenditure | G85: £m 09/10 prices | AH85: =(CHOOSE(m_identity,'SHE-Transmission PLC'!AH85, SPTL!AH85, 'NGET TO'!AH85)) -> 0 | AI85: =(CHOOSE(m_identity,'SHE-Transmission PLC'!AI85, SPTL!AI85, 'NGET TO'!AI85)) -> 0 | AJ85: =(CHOOSE(m_identity,'SHE-Transmission PLC'!AJ85, SPTL!AJ85, 'NGET TO'!AJ85)) -> 0 | AK85: =(CHOOSE(m_identity,'SHE-Transmission PLC'!AK85, SPTL!AK85, 'NGET TO'!AK85)) -> 0 | AL85: =(CHOOSE(m_identity,'SHE-Transmission PLC'!AL85, SPTL!AL85, 'NGET TO'!AL85)) -> 0 | AM85: =(CHOOSE(m_identity,'SHE-Transmission PLC'!AM85, SPTL!AM85, 'NGET TO'!AM85)) -> 0 | AN85: =(CHOOSE(m_identity,'SHE-Transmission PLC'!AN85, SPTL!AN85, 'NGET TO'!AN85)) -> 0 | AO85: =(CHOOSE(m_identity,'SHE-Transmission PLC'!AO85, SPTL!AO85, 'NGET TO'!AO85)) -> 0
E86: Non-variant allowed other capex expenditure | G86: £m 09/10 prices | AH86: =(CHOOSE(m_identity,'SHE-Transmission PLC'!AH86, SPTL!AH86, 'NGET TO'!AH86)) -> 21.72313655 | AI86: =(CHOOSE(m_identity,'SHE-Transmission PLC'!AI86, SPTL!AI86, 'NGET TO'!AI86)) -> 20.12705041 | AJ86: =(CHOOSE(m_identity,'SHE-Transmission PLC'!AJ86, SPTL!AJ86, 'NGET TO'!AJ86)) -> 23.10880179 | AK86: =(CHOOSE(m_identity,'SHE-Transmission PLC'!AK86, SPTL!AK86, 'NGET TO'!AK86)) -> 27.4298963 | AL86: =(CHOOSE(m_identity,'SHE-Transmission PLC'!AL86, SPTL!AL86, 'NGET TO'!AL86)) -> 28.61656635 | AM86: =(CHOOSE(m_identity,'SHE-Transmission PLC'!AM86, SPTL!AM86, 'NGET TO'!AM86)) -> 28.98577733 | AN86: =(CHOOSE(m_identity,'SHE-Transmission PLC'!AN86, SPTL!AN86, 'NGET TO'!AN86)) -> 31.33718903 | AO86: =(CHOOSE(m_identity,'SHE-Transmission PLC'!AO86, SPTL!AO86, 'NGET TO'!AO86)) -> 27.76460375
E87: Non-variant allowed controllable opex | G87: £m 09/10 prices | AH87: =(CHOOSE(m_identity,'SHE-Transmission PLC'!AH87, SPTL!AH87, 'NGET TO'!AH87)) -> 12.70058134 | AI87: =(CHOOSE(m_identity,'SHE-Transmission PLC'!AI87, SPTL!AI87, 'NGET TO'!AI87)) -> 15.38745609 | AJ87: =(CHOOSE(m_identity,'SHE-Transmission PLC'!AJ87, SPTL!AJ87, 'NGET TO'!AJ87)) -> 18.12304577 | AK87: =(CHOOSE(m_identity,'SHE-Transmission PLC'!AK87, SPTL!AK87, 'NGET TO'!AK87)) -> 20.48693003 | AL87: =(CHOOSE(m_identity,'SHE-Transmission PLC'!AL87, SPTL!AL87, 'NGET TO'!AL87)) -> 22.71199996 | AM87: =(CHOOSE(m_identity,'SHE-Transmission PLC'!AM87, SPTL!AM87, 'NGET TO'!AM87)) -> 23.82945507 | AN87: =(CHOOSE(m_identity,'SHE-Transmission PLC'!AN87, SPTL!AN87, 'NGET TO'!AN87)) -> 24.86786003 | AO87: =(CHOOSE(m_identity,'SHE-Transmission PLC'!AO87, SPTL!AO87, 'NGET TO'!AO87)) -> 26.26544888
E88: Non-variant allowed non-operational capex | G88: £m 09/10 prices | AH88: =(CHOOSE(m_identity,'SHE-Transmission PLC'!AH88, SPTL!AH88, 'NGET TO'!AH88)) -> 0.705527361 | AI88: =(CHOOSE(m_identity,'SHE-Transmission PLC'!AI88, SPTL!AI88, 'NGET TO'!AI88)) -> 2.853152648 | AJ88: =(CHOOSE(m_identity,'SHE-Transmission PLC'!AJ88, SPTL!AJ88, 'NGET TO'!AJ88)) -> 2.776015628 | AK88: =(CHOOSE(m_identity,'SHE-Transmission PLC'!AK88, SPTL!AK88, 'NGET TO'!AK88)) -> 0.2083039875 | AL88: =(CHOOSE(m_identity,'SHE-Transmission PLC'!AL88, SPTL!AL88, 'NGET TO'!AL88)) -> 0.2110119393 | AM88: =(CHOOSE(m_identity,'SHE-Transmission PLC'!AM88, SPTL!AM88, 'NGET TO'!AM88)) -> 0.2137550945 | AN88: =(CHOOSE(m_identity,'SHE-Transmission PLC'!AN88, SPTL!AN88, 'NGET TO'!AN88)) -> 0.2165339108 | AO88: =(CHOOSE(m_identity,'SHE-Transmission PLC'!AO88, SPTL!AO88, 'NGET TO'!AO88)) -> 0.2193488516
D90: Variant allowances
E92: =E14 -> Uncertain costs - enhanced security | G92: £m 09/10 prices | AH92: =AH14 -> 0 | AI92: =AI14 -> 0 | AJ92: 0 | AK92: 0 | AL92: 0 | AM92: 0 | AN92: 0 | AO92: 0
E93: Allocation to load related capex expenditure | G93: % | AH93: =(CHOOSE(m_identity,'SHE-Transmission PLC'!AH93, SPTL!AH93, 'NGET TO'!AH93)) -> 0 | AI93: =(CHOOSE(m_identity,'SHE-Transmission PLC'!AI93, SPTL!AI93, 'NGET TO'!AI93)) -> 0 | AJ93: =(CHOOSE(m_identity,'SHE-Transmission PLC'!AJ93, SPTL!AJ93, 'NGET TO'!AJ93)) -> 0 | AK93: =(CHOOSE(m_identity,'SHE-Transmission PLC'!AK93, SPTL!AK93, 'NGET TO'!AK93)) -> 0 | AL93: =(CHOOSE(m_identity,'SHE-Transmission PLC'!AL93, SPTL!AL93, 'NGET TO'!AL93)) -> 0 | AM93: =(CHOOSE(m_identity,'SHE-Transmission PLC'!AM93, SPTL!AM93, 'NGET TO'!AM93)) -> 0 | AN93: =(CHOOSE(m_identity,'SHE-Transmission PLC'!AN93, SPTL!AN93, 'NGET TO'!AN93)) -> 0 | AO93: =(CHOOSE(m_identity,'SHE-Transmission PLC'!AO93, SPTL!AO93, 'NGET TO'!AO93)) -> 0
E94: Allocation to asset replacement capex expenditure | G94: % | AH94: =(CHOOSE(m_identity,'SHE-Transmission PLC'!AH94, SPTL!AH94, 'NGET TO'!AH94)) -> 0 | AI94: =(CHOOSE(m_identity,'SHE-Transmission PLC'!AI94, SPTL!AI94, 'NGET TO'!AI94)) -> 0 | AJ94: =(CHOOSE(m_identity,'SHE-Transmission PLC'!AJ94, SPTL!AJ94, 'NGET TO'!AJ94)) -> 0 | AK94: =(CHOOSE(m_identity,'SHE-Transmission PLC'!AK94, SPTL!AK94, 'NGET TO'!AK94)) -> 0 | AL94: =(CHOOSE(m_identity,'SHE-Transmission PLC'!AL94, SPTL!AL94, 'NGET TO'!AL94)) -> 0 | AM94: =(CHOOSE(m_identity,'SHE-Transmission PLC'!AM94, SPTL!AM94, 'NGET TO'!AM94)) -> 0 | AN94: =(CHOOSE(m_identity,'SHE-Transmission PLC'!AN94, SPTL!AN94, 'NGET TO'!AN94)) -> 0 | AO94: =(CHOOSE(m_identity,'SHE-Transmission PLC'!AO94, SPTL!AO94, 'NGET TO'!AO94)) -> 0
E95: Allocation to other capex expenditure | G95: % | AH95: =(CHOOSE(m_identity,'SHE-Transmission PLC'!AH95, SPTL!AH95, 'NGET TO'!AH95)) -> 1 | AI95: =(CHOOSE(m_identity,'SHE-Transmission PLC'!AI95, SPTL!AI95, 'NGET TO'!AI95)) -> 1 | AJ95: =(CHOOSE(m_identity,'SHE-Transmission PLC'!AJ95, SPTL!AJ95, 'NGET TO'!AJ95)) -> 1 | AK95: =(CHOOSE(m_identity,'SHE-Transmission PLC'!AK95, SPTL!AK95, 'NGET TO'!AK95)) -> 1 | AL95: =(CHOOSE(m_identity,'SHE-Transmission PLC'!AL95, SPTL!AL95, 'NGET TO'!AL95)) -> 1 | AM95: =(CHOOSE(m_identity,'SHE-Transmission PLC'!AM95, SPTL!AM95, 'NGET TO'!AM95)) -> 1 | AN95: =(CHOOSE(m_identity,'SHE-Transmission PLC'!AN95, SPTL!AN95, 'NGET TO'!AN95)) -> 1 | AO95: =(CHOOSE(m_identity,'SHE-Transmission PLC'!AO95, SPTL!AO95, 'NGET TO'!AO95)) -> 1
E96: Allocation to controllable opex | G96: % | AH96: =(CHOOSE(m_identity,'SHE-Transmission PLC'!AH96, SPTL!AH96, 'NGET TO'!AH96)) -> 0 | AI96: =(CHOOSE(m_identity,'SHE-Transmission PLC'!AI96, SPTL!AI96, 'NGET TO'!AI96)) -> 0 | AJ96: =(CHOOSE(m_identity,'SHE-Transmission PLC'!AJ96, SPTL!AJ96, 'NGET TO'!AJ96)) -> 0 | AK96: =(CHOOSE(m_identity,'SHE-Transmission PLC'!AK96, SPTL!AK96, 'NGET TO'!AK96)) -> 0 | AL96: =(CHOOSE(m_identity,'SHE-Transmission PLC'!AL96, SPTL!AL96, 'NGET TO'!AL96)) -> 0 | AM96: =(CHOOSE(m_identity,'SHE-Transmission PLC'!AM96, SPTL!AM96, 'NGET TO'!AM96)) -> 0 | AN96: =(CHOOSE(m_identity,'SHE-Transmission PLC'!AN96, SPTL!AN96, 'NGET TO'!AN96)) -> 0 | AO96: =(CHOOSE(m_identity,'SHE-Transmission PLC'!AO96, SPTL!AO96, 'NGET TO'!AO96)) -> 0
E97: Allocation to non-operational capex | G97: % | AH97: =(CHOOSE(m_identity,'SHE-Transmission PLC'!AH97, SPTL!AH97, 'NGET TO'!AH97)) -> 0 | AI97: =(CHOOSE(m_identity,'SHE-Transmission PLC'!AI97, SPTL!AI97, 'NGET TO'!AI97)) -> 0 | AJ97: =(CHOOSE(m_identity,'SHE-Transmission PLC'!AJ97, SPTL!AJ97, 'NGET TO'!AJ97)) -> 0 | AK97: =(CHOOSE(m_identity,'SHE-Transmission PLC'!AK97, SPTL!AK97, 'NGET TO'!AK97)) -> 0 | AL97: =(CHOOSE(m_identity,'SHE-Transmission PLC'!AL97, SPTL!AL97, 'NGET TO'!AL97)) -> 0 | AM97: =(CHOOSE(m_identity,'SHE-Transmission PLC'!AM97, SPTL!AM97, 'NGET TO'!AM97)) -> 0 | AN97: =(CHOOSE(m_identity,'SHE-Transmission PLC'!AN97, SPTL!AN97, 'NGET TO'!AN97)) -> 0 | AO97: =(CHOOSE(m_identity,'SHE-Transmission PLC'!AO97, SPTL!AO97, 'NGET TO'!AO97)) -> 0
E99: =E15 -> Uncertain costs – workforce renewal (SPTL only) | G99: £m 09/10 prices | AH99: =AH15 -> 0 | AI99: =AI15 -> 0 | AJ99: =AJ15 -> 0 | AK99: 0 | AL99: 0 | AM99: 0 | AN99: 0 | AO99: 0
E100: Allocation to load related capex expenditure | G100: % | AH100: =(CHOOSE(m_identity,'SHE-Transmission PLC'!AH100, SPTL!AH100, 'NGET TO'!AH100)) -> 0 | AI100: =(CHOOSE(m_identity,'SHE-Transmission PLC'!AI100, SPTL!AI100, 'NGET TO'!AI100)) -> 0 | AJ100: =(CHOOSE(m_identity,'SHE-Transmission PLC'!AJ100, SPTL!AJ100, 'NGET TO'!AJ100)) -> 0 | AK100: =(CHOOSE(m_identity,'SHE-Transmission PLC'!AK100, SPTL!AK100, 'NGET TO'!AK100)) -> 0 | AL100: =(CHOOSE(m_identity,'SHE-Transmission PLC'!AL100, SPTL!AL100, 'NGET TO'!AL100)) -> 0 | AM100: =(CHOOSE(m_identity,'SHE-Transmission PLC'!AM100, SPTL!AM100, 'NGET TO'!AM100)) -> 0 | AN100: =(CHOOSE(m_identity,'SHE-Transmission PLC'!AN100, SPTL!AN100, 'NGET TO'!AN100)) -> 0 | AO100: =(CHOOSE(m_identity,'SHE-Transmission PLC'!AO100, SPTL!AO100, 'NGET TO'!AO100)) -> 0
E101: Allocation to asset replacement capex expenditure | G101: % | AH101: =(CHOOSE(m_identity,'SHE-Transmission PLC'!AH101, SPTL!AH101, 'NGET TO'!AH101)) -> 0 | AI101: =(CHOOSE(m_identity,'SHE-Transmission PLC'!AI101, SPTL!AI101, 'NGET TO'!AI101)) -> 0 | AJ101: =(CHOOSE(m_identity,'SHE-Transmission PLC'!AJ101, SPTL!AJ101, 'NGET TO'!AJ101)) -> 0 | AK101: =(CHOOSE(m_identity,'SHE-Transmission PLC'!AK101, SPTL!AK101, 'NGET TO'!AK101)) -> 0 | AL101: =(CHOOSE(m_identity,'SHE-Transmission PLC'!AL101, SPTL!AL101, 'NGET TO'!AL101)) -> 0 | AM101: =(CHOOSE(m_identity,'SHE-Transmission PLC'!AM101, SPTL!AM101, 'NGET TO'!AM101)) -> 0 | AN101: =(CHOOSE(m_identity,'SHE-Transmission PLC'!AN101, SPTL!AN101, 'NGET TO'!AN101)) -> 0 | AO101: =(CHOOSE(m_identity,'SHE-Transmission PLC'!AO101, SPTL!AO101, 'NGET TO'!AO101)) -> 0
E102: Allocation to other capex expenditure | G102: % | AH102: =(CHOOSE(m_identity,'SHE-Transmission PLC'!AH102, SPTL!AH102, 'NGET TO'!AH102)) -> 1 | AI102: =(CHOOSE(m_identity,'SHE-Transmission PLC'!AI102, SPTL!AI102, 'NGET TO'!AI102)) -> 1 | AJ102: =(CHOOSE(m_identity,'SHE-Transmission PLC'!AJ102, SPTL!AJ102, 'NGET TO'!AJ102)) -> 1 | AK102: =(CHOOSE(m_identity,'SHE-Transmission PLC'!AK102, SPTL!AK102, 'NGET TO'!AK102)) -> 1 | AL102: =(CHOOSE(m_identity,'SHE-Transmission PLC'!AL102, SPTL!AL102, 'NGET TO'!AL102)) -> 1 | AM102: =(CHOOSE(m_identity,'SHE-Transmission PLC'!AM102, SPTL!AM102, 'NGET TO'!AM102)) -> 1 | AN102: =(CHOOSE(m_identity,'SHE-Transmission PLC'!AN102, SPTL!AN102, 'NGET TO'!AN102)) -> 1 | AO102: =(CHOOSE(m_identity,'SHE-Transmission PLC'!AO102, SPTL!AO102, 'NGET TO'!AO102)) -> 1
E103: Allocation to controllable opex | G103: % | AH103: =(CHOOSE(m_identity,'SHE-Transmission PLC'!AH103, SPTL!AH103, 'NGET TO'!AH103)) -> 0 | AI103: =(CHOOSE(m_identity,'SHE-Transmission PLC'!AI103, SPTL!AI103, 'NGET TO'!AI103)) -> 0 | AJ103: =(CHOOSE(m_identity,'SHE-Transmission PLC'!AJ103, SPTL!AJ103, 'NGET TO'!AJ103)) -> 0 | AK103: =(CHOOSE(m_identity,'SHE-Transmission PLC'!AK103, SPTL!AK103, 'NGET TO'!AK103)) -> 0 | AL103: =(CHOOSE(m_identity,'SHE-Transmission PLC'!AL103, SPTL!AL103, 'NGET TO'!AL103)) -> 0 | AM103: =(CHOOSE(m_identity,'SHE-Transmission PLC'!AM103, SPTL!AM103, 'NGET TO'!AM103)) -> 0 | AN103: =(CHOOSE(m_identity,'SHE-Transmission PLC'!AN103, SPTL!AN103, 'NGET TO'!AN103)) -> 0 | AO103: =(CHOOSE(m_identity,'SHE-Transmission PLC'!AO103, SPTL!AO103, 'NGET TO'!AO103)) -> 0
E104: Allocation to non-operational capex | G104: % | AH104: =(CHOOSE(m_identity,'SHE-Transmission PLC'!AH104, SPTL!AH104, 'NGET TO'!AH104)) -> 0 | AI104: =(CHOOSE(m_identity,'SHE-Transmission PLC'!AI104, SPTL!AI104, 'NGET TO'!AI104)) -> 0 | AJ104: =(CHOOSE(m_identity,'SHE-Transmission PLC'!AJ104, SPTL!AJ104, 'NGET TO'!AJ104)) -> 0 | AK104: =(CHOOSE(m_identity,'SHE-Transmission PLC'!AK104, SPTL!AK104, 'NGET TO'!AK104)) -> 0 | AL104: =(CHOOSE(m_identity,'SHE-Transmission PLC'!AL104, SPTL!AL104, 'NGET TO'!AL104)) -> 0 | AM104: =(CHOOSE(m_identity,'SHE-Transmission PLC'!AM104, SPTL!AM104, 'NGET TO'!AM104)) -> 0 | AN104: =(CHOOSE(m_identity,'SHE-Transmission PLC'!AN104, SPTL!AN104, 'NGET TO'!AN104)) -> 0 | AO104: =(CHOOSE(m_identity,'SHE-Transmission PLC'!AO104, SPTL!AO104, 'NGET TO'!AO104)) -> 0
E106: =E16 -> Uncertain costs – BT 21st Century (SHETPLC only) | G106: £m 09/10 prices | AH106: =AH16 -> 0 | AI106: =AI16 -> 0 | AJ106: 0 | AK106: 0 | AL106: 0 | AM106: 0 | AN106: 0 | AO106: 0
E107: Allocation to load related capex expenditure | G107: % | AH107: =(CHOOSE(m_identity,'SHE-Transmission PLC'!AH107, SPTL!AH107, 'NGET TO'!AH107)) -> 0 | AI107: =(CHOOSE(m_identity,'SHE-Transmission PLC'!AI107, SPTL!AI107, 'NGET TO'!AI107)) -> 0 | AJ107: =(CHOOSE(m_identity,'SHE-Transmission PLC'!AJ107, SPTL!AJ107, 'NGET TO'!AJ107)) -> 0 | AK107: =(CHOOSE(m_identity,'SHE-Transmission PLC'!AK107, SPTL!AK107, 'NGET TO'!AK107)) -> 0 | AL107: =(CHOOSE(m_identity,'SHE-Transmission PLC'!AL107, SPTL!AL107, 'NGET TO'!AL107)) -> 0 | AM107: =(CHOOSE(m_identity,'SHE-Transmission PLC'!AM107, SPTL!AM107, 'NGET TO'!AM107)) -> 0 | AN107: =(CHOOSE(m_identity,'SHE-Transmission PLC'!AN107, SPTL!AN107, 'NGET TO'!AN107)) -> 0 | AO107: =(CHOOSE(m_identity,'SHE-Transmission PLC'!AO107, SPTL!AO107, 'NGET TO'!AO107)) -> 0
E108: Allocation to asset replacement capex expenditure | G108: % | AH108: =(CHOOSE(m_identity,'SHE-Transmission PLC'!AH108, SPTL!AH108, 'NGET TO'!AH108)) -> 0 | AI108: =(CHOOSE(m_identity,'SHE-Transmission PLC'!AI108, SPTL!AI108, 'NGET TO'!AI108)) -> 0 | AJ108: =(CHOOSE(m_identity,'SHE-Transmission PLC'!AJ108, SPTL!AJ108, 'NGET TO'!AJ108)) -> 0 | AK108: =(CHOOSE(m_identity,'SHE-Transmission PLC'!AK108, SPTL!AK108, 'NGET TO'!AK108)) -> 0 | AL108: =(CHOOSE(m_identity,'SHE-Transmission PLC'!AL108, SPTL!AL108, 'NGET TO'!AL108)) -> 0 | AM108: =(CHOOSE(m_identity,'SHE-Transmission PLC'!AM108, SPTL!AM108, 'NGET TO'!AM108)) -> 0 | AN108: =(CHOOSE(m_identity,'SHE-Transmission PLC'!AN108, SPTL!AN108, 'NGET TO'!AN108)) -> 0 | AO108: =(CHOOSE(m_identity,'SHE-Transmission PLC'!AO108, SPTL!AO108, 'NGET TO'!AO108)) -> 0
E109: Allocation to other capex expenditure | G109: % | AH109: =(CHOOSE(m_identity,'SHE-Transmission PLC'!AH109, SPTL!AH109, 'NGET TO'!AH109)) -> 1 | AI109: =(CHOOSE(m_identity,'SHE-Transmission PLC'!AI109, SPTL!AI109, 'NGET TO'!AI109)) -> 1 | AJ109: =(CHOOSE(m_identity,'SHE-Transmission PLC'!AJ109, SPTL!AJ109, 'NGET TO'!AJ109)) -> 1 | AK109: =(CHOOSE(m_identity,'SHE-Transmission PLC'!AK109, SPTL!AK109, 'NGET TO'!AK109)) -> 1 | AL109: =(CHOOSE(m_identity,'SHE-Transmission PLC'!AL109, SPTL!AL109, 'NGET TO'!AL109)) -> 1 | AM109: =(CHOOSE(m_identity,'SHE-Transmission PLC'!AM109, SPTL!AM109, 'NGET TO'!AM109)) -> 1 | AN109: =(CHOOSE(m_identity,'SHE-Transmission PLC'!AN109, SPTL!AN109, 'NGET TO'!AN109)) -> 1 | AO109: =(CHOOSE(m_identity,'SHE-Transmission PLC'!AO109, SPTL!AO109, 'NGET TO'!AO109)) -> 1
E110: Allocation to controllable opex | G110: % | AH110: =(CHOOSE(m_identity,'SHE-Transmission PLC'!AH110, SPTL!AH110, 'NGET TO'!AH110)) -> 0 | AI110: =(CHOOSE(m_identity,'SHE-Transmission PLC'!AI110, SPTL!AI110, 'NGET TO'!AI110)) -> 0 | AJ110: =(CHOOSE(m_identity,'SHE-Transmission PLC'!AJ110, SPTL!AJ110, 'NGET TO'!AJ110)) -> 0 | AK110: =(CHOOSE(m_identity,'SHE-Transmission PLC'!AK110, SPTL!AK110, 'NGET TO'!AK110)) -> 0 | AL110: =(CHOOSE(m_identity,'SHE-Transmission PLC'!AL110, SPTL!AL110, 'NGET TO'!AL110)) -> 0 | AM110: =(CHOOSE(m_identity,'SHE-Transmission PLC'!AM110, SPTL!AM110, 'NGET TO'!AM110)) -> 0 | AN110: =(CHOOSE(m_identity,'SHE-Transmission PLC'!AN110, SPTL!AN110, 'NGET TO'!AN110)) -> 0 | AO110: =(CHOOSE(m_identity,'SHE-Transmission PLC'!AO110, SPTL!AO110, 'NGET TO'!AO110)) -> 0
E111: Allocation to non-operational capex | G111: % | AH111: =(CHOOSE(m_identity,'SHE-Transmission PLC'!AH111, SPTL!AH111, 'NGET TO'!AH111)) -> 0 | AI111: =(CHOOSE(m_identity,'SHE-Transmission PLC'!AI111, SPTL!AI111, 'NGET TO'!AI111)) -> 0 | AJ111: =(CHOOSE(m_identity,'SHE-Transmission PLC'!AJ111, SPTL!AJ111, 'NGET TO'!AJ111)) -> 0 | AK111: =(CHOOSE(m_identity,'SHE-Transmission PLC'!AK111, SPTL!AK111, 'NGET TO'!AK111)) -> 0 | AL111: =(CHOOSE(m_identity,'SHE-Transmission PLC'!AL111, SPTL!AL111, 'NGET TO'!AL111)) -> 0 | AM111: =(CHOOSE(m_identity,'SHE-Transmission PLC'!AM111, SPTL!AM111, 'NGET TO'!AM111)) -> 0 | AN111: =(CHOOSE(m_identity,'SHE-Transmission PLC'!AN111, SPTL!AN111, 'NGET TO'!AN111)) -> 0 | AO111: =(CHOOSE(m_identity,'SHE-Transmission PLC'!AO111, SPTL!AO111, 'NGET TO'!AO111)) -> 0
E113: =E17 -> Uncertain costs – compensation costs for landowners for wayleave (SHETPLC only) | G113: £m 09/10 prices | AH113: =AH17 -> 0 | AI113: =AI17 -> 0 | AJ113: 0 | AK113: 0 | AL113: 0 | AM113: 0 | AN113: 0 | AO113: 0
E114: Allocation to load related capex expenditure | G114: % | AH114: =(CHOOSE(m_identity,'SHE-Transmission PLC'!AH114, SPTL!AH114, 'NGET TO'!AH114)) -> 0 | AI114: =(CHOOSE(m_identity,'SHE-Transmission PLC'!AI114, SPTL!AI114, 'NGET TO'!AI114)) -> 0 | AJ114: =(CHOOSE(m_identity,'SHE-Transmission PLC'!AJ114, SPTL!AJ114, 'NGET TO'!AJ114)) -> 0 | AK114: =(CHOOSE(m_identity,'SHE-Transmission PLC'!AK114, SPTL!AK114, 'NGET TO'!AK114)) -> 0 | AL114: =(CHOOSE(m_identity,'SHE-Transmission PLC'!AL114, SPTL!AL114, 'NGET TO'!AL114)) -> 0 | AM114: =(CHOOSE(m_identity,'SHE-Transmission PLC'!AM114, SPTL!AM114, 'NGET TO'!AM114)) -> 0 | AN114: =(CHOOSE(m_identity,'SHE-Transmission PLC'!AN114, SPTL!AN114, 'NGET TO'!AN114)) -> 0 | AO114: =(CHOOSE(m_identity,'SHE-Transmission PLC'!AO114, SPTL!AO114, 'NGET TO'!AO114)) -> 0
E115: Allocation to asset replacement capex expenditure | G115: % | AH115: =(CHOOSE(m_identity,'SHE-Transmission PLC'!AH115, SPTL!AH115, 'NGET TO'!AH115)) -> 0 | AI115: =(CHOOSE(m_identity,'SHE-Transmission PLC'!AI115, SPTL!AI115, 'NGET TO'!AI115)) -> 0 | AJ115: =(CHOOSE(m_identity,'SHE-Transmission PLC'!AJ115, SPTL!AJ115, 'NGET TO'!AJ115)) -> 0 | AK115: =(CHOOSE(m_identity,'SHE-Transmission PLC'!AK115, SPTL!AK115, 'NGET TO'!AK115)) -> 0 | AL115: =(CHOOSE(m_identity,'SHE-Transmission PLC'!AL115, SPTL!AL115, 'NGET TO'!AL115)) -> 0 | AM115: =(CHOOSE(m_identity,'SHE-Transmission PLC'!AM115, SPTL!AM115, 'NGET TO'!AM115)) -> 0 | AN115: =(CHOOSE(m_identity,'SHE-Transmission PLC'!AN115, SPTL!AN115, 'NGET TO'!AN115)) -> 0 | AO115: =(CHOOSE(m_identity,'SHE-Transmission PLC'!AO115, SPTL!AO115, 'NGET TO'!AO115)) -> 0
E116: Allocation to other capex expenditure | G116: % | AH116: =(CHOOSE(m_identity,'SHE-Transmission PLC'!AH116, SPTL!AH116, 'NGET TO'!AH116)) -> 1 | AI116: =(CHOOSE(m_identity,'SHE-Transmission PLC'!AI116, SPTL!AI116, 'NGET TO'!AI116)) -> 1 | AJ116: =(CHOOSE(m_identity,'SHE-Transmission PLC'!AJ116, SPTL!AJ116, 'NGET TO'!AJ116)) -> 1 | AK116: =(CHOOSE(m_identity,'SHE-Transmission PLC'!AK116, SPTL!AK116, 'NGET TO'!AK116)) -> 1 | AL116: =(CHOOSE(m_identity,'SHE-Transmission PLC'!AL116, SPTL!AL116, 'NGET TO'!AL116)) -> 1 | AM116: =(CHOOSE(m_identity,'SHE-Transmission PLC'!AM116, SPTL!AM116, 'NGET TO'!AM116)) -> 1 | AN116: =(CHOOSE(m_identity,'SHE-Transmission PLC'!AN116, SPTL!AN116, 'NGET TO'!AN116)) -> 1 | AO116: =(CHOOSE(m_identity,'SHE-Transmission PLC'!AO116, SPTL!AO116, 'NGET TO'!AO116)) -> 1
E117: Allocation to controllable opex | G117: % | AH117: =(CHOOSE(m_identity,'SHE-Transmission PLC'!AH117, SPTL!AH117, 'NGET TO'!AH117)) -> 0 | AI117: =(CHOOSE(m_identity,'SHE-Transmission PLC'!AI117, SPTL!AI117, 'NGET TO'!AI117)) -> 0 | AJ117: =(CHOOSE(m_identity,'SHE-Transmission PLC'!AJ117, SPTL!AJ117, 'NGET TO'!AJ117)) -> 0 | AK117: =(CHOOSE(m_identity,'SHE-Transmission PLC'!AK117, SPTL!AK117, 'NGET TO'!AK117)) -> 0 | AL117: =(CHOOSE(m_identity,'SHE-Transmission PLC'!AL117, SPTL!AL117, 'NGET TO'!AL117)) -> 0 | AM117: =(CHOOSE(m_identity,'SHE-Transmission PLC'!AM117, SPTL!AM117, 'NGET TO'!AM117)) -> 0 | AN117: =(CHOOSE(m_identity,'SHE-Transmission PLC'!AN117, SPTL!AN117, 'NGET TO'!AN117)) -> 0 | AO117: =(CHOOSE(m_identity,'SHE-Transmission PLC'!AO117, SPTL!AO117, 'NGET TO'!AO117)) -> 0
E118: Allocation to non-operational capex | G118: % | AH118: =(CHOOSE(m_identity,'SHE-Transmission PLC'!AH118, SPTL!AH118, 'NGET TO'!AH118)) -> 0 | AI118: =(CHOOSE(m_identity,'SHE-Transmission PLC'!AI118, SPTL!AI118, 'NGET TO'!AI118)) -> 0 | AJ118: =(CHOOSE(m_identity,'SHE-Transmission PLC'!AJ118, SPTL!AJ118, 'NGET TO'!AJ118)) -> 0 | AK118: =(CHOOSE(m_identity,'SHE-Transmission PLC'!AK118, SPTL!AK118, 'NGET TO'!AK118)) -> 0 | AL118: =(CHOOSE(m_identity,'SHE-Transmission PLC'!AL118, SPTL!AL118, 'NGET TO'!AL118)) -> 0 | AM118: =(CHOOSE(m_identity,'SHE-Transmission PLC'!AM118, SPTL!AM118, 'NGET TO'!AM118)) -> 0 | AN118: =(CHOOSE(m_identity,'SHE-Transmission PLC'!AN118, SPTL!AN118, 'NGET TO'!AN118)) -> 0 | AO118: =(CHOOSE(m_identity,'SHE-Transmission PLC'!AO118, SPTL!AO118, 'NGET TO'!AO118)) -> 0
E120: =E18 -> Baseline and strategic wider works outputs | G120: £m 09/10 prices | AH120: =AH18 -> 35.33 | AI120: =AI18 -> 164.105 | AJ120: 415.698 | AK120: 359.286 | AL120: 172.348 | AM120: 18.048 | AN120: 7.108 | AO120: 5.817
E121: Allocation to load related capex expenditure | G121: % | AH121: =(CHOOSE(m_identity,'SHE-Transmission PLC'!AH121, SPTL!AH121, 'NGET TO'!AH121)) -> 1 | AI121: =(CHOOSE(m_identity,'SHE-Transmission PLC'!AI121, SPTL!AI121, 'NGET TO'!AI121)) -> 1 | AJ121: =(CHOOSE(m_identity,'SHE-Transmission PLC'!AJ121, SPTL!AJ121, 'NGET TO'!AJ121)) -> 1 | AK121: =(CHOOSE(m_identity,'SHE-Transmission PLC'!AK121, SPTL!AK121, 'NGET TO'!AK121)) -> 1 | AL121: =(CHOOSE(m_identity,'SHE-Transmission PLC'!AL121, SPTL!AL121, 'NGET TO'!AL121)) -> 1 | AM121: =(CHOOSE(m_identity,'SHE-Transmission PLC'!AM121, SPTL!AM121, 'NGET TO'!AM121)) -> 1 | AN121: =(CHOOSE(m_identity,'SHE-Transmission PLC'!AN121, SPTL!AN121, 'NGET TO'!AN121)) -> 1 | AO121: =(CHOOSE(m_identity,'SHE-Transmission PLC'!AO121, SPTL!AO121, 'NGET TO'!AO121)) -> 1
E122: Allocation to asset replacement capex expenditure | G122: % | AH122: =(CHOOSE(m_identity,'SHE-Transmission PLC'!AH122, SPTL!AH122, 'NGET TO'!AH122)) -> 0 | AI122: =(CHOOSE(m_identity,'SHE-Transmission PLC'!AI122, SPTL!AI122, 'NGET TO'!AI122)) -> 0 | AJ122: =(CHOOSE(m_identity,'SHE-Transmission PLC'!AJ122, SPTL!AJ122, 'NGET TO'!AJ122)) -> 0 | AK122: =(CHOOSE(m_identity,'SHE-Transmission PLC'!AK122, SPTL!AK122, 'NGET TO'!AK122)) -> 0 | AL122: =(CHOOSE(m_identity,'SHE-Transmission PLC'!AL122, SPTL!AL122, 'NGET TO'!AL122)) -> 0 | AM122: =(CHOOSE(m_identity,'SHE-Transmission PLC'!AM122, SPTL!AM122, 'NGET TO'!AM122)) -> 0 | AN122: =(CHOOSE(m_identity,'SHE-Transmission PLC'!AN122, SPTL!AN122, 'NGET TO'!AN122)) -> 0 | AO122: =(CHOOSE(m_identity,'SHE-Transmission PLC'!AO122, SPTL!AO122, 'NGET TO'!AO122)) -> 0
E123: Allocation to other capex expenditure | G123: % | AH123: =(CHOOSE(m_identity,'SHE-Transmission PLC'!AH123, SPTL!AH123, 'NGET TO'!AH123)) -> 0 | AI123: =(CHOOSE(m_identity,'SHE-Transmission PLC'!AI123, SPTL!AI123, 'NGET TO'!AI123)) -> 0 | AJ123: =(CHOOSE(m_identity,'SHE-Transmission PLC'!AJ123, SPTL!AJ123, 'NGET TO'!AJ123)) -> 0 | AK123: =(CHOOSE(m_identity,'SHE-Transmission PLC'!AK123, SPTL!AK123, 'NGET TO'!AK123)) -> 0 | AL123: =(CHOOSE(m_identity,'SHE-Transmission PLC'!AL123, SPTL!AL123, 'NGET TO'!AL123)) -> 0 | AM123: =(CHOOSE(m_identity,'SHE-Transmission PLC'!AM123, SPTL!AM123, 'NGET TO'!AM123)) -> 0 | AN123: =(CHOOSE(m_identity,'SHE-Transmission PLC'!AN123, SPTL!AN123, 'NGET TO'!AN123)) -> 0 | AO123: =(CHOOSE(m_identity,'SHE-Transmission PLC'!AO123, SPTL!AO123, 'NGET TO'!AO123)) -> 0
E124: Allocation to controllable opex | G124: % | AH124: =(CHOOSE(m_identity,'SHE-Transmission PLC'!AH124, SPTL!AH124, 'NGET TO'!AH124)) -> 0 | AI124: =(CHOOSE(m_identity,'SHE-Transmission PLC'!AI124, SPTL!AI124, 'NGET TO'!AI124)) -> 0 | AJ124: =(CHOOSE(m_identity,'SHE-Transmission PLC'!AJ124, SPTL!AJ124, 'NGET TO'!AJ124)) -> 0 | AK124: =(CHOOSE(m_identity,'SHE-Transmission PLC'!AK124, SPTL!AK124, 'NGET TO'!AK124)) -> 0 | AL124: =(CHOOSE(m_identity,'SHE-Transmission PLC'!AL124, SPTL!AL124, 'NGET TO'!AL124)) -> 0 | AM124: =(CHOOSE(m_identity,'SHE-Transmission PLC'!AM124, SPTL!AM124, 'NGET TO'!AM124)) -> 0 | AN124: =(CHOOSE(m_identity,'SHE-Transmission PLC'!AN124, SPTL!AN124, 'NGET TO'!AN124)) -> 0 | AO124: =(CHOOSE(m_identity,'SHE-Transmission PLC'!AO124, SPTL!AO124, 'NGET TO'!AO124)) -> 0
E125: Allocation to non-operational capex | G125: % | AH125: =(CHOOSE(m_identity,'SHE-Transmission PLC'!AH125, SPTL!AH125, 'NGET TO'!AH125)) -> 0 | AI125: =(CHOOSE(m_identity,'SHE-Transmission PLC'!AI125, SPTL!AI125, 'NGET TO'!AI125)) -> 0 | AJ125: =(CHOOSE(m_identity,'SHE-Transmission PLC'!AJ125, SPTL!AJ125, 'NGET TO'!AJ125)) -> 0 | AK125: =(CHOOSE(m_identity,'SHE-Transmission PLC'!AK125, SPTL!AK125, 'NGET TO'!AK125)) -> 0 | AL125: =(CHOOSE(m_identity,'SHE-Transmission PLC'!AL125, SPTL!AL125, 'NGET TO'!AL125)) -> 0 | AM125: =(CHOOSE(m_identity,'SHE-Transmission PLC'!AM125, SPTL!AM125, 'NGET TO'!AM125)) -> 0 | AN125: =(CHOOSE(m_identity,'SHE-Transmission PLC'!AN125, SPTL!AN125, 'NGET TO'!AN125)) -> 0 | AO125: =(CHOOSE(m_identity,'SHE-Transmission PLC'!AO125, SPTL!AO125, 'NGET TO'!AO125)) -> 0
E127: =E19 -> Network development and wider works volume driver (NGET only) | G127: £m 09/10 prices | AH127: =AH19 -> 0 | AI127: 0 | AJ127: 0 | AK127: 0 | AL127: 0 | AM127: 0 | AN127: 0 | AO127: 0
E128: Allocation to load related capex expenditure | G128: % | AH128: =(CHOOSE(m_identity,'SHE-Transmission PLC'!AH128, SPTL!AH128, 'NGET TO'!AH128)) -> 1 | AI128: =(CHOOSE(m_identity,'SHE-Transmission PLC'!AI128, SPTL!AI128, 'NGET TO'!AI128)) -> 1 | AJ128: =(CHOOSE(m_identity,'SHE-Transmission PLC'!AJ128, SPTL!AJ128, 'NGET TO'!AJ128)) -> 1 | AK128: =(CHOOSE(m_identity,'SHE-Transmission PLC'!AK128, SPTL!AK128, 'NGET TO'!AK128)) -> 1 | AL128: =(CHOOSE(m_identity,'SHE-Transmission PLC'!AL128, SPTL!AL128, 'NGET TO'!AL128)) -> 1 | AM128: =(CHOOSE(m_identity,'SHE-Transmission PLC'!AM128, SPTL!AM128, 'NGET TO'!AM128)) -> 1 | AN128: =(CHOOSE(m_identity,'SHE-Transmission PLC'!AN128, SPTL!AN128, 'NGET TO'!AN128)) -> 1 | AO128: =(CHOOSE(m_identity,'SHE-Transmission PLC'!AO128, SPTL!AO128, 'NGET TO'!AO128)) -> 1
E129: Allocation to asset replacement capex expenditure | G129: % | AH129: =(CHOOSE(m_identity,'SHE-Transmission PLC'!AH129, SPTL!AH129, 'NGET TO'!AH129)) -> 0 | AI129: =(CHOOSE(m_identity,'SHE-Transmission PLC'!AI129, SPTL!AI129, 'NGET TO'!AI129)) -> 0 | AJ129: =(CHOOSE(m_identity,'SHE-Transmission PLC'!AJ129, SPTL!AJ129, 'NGET TO'!AJ129)) -> 0 | AK129: =(CHOOSE(m_identity,'SHE-Transmission PLC'!AK129, SPTL!AK129, 'NGET TO'!AK129)) -> 0 | AL129: =(CHOOSE(m_identity,'SHE-Transmission PLC'!AL129, SPTL!AL129, 'NGET TO'!AL129)) -> 0 | AM129: =(CHOOSE(m_identity,'SHE-Transmission PLC'!AM129, SPTL!AM129, 'NGET TO'!AM129)) -> 0 | AN129: =(CHOOSE(m_identity,'SHE-Transmission PLC'!AN129, SPTL!AN129, 'NGET TO'!AN129)) -> 0 | AO129: =(CHOOSE(m_identity,'SHE-Transmission PLC'!AO129, SPTL!AO129, 'NGET TO'!AO129)) -> 0
E130: Allocation to other capex expenditure | G130: % | AH130: =(CHOOSE(m_identity,'SHE-Transmission PLC'!AH130, SPTL!AH130, 'NGET TO'!AH130)) -> 0 | AI130: =(CHOOSE(m_identity,'SHE-Transmission PLC'!AI130, SPTL!AI130, 'NGET TO'!AI130)) -> 0 | AJ130: =(CHOOSE(m_identity,'SHE-Transmission PLC'!AJ130, SPTL!AJ130, 'NGET TO'!AJ130)) -> 0 | AK130: =(CHOOSE(m_identity,'SHE-Transmission PLC'!AK130, SPTL!AK130, 'NGET TO'!AK130)) -> 0 | AL130: =(CHOOSE(m_identity,'SHE-Transmission PLC'!AL130, SPTL!AL130, 'NGET TO'!AL130)) -> 0 | AM130: =(CHOOSE(m_identity,'SHE-Transmission PLC'!AM130, SPTL!AM130, 'NGET TO'!AM130)) -> 0 | AN130: =(CHOOSE(m_identity,'SHE-Transmission PLC'!AN130, SPTL!AN130, 'NGET TO'!AN130)) -> 0 | AO130: =(CHOOSE(m_identity,'SHE-Transmission PLC'!AO130, SPTL!AO130, 'NGET TO'!AO130)) -> 0
E131: Allocation to controllable opex | G131: % | AH131: =(CHOOSE(m_identity,'SHE-Transmission PLC'!AH131, SPTL!AH131, 'NGET TO'!AH131)) -> 0 | AI131: =(CHOOSE(m_identity,'SHE-Transmission PLC'!AI131, SPTL!AI131, 'NGET TO'!AI131)) -> 0 | AJ131: =(CHOOSE(m_identity,'SHE-Transmission PLC'!AJ131, SPTL!AJ131, 'NGET TO'!AJ131)) -> 0 | AK131: =(CHOOSE(m_identity,'SHE-Transmission PLC'!AK131, SPTL!AK131, 'NGET TO'!AK131)) -> 0 | AL131: =(CHOOSE(m_identity,'SHE-Transmission PLC'!AL131, SPTL!AL131, 'NGET TO'!AL131)) -> 0 | AM131: =(CHOOSE(m_identity,'SHE-Transmission PLC'!AM131, SPTL!AM131, 'NGET TO'!AM131)) -> 0 | AN131: =(CHOOSE(m_identity,'SHE-Transmission PLC'!AN131, SPTL!AN131, 'NGET TO'!AN131)) -> 0 | AO131: =(CHOOSE(m_identity,'SHE-Transmission PLC'!AO131, SPTL!AO131, 'NGET TO'!AO131)) -> 0
E132: Allocation to non-operational capex | G132: % | AH132: =(CHOOSE(m_identity,'SHE-Transmission PLC'!AH132, SPTL!AH132, 'NGET TO'!AH132)) -> 0 | AI132: =(CHOOSE(m_identity,'SHE-Transmission PLC'!AI132, SPTL!AI132, 'NGET TO'!AI132)) -> 0 | AJ132: =(CHOOSE(m_identity,'SHE-Transmission PLC'!AJ132, SPTL!AJ132, 'NGET TO'!AJ132)) -> 0 | AK132: =(CHOOSE(m_identity,'SHE-Transmission PLC'!AK132, SPTL!AK132, 'NGET TO'!AK132)) -> 0 | AL132: =(CHOOSE(m_identity,'SHE-Transmission PLC'!AL132, SPTL!AL132, 'NGET TO'!AL132)) -> 0 | AM132: =(CHOOSE(m_identity,'SHE-Transmission PLC'!AM132, SPTL!AM132, 'NGET TO'!AM132)) -> 0 | AN132: =(CHOOSE(m_identity,'SHE-Transmission PLC'!AN132, SPTL!AN132, 'NGET TO'!AN132)) -> 0 | AO132: =(CHOOSE(m_identity,'SHE-Transmission PLC'!AO132, SPTL!AO132, 'NGET TO'!AO132)) -> 0
E134: =E20 -> Enhancements to pre-existing infrastructure | G134: £m 09/10 prices | AH134: =AH20 -> 0 | AI134: 0 | AJ134: 0 | AK134: 0 | AL134: 0 | AM134: 0 | AN134: 0 | AO134: 0
E135: Allocation to load related capex expenditure | G135: % | AH135: =(CHOOSE(m_identity,'SHE-Transmission PLC'!AH135, SPTL!AH135, 'NGET TO'!AH135)) -> 1 | AI135: =(CHOOSE(m_identity,'SHE-Transmission PLC'!AI135, SPTL!AI135, 'NGET TO'!AI135)) -> 1 | AJ135: =(CHOOSE(m_identity,'SHE-Transmission PLC'!AJ135, SPTL!AJ135, 'NGET TO'!AJ135)) -> 1 | AK135: =(CHOOSE(m_identity,'SHE-Transmission PLC'!AK135, SPTL!AK135, 'NGET TO'!AK135)) -> 1 | AL135: =(CHOOSE(m_identity,'SHE-Transmission PLC'!AL135, SPTL!AL135, 'NGET TO'!AL135)) -> 1 | AM135: =(CHOOSE(m_identity,'SHE-Transmission PLC'!AM135, SPTL!AM135, 'NGET TO'!AM135)) -> 1 | AN135: =(CHOOSE(m_identity,'SHE-Transmission PLC'!AN135, SPTL!AN135, 'NGET TO'!AN135)) -> 1 | AO135: =(CHOOSE(m_identity,'SHE-Transmission PLC'!AO135, SPTL!AO135, 'NGET TO'!AO135)) -> 1
E136: Allocation to asset replacement capex expenditure | G136: % | AH136: =(CHOOSE(m_identity,'SHE-Transmission PLC'!AH136, SPTL!AH136, 'NGET TO'!AH136)) -> 0 | AI136: =(CHOOSE(m_identity,'SHE-Transmission PLC'!AI136, SPTL!AI136, 'NGET TO'!AI136)) -> 0 | AJ136: =(CHOOSE(m_identity,'SHE-Transmission PLC'!AJ136, SPTL!AJ136, 'NGET TO'!AJ136)) -> 0 | AK136: =(CHOOSE(m_identity,'SHE-Transmission PLC'!AK136, SPTL!AK136, 'NGET TO'!AK136)) -> 0 | AL136: =(CHOOSE(m_identity,'SHE-Transmission PLC'!AL136, SPTL!AL136, 'NGET TO'!AL136)) -> 0 | AM136: =(CHOOSE(m_identity,'SHE-Transmission PLC'!AM136, SPTL!AM136, 'NGET TO'!AM136)) -> 0 | AN136: =(CHOOSE(m_identity,'SHE-Transmission PLC'!AN136, SPTL!AN136, 'NGET TO'!AN136)) -> 0 | AO136: =(CHOOSE(m_identity,'SHE-Transmission PLC'!AO136, SPTL!AO136, 'NGET TO'!AO136)) -> 0
E137: Allocation to other capex expenditure | G137: % | AH137: =(CHOOSE(m_identity,'SHE-Transmission PLC'!AH137, SPTL!AH137, 'NGET TO'!AH137)) -> 0 | AI137: =(CHOOSE(m_identity,'SHE-Transmission PLC'!AI137, SPTL!AI137, 'NGET TO'!AI137)) -> 0 | AJ137: =(CHOOSE(m_identity,'SHE-Transmission PLC'!AJ137, SPTL!AJ137, 'NGET TO'!AJ137)) -> 0 | AK137: =(CHOOSE(m_identity,'SHE-Transmission PLC'!AK137, SPTL!AK137, 'NGET TO'!AK137)) -> 0 | AL137: =(CHOOSE(m_identity,'SHE-Transmission PLC'!AL137, SPTL!AL137, 'NGET TO'!AL137)) -> 0 | AM137: =(CHOOSE(m_identity,'SHE-Transmission PLC'!AM137, SPTL!AM137, 'NGET TO'!AM137)) -> 0 | AN137: =(CHOOSE(m_identity,'SHE-Transmission PLC'!AN137, SPTL!AN137, 'NGET TO'!AN137)) -> 0 | AO137: =(CHOOSE(m_identity,'SHE-Transmission PLC'!AO137, SPTL!AO137, 'NGET TO'!AO137)) -> 0
E138: Allocation to controllable opex | G138: % | AH138: =(CHOOSE(m_identity,'SHE-Transmission PLC'!AH138, SPTL!AH138, 'NGET TO'!AH138)) -> 0 | AI138: =(CHOOSE(m_identity,'SHE-Transmission PLC'!AI138, SPTL!AI138, 'NGET TO'!AI138)) -> 0 | AJ138: =(CHOOSE(m_identity,'SHE-Transmission PLC'!AJ138, SPTL!AJ138, 'NGET TO'!AJ138)) -> 0 | AK138: =(CHOOSE(m_identity,'SHE-Transmission PLC'!AK138, SPTL!AK138, 'NGET TO'!AK138)) -> 0 | AL138: =(CHOOSE(m_identity,'SHE-Transmission PLC'!AL138, SPTL!AL138, 'NGET TO'!AL138)) -> 0 | AM138: =(CHOOSE(m_identity,'SHE-Transmission PLC'!AM138, SPTL!AM138, 'NGET TO'!AM138)) -> 0 | AN138: =(CHOOSE(m_identity,'SHE-Transmission PLC'!AN138, SPTL!AN138, 'NGET TO'!AN138)) -> 0 | AO138: =(CHOOSE(m_identity,'SHE-Transmission PLC'!AO138, SPTL!AO138, 'NGET TO'!AO138)) -> 0
E139: Allocation to non-operational capex | G139: % | AH139: =(CHOOSE(m_identity,'SHE-Transmission PLC'!AH139, SPTL!AH139, 'NGET TO'!AH139)) -> 0 | AI139: =(CHOOSE(m_identity,'SHE-Transmission PLC'!AI139, SPTL!AI139, 'NGET TO'!AI139)) -> 0 | AJ139: =(CHOOSE(m_identity,'SHE-Transmission PLC'!AJ139, SPTL!AJ139, 'NGET TO'!AJ139)) -> 0 | AK139: =(CHOOSE(m_identity,'SHE-Transmission PLC'!AK139, SPTL!AK139, 'NGET TO'!AK139)) -> 0 | AL139: =(CHOOSE(m_identity,'SHE-Transmission PLC'!AL139, SPTL!AL139, 'NGET TO'!AL139)) -> 0 | AM139: =(CHOOSE(m_identity,'SHE-Transmission PLC'!AM139, SPTL!AM139, 'NGET TO'!AM139)) -> 0 | AN139: =(CHOOSE(m_identity,'SHE-Transmission PLC'!AN139, SPTL!AN139, 'NGET TO'!AN139)) -> 0 | AO139: =(CHOOSE(m_identity,'SHE-Transmission PLC'!AO139, SPTL!AO139, 'NGET TO'!AO139)) -> 0
E141: =E21 -> Demand related infrastructure volume driver | G141: £m 09/10 prices | AH141: =AH21 -> 0 | AI141: =AI21 -> 0 | AJ141: 0 | AK141: 0 | AL141: 0 | AM141: 0 | AN141: 0 | AO141: 0
E142: Allocation to load related capex expenditure | G142: % | AH142: =(CHOOSE(m_identity,'SHE-Transmission PLC'!AH142, SPTL!AH142, 'NGET TO'!AH142)) -> 1 | AI142: =(CHOOSE(m_identity,'SHE-Transmission PLC'!AI142, SPTL!AI142, 'NGET TO'!AI142)) -> 1 | AJ142: =(CHOOSE(m_identity,'SHE-Transmission PLC'!AJ142, SPTL!AJ142, 'NGET TO'!AJ142)) -> 1 | AK142: =(CHOOSE(m_identity,'SHE-Transmission PLC'!AK142, SPTL!AK142, 'NGET TO'!AK142)) -> 1 | AL142: =(CHOOSE(m_identity,'SHE-Transmission PLC'!AL142, SPTL!AL142, 'NGET TO'!AL142)) -> 1 | AM142: =(CHOOSE(m_identity,'SHE-Transmission PLC'!AM142, SPTL!AM142, 'NGET TO'!AM142)) -> 1 | AN142: =(CHOOSE(m_identity,'SHE-Transmission PLC'!AN142, SPTL!AN142, 'NGET TO'!AN142)) -> 1 | AO142: =(CHOOSE(m_identity,'SHE-Transmission PLC'!AO142, SPTL!AO142, 'NGET TO'!AO142)) -> 1
E143: Allocation to asset replacement capex expenditure | G143: % | AH143: =(CHOOSE(m_identity,'SHE-Transmission PLC'!AH143, SPTL!AH143, 'NGET TO'!AH143)) -> 0 | AI143: =(CHOOSE(m_identity,'SHE-Transmission PLC'!AI143, SPTL!AI143, 'NGET TO'!AI143)) -> 0 | AJ143: =(CHOOSE(m_identity,'SHE-Transmission PLC'!AJ143, SPTL!AJ143, 'NGET TO'!AJ143)) -> 0 | AK143: =(CHOOSE(m_identity,'SHE-Transmission PLC'!AK143, SPTL!AK143, 'NGET TO'!AK143)) -> 0 | AL143: =(CHOOSE(m_identity,'SHE-Transmission PLC'!AL143, SPTL!AL143, 'NGET TO'!AL143)) -> 0 | AM143: =(CHOOSE(m_identity,'SHE-Transmission PLC'!AM143, SPTL!AM143, 'NGET TO'!AM143)) -> 0 | AN143: =(CHOOSE(m_identity,'SHE-Transmission PLC'!AN143, SPTL!AN143, 'NGET TO'!AN143)) -> 0 | AO143: =(CHOOSE(m_identity,'SHE-Transmission PLC'!AO143, SPTL!AO143, 'NGET TO'!AO143)) -> 0
E144: Allocation to other capex expenditure | G144: % | AH144: =(CHOOSE(m_identity,'SHE-Transmission PLC'!AH144, SPTL!AH144, 'NGET TO'!AH144)) -> 0 | AI144: =(CHOOSE(m_identity,'SHE-Transmission PLC'!AI144, SPTL!AI144, 'NGET TO'!AI144)) -> 0 | AJ144: =(CHOOSE(m_identity,'SHE-Transmission PLC'!AJ144, SPTL!AJ144, 'NGET TO'!AJ144)) -> 0 | AK144: =(CHOOSE(m_identity,'SHE-Transmission PLC'!AK144, SPTL!AK144, 'NGET TO'!AK144)) -> 0 | AL144: =(CHOOSE(m_identity,'SHE-Transmission PLC'!AL144, SPTL!AL144, 'NGET TO'!AL144)) -> 0 | AM144: =(CHOOSE(m_identity,'SHE-Transmission PLC'!AM144, SPTL!AM144, 'NGET TO'!AM144)) -> 0 | AN144: =(CHOOSE(m_identity,'SHE-Transmission PLC'!AN144, SPTL!AN144, 'NGET TO'!AN144)) -> 0 | AO144: =(CHOOSE(m_identity,'SHE-Transmission PLC'!AO144, SPTL!AO144, 'NGET TO'!AO144)) -> 0
E145: Allocation to controllable opex | G145: % | AH145: =(CHOOSE(m_identity,'SHE-Transmission PLC'!AH145, SPTL!AH145, 'NGET TO'!AH145)) -> 0 | AI145: =(CHOOSE(m_identity,'SHE-Transmission PLC'!AI145, SPTL!AI145, 'NGET TO'!AI145)) -> 0 | AJ145: =(CHOOSE(m_identity,'SHE-Transmission PLC'!AJ145, SPTL!AJ145, 'NGET TO'!AJ145)) -> 0 | AK145: =(CHOOSE(m_identity,'SHE-Transmission PLC'!AK145, SPTL!AK145, 'NGET TO'!AK145)) -> 0 | AL145: =(CHOOSE(m_identity,'SHE-Transmission PLC'!AL145, SPTL!AL145, 'NGET TO'!AL145)) -> 0 | AM145: =(CHOOSE(m_identity,'SHE-Transmission PLC'!AM145, SPTL!AM145, 'NGET TO'!AM145)) -> 0 | AN145: =(CHOOSE(m_identity,'SHE-Transmission PLC'!AN145, SPTL!AN145, 'NGET TO'!AN145)) -> 0 | AO145: =(CHOOSE(m_identity,'SHE-Transmission PLC'!AO145, SPTL!AO145, 'NGET TO'!AO145)) -> 0
E146: Allocation to non-operational capex | G146: % | AH146: =(CHOOSE(m_identity,'SHE-Transmission PLC'!AH146, SPTL!AH146, 'NGET TO'!AH146)) -> 0 | AI146: =(CHOOSE(m_identity,'SHE-Transmission PLC'!AI146, SPTL!AI146, 'NGET TO'!AI146)) -> 0 | AJ146: =(CHOOSE(m_identity,'SHE-Transmission PLC'!AJ146, SPTL!AJ146, 'NGET TO'!AJ146)) -> 0 | AK146: =(CHOOSE(m_identity,'SHE-Transmission PLC'!AK146, SPTL!AK146, 'NGET TO'!AK146)) -> 0 | AL146: =(CHOOSE(m_identity,'SHE-Transmission PLC'!AL146, SPTL!AL146, 'NGET TO'!AL146)) -> 0 | AM146: =(CHOOSE(m_identity,'SHE-Transmission PLC'!AM146, SPTL!AM146, 'NGET TO'!AM146)) -> 0 | AN146: =(CHOOSE(m_identity,'SHE-Transmission PLC'!AN146, SPTL!AN146, 'NGET TO'!AN146)) -> 0 | AO146: =(CHOOSE(m_identity,'SHE-Transmission PLC'!AO146, SPTL!AO146, 'NGET TO'!AO146)) -> 0
E148: =E22 -> Undergrounding volume driver | G148: £m 09/10 prices | AH148: =AH22 -> 0 | AI148: =AI22 -> 0 | AJ148: 0 | AK148: 0 | AL148: 0 | AM148: 0 | AN148: 0 | AO148: 0
E149: Allocation to load related capex expenditure | G149: % | AH149: =(CHOOSE(m_identity,'SHE-Transmission PLC'!AH149, SPTL!AH149, 'NGET TO'!AH149)) -> 1 | AI149: =(CHOOSE(m_identity,'SHE-Transmission PLC'!AI149, SPTL!AI149, 'NGET TO'!AI149)) -> 1 | AJ149: =(CHOOSE(m_identity,'SHE-Transmission PLC'!AJ149, SPTL!AJ149, 'NGET TO'!AJ149)) -> 1 | AK149: =(CHOOSE(m_identity,'SHE-Transmission PLC'!AK149, SPTL!AK149, 'NGET TO'!AK149)) -> 1 | AL149: =(CHOOSE(m_identity,'SHE-Transmission PLC'!AL149, SPTL!AL149, 'NGET TO'!AL149)) -> 1 | AM149: =(CHOOSE(m_identity,'SHE-Transmission PLC'!AM149, SPTL!AM149, 'NGET TO'!AM149)) -> 1 | AN149: =(CHOOSE(m_identity,'SHE-Transmission PLC'!AN149, SPTL!AN149, 'NGET TO'!AN149)) -> 1 | AO149: =(CHOOSE(m_identity,'SHE-Transmission PLC'!AO149, SPTL!AO149, 'NGET TO'!AO149)) -> 1
E150: Allocation to asset replacement capex expenditure | G150: % | AH150: =(CHOOSE(m_identity,'SHE-Transmission PLC'!AH150, SPTL!AH150, 'NGET TO'!AH150)) -> 0 | AI150: =(CHOOSE(m_identity,'SHE-Transmission PLC'!AI150, SPTL!AI150, 'NGET TO'!AI150)) -> 0 | AJ150: =(CHOOSE(m_identity,'SHE-Transmission PLC'!AJ150, SPTL!AJ150, 'NGET TO'!AJ150)) -> 0 | AK150: =(CHOOSE(m_identity,'SHE-Transmission PLC'!AK150, SPTL!AK150, 'NGET TO'!AK150)) -> 0 | AL150: =(CHOOSE(m_identity,'SHE-Transmission PLC'!AL150, SPTL!AL150, 'NGET TO'!AL150)) -> 0 | AM150: =(CHOOSE(m_identity,'SHE-Transmission PLC'!AM150, SPTL!AM150, 'NGET TO'!AM150)) -> 0 | AN150: =(CHOOSE(m_identity,'SHE-Transmission PLC'!AN150, SPTL!AN150, 'NGET TO'!AN150)) -> 0 | AO150: =(CHOOSE(m_identity,'SHE-Transmission PLC'!AO150, SPTL!AO150, 'NGET TO'!AO150)) -> 0
E151: Allocation to other capex expenditure | G151: % | AH151: =(CHOOSE(m_identity,'SHE-Transmission PLC'!AH151, SPTL!AH151, 'NGET TO'!AH151)) -> 0 | AI151: =(CHOOSE(m_identity,'SHE-Transmission PLC'!AI151, SPTL!AI151, 'NGET TO'!AI151)) -> 0 | AJ151: =(CHOOSE(m_identity,'SHE-Transmission PLC'!AJ151, SPTL!AJ151, 'NGET TO'!AJ151)) -> 0 | AK151: =(CHOOSE(m_identity,'SHE-Transmission PLC'!AK151, SPTL!AK151, 'NGET TO'!AK151)) -> 0 | AL151: =(CHOOSE(m_identity,'SHE-Transmission PLC'!AL151, SPTL!AL151, 'NGET TO'!AL151)) -> 0 | AM151: =(CHOOSE(m_identity,'SHE-Transmission PLC'!AM151, SPTL!AM151, 'NGET TO'!AM151)) -> 0 | AN151: =(CHOOSE(m_identity,'SHE-Transmission PLC'!AN151, SPTL!AN151, 'NGET TO'!AN151)) -> 0 | AO151: =(CHOOSE(m_identity,'SHE-Transmission PLC'!AO151, SPTL!AO151, 'NGET TO'!AO151)) -> 0
E152: Allocation to controllable opex | G152: % | AH152: =(CHOOSE(m_identity,'SHE-Transmission PLC'!AH152, SPTL!AH152, 'NGET TO'!AH152)) -> 0 | AI152: =(CHOOSE(m_identity,'SHE-Transmission PLC'!AI152, SPTL!AI152, 'NGET TO'!AI152)) -> 0 | AJ152: =(CHOOSE(m_identity,'SHE-Transmission PLC'!AJ152, SPTL!AJ152, 'NGET TO'!AJ152)) -> 0 | AK152: =(CHOOSE(m_identity,'SHE-Transmission PLC'!AK152, SPTL!AK152, 'NGET TO'!AK152)) -> 0 | AL152: =(CHOOSE(m_identity,'SHE-Transmission PLC'!AL152, SPTL!AL152, 'NGET TO'!AL152)) -> 0 | AM152: =(CHOOSE(m_identity,'SHE-Transmission PLC'!AM152, SPTL!AM152, 'NGET TO'!AM152)) -> 0 | AN152: =(CHOOSE(m_identity,'SHE-Transmission PLC'!AN152, SPTL!AN152, 'NGET TO'!AN152)) -> 0 | AO152: =(CHOOSE(m_identity,'SHE-Transmission PLC'!AO152, SPTL!AO152, 'NGET TO'!AO152)) -> 0
E153: Allocation to non-operational capex | G153: % | AH153: =(CHOOSE(m_identity,'SHE-Transmission PLC'!AH153, SPTL!AH153, 'NGET TO'!AH153)) -> 0 | AI153: =(CHOOSE(m_identity,'SHE-Transmission PLC'!AI153, SPTL!AI153, 'NGET TO'!AI153)) -> 0 | AJ153: =(CHOOSE(m_identity,'SHE-Transmission PLC'!AJ153, SPTL!AJ153, 'NGET TO'!AJ153)) -> 0 | AK153: =(CHOOSE(m_identity,'SHE-Transmission PLC'!AK153, SPTL!AK153, 'NGET TO'!AK153)) -> 0 | AL153: =(CHOOSE(m_identity,'SHE-Transmission PLC'!AL153, SPTL!AL153, 'NGET TO'!AL153)) -> 0 | AM153: =(CHOOSE(m_identity,'SHE-Transmission PLC'!AM153, SPTL!AM153, 'NGET TO'!AM153)) -> 0 | AN153: =(CHOOSE(m_identity,'SHE-Transmission PLC'!AN153, SPTL!AN153, 'NGET TO'!AN153)) -> 0 | AO153: =(CHOOSE(m_identity,'SHE-Transmission PLC'!AO153, SPTL!AO153, 'NGET TO'!AO153)) -> 0
E155: =E23 -> Generation connections volume driver | G155: £m 09/10 prices | AH155: =AH23 -> 36.11097287 | AI155: =AI23 -> 30.38992295 | AJ155: =AJ23 -> 121.1044938 | AK155: 103.0568288 | AL155: =AL23 -> 102.7633787 | AM155: 134.0134554 | AN155: 0 | AO155: 0
E156: Allocation to load related capex expenditure | G156: % | AH156: =(CHOOSE(m_identity,'SHE-Transmission PLC'!AH156, SPTL!AH156, 'NGET TO'!AH156)) -> 1 | AI156: =(CHOOSE(m_identity,'SHE-Transmission PLC'!AI156, SPTL!AI156, 'NGET TO'!AI156)) -> 1 | AJ156: =(CHOOSE(m_identity,'SHE-Transmission PLC'!AJ156, SPTL!AJ156, 'NGET TO'!AJ156)) -> 1 | AK156: =(CHOOSE(m_identity,'SHE-Transmission PLC'!AK156, SPTL!AK156, 'NGET TO'!AK156)) -> 1 | AL156: =(CHOOSE(m_identity,'SHE-Transmission PLC'!AL156, SPTL!AL156, 'NGET TO'!AL156)) -> 1 | AM156: =(CHOOSE(m_identity,'SHE-Transmission PLC'!AM156, SPTL!AM156, 'NGET TO'!AM156)) -> 1 | AN156: =(CHOOSE(m_identity,'SHE-Transmission PLC'!AN156, SPTL!AN156, 'NGET TO'!AN156)) -> 1 | AO156: =(CHOOSE(m_identity,'SHE-Transmission PLC'!AO156, SPTL!AO156, 'NGET TO'!AO156)) -> 1
E157: Allocation to asset replacement capex expenditure | G157: % | AH157: =(CHOOSE(m_identity,'SHE-Transmission PLC'!AH157, SPTL!AH157, 'NGET TO'!AH157)) -> 0 | AI157: =(CHOOSE(m_identity,'SHE-Transmission PLC'!AI157, SPTL!AI157, 'NGET TO'!AI157)) -> 0 | AJ157: =(CHOOSE(m_identity,'SHE-Transmission PLC'!AJ157, SPTL!AJ157, 'NGET TO'!AJ157)) -> 0 | AK157: =(CHOOSE(m_identity,'SHE-Transmission PLC'!AK157, SPTL!AK157, 'NGET TO'!AK157)) -> 0 | AL157: =(CHOOSE(m_identity,'SHE-Transmission PLC'!AL157, SPTL!AL157, 'NGET TO'!AL157)) -> 0 | AM157: =(CHOOSE(m_identity,'SHE-Transmission PLC'!AM157, SPTL!AM157, 'NGET TO'!AM157)) -> 0 | AN157: =(CHOOSE(m_identity,'SHE-Transmission PLC'!AN157, SPTL!AN157, 'NGET TO'!AN157)) -> 0 | AO157: =(CHOOSE(m_identity,'SHE-Transmission PLC'!AO157, SPTL!AO157, 'NGET TO'!AO157)) -> 0
E158: Allocation to other capex expenditure | G158: % | AH158: =(CHOOSE(m_identity,'SHE-Transmission PLC'!AH158, SPTL!AH158, 'NGET TO'!AH158)) -> 0 | AI158: =(CHOOSE(m_identity,'SHE-Transmission PLC'!AI158, SPTL!AI158, 'NGET TO'!AI158)) -> 0 | AJ158: =(CHOOSE(m_identity,'SHE-Transmission PLC'!AJ158, SPTL!AJ158, 'NGET TO'!AJ158)) -> 0 | AK158: =(CHOOSE(m_identity,'SHE-Transmission PLC'!AK158, SPTL!AK158, 'NGET TO'!AK158)) -> 0 | AL158: =(CHOOSE(m_identity,'SHE-Transmission PLC'!AL158, SPTL!AL158, 'NGET TO'!AL158)) -> 0 | AM158: =(CHOOSE(m_identity,'SHE-Transmission PLC'!AM158, SPTL!AM158, 'NGET TO'!AM158)) -> 0 | AN158: =(CHOOSE(m_identity,'SHE-Transmission PLC'!AN158, SPTL!AN158, 'NGET TO'!AN158)) -> 0 | AO158: =(CHOOSE(m_identity,'SHE-Transmission PLC'!AO158, SPTL!AO158, 'NGET TO'!AO158)) -> 0
E159: Allocation to controllable opex | G159: % | AH159: =(CHOOSE(m_identity,'SHE-Transmission PLC'!AH159, SPTL!AH159, 'NGET TO'!AH159)) -> 0 | AI159: =(CHOOSE(m_identity,'SHE-Transmission PLC'!AI159, SPTL!AI159, 'NGET TO'!AI159)) -> 0 | AJ159: =(CHOOSE(m_identity,'SHE-Transmission PLC'!AJ159, SPTL!AJ159, 'NGET TO'!AJ159)) -> 0 | AK159: =(CHOOSE(m_identity,'SHE-Transmission PLC'!AK159, SPTL!AK159, 'NGET TO'!AK159)) -> 0 | AL159: =(CHOOSE(m_identity,'SHE-Transmission PLC'!AL159, SPTL!AL159, 'NGET TO'!AL159)) -> 0 | AM159: =(CHOOSE(m_identity,'SHE-Transmission PLC'!AM159, SPTL!AM159, 'NGET TO'!AM159)) -> 0 | AN159: =(CHOOSE(m_identity,'SHE-Transmission PLC'!AN159, SPTL!AN159, 'NGET TO'!AN159)) -> 0 | AO159: =(CHOOSE(m_identity,'SHE-Transmission PLC'!AO159, SPTL!AO159, 'NGET TO'!AO159)) -> 0
E160: Allocation to non-operational capex | G160: % | AH160: =(CHOOSE(m_identity,'SHE-Transmission PLC'!AH160, SPTL!AH160, 'NGET TO'!AH160)) -> 0 | AI160: =(CHOOSE(m_identity,'SHE-Transmission PLC'!AI160, SPTL!AI160, 'NGET TO'!AI160)) -> 0 | AJ160: =(CHOOSE(m_identity,'SHE-Transmission PLC'!AJ160, SPTL!AJ160, 'NGET TO'!AJ160)) -> 0 | AK160: =(CHOOSE(m_identity,'SHE-Transmission PLC'!AK160, SPTL!AK160, 'NGET TO'!AK160)) -> 0 | AL160: =(CHOOSE(m_identity,'SHE-Transmission PLC'!AL160, SPTL!AL160, 'NGET TO'!AL160)) -> 0 | AM160: =(CHOOSE(m_identity,'SHE-Transmission PLC'!AM160, SPTL!AM160, 'NGET TO'!AM160)) -> 0 | AN160: =(CHOOSE(m_identity,'SHE-Transmission PLC'!AN160, SPTL!AN160, 'NGET TO'!AN160)) -> 0 | AO160: =(CHOOSE(m_identity,'SHE-Transmission PLC'!AO160, SPTL!AO160, 'NGET TO'!AO160)) -> 0
E162: =E24 -> Innovation roll out mechanism | G162: £m 09/10 prices | AH162: =AH24 -> 0 | AI162: =AI24 -> 0 | AJ162: 0 | AK162: 0 | AL162: 0 | AM162: 0 | AN162: 0 | AO162: 0
E163: Allocation to load related capex expenditure | G163: % | AH163: =(CHOOSE(m_identity,'SHE-Transmission PLC'!AH163, SPTL!AH163, 'NGET TO'!AH163)) -> 0.3 | AI163: =(CHOOSE(m_identity,'SHE-Transmission PLC'!AI163, SPTL!AI163, 'NGET TO'!AI163)) -> 0.3 | AJ163: =(CHOOSE(m_identity,'SHE-Transmission PLC'!AJ163, SPTL!AJ163, 'NGET TO'!AJ163)) -> 0.3 | AK163: =(CHOOSE(m_identity,'SHE-Transmission PLC'!AK163, SPTL!AK163, 'NGET TO'!AK163)) -> 0.3 | AL163: =(CHOOSE(m_identity,'SHE-Transmission PLC'!AL163, SPTL!AL163, 'NGET TO'!AL163)) -> 0.3 | AM163: =(CHOOSE(m_identity,'SHE-Transmission PLC'!AM163, SPTL!AM163, 'NGET TO'!AM163)) -> 0.3 | AN163: =(CHOOSE(m_identity,'SHE-Transmission PLC'!AN163, SPTL!AN163, 'NGET TO'!AN163)) -> 0.3 | AO163: =(CHOOSE(m_identity,'SHE-Transmission PLC'!AO163, SPTL!AO163, 'NGET TO'!AO163)) -> 0.3
E164: Allocation to asset replacement capex expenditure | G164: % | AH164: =(CHOOSE(m_identity,'SHE-Transmission PLC'!AH164, SPTL!AH164, 'NGET TO'!AH164)) -> 0.1 | AI164: =(CHOOSE(m_identity,'SHE-Transmission PLC'!AI164, SPTL!AI164, 'NGET TO'!AI164)) -> 0.1 | AJ164: =(CHOOSE(m_identity,'SHE-Transmission PLC'!AJ164, SPTL!AJ164, 'NGET TO'!AJ164)) -> 0.1 | AK164: =(CHOOSE(m_identity,'SHE-Transmission PLC'!AK164, SPTL!AK164, 'NGET TO'!AK164)) -> 0.1 | AL164: =(CHOOSE(m_identity,'SHE-Transmission PLC'!AL164, SPTL!AL164, 'NGET TO'!AL164)) -> 0.1 | AM164: =(CHOOSE(m_identity,'SHE-Transmission PLC'!AM164, SPTL!AM164, 'NGET TO'!AM164)) -> 0.1 | AN164: =(CHOOSE(m_identity,'SHE-Transmission PLC'!AN164, SPTL!AN164, 'NGET TO'!AN164)) -> 0.1 | AO164: =(CHOOSE(m_identity,'SHE-Transmission PLC'!AO164, SPTL!AO164, 'NGET TO'!AO164)) -> 0.1
E165: Allocation to other capex expenditure | G165: % | AH165: =(CHOOSE(m_identity,'SHE-Transmission PLC'!AH165, SPTL!AH165, 'NGET TO'!AH165)) -> 0.5 | AI165: =(CHOOSE(m_identity,'SHE-Transmission PLC'!AI165, SPTL!AI165, 'NGET TO'!AI165)) -> 0.5 | AJ165: =(CHOOSE(m_identity,'SHE-Transmission PLC'!AJ165, SPTL!AJ165, 'NGET TO'!AJ165)) -> 0.5 | AK165: =(CHOOSE(m_identity,'SHE-Transmission PLC'!AK165, SPTL!AK165, 'NGET TO'!AK165)) -> 0.5 | AL165: =(CHOOSE(m_identity,'SHE-Transmission PLC'!AL165, SPTL!AL165, 'NGET TO'!AL165)) -> 0.5 | AM165: =(CHOOSE(m_identity,'SHE-Transmission PLC'!AM165, SPTL!AM165, 'NGET TO'!AM165)) -> 0.5 | AN165: =(CHOOSE(m_identity,'SHE-Transmission PLC'!AN165, SPTL!AN165, 'NGET TO'!AN165)) -> 0.5 | AO165: =(CHOOSE(m_identity,'SHE-Transmission PLC'!AO165, SPTL!AO165, 'NGET TO'!AO165)) -> 0.5
E166: Allocation to controllable opex | G166: % | AH166: =(CHOOSE(m_identity,'SHE-Transmission PLC'!AH166, SPTL!AH166, 'NGET TO'!AH166)) -> 0.1 | AI166: =(CHOOSE(m_identity,'SHE-Transmission PLC'!AI166, SPTL!AI166, 'NGET TO'!AI166)) -> 0.1 | AJ166: =(CHOOSE(m_identity,'SHE-Transmission PLC'!AJ166, SPTL!AJ166, 'NGET TO'!AJ166)) -> 0.1 | AK166: =(CHOOSE(m_identity,'SHE-Transmission PLC'!AK166, SPTL!AK166, 'NGET TO'!AK166)) -> 0.1 | AL166: =(CHOOSE(m_identity,'SHE-Transmission PLC'!AL166, SPTL!AL166, 'NGET TO'!AL166)) -> 0.1 | AM166: =(CHOOSE(m_identity,'SHE-Transmission PLC'!AM166, SPTL!AM166, 'NGET TO'!AM166)) -> 0.1 | AN166: =(CHOOSE(m_identity,'SHE-Transmission PLC'!AN166, SPTL!AN166, 'NGET TO'!AN166)) -> 0.1 | AO166: =(CHOOSE(m_identity,'SHE-Transmission PLC'!AO166, SPTL!AO166, 'NGET TO'!AO166)) -> 0.1
E167: Allocation to non-operational capex | G167: % | AH167: =(CHOOSE(m_identity,'SHE-Transmission PLC'!AH167, SPTL!AH167, 'NGET TO'!AH167)) -> 0 | AI167: =(CHOOSE(m_identity,'SHE-Transmission PLC'!AI167, SPTL!AI167, 'NGET TO'!AI167)) -> 0 | AJ167: =(CHOOSE(m_identity,'SHE-Transmission PLC'!AJ167, SPTL!AJ167, 'NGET TO'!AJ167)) -> 0 | AK167: =(CHOOSE(m_identity,'SHE-Transmission PLC'!AK167, SPTL!AK167, 'NGET TO'!AK167)) -> 0 | AL167: =(CHOOSE(m_identity,'SHE-Transmission PLC'!AL167, SPTL!AL167, 'NGET TO'!AL167)) -> 0 | AM167: =(CHOOSE(m_identity,'SHE-Transmission PLC'!AM167, SPTL!AM167, 'NGET TO'!AM167)) -> 0 | AN167: =(CHOOSE(m_identity,'SHE-Transmission PLC'!AN167, SPTL!AN167, 'NGET TO'!AN167)) -> 0 | AO167: =(CHOOSE(m_identity,'SHE-Transmission PLC'!AO167, SPTL!AO167, 'NGET TO'!AO167)) -> 0
E169: =E25 -> Exceptional Sub Sea Cable Faults | G169: £m 09/10 prices | AH169: =AH25 -> 0 | AI169: =AI25 -> 0 | AJ169: 0 | AK169: 0 | AL169: 0 | AM169: 0 | AN169: 0 | AO169: 0
E170: Allocation to load related capex expenditure | G170: % | AH170: =(CHOOSE(m_identity,'SHE-Transmission PLC'!AH170, SPTL!AH170, 'NGET TO'!AH170)) -> 0 | AI170: =(CHOOSE(m_identity,'SHE-Transmission PLC'!AI170, SPTL!AI170, 'NGET TO'!AI170)) -> 0 | AJ170: =(CHOOSE(m_identity,'SHE-Transmission PLC'!AJ170, SPTL!AJ170, 'NGET TO'!AJ170)) -> 0 | AK170: =(CHOOSE(m_identity,'SHE-Transmission PLC'!AK170, SPTL!AK170, 'NGET TO'!AK170)) -> 0 | AL170: =(CHOOSE(m_identity,'SHE-Transmission PLC'!AL170, SPTL!AL170, 'NGET TO'!AL170)) -> 0 | AM170: =(CHOOSE(m_identity,'SHE-Transmission PLC'!AM170, SPTL!AM170, 'NGET TO'!AM170)) -> 0 | AN170: =(CHOOSE(m_identity,'SHE-Transmission PLC'!AN170, SPTL!AN170, 'NGET TO'!AN170)) -> 0 | AO170: =(CHOOSE(m_identity,'SHE-Transmission PLC'!AO170, SPTL!AO170, 'NGET TO'!AO170)) -> 0
E171: Allocation to asset replacement capex expenditure | G171: % | AH171: =(CHOOSE(m_identity,'SHE-Transmission PLC'!AH171, SPTL!AH171, 'NGET TO'!AH171)) -> 0 | AI171: =(CHOOSE(m_identity,'SHE-Transmission PLC'!AI171, SPTL!AI171, 'NGET TO'!AI171)) -> 0 | AJ171: =(CHOOSE(m_identity,'SHE-Transmission PLC'!AJ171, SPTL!AJ171, 'NGET TO'!AJ171)) -> 0 | AK171: =(CHOOSE(m_identity,'SHE-Transmission PLC'!AK171, SPTL!AK171, 'NGET TO'!AK171)) -> 0 | AL171: =(CHOOSE(m_identity,'SHE-Transmission PLC'!AL171, SPTL!AL171, 'NGET TO'!AL171)) -> 0 | AM171: =(CHOOSE(m_identity,'SHE-Transmission PLC'!AM171, SPTL!AM171, 'NGET TO'!AM171)) -> 0 | AN171: =(CHOOSE(m_identity,'SHE-Transmission PLC'!AN171, SPTL!AN171, 'NGET TO'!AN171)) -> 0 | AO171: =(CHOOSE(m_identity,'SHE-Transmission PLC'!AO171, SPTL!AO171, 'NGET TO'!AO171)) -> 0
E172: Allocation to other capex expenditure | G172: % | AH172: =(CHOOSE(m_identity,'SHE-Transmission PLC'!AH172, SPTL!AH172, 'NGET TO'!AH172)) -> 1 | AI172: =(CHOOSE(m_identity,'SHE-Transmission PLC'!AI172, SPTL!AI172, 'NGET TO'!AI172)) -> 1 | AJ172: =(CHOOSE(m_identity,'SHE-Transmission PLC'!AJ172, SPTL!AJ172, 'NGET TO'!AJ172)) -> 1 | AK172: =(CHOOSE(m_identity,'SHE-Transmission PLC'!AK172, SPTL!AK172, 'NGET TO'!AK172)) -> 1 | AL172: =(CHOOSE(m_identity,'SHE-Transmission PLC'!AL172, SPTL!AL172, 'NGET TO'!AL172)) -> 1 | AM172: =(CHOOSE(m_identity,'SHE-Transmission PLC'!AM172, SPTL!AM172, 'NGET TO'!AM172)) -> 1 | AN172: =(CHOOSE(m_identity,'SHE-Transmission PLC'!AN172, SPTL!AN172, 'NGET TO'!AN172)) -> 1 | AO172: =(CHOOSE(m_identity,'SHE-Transmission PLC'!AO172, SPTL!AO172, 'NGET TO'!AO172)) -> 1
E173: Allocation to controllable opex | G173: % | AH173: =(CHOOSE(m_identity,'SHE-Transmission PLC'!AH173, SPTL!AH173, 'NGET TO'!AH173)) -> 0 | AI173: =(CHOOSE(m_identity,'SHE-Transmission PLC'!AI173, SPTL!AI173, 'NGET TO'!AI173)) -> 0 | AJ173: =(CHOOSE(m_identity,'SHE-Transmission PLC'!AJ173, SPTL!AJ173, 'NGET TO'!AJ173)) -> 0 | AK173: =(CHOOSE(m_identity,'SHE-Transmission PLC'!AK173, SPTL!AK173, 'NGET TO'!AK173)) -> 0 | AL173: =(CHOOSE(m_identity,'SHE-Transmission PLC'!AL173, SPTL!AL173, 'NGET TO'!AL173)) -> 0 | AM173: =(CHOOSE(m_identity,'SHE-Transmission PLC'!AM173, SPTL!AM173, 'NGET TO'!AM173)) -> 0 | AN173: =(CHOOSE(m_identity,'SHE-Transmission PLC'!AN173, SPTL!AN173, 'NGET TO'!AN173)) -> 0 | AO173: =(CHOOSE(m_identity,'SHE-Transmission PLC'!AO173, SPTL!AO173, 'NGET TO'!AO173)) -> 0
E174: Allocation to non-operational capex | G174: % | AH174: =(CHOOSE(m_identity,'SHE-Transmission PLC'!AH174, SPTL!AH174, 'NGET TO'!AH174)) -> 0 | AI174: =(CHOOSE(m_identity,'SHE-Transmission PLC'!AI174, SPTL!AI174, 'NGET TO'!AI174)) -> 0 | AJ174: =(CHOOSE(m_identity,'SHE-Transmission PLC'!AJ174, SPTL!AJ174, 'NGET TO'!AJ174)) -> 0 | AK174: =(CHOOSE(m_identity,'SHE-Transmission PLC'!AK174, SPTL!AK174, 'NGET TO'!AK174)) -> 0 | AL174: =(CHOOSE(m_identity,'SHE-Transmission PLC'!AL174, SPTL!AL174, 'NGET TO'!AL174)) -> 0 | AM174: =(CHOOSE(m_identity,'SHE-Transmission PLC'!AM174, SPTL!AM174, 'NGET TO'!AM174)) -> 0 | AN174: =(CHOOSE(m_identity,'SHE-Transmission PLC'!AN174, SPTL!AN174, 'NGET TO'!AN174)) -> 0 | AO174: =(CHOOSE(m_identity,'SHE-Transmission PLC'!AO174, SPTL!AO174, 'NGET TO'!AO174)) -> 0
E176: =E26 -> Non-load Related Work Costs | G176: £m 09/10 prices | AH176: =AH26 -> 0 | AI176: =AI26 -> 0 | AJ176: 0 | AK176: 0 | AL176: 0 | AM176: 0 | AN176: 0 | AO176: 0
E177: Allocation to load related capex expenditure | G177: % | AH177: =(CHOOSE(m_identity,'SHE-Transmission PLC'!AH177, SPTL!AH177, 'NGET TO'!AH177)) -> 0 | AI177: =(CHOOSE(m_identity,'SHE-Transmission PLC'!AI177, SPTL!AI177, 'NGET TO'!AI177)) -> 0 | AJ177: =(CHOOSE(m_identity,'SHE-Transmission PLC'!AJ177, SPTL!AJ177, 'NGET TO'!AJ177)) -> 0 | AK177: =(CHOOSE(m_identity,'SHE-Transmission PLC'!AK177, SPTL!AK177, 'NGET TO'!AK177)) -> 0 | AL177: =(CHOOSE(m_identity,'SHE-Transmission PLC'!AL177, SPTL!AL177, 'NGET TO'!AL177)) -> 0 | AM177: =(CHOOSE(m_identity,'SHE-Transmission PLC'!AM177, SPTL!AM177, 'NGET TO'!AM177)) -> 0 | AN177: =(CHOOSE(m_identity,'SHE-Transmission PLC'!AN177, SPTL!AN177, 'NGET TO'!AN177)) -> 0 | AO177: =(CHOOSE(m_identity,'SHE-Transmission PLC'!AO177, SPTL!AO177, 'NGET TO'!AO177)) -> 0
E178: Allocation to asset replacement capex expenditure | G178: % | AH178: =(CHOOSE(m_identity,'SHE-Transmission PLC'!AH178, SPTL!AH178, 'NGET TO'!AH178)) -> 0 | AI178: =(CHOOSE(m_identity,'SHE-Transmission PLC'!AI178, SPTL!AI178, 'NGET TO'!AI178)) -> 0 | AJ178: =(CHOOSE(m_identity,'SHE-Transmission PLC'!AJ178, SPTL!AJ178, 'NGET TO'!AJ178)) -> 0 | AK178: =(CHOOSE(m_identity,'SHE-Transmission PLC'!AK178, SPTL!AK178, 'NGET TO'!AK178)) -> 0 | AL178: =(CHOOSE(m_identity,'SHE-Transmission PLC'!AL178, SPTL!AL178, 'NGET TO'!AL178)) -> 0 | AM178: =(CHOOSE(m_identity,'SHE-Transmission PLC'!AM178, SPTL!AM178, 'NGET TO'!AM178)) -> 0 | AN178: =(CHOOSE(m_identity,'SHE-Transmission PLC'!AN178, SPTL!AN178, 'NGET TO'!AN178)) -> 0 | AO178: =(CHOOSE(m_identity,'SHE-Transmission PLC'!AO178, SPTL!AO178, 'NGET TO'!AO178)) -> 0
E179: Allocation to other capex expenditure | G179: % | AH179: =(CHOOSE(m_identity,'SHE-Transmission PLC'!AH179, SPTL!AH179, 'NGET TO'!AH179)) -> 1 | AI179: =(CHOOSE(m_identity,'SHE-Transmission PLC'!AI179, SPTL!AI179, 'NGET TO'!AI179)) -> 1 | AJ179: =(CHOOSE(m_identity,'SHE-Transmission PLC'!AJ179, SPTL!AJ179, 'NGET TO'!AJ179)) -> 1 | AK179: =(CHOOSE(m_identity,'SHE-Transmission PLC'!AK179, SPTL!AK179, 'NGET TO'!AK179)) -> 1 | AL179: =(CHOOSE(m_identity,'SHE-Transmission PLC'!AL179, SPTL!AL179, 'NGET TO'!AL179)) -> 1 | AM179: =(CHOOSE(m_identity,'SHE-Transmission PLC'!AM179, SPTL!AM179, 'NGET TO'!AM179)) -> 1 | AN179: =(CHOOSE(m_identity,'SHE-Transmission PLC'!AN179, SPTL!AN179, 'NGET TO'!AN179)) -> 1 | AO179: =(CHOOSE(m_identity,'SHE-Transmission PLC'!AO179, SPTL!AO179, 'NGET TO'!AO179)) -> 1
E180: Allocation to controllable opex | G180: % | AH180: =(CHOOSE(m_identity,'SHE-Transmission PLC'!AH180, SPTL!AH180, 'NGET TO'!AH180)) -> 0 | AI180: =(CHOOSE(m_identity,'SHE-Transmission PLC'!AI180, SPTL!AI180, 'NGET TO'!AI180)) -> 0 | AJ180: =(CHOOSE(m_identity,'SHE-Transmission PLC'!AJ180, SPTL!AJ180, 'NGET TO'!AJ180)) -> 0 | AK180: =(CHOOSE(m_identity,'SHE-Transmission PLC'!AK180, SPTL!AK180, 'NGET TO'!AK180)) -> 0 | AL180: =(CHOOSE(m_identity,'SHE-Transmission PLC'!AL180, SPTL!AL180, 'NGET TO'!AL180)) -> 0 | AM180: =(CHOOSE(m_identity,'SHE-Transmission PLC'!AM180, SPTL!AM180, 'NGET TO'!AM180)) -> 0 | AN180: =(CHOOSE(m_identity,'SHE-Transmission PLC'!AN180, SPTL!AN180, 'NGET TO'!AN180)) -> 0 | AO180: =(CHOOSE(m_identity,'SHE-Transmission PLC'!AO180, SPTL!AO180, 'NGET TO'!AO180)) -> 0
E181: Allocation to non-operational capex | G181: % | AH181: =(CHOOSE(m_identity,'SHE-Transmission PLC'!AH181, SPTL!AH181, 'NGET TO'!AH181)) -> 0 | AI181: =(CHOOSE(m_identity,'SHE-Transmission PLC'!AI181, SPTL!AI181, 'NGET TO'!AI181)) -> 0 | AJ181: =(CHOOSE(m_identity,'SHE-Transmission PLC'!AJ181, SPTL!AJ181, 'NGET TO'!AJ181)) -> 0 | AK181: =(CHOOSE(m_identity,'SHE-Transmission PLC'!AK181, SPTL!AK181, 'NGET TO'!AK181)) -> 0 | AL181: =(CHOOSE(m_identity,'SHE-Transmission PLC'!AL181, SPTL!AL181, 'NGET TO'!AL181)) -> 0 | AM181: =(CHOOSE(m_identity,'SHE-Transmission PLC'!AM181, SPTL!AM181, 'NGET TO'!AM181)) -> 0 | AN181: =(CHOOSE(m_identity,'SHE-Transmission PLC'!AN181, SPTL!AN181, 'NGET TO'!AN181)) -> 0 | AO181: =(CHOOSE(m_identity,'SHE-Transmission PLC'!AO181, SPTL!AO181, 'NGET TO'!AO181)) -> 0
E183: Variant allowed load related capex expenditure | G183: £m 09/10 prices | AH183: =(AH$92*AH93) + (AH$99*AH100) + (AH$106*AH107) + (AH$113*AH114) + (AH$120*AH121) + (AH$127*AH128) + (AH$134*AH135) + (AH$141*AH142) + (AH$148*AH149) + (AH$155*AH156) + (AH$162*AH163) + (AH$169*AH170) + (AH$176*AH177) -> 71.44097287 | AI183: =(AI$92*AI93) + (AI$99*AI100) + (AI$106*AI107) + (AI$113*AI114) + (AI$120*AI121) + (AI$127*AI128) + (AI$134*AI135) + (AI$141*AI142) + (AI$148*AI149) + (AI$155*AI156) + (AI$162*AI163) + (AI$169*AI170) + (AI$176*AI177) -> 194.4949229 | AJ183: 536.8024938 | AK183: 462.3428288 | AL183: 275.1113787 | AM183: 152.0614554 | AN183: 7.108 | AO183: 5.817
E184: Variant allowed asset replacement capex expenditure | G184: £m 09/10 prices | AH184: =(AH$92*AH94) + (AH$99*AH101) + (AH$106*AH108) + (AH$113*AH115) + (AH$120*AH122) + (AH$127*AH129) + (AH$134*AH136) + (AH$141*AH143) + (AH$148*AH150) + (AH$155*AH157) + (AH$162*AH164) + (AH$169*AH171) + (AH$176*AH178) -> 0 | AI184: 0 | AJ184: 0 | AK184: 0 | AL184: 0 | AM184: 0 | AN184: 0 | AO184: 0
E185: Variant allowed other capex expenditure | G185: £m 09/10 prices | AH185: =(AH$92*AH95) + (AH$99*AH102) + (AH$106*AH109) + (AH$113*AH116) + (AH$120*AH123) + (AH$127*AH130) + (AH$134*AH137) + (AH$141*AH144) + (AH$148*AH151) + (AH$155*AH158) + (AH$162*AH165) + (AH$169*AH172) + (AH$176*AH179) -> 0 | AI185: 0 | AJ185: 0 | AK185: 0 | AL185: 0 | AM185: 0 | AN185: 0 | AO185: 0
E186: Variant allowed controllable opex | G186: £m 09/10 prices | AH186: =(AH$92*AH96) + (AH$99*AH103) + (AH$106*AH110) + (AH$113*AH117) + (AH$120*AH124) + (AH$127*AH131) + (AH$134*AH138) + (AH$141*AH145) + (AH$148*AH152) + (AH$155*AH159) + (AH$162*AH166) + (AH$169*AH173) + (AH$176*AH180) -> 0 | AI186: 0 | AJ186: 0 | AK186: 0 | AL186: 0 | AM186: 0 | AN186: 0 | AO186: 0
E187: Variant allowed non-operational capex | G187: £m 09/10 prices | AH187: =(AH$92*AH97) + (AH$99*AH104) + (AH$106*AH111) + (AH$113*AH118) + (AH$120*AH125) + (AH$127*AH132) + (AH$134*AH139) + (AH$141*AH146) + (AH$148*AH153) + (AH$155*AH160) + (AH$162*AH167) + (AH$169*AH174) + (AH$176*AH181) -> 0 | AI187: 0 | AJ187: 0 | AK187: 0 | AL187: 0 | AM187: 0 | AN187: 0 | AO187: 0
D189: Actual
E191: Actual load related capex expenditure | G191: £m 09/10 prices | AH191: =AH9 -> 121.1049399 | AI191: 250.5817313 | AJ191: 402.9318734 | AK191: 326.521178 | AL191: 0 | AM191: 0 | AN191: 0 | AO191: 0
E192: Actual asset replacement capex expenditure | G192: £m 09/10 prices | AH192: =AH10 -> 16.41388356 | AI192: 16.39762548 | AJ192: 10.8536811 | AK192: 17.143907 | AL192: 0 | AM192: 0 | AN192: 0 | AO192: 0
E193: Actual other capex expenditure | G193: £m 09/10 prices | AH193: =AH11 -> 0.5571292071 | AI193: 2.244865424 | AJ193: 3.860739369 | AK193: 8.503054673 | AL193: 0 | AM193: 0 | AN193: 0 | AO193: 0
E194: Actual controllable opex | G194: £m 09/10 prices | AH194: 11.14012921 | AI194: 13.74568652 | AJ194: 16.66154151 | AK194: 19.65718406 | AL194: 0 | AM194: 0 | AN194: 0 | AO194: 0
E195: Actual non-operational capex | G195: £m 09/10 prices | AH195: =AH13 -> 0.2571365571 | AI195: 1.615720095 | AJ195: 1.374739349 | AK195: 4.021134144 | AL195: 0 | AM195: 0 | AN195: 0 | AO195: 0
C197: Non-totex
E199: Non-controllable opex | G199: £m 09/10 prices | AH199: =(CHOOSE(m_identity,'SHE-Transmission PLC'!AH199, SPTL!AH199, 'NGET TO'!AH199)) -> 9.4 | AI199: =(CHOOSE(m_identity,'SHE-Transmission PLC'!AI199, SPTL!AI199, 'NGET TO'!AI199)) -> 9.4 | AJ199: =(CHOOSE(m_identity,'SHE-Transmission PLC'!AJ199, SPTL!AJ199, 'NGET TO'!AJ199)) -> 12.7 | AK199: =(CHOOSE(m_identity,'SHE-Transmission PLC'!AK199, SPTL!AK199, 'NGET TO'!AK199)) -> 12.7 | AL199: =(CHOOSE(m_identity,'SHE-Transmission PLC'!AL199, SPTL!AL199, 'NGET TO'!AL199)) -> 12.7 | AM199: =(CHOOSE(m_identity,'SHE-Transmission PLC'!AM199, SPTL!AM199, 'NGET TO'!AM199)) -> 12.7 | AN199: =(CHOOSE(m_identity,'SHE-Transmission PLC'!AN199, SPTL!AN199, 'NGET TO'!AN199)) -> 12.7 | AO199: =(CHOOSE(m_identity,'SHE-Transmission PLC'!AO199, SPTL!AO199, 'NGET TO'!AO199)) -> 12.7
B201: Direct allowed revenue terms (DARTs)
E203: =E29 -> Pension scheme administration and Pension Protection Fund Levy | G203: £m 09/10 prices | AH203: =AH29 -> 0 | AI203: 0 | AJ203: 0 | AK203: 0 | AL203: 0 | AM203: 0 | AN203: 0 | AO203: 0
E204: =E30 -> Pension Scheme Established Deficit | G204: £m 09/10 prices | AH204: =AH30 -> 0.465567766 | AI204: 0.465567766 | AJ204: 1.488322777 | AK204: 1.488322777 | AL204: 1.488322777 | AM204: 2.687796414 | AN204: 2.142059101 | AO204: 0
E206: Pension true-up from previous price controls | G206: £m 09/10 prices | AH206: =(CHOOSE(m_identity,'SHE-Transmission PLC'!AH206, SPTL!AH206, 'NGET TO'!AH206)) -> 0.4956100827 | AI206: =(CHOOSE(m_identity,'SHE-Transmission PLC'!AI206, SPTL!AI206, 'NGET TO'!AI206)) -> 0.518036439 | AJ206: =(CHOOSE(m_identity,'SHE-Transmission PLC'!AJ206, SPTL!AJ206, 'NGET TO'!AJ206)) -> 0.5404803677 | AK206: =(CHOOSE(m_identity,'SHE-Transmission PLC'!AK206, SPTL!AK206, 'NGET TO'!AK206)) -> 0.5628265285 | AL206: =(CHOOSE(m_identity,'SHE-Transmission PLC'!AL206, SPTL!AL206, 'NGET TO'!AL206)) -> 0.5852298384 | AM206: =(CHOOSE(m_identity,'SHE-Transmission PLC'!AM206, SPTL!AM206, 'NGET TO'!AM206)) -> 0.6075914706 | AN206: =(CHOOSE(m_identity,'SHE-Transmission PLC'!AN206, SPTL!AN206, 'NGET TO'!AN206)) -> 0.6308075407 | AO206: =(CHOOSE(m_identity,'SHE-Transmission PLC'!AO206, SPTL!AO206, 'NGET TO'!AO206)) -> 0.6549106968
E207: NGET TO Capital Expenditure Incentive and Safety Net | G207: £m 09/10 prices | AH207: =(CHOOSE(m_identity,'SHE-Transmission PLC'!AH207, SPTL!AH207, 'NGET TO'!AH207)) -> 0 | AI207: =(CHOOSE(m_identity,'SHE-Transmission PLC'!AI207, SPTL!AI207, 'NGET TO'!AI207)) -> 0 | AJ207: =(CHOOSE(m_identity,'SHE-Transmission PLC'!AJ207, SPTL!AJ207, 'NGET TO'!AJ207)) -> 0 | AK207: =(CHOOSE(m_identity,'SHE-Transmission PLC'!AK207, SPTL!AK207, 'NGET TO'!AK207)) -> 0 | AL207: =(CHOOSE(m_identity,'SHE-Transmission PLC'!AL207, SPTL!AL207, 'NGET TO'!AL207)) -> 0 | AM207: =(CHOOSE(m_identity,'SHE-Transmission PLC'!AM207, SPTL!AM207, 'NGET TO'!AM207)) -> 0 | AN207: =(CHOOSE(m_identity,'SHE-Transmission PLC'!AN207, SPTL!AN207, 'NGET TO'!AN207)) -> 0 | AO207: =(CHOOSE(m_identity,'SHE-Transmission PLC'!AO207, SPTL!AO207, 'NGET TO'!AO207)) -> 0
E209: Revenue adjustment from previous controls (Base) | G209: £m 09/10 prices | AH209: =(CHOOSE(m_identity,'SHE-Transmission PLC'!AH209, SPTL!AH209, 'NGET TO'!AH209)) -> 0.2602437212 | AI209: =(CHOOSE(m_identity,'SHE-Transmission PLC'!AI209, SPTL!AI209, 'NGET TO'!AI209)) -> 0 | AJ209: =(CHOOSE(m_identity,'SHE-Transmission PLC'!AJ209, SPTL!AJ209, 'NGET TO'!AJ209)) -> 0 | AK209: =(CHOOSE(m_identity,'SHE-Transmission PLC'!AK209, SPTL!AK209, 'NGET TO'!AK209)) -> 0 | AL209: =(CHOOSE(m_identity,'SHE-Transmission PLC'!AL209, SPTL!AL209, 'NGET TO'!AL209)) -> 0 | AM209: =(CHOOSE(m_identity,'SHE-Transmission PLC'!AM209, SPTL!AM209, 'NGET TO'!AM209)) -> 0 | AN209: =(CHOOSE(m_identity,'SHE-Transmission PLC'!AN209, SPTL!AN209, 'NGET TO'!AN209)) -> 0 | AO209: =(CHOOSE(m_identity,'SHE-Transmission PLC'!AO209, SPTL!AO209, 'NGET TO'!AO209)) -> 0
E210: =E31 -> Legacy price control adjustments to allowed revenue | G210: £m 09/10 prices | AH210: =IF(OR(m_identity=1,m_identity=2),AH31,$AH$31/8) -> 18.52469422 | AI210: =IF(OR(m_identity=1,m_identity=2),AI31,$AH$31/8*(1+$AI$42)) -> 0 | AJ210: =IF(OR(m_identity=1,m_identity=2),AJ31,$AH$31/8*(1+$AI$42)*(1+$AJ$42)) -> 0 | AK210: =IF(OR(m_identity=1,m_identity=2),AK31,$AH$31/8*(1+$AI$42)*(1+$AJ$42)*(1+$AK$42)) -> 0 | AL210: =IF(OR(m_identity=1,m_identity=2),AL31,$AH$31/8*(1+$AI$42)*(1+$AJ$42)*(1+$AK$42)*(1+$AL$42)) -> 0 | AM210: =IF(OR(m_identity=1,m_identity=2),AM31,$AH$31/8*(1+$AI$42)*(1+$AJ$42)*(1+$AK$42)*(1+$AL$42)*(1+$AM$42)) -> 0 | AN210: =IF(OR(m_identity=1,m_identity=2),AN31,$AH$31/8*(1+$AI$42)*(1+$AJ$42)*(1+$AK$42)*(1+$AL$42)*(1+$AM$42)*(1+$AN$42)) -> 0 | AO210: =IF(OR(m_identity=1,m_identity=2),AO31,$AH$31/8*(1+$AI$42)*(1+$AJ$42)*(1+$AK$42)*(1+$AL$42)*(1+$AM$42)*(1+$AN$42)*(1+$AO$42)) -> 0
E211: Revenue adjustment from previous controls | G211: £m 09/10 prices | AH211: =AH209+AH210 -> 18.78493794 | AI211: =AI209+AI210 -> 0 | AJ211: 0 | AK211: 0 | AL211: 0 | AM211: 0 | AN211: 0 | AO211: 0
E213: Excluded services revenue | G213: £m 09/10 prices | AH213: =(CHOOSE(m_identity,'SHE-Transmission PLC'!AH213, SPTL!AH213, 'NGET TO'!AH213)) -> 10.8 | AI213: =(CHOOSE(m_identity,'SHE-Transmission PLC'!AI213, SPTL!AI213, 'NGET TO'!AI213)) -> 14.2 | AJ213: =(CHOOSE(m_identity,'SHE-Transmission PLC'!AJ213, SPTL!AJ213, 'NGET TO'!AJ213)) -> 22.6 | AK213: =(CHOOSE(m_identity,'SHE-Transmission PLC'!AK213, SPTL!AK213, 'NGET TO'!AK213)) -> 26.7 | AL213: =(CHOOSE(m_identity,'SHE-Transmission PLC'!AL213, SPTL!AL213, 'NGET TO'!AL213)) -> 27.8 | AM213: =(CHOOSE(m_identity,'SHE-Transmission PLC'!AM213, SPTL!AM213, 'NGET TO'!AM213)) -> 30.5 | AN213: =(CHOOSE(m_identity,'SHE-Transmission PLC'!AN213, SPTL!AN213, 'NGET TO'!AN213)) -> 31.4 | AO213: =(CHOOSE(m_identity,'SHE-Transmission PLC'!AO213, SPTL!AO213, 'NGET TO'!AO213)) -> 32.8
E214: Identified excluded services costs | G214: £m 09/10 prices | AH214: =(CHOOSE(m_identity,'SHE-Transmission PLC'!AH214, SPTL!AH214, 'NGET TO'!AH214)) -> 0 | AI214: =(CHOOSE(m_identity,'SHE-Transmission PLC'!AI214, SPTL!AI214, 'NGET TO'!AI214)) -> 0 | AJ214: =(CHOOSE(m_identity,'SHE-Transmission PLC'!AJ214, SPTL!AJ214, 'NGET TO'!AJ214)) -> 0 | AK214: =(CHOOSE(m_identity,'SHE-Transmission PLC'!AK214, SPTL!AK214, 'NGET TO'!AK214)) -> 0 | AL214: =(CHOOSE(m_identity,'SHE-Transmission PLC'!AL214, SPTL!AL214, 'NGET TO'!AL214)) -> 0 | AM214: =(CHOOSE(m_identity,'SHE-Transmission PLC'!AM214, SPTL!AM214, 'NGET TO'!AM214)) -> 0 | AN214: =(CHOOSE(m_identity,'SHE-Transmission PLC'!AN214, SPTL!AN214, 'NGET TO'!AN214)) -> 0 | AO214: =(CHOOSE(m_identity,'SHE-Transmission PLC'!AO214, SPTL!AO214, 'NGET TO'!AO214)) -> 0
E215: Excluded services | G215: £m 09/10 prices | AH215: =SUM(AH213, -AH214) -> 10.8 | AI215: =SUM(AI213, -AI214) -> 14.2 | AJ215: 22.6 | AK215: 26.7 | AL215: 27.8 | AM215: 30.5 | AN215: 31.4 | AO215: 32.8
B217: RAV and assets
C219: Pre-vesting assets
E221: Pre-vesting RAV cost opening balance brought forward (before transfers) | G221: £m 09/10 prices | AH221: =(CHOOSE(m_identity,'SHE-Transmission PLC'!AH221, SPTL!AH221, 'NGET TO'!AH221)) -> 0
E222: Pre-vesting RAV cumulative depreciation opening balance brought forward (before transfers) | G222: £m 09/10 prices | AH222: =(CHOOSE(m_identity,'SHE-Transmission PLC'!AH222, SPTL!AH222, 'NGET TO'!AH222)) -> 0
E224: Pre-vesting asset life | G224: years | I224: =(CHOOSE(m_identity,'SHE-Transmission PLC'!I224, SPTL!I224, 'NGET TO'!I224)) -> 22
E226: Years of pre-vesting depreciation remaining | G226: years | AH226: =(CHOOSE(m_identity,'SHE-Transmission PLC'!AH226, SPTL!AH226, 'NGET TO'!AH226)) -> 45 | AI226: =(CHOOSE(m_identity,'SHE-Transmission PLC'!AI226, SPTL!AI226, 'NGET TO'!AI226)) -> 44 | AJ226: =(CHOOSE(m_identity,'SHE-Transmission PLC'!AJ226, SPTL!AJ226, 'NGET TO'!AJ226)) -> 43 | AK226: =(CHOOSE(m_identity,'SHE-Transmission PLC'!AK226, SPTL!AK226, 'NGET TO'!AK226)) -> 42 | AL226: =(CHOOSE(m_identity,'SHE-Transmission PLC'!AL226, SPTL!AL226, 'NGET TO'!AL226)) -> 41 | AM226: =(CHOOSE(m_identity,'SHE-Transmission PLC'!AM226, SPTL!AM226, 'NGET TO'!AM226)) -> 40 | AN226: =(CHOOSE(m_identity,'SHE-Transmission PLC'!AN226, SPTL!AN226, 'NGET TO'!AN226)) -> 39 | AO226: =(CHOOSE(m_identity,'SHE-Transmission PLC'!AO226, SPTL!AO226, 'NGET TO'!AO226)) -> 38
C228: Post-vesting assets
E230: Transmission
E231: Post-vesting asset life | G231: years | J231: > | K231: =(CHOOSE(m_identity,'SHE-Transmission PLC'!K231, SPTL!K231, 'NGET TO'!K231)) -> 48 | L231: =(CHOOSE(m_identity,'SHE-Transmission PLC'!L231, SPTL!L231, 'NGET TO'!L231)) -> 48 | M231: =(CHOOSE(m_identity,'SHE-Transmission PLC'!M231, SPTL!M231, 'NGET TO'!M231)) -> 48 | N231: =(CHOOSE(m_identity,'SHE-Transmission PLC'!N231, SPTL!N231, 'NGET TO'!N231)) -> 48 | O231: =(CHOOSE(m_identity,'SHE-Transmission PLC'!O231, SPTL!O231, 'NGET TO'!O231)) -> 48 | P231: =(CHOOSE(m_identity,'SHE-Transmission PLC'!P231, SPTL!P231, 'NGET TO'!P231)) -> 48 | Q231: =(CHOOSE(m_identity,'SHE-Transmission PLC'!Q231, SPTL!Q231, 'NGET TO'!Q231)) -> 48 | R231: =(CHOOSE(m_identity,'SHE-Transmission PLC'!R231, SPTL!R231, 'NGET TO'!R231)) -> 48 | S231: =(CHOOSE(m_identity,'SHE-Transmission PLC'!S231, SPTL!S231, 'NGET TO'!S231)) -> 48 | T231: =(CHOOSE(m_identity,'SHE-Transmission PLC'!T231, SPTL!T231, 'NGET TO'!T231)) -> 48 | U231: =(CHOOSE(m_identity,'SHE-Transmission PLC'!U231, SPTL!U231, 'NGET TO'!U231)) -> 48 | V231: =(CHOOSE(m_identity,'SHE-Transmission PLC'!V231, SPTL!V231, 'NGET TO'!V231)) -> 48 | W231: =(CHOOSE(m_identity,'SHE-Transmission PLC'!W231, SPTL!W231, 'NGET TO'!W231)) -> 48 | X231: =(CHOOSE(m_identity,'SHE-Transmission PLC'!X231, SPTL!X231, 'NGET TO'!X231)) -> 48 | Y231: =(CHOOSE(m_identity,'SHE-Transmission PLC'!Y231, SPTL!Y231, 'NGET TO'!Y231)) -> 48 | Z231: =(CHOOSE(m_identity,'SHE-Transmission PLC'!Z231, SPTL!Z231, 'NGET TO'!Z231)) -> 48 | AA231: =(CHOOSE(m_identity,'SHE-Transmission PLC'!AA231, SPTL!AA231, 'NGET TO'!AA231)) -> 48 | AB231: =(CHOOSE(m_identity,'SHE-Transmission PLC'!AB231, SPTL!AB231, 'NGET TO'!AB231)) -> 48 | AC231: =(CHOOSE(m_identity,'SHE-Transmission PLC'!AC231, SPTL!AC231, 'NGET TO'!AC231)) -> 48 | AD231: =(CHOOSE(m_identity,'SHE-Transmission PLC'!AD231, SPTL!AD231, 'NGET TO'!AD231)) -> 48 | AE231: =(CHOOSE(m_identity,'SHE-Transmission PLC'!AE231, SPTL!AE231, 'NGET TO'!AE231)) -> 48 | AF231: =(CHOOSE(m_identity,'SHE-Transmission PLC'!AF231, SPTL!AF231, 'NGET TO'!AF231)) -> 48 | AG231: =(CHOOSE(m_identity,'SHE-Transmission PLC'!AG231, SPTL!AG231, 'NGET TO'!AG231)) -> 48 | AH231: =(CHOOSE(m_identity,'SHE-Transmission PLC'!AH231, SPTL!AH231, 'NGET TO'!AH231)) -> 21.5625 | AI231: =(CHOOSE(m_identity,'SHE-Transmission PLC'!AI231, SPTL!AI231, 'NGET TO'!AI231)) -> 23.125 | AJ231: =(CHOOSE(m_identity,'SHE-Transmission PLC'!AJ231, SPTL!AJ231, 'NGET TO'!AJ231)) -> 24.6875 | AK231: =(CHOOSE(m_identity,'SHE-Transmission PLC'!AK231, SPTL!AK231, 'NGET TO'!AK231)) -> 26.25 | AL231: =(CHOOSE(m_identity,'SHE-Transmission PLC'!AL231, SPTL!AL231, 'NGET TO'!AL231)) -> 27.8125 | AM231: =(CHOOSE(m_identity,'SHE-Transmission PLC'!AM231, SPTL!AM231, 'NGET TO'!AM231)) -> 29.375 | AN231: =(CHOOSE(m_identity,'SHE-Transmission PLC'!AN231, SPTL!AN231, 'NGET TO'!AN231)) -> 30.9375 | AO231: =(CHOOSE(m_identity,'SHE-Transmission PLC'!AO231, SPTL!AO231, 'NGET TO'!AO231)) -> 32.5
E232: Accelerated post-vesting asset life | G232: years | J232: > | K232: =(CHOOSE(m_identity,'SHE-Transmission PLC'!K232, SPTL!K232, 'NGET TO'!K232)) -> 20 | L232: =(CHOOSE(m_identity,'SHE-Transmission PLC'!L232, SPTL!L232, 'NGET TO'!L232)) -> 20 | M232: =(CHOOSE(m_identity,'SHE-Transmission PLC'!M232, SPTL!M232, 'NGET TO'!M232)) -> 20 | N232: =(CHOOSE(m_identity,'SHE-Transmission PLC'!N232, SPTL!N232, 'NGET TO'!N232)) -> 20 | O232: =(CHOOSE(m_identity,'SHE-Transmission PLC'!O232, SPTL!O232, 'NGET TO'!O232)) -> 20 | P232: =(CHOOSE(m_identity,'SHE-Transmission PLC'!P232, SPTL!P232, 'NGET TO'!P232)) -> 20 | Q232: =(CHOOSE(m_identity,'SHE-Transmission PLC'!Q232, SPTL!Q232, 'NGET TO'!Q232)) -> 20 | R232: =(CHOOSE(m_identity,'SHE-Transmission PLC'!R232, SPTL!R232, 'NGET TO'!R232)) -> 20 | S232: =(CHOOSE(m_identity,'SHE-Transmission PLC'!S232, SPTL!S232, 'NGET TO'!S232)) -> 20 | T232: =(CHOOSE(m_identity,'SHE-Transmission PLC'!T232, SPTL!T232, 'NGET TO'!T232)) -> 20 | U232: =(CHOOSE(m_identity,'SHE-Transmission PLC'!U232, SPTL!U232, 'NGET TO'!U232)) -> 20 | V232: =(CHOOSE(m_identity,'SHE-Transmission PLC'!V232, SPTL!V232, 'NGET TO'!V232)) -> 20 | W232: =(CHOOSE(m_identity,'SHE-Transmission PLC'!W232, SPTL!W232, 'NGET TO'!W232)) -> 20 | X232: =(CHOOSE(m_identity,'SHE-Transmission PLC'!X232, SPTL!X232, 'NGET TO'!X232)) -> 20 | Y232: =(CHOOSE(m_identity,'SHE-Transmission PLC'!Y232, SPTL!Y232, 'NGET TO'!Y232)) -> 20 | Z232: =(CHOOSE(m_identity,'SHE-Transmission PLC'!Z232, SPTL!Z232, 'NGET TO'!Z232)) -> 20 | AA232: =(CHOOSE(m_identity,'SHE-Transmission PLC'!AA232, SPTL!AA232, 'NGET TO'!AA232)) -> 20 | AB232: =(CHOOSE(m_identity,'SHE-Transmission PLC'!AB232, SPTL!AB232, 'NGET TO'!AB232)) -> 20 | AC232: =(CHOOSE(m_identity,'SHE-Transmission PLC'!AC232, SPTL!AC232, 'NGET TO'!AC232)) -> 20 | AD232: =(CHOOSE(m_identity,'SHE-Transmission PLC'!AD232, SPTL!AD232, 'NGET TO'!AD232)) -> 20 | AE232: =(CHOOSE(m_identity,'SHE-Transmission PLC'!AE232, SPTL!AE232, 'NGET TO'!AE232)) -> 20 | AF232: =(CHOOSE(m_identity,'SHE-Transmission PLC'!AF232, SPTL!AF232, 'NGET TO'!AF232)) -> 20 | AG232: =(CHOOSE(m_identity,'SHE-Transmission PLC'!AG232, SPTL!AG232, 'NGET TO'!AG232)) -> 20 | AH232: =(CHOOSE(m_identity,'SHE-Transmission PLC'!AH232, SPTL!AH232, 'NGET TO'!AH232)) -> 21.5625 | AI232: =(CHOOSE(m_identity,'SHE-Transmission PLC'!AI232, SPTL!AI232, 'NGET TO'!AI232)) -> 23.125 | AJ232: =(CHOOSE(m_identity,'SHE-Transmission PLC'!AJ232, SPTL!AJ232, 'NGET TO'!AJ232)) -> 24.6875 | AK232: =(CHOOSE(m_identity,'SHE-Transmission PLC'!AK232, SPTL!AK232, 'NGET TO'!AK232)) -> 26.25 | AL232: =(CHOOSE(m_identity,'SHE-Transmission PLC'!AL232, SPTL!AL232, 'NGET TO'!AL232)) -> 27.8125 | AM232: =(CHOOSE(m_identity,'SHE-Transmission PLC'!AM232, SPTL!AM232, 'NGET TO'!AM232)) -> 29.375 | AN232: =(CHOOSE(m_identity,'SHE-Transmission PLC'!AN232, SPTL!AN232, 'NGET TO'!AN232)) -> 30.9375 | AO232: =(CHOOSE(m_identity,'SHE-Transmission PLC'!AO232, SPTL!AO232, 'NGET TO'!AO232)) -> 32.5
E233: Smoothing period following full depreciation of pre-vesting assets | G233: years | I233: =(CHOOSE(m_identity,'SHE-Transmission PLC'!I233, SPTL!I233, 'NGET TO'!I233)) -> 30
E234: Start of smoothing period | G234: year ending | I234: =(CHOOSE(m_identity,'SHE-Transmission PLC'!I234, SPTL!I234, 'NGET TO'!I234)) -> 1991-03-31
E235: Pre-RIIO net additions to RAV | G235: £m 09/10 prices | J235: > | K235: =(CHOOSE(m_identity,'SHE-Transmission PLC'!K235, SPTL!K235, 'NGET TO'!K235)) -> 26.34837128 | L235: =(CHOOSE(m_identity,'SHE-Transmission PLC'!L235, SPTL!L235, 'NGET TO'!L235)) -> 23.75490237 | M235: =(CHOOSE(m_identity,'SHE-Transmission PLC'!M235, SPTL!M235, 'NGET TO'!M235)) -> 2.327822879 | N235: =(CHOOSE(m_identity,'SHE-Transmission PLC'!N235, SPTL!N235, 'NGET TO'!N235)) -> 26.41201469 | O235: =(CHOOSE(m_identity,'SHE-Transmission PLC'!O235, SPTL!O235, 'NGET TO'!O235)) -> 11.06815457 | P235: =(CHOOSE(m_identity,'SHE-Transmission PLC'!P235, SPTL!P235, 'NGET TO'!P235)) -> 11.33170309 | Q235: =(CHOOSE(m_identity,'SHE-Transmission PLC'!Q235, SPTL!Q235, 'NGET TO'!Q235)) -> 13.54964129 | R235: =(CHOOSE(m_identity,'SHE-Transmission PLC'!R235, SPTL!R235, 'NGET TO'!R235)) -> 16.20016352 | S235: =(CHOOSE(m_identity,'SHE-Transmission PLC'!S235, SPTL!S235, 'NGET TO'!S235)) -> 11.94751933 | T235: =(CHOOSE(m_identity,'SHE-Transmission PLC'!T235, SPTL!T235, 'NGET TO'!T235)) -> 21.7906823 | U235: =(CHOOSE(m_identity,'SHE-Transmission PLC'!U235, SPTL!U235, 'NGET TO'!U235)) -> 11.33451618 | V235: =(CHOOSE(m_identity,'SHE-Transmission PLC'!V235, SPTL!V235, 'NGET TO'!V235)) -> 8.276285554 | W235: =(CHOOSE(m_identity,'SHE-Transmission PLC'!W235, SPTL!W235, 'NGET TO'!W235)) -> 9.518840549 | X235: =(CHOOSE(m_identity,'SHE-Transmission PLC'!X235, SPTL!X235, 'NGET TO'!X235)) -> 10.21749924 | Y235: =(CHOOSE(m_identity,'SHE-Transmission PLC'!Y235, SPTL!Y235, 'NGET TO'!Y235)) -> 48.46724408 | Z235: =(CHOOSE(m_identity,'SHE-Transmission PLC'!Z235, SPTL!Z235, 'NGET TO'!Z235)) -> 22.22494925 | AA235: =(CHOOSE(m_identity,'SHE-Transmission PLC'!AA235, SPTL!AA235, 'NGET TO'!AA235)) -> 26.57813046 | AB235: =(CHOOSE(m_identity,'SHE-Transmission PLC'!AB235, SPTL!AB235, 'NGET TO'!AB235)) -> 46.56066118 | AC235: =(CHOOSE(m_identity,'SHE-Transmission PLC'!AC235, SPTL!AC235, 'NGET TO'!AC235)) -> 54.24521673 | AD235: =(CHOOSE(m_identity,'SHE-Transmission PLC'!AD235, SPTL!AD235, 'NGET TO'!AD235)) -> 39.448 | AE235: =(CHOOSE(m_identity,'SHE-Transmission PLC'!AE235, SPTL!AE235, 'NGET TO'!AE235)) -> 33.45131111 | AF235: =(CHOOSE(m_identity,'SHE-Transmission PLC'!AF235, SPTL!AF235, 'NGET TO'!AF235)) -> 28.94311233 | AG235: =(CHOOSE(m_identity,'SHE-Transmission PLC'!AG235, SPTL!AG235, 'NGET TO'!AG235)) -> 76.4
E236: LRAV | G236: £m 09/10 prices | AH236: =AH32 -> -70.85787523
E237: RIIO post-vesting RAV additions | G237: £m 09/10 prices | AH237: =(CHOOSE(m_identity,'SHE-Transmission PLC'!AH237, SPTL!AH237, 'NGET TO'!AH237)) -> 0 | AI237: =(CHOOSE(m_identity,'SHE-Transmission PLC'!AI237, SPTL!AI237, 'NGET TO'!AI237)) -> 0 | AJ237: =(CHOOSE(m_identity,'SHE-Transmission PLC'!AJ237, SPTL!AJ237, 'NGET TO'!AJ237)) -> 0 | AK237: =(CHOOSE(m_identity,'SHE-Transmission PLC'!AK237, SPTL!AK237, 'NGET TO'!AK237)) -> 0 | AL237: =(CHOOSE(m_identity,'SHE-Transmission PLC'!AL237, SPTL!AL237, 'NGET TO'!AL237)) -> 0 | AM237: =(CHOOSE(m_identity,'SHE-Transmission PLC'!AM237, SPTL!AM237, 'NGET TO'!AM237)) -> 0 | AN237: =(CHOOSE(m_identity,'SHE-Transmission PLC'!AN237, SPTL!AN237, 'NGET TO'!AN237)) -> 0 | AO237: =(CHOOSE(m_identity,'SHE-Transmission PLC'!AO237, SPTL!AO237, 'NGET TO'!AO237)) -> 0
E238: RIIO post-vesting RAV disposals | G238: £m 09/10 prices | AH238: =(CHOOSE(m_identity,'SHE-Transmission PLC'!AH238, SPTL!AH238, 'NGET TO'!AH238)) -> 0 | AI238: =(CHOOSE(m_identity,'SHE-Transmission PLC'!AI238, SPTL!AI238, 'NGET TO'!AI238)) -> 0 | AJ238: =(CHOOSE(m_identity,'SHE-Transmission PLC'!AJ238, SPTL!AJ238, 'NGET TO'!AJ238)) -> 0 | AK238: =(CHOOSE(m_identity,'SHE-Transmission PLC'!AK238, SPTL!AK238, 'NGET TO'!AK238)) -> 0 | AL238: =(CHOOSE(m_identity,'SHE-Transmission PLC'!AL238, SPTL!AL238, 'NGET TO'!AL238)) -> 0 | AM238: =(CHOOSE(m_identity,'SHE-Transmission PLC'!AM238, SPTL!AM238, 'NGET TO'!AM238)) -> 0 | AN238: =(CHOOSE(m_identity,'SHE-Transmission PLC'!AN238, SPTL!AN238, 'NGET TO'!AN238)) -> 0 | AO238: =(CHOOSE(m_identity,'SHE-Transmission PLC'!AO238, SPTL!AO238, 'NGET TO'!AO238)) -> 0
E239: Pre-RIIO transfers to depreciation | G239: £m 09/10 prices | J239: > | K239: =(CHOOSE(m_identity,'SHE-Transmission PLC'!K239, SPTL!K239, 'NGET TO'!K239)) -> 0 | L239: =(CHOOSE(m_identity,'SHE-Transmission PLC'!L239, SPTL!L239, 'NGET TO'!L239)) -> 0 | M239: =(CHOOSE(m_identity,'SHE-Transmission PLC'!M239, SPTL!M239, 'NGET TO'!M239)) -> 0 | N239: =(CHOOSE(m_identity,'SHE-Transmission PLC'!N239, SPTL!N239, 'NGET TO'!N239)) -> 0 | O239: =(CHOOSE(m_identity,'SHE-Transmission PLC'!O239, SPTL!O239, 'NGET TO'!O239)) -> 0 | P239: =(CHOOSE(m_identity,'SHE-Transmission PLC'!P239, SPTL!P239, 'NGET TO'!P239)) -> 0 | Q239: =(CHOOSE(m_identity,'SHE-Transmission PLC'!Q239, SPTL!Q239, 'NGET TO'!Q239)) -> 0 | R239: =(CHOOSE(m_identity,'SHE-Transmission PLC'!R239, SPTL!R239, 'NGET TO'!R239)) -> 0 | S239: =(CHOOSE(m_identity,'SHE-Transmission PLC'!S239, SPTL!S239, 'NGET TO'!S239)) -> 0 | T239: =(CHOOSE(m_identity,'SHE-Transmission PLC'!T239, SPTL!T239, 'NGET TO'!T239)) -> 0 | U239: =(CHOOSE(m_identity,'SHE-Transmission PLC'!U239, SPTL!U239, 'NGET TO'!U239)) -> 0 | V239: =(CHOOSE(m_identity,'SHE-Transmission PLC'!V239, SPTL!V239, 'NGET TO'!V239)) -> 0 | W239: =(CHOOSE(m_identity,'SHE-Transmission PLC'!W239, SPTL!W239, 'NGET TO'!W239)) -> 0 | X239: =(CHOOSE(m_identity,'SHE-Transmission PLC'!X239, SPTL!X239, 'NGET TO'!X239)) -> 0 | Y239: =(CHOOSE(m_identity,'SHE-Transmission PLC'!Y239, SPTL!Y239, 'NGET TO'!Y239)) -> 0 | Z239: =(CHOOSE(m_identity,'SHE-Transmission PLC'!Z239, SPTL!Z239, 'NGET TO'!Z239)) -> 0 | AA239: =(CHOOSE(m_identity,'SHE-Transmission PLC'!AA239, SPTL!AA239, 'NGET TO'!AA239)) -> 0 | AB239: =(CHOOSE(m_identity,'SHE-Transmission PLC'!AB239, SPTL!AB239, 'NGET TO'!AB239)) -> 0 | AC239: =(CHOOSE(m_identity,'SHE-Transmission PLC'!AC239, SPTL!AC239, 'NGET TO'!AC239)) -> 0 | AD239: =(CHOOSE(m_identity,'SHE-Transmission PLC'!AD239, SPTL!AD239, 'NGET TO'!AD239)) -> 0 | AE239: =(CHOOSE(m_identity,'SHE-Transmission PLC'!AE239, SPTL!AE239, 'NGET TO'!AE239)) -> 0 | AF239: =(CHOOSE(m_identity,'SHE-Transmission PLC'!AF239, SPTL!AF239, 'NGET TO'!AF239)) -> 0 | AG239: =(CHOOSE(m_identity,'SHE-Transmission PLC'!AG239, SPTL!AG239, 'NGET TO'!AG239)) -> 0
C241: Project assets (except TIRG)
E243: PLUGS asset life | G243: years | J243: > | Z243: =(CHOOSE(m_identity,'SHE-Transmission PLC'!Z243, SPTL!Z243, 'NGET TO'!Z243)) -> 30 | AA243: =(CHOOSE(m_identity,'SHE-Transmission PLC'!AA243, SPTL!AA243, 'NGET TO'!AA243)) -> 30 | AB243: =(CHOOSE(m_identity,'SHE-Transmission PLC'!AB243, SPTL!AB243, 'NGET TO'!AB243)) -> 30 | AC243: =(CHOOSE(m_identity,'SHE-Transmission PLC'!AC243, SPTL!AC243, 'NGET TO'!AC243)) -> 30 | AD243: =(CHOOSE(m_identity,'SHE-Transmission PLC'!AD243, SPTL!AD243, 'NGET TO'!AD243)) -> 30 | AE243: =(CHOOSE(m_identity,'SHE-Transmission PLC'!AE243, SPTL!AE243, 'NGET TO'!AE243)) -> 30 | AF243: =(CHOOSE(m_identity,'SHE-Transmission PLC'!AF243, SPTL!AF243, 'NGET TO'!AF243)) -> 30 | AG243: =(CHOOSE(m_identity,'SHE-Transmission PLC'!AG243, SPTL!AG243, 'NGET TO'!AG243)) -> 18 | AH243: =(CHOOSE(m_identity,'SHE-Transmission PLC'!AH243, SPTL!AH243, 'NGET TO'!AH243)) -> 18 | AI243: =(CHOOSE(m_identity,'SHE-Transmission PLC'!AI243, SPTL!AI243, 'NGET TO'!AI243)) -> 18 | AJ243: =(CHOOSE(m_identity,'SHE-Transmission PLC'!AJ243, SPTL!AJ243, 'NGET TO'!AJ243)) -> 18 | AK243: =(CHOOSE(m_identity,'SHE-Transmission PLC'!AK243, SPTL!AK243, 'NGET TO'!AK243)) -> 18 | AL243: =(CHOOSE(m_identity,'SHE-Transmission PLC'!AL243, SPTL!AL243, 'NGET TO'!AL243)) -> 18 | AM243: =(CHOOSE(m_identity,'SHE-Transmission PLC'!AM243, SPTL!AM243, 'NGET TO'!AM243)) -> 18 | AN243: =(CHOOSE(m_identity,'SHE-Transmission PLC'!AN243, SPTL!AN243, 'NGET TO'!AN243)) -> 18 | AO243: =(CHOOSE(m_identity,'SHE-Transmission PLC'!AO243, SPTL!AO243, 'NGET TO'!AO243)) -> 18
E244: PLUGS net additions (after disposals) | G244: £m 09/10 prices | J244: > | Z244: =(CHOOSE(m_identity,'SHE-Transmission PLC'!Z244, SPTL!Z244, 'NGET TO'!Z244)) -> 15.02281867 | AA244: =(CHOOSE(m_identity,'SHE-Transmission PLC'!AA244, SPTL!AA244, 'NGET TO'!AA244)) -> 0 | AB244: =(CHOOSE(m_identity,'SHE-Transmission PLC'!AB244, SPTL!AB244, 'NGET TO'!AB244)) -> 0 | AC244: =(CHOOSE(m_identity,'SHE-Transmission PLC'!AC244, SPTL!AC244, 'NGET TO'!AC244)) -> 0 | AD244: =(CHOOSE(m_identity,'SHE-Transmission PLC'!AD244, SPTL!AD244, 'NGET TO'!AD244)) -> 0 | AE244: =(CHOOSE(m_identity,'SHE-Transmission PLC'!AE244, SPTL!AE244, 'NGET TO'!AE244)) -> 0 | AF244: =(CHOOSE(m_identity,'SHE-Transmission PLC'!AF244, SPTL!AF244, 'NGET TO'!AF244)) -> 0 | AG244: =(CHOOSE(m_identity,'SHE-Transmission PLC'!AG244, SPTL!AG244, 'NGET TO'!AG244)) -> 0
E246: TOI accelerated post-vesting asset life | G246: years | I246: =(CHOOSE(m_identity,'SHE-Transmission PLC'!I246, SPTL!I246, 'NGET TO'!I246)) -> 20
E247: TOI net additions (after disposals) | G247: £m 09/10 prices | J247: > | AC247: =(CHOOSE(m_identity,'SHE-Transmission PLC'!AC247, SPTL!AC247, 'NGET TO'!AC247)) -> 0 | AD247: =(CHOOSE(m_identity,'SHE-Transmission PLC'!AD247, SPTL!AD247, 'NGET TO'!AD247)) -> 8.7 | AE247: =(CHOOSE(m_identity,'SHE-Transmission PLC'!AE247, SPTL!AE247, 'NGET TO'!AE247)) -> 36.89006035 | AF247: =(CHOOSE(m_identity,'SHE-Transmission PLC'!AF247, SPTL!AF247, 'NGET TO'!AF247)) -> 43.18212141 | AG247: =(CHOOSE(m_identity,'SHE-Transmission PLC'!AG247, SPTL!AG247, 'NGET TO'!AG247)) -> 101.8
E248: TOI deemed depreciation | G248: £m 09/10 prices | J248: > | AD248: =(CHOOSE(m_identity,'SHE-Transmission PLC'!AD248, SPTL!AD248, 'NGET TO'!AD248)) -> 0 | AE248: =(CHOOSE(m_identity,'SHE-Transmission PLC'!AE248, SPTL!AE248, 'NGET TO'!AE248)) -> 0.5499622599 | AF248: =(CHOOSE(m_identity,'SHE-Transmission PLC'!AF248, SPTL!AF248, 'NGET TO'!AF248)) -> 3.557024488
E250: England-Scotland interconnector asset life applied | G250: years | J250: > | Z250: =(CHOOSE(m_identity,'SHE-Transmission PLC'!Z250, SPTL!Z250, 'NGET TO'!Z250)) -> 29 | AA250: =(CHOOSE(m_identity,'SHE-Transmission PLC'!AA250, SPTL!AA250, 'NGET TO'!AA250)) -> 29 | AB250: =(CHOOSE(m_identity,'SHE-Transmission PLC'!AB250, SPTL!AB250, 'NGET TO'!AB250)) -> 29 | AC250: =(CHOOSE(m_identity,'SHE-Transmission PLC'!AC250, SPTL!AC250, 'NGET TO'!AC250)) -> 29 | AD250: =(CHOOSE(m_identity,'SHE-Transmission PLC'!AD250, SPTL!AD250, 'NGET TO'!AD250)) -> 29 | AE250: =(CHOOSE(m_identity,'SHE-Transmission PLC'!AE250, SPTL!AE250, 'NGET TO'!AE250)) -> 29 | AF250: =(CHOOSE(m_identity,'SHE-Transmission PLC'!AF250, SPTL!AF250, 'NGET TO'!AF250)) -> 29 | AG250: =(CHOOSE(m_identity,'SHE-Transmission PLC'!AG250, SPTL!AG250, 'NGET TO'!AG250)) -> 17.5 | AH250: =(CHOOSE(m_identity,'SHE-Transmission PLC'!AH250, SPTL!AH250, 'NGET TO'!AH250)) -> 17.5 | AI250: =(CHOOSE(m_identity,'SHE-Transmission PLC'!AI250, SPTL!AI250, 'NGET TO'!AI250)) -> 17.5 | AJ250: =(CHOOSE(m_identity,'SHE-Transmission PLC'!AJ250, SPTL!AJ250, 'NGET TO'!AJ250)) -> 17.5 | AK250: =(CHOOSE(m_identity,'SHE-Transmission PLC'!AK250, SPTL!AK250, 'NGET TO'!AK250)) -> 17.5 | AL250: =(CHOOSE(m_identity,'SHE-Transmission PLC'!AL250, SPTL!AL250, 'NGET TO'!AL250)) -> 17.5 | AM250: =(CHOOSE(m_identity,'SHE-Transmission PLC'!AM250, SPTL!AM250, 'NGET TO'!AM250)) -> 17.5 | AN250: =(CHOOSE(m_identity,'SHE-Transmission PLC'!AN250, SPTL!AN250, 'NGET TO'!AN250)) -> 17.5 | AO250: =(CHOOSE(m_identity,'SHE-Transmission PLC'!AO250, SPTL!AO250, 'NGET TO'!AO250)) -> 17.5
E251: England-Scotland Interconnector net additions (after disposals) | G251: £m 09/10 prices | J251: > | Z251: =(CHOOSE(m_identity,'SHE-Transmission PLC'!Z251, SPTL!Z251, 'NGET TO'!Z251)) -> 28.78417929 | AA251: =(CHOOSE(m_identity,'SHE-Transmission PLC'!AA251, SPTL!AA251, 'NGET TO'!AA251)) -> 0 | AB251: =(CHOOSE(m_identity,'SHE-Transmission PLC'!AB251, SPTL!AB251, 'NGET TO'!AB251)) -> 0 | AC251: =(CHOOSE(m_identity,'SHE-Transmission PLC'!AC251, SPTL!AC251, 'NGET TO'!AC251)) -> 0 | AD251: =(CHOOSE(m_identity,'SHE-Transmission PLC'!AD251, SPTL!AD251, 'NGET TO'!AD251)) -> 0 | AE251: =(CHOOSE(m_identity,'SHE-Transmission PLC'!AE251, SPTL!AE251, 'NGET TO'!AE251)) -> 0 | AF251: =(CHOOSE(m_identity,'SHE-Transmission PLC'!AF251, SPTL!AF251, 'NGET TO'!AF251)) -> 0 | AG251: =(CHOOSE(m_identity,'SHE-Transmission PLC'!AG251, SPTL!AG251, 'NGET TO'!AG251)) -> 0
E253: Logged-up items and security costs asset life | G253: years | I253: =(CHOOSE(m_identity,'SHE-Transmission PLC'!I253, SPTL!I253, 'NGET TO'!I253)) -> 20 | J253: >
E255: Logged-up items net additions (after disposals) | G255: £m 09/10 prices | J255: > | Y255: =(CHOOSE(m_identity,'SHE-Transmission PLC'!Y255, SPTL!Y255, 'NGET TO'!Y255)) -> 0 | Z255: =(CHOOSE(m_identity,'SHE-Transmission PLC'!Z255, SPTL!Z255, 'NGET TO'!Z255)) -> 0 | AA255: =(CHOOSE(m_identity,'SHE-Transmission PLC'!AA255, SPTL!AA255, 'NGET TO'!AA255)) -> 0 | AB255: =(CHOOSE(m_identity,'SHE-Transmission PLC'!AB255, SPTL!AB255, 'NGET TO'!AB255)) -> 0 | AC255: =(CHOOSE(m_identity,'SHE-Transmission PLC'!AC255, SPTL!AC255, 'NGET TO'!AC255)) -> 0 | AD255: =(CHOOSE(m_identity,'SHE-Transmission PLC'!AD255, SPTL!AD255, 'NGET TO'!AD255)) -> 0 | AE255: =(CHOOSE(m_identity,'SHE-Transmission PLC'!AE255, SPTL!AE255, 'NGET TO'!AE255)) -> 0 | AF255: =(CHOOSE(m_identity,'SHE-Transmission PLC'!AF255, SPTL!AF255, 'NGET TO'!AF255)) -> 0 | AG255: =(CHOOSE(m_identity,'SHE-Transmission PLC'!AG255, SPTL!AG255, 'NGET TO'!AG255)) -> 0
E257: Security costs net additions (after disposals) | G257: £m 09/10 prices | J257: > | Y257: =(CHOOSE(m_identity,'SHE-Transmission PLC'!Y257, SPTL!Y257, 'NGET TO'!Y257)) -> 0 | Z257: =(CHOOSE(m_identity,'SHE-Transmission PLC'!Z257, SPTL!Z257, 'NGET TO'!Z257)) -> 0 | AA257: =(CHOOSE(m_identity,'SHE-Transmission PLC'!AA257, SPTL!AA257, 'NGET TO'!AA257)) -> 0 | AB257: =(CHOOSE(m_identity,'SHE-Transmission PLC'!AB257, SPTL!AB257, 'NGET TO'!AB257)) -> 0 | AC257: =(CHOOSE(m_identity,'SHE-Transmission PLC'!AC257, SPTL!AC257, 'NGET TO'!AC257)) -> 0.2009156514 | AD257: =(CHOOSE(m_identity,'SHE-Transmission PLC'!AD257, SPTL!AD257, 'NGET TO'!AD257)) -> 0.05773504 | AE257: =(CHOOSE(m_identity,'SHE-Transmission PLC'!AE257, SPTL!AE257, 'NGET TO'!AE257)) -> 0.897833229 | AF257: =(CHOOSE(m_identity,'SHE-Transmission PLC'!AF257, SPTL!AF257, 'NGET TO'!AF257)) -> 1.818194586 | AG257: =(CHOOSE(m_identity,'SHE-Transmission PLC'!AG257, SPTL!AG257, 'NGET TO'!AG257)) -> 0
C259: TIRG
E261: TIRG asset life before transfer to RAV | G261: years | I261: =(CHOOSE(m_identity,'SHE-Transmission PLC'!I261, SPTL!I261, 'NGET TO'!I261)) -> 20
... 84 more rows

Sheet Totex
A1: Totex
B2: =UserInterface!G17 -> SHE-Transmission PLC
E3: Parameter | G3: Units | I3: Constant | AH3: Annual values
E4: PCFM year ending | I4: =UserInterface!$G$10 -> 2019-03-31 | K4: 1991-03-31 | L4: 1992-03-31 | M4: 1993-03-31 | N4: 1994-03-31 | O4: 1995-03-31 | P4: 1996-03-31 | Q4: 1997-03-31 | R4: 1998-03-31 | S4: 1999-03-31 | T4: 2000-03-31 | U4: 2001-03-31 | V4: 2002-03-31 | W4: 2003-03-31 | X4: 2004-03-31 | Y4: 2005-03-31 | Z4: 2006-03-31 | AA4: 2007-03-31 | AB4: 2008-03-31 | AC4: 2009-03-31 | AD4: 2010-03-31 | AE4: 2011-03-31 | AF4: 2012-03-31 | AG4: 2013-03-31 | AH4: 2014-03-31 | AI4: 2015-03-31 | AJ4: 2016-03-31 | AK4: 2017-03-31 | AL4: 2018-03-31 | AM4: 2019-03-31 | AN4: 2020-03-31 | AO4: 2021-03-31
B6: Totex
C8: Allowed totex aggregated by sub-category
C9: Note: Totex is the sum of a number of cost categories, with all totex allowances falling under one (or more) of them. They have significance in the model as each sub-category can have its own set of tax pool allocation rules.
D11: Non-variant allowances
D12: Note: These values are set at final proposals and are not updated during the price control
E14: Non-variant allowed load related capex expenditure | G14: £m 09/10 prices | AH14: =Input!AH84 -> 94.44586143 | AI14: =Input!AI84 -> 96.31468141 | AJ14: =Input!AJ84 -> 110.3124338 | AK14: =Input!AK84 -> 54.56181927 | AL14: =Input!AL84 -> 25.6699424 | AM14: =Input!AM84 -> 24.95824947 | AN14: =Input!AN84 -> 22.31016269 | AO14: =Input!AO84 -> 22.08955401
E15: Non-variant allowed asset replacement capex expenditure | G15: £m 09/10 prices | AH15: =Input!AH85 -> 0 | AI15: =Input!AI85 -> 0 | AJ15: =Input!AJ85 -> 0 | AK15: =Input!AK85 -> 0 | AL15: =Input!AL85 -> 0 | AM15: =Input!AM85 -> 0 | AN15: =Input!AN85 -> 0 | AO15: =Input!AO85 -> 0
E16: Non-variant allowed other capex expenditure | G16: £m 09/10 prices | AH16: =Input!AH86 -> 21.72313655 | AI16: =Input!AI86 -> 20.12705041 | AJ16: =Input!AJ86 -> 23.10880179 | AK16: =Input!AK86 -> 27.4298963 | AL16: =Input!AL86 -> 28.61656635 | AM16: =Input!AM86 -> 28.98577733 | AN16: =Input!AN86 -> 31.33718903 | AO16: =Input!AO86 -> 27.76460375
E17: Non-variant allowed controllable opex | G17: £m 09/10 prices | AH17: =Input!AH87 -> 12.70058134 | AI17: =Input!AI87 -> 15.38745609 | AJ17: =Input!AJ87 -> 18.12304577 | AK17: =Input!AK87 -> 20.48693003 | AL17: =Input!AL87 -> 22.71199996 | AM17: =Input!AM87 -> 23.82945507 | AN17: =Input!AN87 -> 24.86786003 | AO17: =Input!AO87 -> 26.26544888
E18: Non-variant allowed non-operational capex | G18: £m 09/10 prices | AH18: =Input!AH88 -> 0.705527361 | AI18: =Input!AI88 -> 2.853152648 | AJ18: =Input!AJ88 -> 2.776015628 | AK18: =Input!AK88 -> 0.2083039875 | AL18: =Input!AL88 -> 0.2110119393 | AM18: =Input!AM88 -> 0.2137550945 | AN18: =Input!AN88 -> 0.2165339108 | AO18: =Input!AO88 -> 0.2193488516
D20: Variant
D21: Note: Licence conditions may allow for non-baseline allowances to be granted. These are added to the baseline to generate the allowed sub-categories and thereby the overall allowed totex.
E23: Variant allowed load related capex expenditure | G23: =Input!G183 -> £m 09/10 prices | AH23: =Input!AH183 -> 71.44097287 | AI23: =Input!AI183 -> 194.4949229 | AJ23: =Input!AJ183 -> 536.8024938 | AK23: =Input!AK183 -> 462.3428288 | AL23: =Input!AL183 -> 275.1113787 | AM23: =Input!AM183 -> 152.0614554 | AN23: =Input!AN183 -> 7.108 | AO23: =Input!AO183 -> 5.817
E24: Variant allowed asset replacement capex expenditure | G24: =Input!G184 -> £m 09/10 prices | AH24: =Input!AH184 -> 0 | AI24: =Input!AI184 -> 0 | AJ24: =Input!AJ184 -> 0 | AK24: =Input!AK184 -> 0 | AL24: =Input!AL184 -> 0 | AM24: =Input!AM184 -> 0 | AN24: =Input!AN184 -> 0 | AO24: =Input!AO184 -> 0
E25: Variant allowed other capex expenditure | G25: =Input!G185 -> £m 09/10 prices | AH25: =Input!AH185 -> 0 | AI25: =Input!AI185 -> 0 | AJ25: =Input!AJ185 -> 0 | AK25: =Input!AK185 -> 0 | AL25: =Input!AL185 -> 0 | AM25: =Input!AM185 -> 0 | AN25: =Input!AN185 -> 0 | AO25: =Input!AO185 -> 0
E26: Variant allowed controllable opex | G26: =Input!G186 -> £m 09/10 prices | AH26: =Input!AH186 -> 0 | AI26: =Input!AI186 -> 0 | AJ26: =Input!AJ186 -> 0 | AK26: =Input!AK186 -> 0 | AL26: =Input!AL186 -> 0 | AM26: =Input!AM186 -> 0 | AN26: =Input!AN186 -> 0 | AO26: =Input!AO186 -> 0
E27: Variant allowed non-operational capex | G27: =Input!G187 -> £m 09/10 prices | AH27: =Input!AH187 -> 0 | AI27: =Input!AI187 -> 0 | AJ27: =Input!AJ187 -> 0 | AK27: =Input!AK187 -> 0 | AL27: =Input!AL187 -> 0 | AM27: =Input!AM187 -> 0 | AN27: =Input!AN187 -> 0 | AO27: =Input!AO187 -> 0
D29: Allowance
D30: Note: "Allowed totex" is exported to be used in the TIM calculation. The allowed totex sub-categories are used below to create forecast actuals for the tax calculation and the TIM calculation when actuals are not yet available.
E32: Allowed load related capex expenditure | G32: £m 09/10 prices | AH32: =AH14 + AH23 -> 165.8868343 | AI32: 290.8096044 | AJ32: 647.1149276 | AK32: 516.9046481 | AL32: 300.7813211 | AM32: 177.0197048 | AN32: 29.41816269 | AO32: 27.90655401
E33: Allowed asset replacement capex expenditure | G33: £m 09/10 prices | AH33: 0 | AI33: 0 | AJ33: 0 | AK33: 0 | AL33: 0 | AM33: 0 | AN33: 0 | AO33: 0
E34: Allowed other capex expenditure | G34: £m 09/10 prices | AH34: 21.72313655 | AI34: 20.12705041 | AJ34: 23.10880179 | AK34: 27.4298963 | AL34: 28.61656635 | AM34: 28.98577733 | AN34: 31.33718903 | AO34: 27.76460375
E35: Allowed controllable opex | G35: £m 09/10 prices | AH35: 12.70058134 | AI35: 15.38745609 | AJ35: 18.12304577 | AK35: 20.48693003 | AL35: 22.71199996 | AM35: 23.82945507 | AN35: 24.86786003 | AO35: 26.26544888
E36: Allowed non-operational capex | G36: £m 09/10 prices | AH36: 0.705527361 | AI36: 2.853152648 | AJ36: 2.776015628 | AK36: 0.2083039875 | AL36: 0.2110119393 | AM36: 0.2137550945 | AN36: 0.2165339108 | AO36: 0.2193488516
E37: Allowed totex | G37: £m 09/10 prices | AH37: =SUM(AH32:AH36) -> 201.0160796 | AI37: 329.1772635 | AJ37: 691.1227908 | AK37: 565.0297784 | AL37: 352.3208994 | AM37: 230.0486923 | AN37: 85.83974566 | AO37: 82.1559555
C39: Actual totex
D41: Source of actuals
D42: Note: The model assumes that there is a time lag from year t until actual expenditure data becomes available for the model. After the lag, actual expenditure inputs are used. Up to that point the model generates a forecast actual expenditure.
D43: When required in the model, forecasts assume that actuals are equal to their corresponding allowance.
D44: In a year where actual totex is assumed to be available, values must be inputted to the model as it will not generate a forecast and the empty input cell will be read as an actual spend of zero.
E46: Years from t until normal reporting of actual costs | G46: years | I46: =Input!I50 -> 2
E47: Input actuals used | G47: text | AH47: =YEAR($I$4) >= YEAR(AH$4) + $I46 -> TRUE | AI47: TRUE | AJ47: TRUE | AK47: TRUE | AL47: FALSE | AM47: FALSE | AN47: FALSE | AO47: FALSE
E48: Forecast actuals generated from allowances | G48: text | AH48: =YEAR($I$4) < YEAR(AH$4) + $I46 -> FALSE | AI48: FALSE | AJ48: FALSE | AK48: FALSE | AL48: TRUE | AM48: TRUE | AN48: TRUE | AO48: TRUE
D50: Actual totex from cost reporting processes and final proposals
E52: Actual load related capex expenditure | G52: £m 09/10 prices | AH52: =IF(AH$47, Input!AH191, 0) -> 121.1049399 | AI52: =IF(AI$47, Input!AI191, 0) -> 250.5817313 | AJ52: =IF(AJ$47, Input!AJ191, 0) -> 402.9318734 | AK52: =IF(AK$47, Input!AK191, 0) -> 326.521178 | AL52: =IF(AL$47, Input!AL191, 0) -> 0 | AM52: =IF(AM$47, Input!AM191, 0) -> 0 | AN52: =IF(AN$47, Input!AN191, 0) -> 0 | AO52: =IF(AO$47, Input!AO191, 0) -> 0
E53: Actual asset replacement capex expenditure | G53: £m 09/10 prices | AH53: =IF(AH$47, Input!AH192, 0) -> 16.41388356 | AI53: =IF(AI$47, Input!AI192, 0) -> 16.39762548 | AJ53: =IF(AJ$47, Input!AJ192, 0) -> 10.8536811 | AK53: =IF(AK$47, Input!AK192, 0) -> 17.143907 | AL53: =IF(AL$47, Input!AL192, 0) -> 0 | AM53: =IF(AM$47, Input!AM192, 0) -> 0 | AN53: =IF(AN$47, Input!AN192, 0) -> 0 | AO53: =IF(AO$47, Input!AO192, 0) -> 0
E54: Actual other capex expenditure | G54: £m 09/10 prices | AH54: =IF(AH$47, Input!AH193, 0) -> 0.5571292071 | AI54: =IF(AI$47, Input!AI193, 0) -> 2.244865424 | AJ54: =IF(AJ$47, Input!AJ193, 0) -> 3.860739369 | AK54: =IF(AK$47, Input!AK193, 0) -> 8.503054673 | AL54: =IF(AL$47, Input!AL193, 0) -> 0 | AM54: =IF(AM$47, Input!AM193, 0) -> 0 | AN54: =IF(AN$47, Input!AN193, 0) -> 0 | AO54: =IF(AO$47, Input!AO193, 0) -> 0
E55: Actual controllable opex | G55: £m 09/10 prices | AH55: =IF(AH$47, Input!AH194, 0) -> 11.14012921 | AI55: =IF(AI$47, Input!AI194, 0) -> 13.74568652 | AJ55: =IF(AJ$47, Input!AJ194, 0) -> 16.66154151 | AK55: =IF(AK$47, Input!AK194, 0) -> 19.65718406 | AL55: =IF(AL$47, Input!AL194, 0) -> 0 | AM55: =IF(AM$47, Input!AM194, 0) -> 0 | AN55: =IF(AN$47, Input!AN194, 0) -> 0 | AO55: =IF(AO$47, Input!AO194, 0) -> 0
E56: Actual non-operational capex | G56: £m 09/10 prices | AH56: =IF(AH$47, Input!AH195, 0) -> 0.2571365571 | AI56: =IF(AI$47, Input!AI195, 0) -> 1.615720095 | AJ56: =IF(AJ$47, Input!AJ195, 0) -> 1.374739349 | AK56: =IF(AK$47, Input!AK195, 0) -> 4.021134144 | AL56: =IF(AL$47, Input!AL195, 0) -> 0 | AM56: =IF(AM$47, Input!AM195, 0) -> 0 | AN56: =IF(AN$47, Input!AN195, 0) -> 0 | AO56: =IF(AO$47, Input!AO195, 0) -> 0
D58: Forecast totex from new allowances
E60: Forecast actual load related capex expenditure | G60: £m 09/10 prices | AH60: =IF(AH$48, AH32, 0) -> 0 | AI60: 0 | AJ60: 0 | AK60: 0 | AL60: 300.7813211 | AM60: 177.0197048 | AN60: 29.41816269 | AO60: 27.90655401
E61: Forecast actual asset replacement capex expenditure | G61: £m 09/10 prices | AH61: 0 | AI61: 0 | AJ61: 0 | AK61: 0 | AL61: 0 | AM61: 0 | AN61: 0 | AO61: 0
E62: Forecast actual other capex expenditure | G62: £m 09/10 prices | AH62: 0 | AI62: 0 | AJ62: 0 | AK62: 0 | AL62: 28.61656635 | AM62: 28.98577733 | AN62: 31.33718903 | AO62: 27.76460375
E63: Forecast actual controllable opex | G63: £m 09/10 prices | AH63: 0 | AI63: 0 | AJ63: 0 | AK63: 0 | AL63: 22.71199996 | AM63: 23.82945507 | AN63: 24.86786003 | AO63: 26.26544888
E64: Forecast actual non-operational capex | G64: £m 09/10 prices | AH64: 0 | AI64: 0 | AJ64: 0 | AK64: 0 | AL64: 0.2110119393 | AM64: 0.2137550945 | AN64: 0.2165339108 | AO64: 0.2193488516
D66: Totex applied
D67: Note: Actuals are exported both to identify performance against the allowance and to generate writing down allowances used in the tax calculation.
E69: Actual load related capex expenditure | G69: £m 09/10 prices | AH69: =AH52 + AH60 -> 121.1049399 | AI69: 250.5817313 | AJ69: 402.9318734 | AK69: 326.521178 | AL69: 300.7813211 | AM69: 177.0197048 | AN69: 29.41816269 | AO69: 27.90655401
E70: Actual asset replacement capex expenditure | G70: £m 09/10 prices | AH70: 16.41388356 | AI70: 16.39762548 | AJ70: 10.8536811 | AK70: 17.143907 | AL70: 0 | AM70: 0 | AN70: 0 | AO70: 0
E71: Actual other capex expenditure | G71: £m 09/10 prices | AH71: 0.5571292071 | AI71: 2.244865424 | AJ71: 3.860739369 | AK71: 8.503054673 | AL71: 28.61656635 | AM71: 28.98577733 | AN71: 31.33718903 | AO71: 27.76460375
E72: Actual controllable opex | G72: £m 09/10 prices | AH72: 11.14012921 | AI72: 13.74568652 | AJ72: 16.66154151 | AK72: 19.65718406 | AL72: 22.71199996 | AM72: 23.82945507 | AN72: 24.86786003 | AO72: 26.26544888
E73: Actual non-operational capex | G73: £m 09/10 prices | AH73: 0.2571365571 | AI73: 1.615720095 | AJ73: 1.374739349 | AK73: 4.021134144 | AL73: 0.2110119393 | AM73: 0.2137550945 | AN73: 0.2165339108 | AO73: 0.2193488516
E74: Actual totex | G74: £m 09/10 prices | AH74: =SUM(AH69:AH73) -> 149.4732185 | AI74: 284.5856288 | AJ74: 435.6825747 | AK74: 375.8464579 | AL74: 352.3208994 | AM74: 230.0486923 | AN74: 85.83974566 | AO74: 82.1559555
B76: End of sheet

Sheet TIM
A1: Totex Incentive Mechanism (TIM)
B2: =UserInterface!G17 -> SHE-Transmission PLC
E3: Parameter | G3: Units | I3: Constant | AH3: Annual values
E4: PCFM year ending | I4: =UserInterface!$G$10 -> 2019-03-31 | K4: 1991-03-31 | L4: 1992-03-31 | M4: 1993-03-31 | N4: 1994-03-31 | O4: 1995-03-31 | P4: 1996-03-31 | Q4: 1997-03-31 | R4: 1998-03-31 | S4: 1999-03-31 | T4: 2000-03-31 | U4: 2001-03-31 | V4: 2002-03-31 | W4: 2003-03-31 | X4: 2004-03-31 | Y4: 2005-03-31 | Z4: 2006-03-31 | AA4: 2007-03-31 | AB4: 2008-03-31 | AC4: 2009-03-31 | AD4: 2010-03-31 | AE4: 2011-03-31 | AF4: 2012-03-31 | AG4: 2013-03-31 | AH4: 2014-03-31 | AI4: 2015-03-31 | AJ4: 2016-03-31 | AK4: 2017-03-31 | AL4: 2018-03-31 | AM4: 2019-03-31 | AN4: 2020-03-31 | AO4: 2021-03-31
B6: Efficiency incentive
C8: Incentive strength
E10: Incentive rate (slope) | G10: scalar | I10: =Input!I55 -> -0.0025
E11: Incentive rate (intercept) | G11: scalar | I11: =Input!I56 -> 0.75
E12: Group rate | G12: ratio | I12: =Input!I66 / Input!I65*100 -> 100
E14: Incentive strength | G14: % | I14: =ROUND(I11+I10*I12,4) -> 0.5
C16: Additional income
E18: Ofgem view | G18: % | I18: =Input!I59 -> 0.75
E19: Operator view | G19: % | I19: =Input!I60 -> 0.25
E21: Ofgem view of group price control totex | G21: £m 09/10 prices | I21: =Input!I65 -> 1228.3
E23: Additional income (intercept) | G23: scalar | I23: =Input!I57 -> 8.75
E24: First order parameter | G24: % | I24: =(-(I10 * I18*100) - (I11 * I19)) -> 0
E25: Second order parameter | G25: % | I25: =(0.5-I19) * I10 -> -0.000625
E26: Additional income scalar | G26: % | I26: =(I23+I24*(I12)+I25*(I12)^2) -> 2.5
E28: Additional income at group level | G28: £m 09/10 prices | I28: =I21*I26/100 -> 30.7075
E30: Forecast licensee totex | G30: £m 09/10 prices | I30: =Input!I62*Input!$I$59+Input!I63*Input!$I$60 -> 1228.3
E31: Forecast group totex | G31: £m 09/10 prices | I31: =Input!I65*I18 + Input!I66*I19 -> 1228.3
E32: Percentage of group totex at licensee level | G32: % | I32: =I30 / I31 -> 1
B34: Efficiency incentive
C36: Post-TIM overspend (underspend)
C37: Note: Totex overspend (underspend) is identified and subject to the "efficiency incentive rate."
E39: Actual totex | G39: £m 09/10 prices | AH39: =Totex!AH74 -> 149.4732185 | AI39: =Totex!AI74 -> 284.5856288 | AJ39: =Totex!AJ74 -> 435.6825747 | AK39: =Totex!AK74 -> 375.8464579 | AL39: =Totex!AL74 -> 352.3208994 | AM39: =Totex!AM74 -> 230.0486923 | AN39: =Totex!AN74 -> 85.83974566 | AO39: =Totex!AO74 -> 82.1559555
E40: Less allowed totex | G40: £m 09/10 prices | AH40: =-Totex!AH37 -> -201.0160796 | AI40: =-Totex!AI37 -> -329.1772635 | AJ40: =-Totex!AJ37 -> -691.1227908 | AK40: =-Totex!AK37 -> -565.0297784 | AL40: =-Totex!AL37 -> -352.3208994 | AM40: =-Totex!AM37 -> -230.0486923 | AN40: =-Totex!AN37 -> -85.83974566 | AO40: =-Totex!AO37 -> -82.1559555
E41: Pre-TIM overspend (underspend) | G41: £m 09/10 prices | AH41: =SUM(AH39:AH40) -> -51.54286108 | AI41: -44.59163471 | AJ41: -255.4402161 | AK41: -189.1833205 | AL41: 0 | AM41: 0 | AN41: 0 | AO41: 0
E43: Funding Adjustment Rate (often referred to as 'sharing factor') | G43: % | AH43: =(1 - $I$14) -> 0.5 | AI43: =(1 - $I$14) -> 0.5 | AJ43: 0.5 | AK43: 0.5 | AL43: 0.5 | AM43: 0.5 | AN43: 0.5 | AO43: 0.5
E45: Post-TIM overspend (underspend) | G45: £m 09/10 prices | AH45: =AH$43 * AH41 -> -25.77143054 | AI45: =AI$43 * AI41 -> -22.29581736 | AJ45: =AJ$43 * AJ41 -> -127.720108 | AK45: -94.59166025 | AL45: 0 | AM45: 0 | AN45: 0 | AO45: 0
C47: Post-TIM totex
C48: Note: "Post-TIM overspend (underspend)" is added to the allowed totex value to give the Post-TIM totex allowance to be split into fast and slow money.
E50: Allowed totex | G50: £m 09/10 prices | AH50: =-AH40 -> 201.0160796 | AI50: =-AI40 -> 329.1772635 | AJ50: 691.1227908 | AK50: 565.0297784 | AL50: 352.3208994 | AM50: 230.0486923 | AN50: 85.83974566 | AO50: 82.1559555
E51: Post-TIM overspend (underspend) | G51: £m 09/10 prices | AH51: =AH45 -> -25.77143054 | AI51: -22.29581736 | AJ51: -127.720108 | AK51: -94.59166025 | AL51: 0 | AM51: 0 | AN51: 0 | AO51: 0
E52: Post-TIM totex | G52: £m 09/10 prices | AH52: =SUM(AH50:AH51) -> 175.244649 | AI52: 306.8814462 | AJ52: 563.4026828 | AK52: 470.4381181 | AL52: 352.3208994 | AM52: 230.0486923 | AN52: 85.83974566 | AO52: 82.1559555
B54: Capitalisation
B55: Note: The weighted capitalised share of totex (the weightings only apply to transmission operators, where the weights are based on the relative share of allowance to totex, wider works and entry & exit).
B56: Post-TIM totex is allocated into "fast" and "slow" elements based on a pre-set percentage split:
B57: - "fast money " is exported to the "Revenue" sheet where it is included as an element of "recalculated base revenue;" and
B58: - "slow money " is exported to the "Depn" sheet where it is added to RAV. Slow money is recovered over the life of the RAV through regulatory depreciation and return allowances.
E60: Post-TIM totex | G60: £m 09/10 prices | AH60: =AH52 -> 175.244649 | AI60: 306.8814462 | AJ60: 563.4026828 | AK60: 470.4381181 | AL60: 352.3208994 | AM60: 230.0486923 | AN60: 85.83974566 | AO60: 82.1559555
E61: Weighted capitalised share of totex | G61: % | AH61: =((Input!AH52*(-TIM!AH40 -Input!AH120) + Input!AH53*Input!AH120) / -TIM!AH40) -> 0.9 | AI61: =((Input!AI52*(-TIM!AI40 -Input!AI120) + Input!AI53*Input!AI120) / -TIM!AI40) -> 0.9 | AJ61: =((Input!AJ52*(-TIM!AJ40 -Input!AJ120) + Input!AJ53*Input!AJ120) / -TIM!AJ40) -> 0.9 | AK61: =((Input!AK52*(-TIM!AK40 -Input!AK120) + Input!AK53*Input!AK120) / -TIM!AK40) -> 0.9 | AL61: =((Input!AL52*(-TIM!AL40 -Input!AL120) + Input!AL53*Input!AL120) / -TIM!AL40) -> 0.9 | AM61: =((Input!AM52*(-TIM!AM40 -Input!AM120) + Input!AM53*Input!AM120) / -TIM!AM40) -> 0.9 | AN61: =((Input!AN52*(-TIM!AN40 -Input!AN120) + Input!AN53*Input!AN120) / -TIM!AN40) -> 0.9 | AO61: =((Input!AO52*(-TIM!AO40 -Input!AO120) + Input!AO53*Input!AO120) / -TIM!AO40) -> 0.9
E63: Fast pot expenditure | G63: £m 09/10 prices | AH63: =AH$60 * (1 - AH61) -> 17.5244649 | AI63: 30.68814462 | AJ63: 56.34026828 | AK63: 47.04381181 | AL63: 35.23208994 | AM63: 23.00486923 | AN63: 8.583974566 | AO63: 8.21559555
E65: Slow pot expenditure | G65: £m 09/10 prices | AH65: =AH$60 * AH61 -> 157.7201841 | AI65: 276.1933015 | AJ65: 507.0624145 | AK65: 423.3943063 | AL65: 317.0888095 | AM65: 207.0438231 | AN65: 77.25577109 | AO65: 73.94035995
B67: Additional income
B68: Note: The additional income lump sum is recovered across the price control and is matched to the profile of allowed totex set at final proposals.
E70: Additional income | G70: £m 09/10 prices | I70: =I28*I32 -> 30.7075
E72: Original allowed totex (set at final proposals) | G72: £m 09/10 prices | AH72: =Input!AH374 -> 129.5751067 | AI72: =Input!AI374 -> 134.6823406 | AJ72: =Input!AJ374 -> 154.320297 | AK72: =Input!AK374 -> 102.6869496 | AL72: =Input!AL374 -> 77.20952065 | AM72: =Input!AM374 -> 77.98723696 | AN72: =Input!AN374 -> 78.73174566 | AO72: =Input!AO374 -> 76.3389555
E73: Total allowed totex in price control (set at final proposals) | G73: £m 09/10 prices | I73: =Input!I375 -> 831.5321526
E75: Share of additional income allowed in year | G75: % | AH75: =AH72 / $I73 -> 0.155826935 | AI75: 0.161968891 | AJ75: 0.185585484 | AK75: 0.1234912556 | AL75: 0.09285211692 | AM75: 0.09378739802 | AN75: 0.09468274367 | AO75: 0.09180517586
E77: Additional income | G77: £m 09/10 prices | AH77: =($I70 * AH75) + Input!AH58 -> 4.785055606 | AI77: =($I70 * AI75) + Input!AI58 -> 4.973659719 | AJ77: =($I70 * AJ75) + Input!AJ58 -> 5.69886625 | AK77: =($I70 * AK75) + Input!AK58 -> 3.792107731 | AL77: =($I70 * AL75) + Input!AL58 -> 2.85125638 | AM77: =($I70 * AM75) + Input!AM58 -> 2.879976525 | AN77: =($I70 * AN75) + Input!AN58 -> 2.907470351 | AO77: =($I70 * AO75) + Input!AO58 -> 2.819107438
B79: End of sheet

Sheet DARTs
A1: Direct Allowed Revenue Terms (DARTs)
B2: =UserInterface!G17 -> SHE-Transmission PLC
E3: Parameter | G3: Units | I3: Constant | AH3: Annual values
E4: PCFM year ending | I4: =UserInterface!$G$10 -> 2019-03-31 | K4: 1991-03-31 | L4: 1992-03-31 | M4: 1993-03-31 | N4: 1994-03-31 | O4: 1995-03-31 | P4: 1996-03-31 | Q4: 1997-03-31 | R4: 1998-03-31 | S4: 1999-03-31 | T4: 2000-03-31 | U4: 2001-03-31 | V4: 2002-03-31 | W4: 2003-03-31 | X4: 2004-03-31 | Y4: 2005-03-31 | Z4: 2006-03-31 | AA4: 2007-03-31 | AB4: 2008-03-31 | AC4: 2009-03-31 | AD4: 2010-03-31 | AE4: 2011-03-31 | AF4: 2012-03-31 | AG4: 2013-03-31 | AH4: 2014-03-31 | AI4: 2015-03-31 | AJ4: 2016-03-31 | AK4: 2017-03-31 | AL4: 2018-03-31 | AM4: 2019-03-31 | AN4: 2020-03-31 | AO4: 2021-03-31
B6: Direct Allowed Revenue Terms (DARTs)
B7: Note: DARTs are allowances with minimal processing required in the model as they flow directly from input to revenue.
B8: They do however have different indirect impacts on equity issuance and tax. They are grouped here by their treatment type to aid common treatment of DARTs through the rest of the model.
B9: "Post-tax" allowances can be included in the tax calculation but "Pre-tax" allowances cannot.
B10: "Passthrough-style" allowances are treated as an equal revenue and cost. Therefore they have no net cashflow impact. "Revenue" allowances are just set as a revenue amount with any costs relating to them are dealt with elsewhere.
C12: Base Revenue
D14: No impact on net debt or tax
E16: Pension admin and PPF levy | G16: £m 09/10 prices | AH16: =Input!AH203 -> 0 | AI16: =Input!AI203 -> 0 | AJ16: =Input!AJ203 -> 0 | AK16: =Input!AK203 -> 0 | AL16: =Input!AL203 -> 0 | AM16: =Input!AM203 -> 0 | AN16: =Input!AN203 -> 0 | AO16: =Input!AO203 -> 0
E17: Established pension deficit repair | G17: £m 09/10 prices | AH17: =Input!AH204 -> 0.465567766 | AI17: =Input!AI204 -> 0.465567766 | AJ17: =Input!AJ204 -> 1.488322777 | AK17: =Input!AK204 -> 1.488322777 | AL17: =Input!AL204 -> 1.488322777 | AM17: =Input!AM204 -> 2.687796414 | AN17: =Input!AN204 -> 2.142059101 | AO17: =Input!AO204 -> 0
E18: Base Revenue DARTs with no impact on net debt or tax | G18: £m 09/10 prices | AH18: =SUM(AH16:AH17) -> 0.465567766 | AI18: 0.465567766 | AJ18: 1.488322777 | AK18: 1.488322777 | AL18: 1.488322777 | AM18: 2.687796414 | AN18: 2.142059101 | AO18: 0
D20: Impact net debt and tax
E22: Pension true-up from previous price controls | G22: £m 09/10 prices | AH22: =Input!AH206 -> 0.4956100827 | AI22: =Input!AI206 -> 0.518036439 | AJ22: =Input!AJ206 -> 0.5404803677 | AK22: =Input!AK206 -> 0.5628265285 | AL22: =Input!AL206 -> 0.5852298384 | AM22: =Input!AM206 -> 0.6075914706 | AN22: =Input!AN206 -> 0.6308075407 | AO22: =Input!AO206 -> 0.6549106968
E23: NGET TO Capital Expenditure Incentive and Safety Net | G23: £m 09/10 prices | AH23: =Input!AH207 -> 0 | AI23: =Input!AI207 -> 0 | AJ23: =Input!AJ207 -> 0 | AK23: =Input!AK207 -> 0 | AL23: =Input!AL207 -> 0 | AM23: =Input!AM207 -> 0 | AN23: =Input!AN207 -> 0 | AO23: =Input!AO207 -> 0
E24: Base Revenue DARTs impacting both net debt and tax | G24: £m 09/10 prices | AH24: =SUM(AH22:AH23) -> 0.4956100827 | AI24: 0.518036439 | AJ24: 0.5404803677 | AK24: 0.5628265285 | AL24: 0.5852298384 | AM24: 0.6075914706 | AN24: 0.6308075407 | AO24: 0.6549106968
D26: Impact net debt, no impact on tax
E28: Revenue adjustment from previous controls | G28: £m 09/10 prices | AH28: =Input!AH211 -> 18.78493794 | AI28: =Input!AI211 -> 0 | AJ28: =Input!AJ211 -> 0 | AK28: =Input!AK211 -> 0 | AL28: =Input!AL211 -> 0 | AM28: =Input!AM211 -> 0 | AN28: =Input!AN211 -> 0 | AO28: =Input!AO211 -> 0
E29: Base Revenue DARTs impacting net debt but not tax | G29: £m 09/10 prices | AH29: =SUM(AH28) -> 18.78493794 | AI29: =SUM(AI28) -> 0 | AJ29: 0 | AK29: 0 | AL29: 0 | AM29: 0 | AN29: 0 | AO29: 0
C31: Allowed Revenue (non Base Revenue)
D33: No impact on debt or tax
E35: TIRG revenue | G35: £m 09/10 prices | AH35: =(Input!AH285 + Input!AH286 + Input!AH287 + Input!AH288 + Input!AH289 + Input!AH290 + Input!AH291 + Input!AH292) -> 46.838528 | AI35: =(Input!AI285 + Input!AI286 + Input!AI287 + Input!AI288 + Input!AI289 + Input!AI290 + Input!AI291 + Input!AI292) -> 61.31666929 | AJ35: =(Input!AJ285 + Input!AJ286 + Input!AJ287 + Input!AJ288 + Input!AJ289 + Input!AJ290 + Input!AJ291 + Input!AJ292) -> 67.04944673 | AK35: =(Input!AK285 + Input!AK286 + Input!AK287 + Input!AK288 + Input!AK289 + Input!AK290 + Input!AK291 + Input!AK292) -> 63.83175304 | AL35: =(Input!AL285 + Input!AL286 + Input!AL287 + Input!AL288 + Input!AL289 + Input!AL290 + Input!AL291 + Input!AL292) -> 61.76369931 | AM35: =(Input!AM285 + Input!AM286 + Input!AM287 + Input!AM288 + Input!AM289 + Input!AM290 + Input!AM291 + Input!AM292) -> 59.69548414 | AN35: =(Input!AN285 + Input!AN286 + Input!AN287 + Input!AN288 + Input!AN289 + Input!AN290 + Input!AN291 + Input!AN292) -> 57.62726897 | AO35: =(Input!AO285 + Input!AO286 + Input!AO287 + Input!AO288 + Input!AO289 + Input!AO290 + Input!AO291 + Input!AO292) -> 55.5590538
E36: Allowed Revenue (non Base Revenue) DARTs with no impact on net debt or tax | G36: £m 09/10 prices | AH36: =SUM(AH35) -> 46.838528 | AI36: =SUM(AI35) -> 61.31666929 | AJ36: 67.04944673 | AK36: 63.83175304 | AL36: 61.76369931 | AM36: 59.69548414 | AN36: 57.62726897 | AO36: 55.5590538
C38: Directly-charged
D40: No impact on debt or tax
E42: Excluded services net position | G42: £m 09/10 prices | AH42: =Input!AH215 -> 10.8 | AI42: =Input!AI215 -> 14.2 | AJ42: =Input!AJ215 -> 22.6 | AK42: =Input!AK215 -> 26.7 | AL42: =Input!AL215 -> 27.8 | AM42: =Input!AM215 -> 30.5 | AN42: =Input!AN215 -> 31.4 | AO42: =Input!AO215 -> 32.8
E43: Directly-charged post-tax passthrough-style allowance | G43: £m 09/10 prices | AH43: =SUM(AH42) -> 10.8 | AI43: =SUM(AI42) -> 14.2 | AJ43: 22.6 | AK43: 26.7 | AL43: 27.8 | AM43: 30.5 | AN43: 31.4 | AO43: 32.8
C45: DART groups
C46: Note: The following subtotals are exported to the rest of the model allowing common treatment of DARTs after this stage.
C47: Excluded services are directly charged to users. It is treated here as a negative Base Revenue DART and positive Non Base Revenue DART. It is tax and cashflow neutral.
C48: "Net impact of DARTs on core net debt" removes the passthrough-style allowances from the cashflow, netting off their impact after being added to revenue.
C49: "Net DART impact on core tax calculation" removes passthrough and pre-tax allowances from the tax base such that only post-tax revenue allowances have an impact.
E51: Base revenue DARTs | G51: £m 09/10 prices | AH51: =AH18 + AH24 + AH29 - AH43 -> 8.946115785 | AI51: -13.2163958 | AJ51: -20.57119686 | AK51: -24.64885069 | AL51: -25.72644738 | AM51: -27.20461212 | AN51: -28.62713336 | AO51: -32.1450893
E53: Non Base Revenue DARTs | G53: £m 09/10 prices | AH53: =AH36 + AH43 -> 57.638528 | AI53: =AI36 + AI43 -> 75.51666929 | AJ53: 89.64944673 | AK53: 90.53175304 | AL53: 89.56369931 | AM53: 90.19548414 | AN53: 89.02726897 | AO53: 88.3590538
E55: Net impact of DARTs on core net debt | G55: £m 09/10 prices | AH55: =- AH18 + AH43 -> 10.33443223 | AI55: 13.73443223 | AJ55: 21.11167722 | AK55: 25.21167722 | AL55: 26.31167722 | AM55: 27.81220359 | AN55: 29.2579409 | AO55: 32.8
E57: Net DART impact on core tax calculation | G57: £m 09/10 prices | AH57: =- AH18 - AH29 + AH43 -> -8.450505703 | AI57: =- AI18 - AI29 + AI43 -> 13.73443223 | AJ57: 21.11167722 | AK57: 25.21167722 | AL57: 26.31167722 | AM57: 27.81220359 | AN57: 29.2579409 | AO57: 32.8
B59: End of sheet

Sheet Depn
A1: Regulatory Depreciation
B2: =UserInterface!G17 -> SHE-Transmission PLC
E3: Parameter | G3: Units | I3: Constant | AH3: Annual values
E4: PCFM year ending | I4: =UserInterface!$G$10 -> 2019-03-31 | K4: 1991-03-31 | L4: 1992-03-31 | M4: 1993-03-31 | N4: 1994-03-31 | O4: 1995-03-31 | P4: 1996-03-31 | Q4: 1997-03-31 | R4: 1998-03-31 | S4: 1999-03-31 | T4: 2000-03-31 | U4: 2001-03-31 | V4: 2002-03-31 | W4: 2003-03-31 | X4: 2004-03-31 | Y4: 2005-03-31 | Z4: 2006-03-31 | AA4: 2007-03-31 | AB4: 2008-03-31 | AC4: 2009-03-31 | AD4: 2010-03-31 | AE4: 2011-03-31 | AF4: 2012-03-31 | AG4: 2013-03-31 | AH4: 2014-03-31 | AI4: 2015-03-31 | AJ4: 2016-03-31 | AK4: 2017-03-31 | AL4: 2018-03-31 | AM4: 2019-03-31 | AN4: 2020-03-31 | AO4: 2021-03-31
B6: Regulatory depreciation
C8: Net RAV additions (after disposals)
C9: Note: Additions to RAV are combined before feeding into the depreciation calculations. Disposals are treated as negative additions. Pre-RIIO values are used to build up the post-vesting RAV from vesting.
C10: Logged-up and security costs are retrospectively added to RAV to provide the updated opening RAV and align depreciation with expenditure.
E12: Slow money | G12: £m 09/10 prices | AH12: =TIM!AH65 -> 157.7201841 | AI12: =TIM!AI65 -> 276.1933015 | AJ12: =TIM!AJ65 -> 507.0624145 | AK12: =TIM!AK65 -> 423.3943063 | AL12: =TIM!AL65 -> 317.0888095 | AM12: =TIM!AM65 -> 207.0438231 | AN12: =TIM!AN65 -> 77.25577109 | AO12: =TIM!AO65 -> 73.94035995
E13: Net adjustments | G13: £m 09/10 prices | AH13: =SUM(Input!AH236:AH238) -> -70.85787523 | AI13: =SUM(Input!AI236:AI238) -> 0 | AJ13: =SUM(Input!AJ236:AJ238) -> 0 | AK13: =SUM(Input!AK236:AK238) -> 0 | AL13: =SUM(Input!AL236:AL238) -> 0 | AM13: =SUM(Input!AM236:AM238) -> 0 | AN13: =SUM(Input!AN236:AN238) -> 0 | AO13: =SUM(Input!AO236:AO238) -> 0
E14: Pre-RIIO net RAV additions (after disposals) | G14: £m 09/10 prices | J14: > | K14: =Input!K235 -> 26.34837128 | L14: =Input!L235 -> 23.75490237 | M14: =Input!M235 -> 2.327822879 | N14: =Input!N235 -> 26.41201469 | O14: =Input!O235 -> 11.06815457 | P14: =Input!P235 -> 11.33170309 | Q14: =Input!Q235 -> 13.54964129 | R14: =Input!R235 -> 16.20016352 | S14: =Input!S235 -> 11.94751933 | T14: =Input!T235 -> 21.7906823 | U14: =Input!U235 -> 11.33451618 | V14: =Input!V235 -> 8.276285554 | W14: =Input!W235 -> 9.518840549 | X14: =Input!X235 -> 10.21749924 | Y14: =Input!Y235 -> 48.46724408 | Z14: =Input!Z235 -> 22.22494925 | AA14: =Input!AA235 -> 26.57813046 | AB14: =Input!AB235 -> 46.56066118 | AC14: =Input!AC235 -> 54.24521673 | AD14: =Input!AD235 -> 39.448 | AE14: =Input!AE235 -> 33.45131111 | AF14: =Input!AF235 -> 28.94311233 | AG14: =Input!AG235 -> 76.4
E15: Net RAV additions (after disposals) | G15: £m 09/10 prices | J15: > | K15: =SUM(K12:K14) -> 26.34837128 | L15: 23.75490237 | M15: 2.327822879 | N15: 26.41201469 | O15: 11.06815457 | P15: 11.33170309 | Q15: 13.54964129 | R15: 16.20016352 | S15: 11.94751933 | T15: 21.7906823 | U15: 11.33451618 | V15: 8.276285554 | W15: 9.518840549 | X15: 10.21749924 | Y15: 48.46724408 | Z15: 22.22494925 | AA15: 26.57813046 | AB15: 46.56066118 | AC15: 54.24521673 | AD15: 39.448 | AE15: 33.45131111 | AF15: 28.94311233 | AG15: 76.4 | AH15: 86.86230888 | AI15: 276.1933015 | AJ15: 507.0624145 | AK15: 423.3943063 | AL15: 317.0888095 | AM15: 207.0438231 | AN15: 77.25577109 | AO15: 73.94035995
C17: Net depreciation additions (after disposals)
C18: Note:
E20: Pre-RIIO transfers to depreciation | G20: £m 09/10 prices | J20: > | K20: =Input!K239 -> 0 | L20: =Input!L239 -> 0 | M20: =Input!M239 -> 0 | N20: =Input!N239 -> 0 | O20: =Input!O239 -> 0 | P20: =Input!P239 -> 0 | Q20: =Input!Q239 -> 0 | R20: =Input!R239 -> 0 | S20: =Input!S239 -> 0 | T20: =Input!T239 -> 0 | U20: =Input!U239 -> 0 | V20: =Input!V239 -> 0 | W20: =Input!W239 -> 0 | X20: =Input!X239 -> 0 | Y20: =Input!Y239 -> 0 | Z20: =Input!Z239 -> 0 | AA20: =Input!AA239 -> 0 | AB20: =Input!AB239 -> 0 | AC20: =Input!AC239 -> 0 | AD20: =Input!AD239 -> 0 | AE20: =Input!AE239 -> 0 | AF20: =Input!AF239 -> 0 | AG20: =Input!AG239 -> 0
C22: Pre-vesting depreciation
C23: Note: The following depreciation factor is used to depreciate the pre-vesting balance on the "Return&RAV" sheet.
E25: Vesting year | G25: year ending | I25: =Input!I234 -> 1991-03-31
E26: Pre-vesting asset life | G26: years | I26: =Input!I224 -> 22
E27: Pre-vesting straight line depreciation factor | G27: scalar | AH27: =1 / $I26 -> 0.04545454545 | AI27: 0.04545454545 | AJ27: 0.04545454545 | AK27: 0.04545454545 | AL27: 0.04545454545 | AM27: 0.04545454545 | AN27: 0.04545454545 | AO27: 0.04545454545
C29: Accelerated post-vesting depreciation
C30: Note: Accelerated depreciation calculations provide the allowed depreciation after full depreciation of pre-vesting assets, but are also used to establish the "RAV differential" generated before that point.
D32: Depreciation parameters
E34: Post-vesting asset life | G34: years | J34: > | K34: =Input!K232 -> 20 | L34: =Input!L232 -> 20 | M34: =Input!M232 -> 20 | N34: =Input!N232 -> 20 | O34: =Input!O232 -> 20 | P34: =Input!P232 -> 20 | Q34: =Input!Q232 -> 20 | R34: =Input!R232 -> 20 | S34: =Input!S232 -> 20 | T34: =Input!T232 -> 20 | U34: =Input!U232 -> 20 | V34: =Input!V232 -> 20 | W34: =Input!W232 -> 20 | X34: =Input!X232 -> 20 | Y34: =Input!Y232 -> 20 | Z34: =Input!Z232 -> 20 | AA34: =Input!AA232 -> 20 | AB34: =Input!AB232 -> 20 | AC34: =Input!AC232 -> 20 | AD34: =Input!AD232 -> 20 | AE34: =Input!AE232 -> 20 | AF34: =Input!AF232 -> 20 | AG34: =Input!AG232 -> 20 | AH34: =Input!AH232 -> 21.5625 | AI34: =Input!AI232 -> 23.125 | AJ34: =Input!AJ232 -> 24.6875 | AK34: =Input!AK232 -> 26.25 | AL34: =Input!AL232 -> 27.8125 | AM34: =Input!AM232 -> 29.375 | AN34: =Input!AN232 -> 30.9375 | AO34: =Input!AO232 -> 32.5
E35: Accelerated post-vesting depreciation applied | G35: text | J35: > | L35: =YEAR(L$4) >= YEAR($I$25) + $I$26 -> FALSE | M35: FALSE | N35: FALSE | O35: FALSE | P35: FALSE | Q35: FALSE | R35: FALSE | S35: FALSE | T35: FALSE | U35: FALSE | V35: FALSE | W35: FALSE | X35: FALSE | Y35: FALSE | Z35: FALSE | AA35: FALSE | AB35: FALSE | AC35: FALSE | AD35: FALSE | AE35: FALSE | AF35: FALSE | AG35: TRUE | AH35: TRUE | AI35: TRUE | AJ35: TRUE | AK35: TRUE | AL35: TRUE | AM35: TRUE | AN35: TRUE | AO35: TRUE
D37: Depreciation schedule
E39: Accelerated depreciation of additions from year ending | I39: Net additions
E40: 1991-03-31 | G40: £m 09/10 prices | I40: =I83 -> 26.34837128 | J40: > | L40: =$I40/$K$34 -> 1.317418564 | M40: =IF($I40 >0, MIN(L40,$I40-SUM($L40:L40)), MAX(L40,$I40-SUM($L40:L40))) -> 1.317418564 | N40: =IF($I40 >0, MIN(M40,$I40-SUM($L40:M40)), MAX(M40,$I40-SUM($L40:M40))) -> 1.317418564 | O40: =IF($I40 >0, MIN(N40,$I40-SUM($L40:N40)), MAX(N40,$I40-SUM($L40:N40))) -> 1.317418564 | P40: =IF($I40 >0, MIN(O40,$I40-SUM($L40:O40)), MAX(O40,$I40-SUM($L40:O40))) -> 1.317418564 | Q40: =IF($I40 >0, MIN(P40,$I40-SUM($L40:P40)), MAX(P40,$I40-SUM($L40:P40))) -> 1.317418564 | R40: =IF($I40 >0, MIN(Q40,$I40-SUM($L40:Q40)), MAX(Q40,$I40-SUM($L40:Q40))) -> 1.317418564 | S40: =IF($I40 >0, MIN(R40,$I40-SUM($L40:R40)), MAX(R40,$I40-SUM($L40:R40))) -> 1.317418564 | T40: =IF($I40 >0, MIN(S40,$I40-SUM($L40:S40)), MAX(S40,$I40-SUM($L40:S40))) -> 1.317418564 | U40: =IF($I40 >0, MIN(T40,$I40-SUM($L40:T40)), MAX(T40,$I40-SUM($L40:T40))) -> 1.317418564 | V40: =IF($I40 >0, MIN(U40,$I40-SUM($L40:U40)), MAX(U40,$I40-SUM($L40:U40))) -> 1.317418564 | W40: =IF($I40 >0, MIN(V40,$I40-SUM($L40:V40)), MAX(V40,$I40-SUM($L40:V40))) -> 1.317418564 | X40: =IF($I40 >0, MIN(W40,$I40-SUM($L40:W40)), MAX(W40,$I40-SUM($L40:W40))) -> 1.317418564 | Y40: =IF($I40 >0, MIN(X40,$I40-SUM($L40:X40)), MAX(X40,$I40-SUM($L40:X40))) -> 1.317418564 | Z40: =IF($I40 >0, MIN(Y40,$I40-SUM($L40:Y40)), MAX(Y40,$I40-SUM($L40:Y40))) -> 1.317418564 | AA40: =IF($I40 >0, MIN(Z40,$I40-SUM($L40:Z40)), MAX(Z40,$I40-SUM($L40:Z40))) -> 1.317418564 | AB40: =IF($I40 >0, MIN(AA40,$I40-SUM($L40:AA40)), MAX(AA40,$I40-SUM($L40:AA40))) -> 1.317418564 | AC40: =IF($I40 >0, MIN(AB40,$I40-SUM($L40:AB40)), MAX(AB40,$I40-SUM($L40:AB40))) -> 1.317418564 | AD40: =IF($I40 >0, MIN(AC40,$I40-SUM($L40:AC40)), MAX(AC40,$I40-SUM($L40:AC40))) -> 1.317418564 | AE40: =IF($I40 >0, MIN(AD40,$I40-SUM($L40:AD40)), MAX(AD40,$I40-SUM($L40:AD40))) -> 1.317418564 | AF40: =IF($I40 >0, MIN(AE40,$I40-SUM($L40:AE40)), MAX(AE40,$I40-SUM($L40:AE40))) -> 0 | AG40: =IF($I40 >0, MIN(AF40,$I40-SUM($L40:AF40)), MAX(AF40,$I40-SUM($L40:AF40))) -> 0 | AH40: =IF($I40 >0, MIN(AG40,$I40-SUM($L40:AG40)), MAX(AG40,$I40-SUM($L40:AG40))) -> 0 | AI40: =IF($I40 >0, MIN(AH40,$I40-SUM($L40:AH40)), MAX(AH40,$I40-SUM($L40:AH40))) -> 0 | AJ40: =IF($I40 >0, MIN(AI40,$I40-SUM($L40:AI40)), MAX(AI40,$I40-SUM($L40:AI40))) -> 0 | AK40: =IF($I40 >0, MIN(AJ40,$I40-SUM($L40:AJ40)), MAX(AJ40,$I40-SUM($L40:AJ40))) -> 0 | AL40: =IF($I40 >0, MIN(AK40,$I40-SUM($L40:AK40)), MAX(AK40,$I40-SUM($L40:AK40))) -> 0 | AM40: =IF($I40 >0, MIN(AL40,$I40-SUM($L40:AL40)), MAX(AL40,$I40-SUM($L40:AL40))) -> 0 | AN40: =IF($I40 >0, MIN(AM40,$I40-SUM($L40:AM40)), MAX(AM40,$I40-SUM($L40:AM40))) -> 0 | AO40: =IF($I40 >0, MIN(AN40,$I40-SUM($L40:AN40)), MAX(AN40,$I40-SUM($L40:AN40))) -> 0
E41: 1992-03-31 | G41: £m 09/10 prices | I41: 23.75490237 | J41: > | M41: =$I41/L$34 -> 1.187745119 | N41: =IF($I41 >0, MIN(M41,$I41-SUM($L41:M41)), MAX(M41,$I41-SUM($L41:M41))) -> 1.187745119 | O41: =IF($I41 >0, MIN(N41,$I41-SUM($L41:N41)), MAX(N41,$I41-SUM($L41:N41))) -> 1.187745119 | P41: =IF($I41 >0, MIN(O41,$I41-SUM($L41:O41)), MAX(O41,$I41-SUM($L41:O41))) -> 1.187745119 | Q41: =IF($I41 >0, MIN(P41,$I41-SUM($L41:P41)), MAX(P41,$I41-SUM($L41:P41))) -> 1.187745119 | R41: =IF($I41 >0, MIN(Q41,$I41-SUM($L41:Q41)), MAX(Q41,$I41-SUM($L41:Q41))) -> 1.187745119 | S41: =IF($I41 >0, MIN(R41,$I41-SUM($L41:R41)), MAX(R41,$I41-SUM($L41:R41))) -> 1.187745119 | T41: =IF($I41 >0, MIN(S41,$I41-SUM($L41:S41)), MAX(S41,$I41-SUM($L41:S41))) -> 1.187745119 | U41: =IF($I41 >0, MIN(T41,$I41-SUM($L41:T41)), MAX(T41,$I41-SUM($L41:T41))) -> 1.187745119 | V41: =IF($I41 >0, MIN(U41,$I41-SUM($L41:U41)), MAX(U41,$I41-SUM($L41:U41))) -> 1.187745119 | W41: =IF($I41 >0, MIN(V41,$I41-SUM($L41:V41)), MAX(V41,$I41-SUM($L41:V41))) -> 1.187745119 | X41: =IF($I41 >0, MIN(W41,$I41-SUM($L41:W41)), MAX(W41,$I41-SUM($L41:W41))) -> 1.187745119 | Y41: =IF($I41 >0, MIN(X41,$I41-SUM($L41:X41)), MAX(X41,$I41-SUM($L41:X41))) -> 1.187745119 | Z41: =IF($I41 >0, MIN(Y41,$I41-SUM($L41:Y41)), MAX(Y41,$I41-SUM($L41:Y41))) -> 1.187745119 | AA41: =IF($I41 >0, MIN(Z41,$I41-SUM($L41:Z41)), MAX(Z41,$I41-SUM($L41:Z41))) -> 1.187745119 | AB41: =IF($I41 >0, MIN(AA41,$I41-SUM($L41:AA41)), MAX(AA41,$I41-SUM($L41:AA41))) -> 1.187745119 | AC41: =IF($I41 >0, MIN(AB41,$I41-SUM($L41:AB41)), MAX(AB41,$I41-SUM($L41:AB41))) -> 1.187745119 | AD41: =IF($I41 >0, MIN(AC41,$I41-SUM($L41:AC41)), MAX(AC41,$I41-SUM($L41:AC41))) -> 1.187745119 | AE41: =IF($I41 >0, MIN(AD41,$I41-SUM($L41:AD41)), MAX(AD41,$I41-SUM($L41:AD41))) -> 1.187745119 | AF41: =IF($I41 >0, MIN(AE41,$I41-SUM($L41:AE41)), MAX(AE41,$I41-SUM($L41:AE41))) -> 1.187745119 | AG41: =IF($I41 >0, MIN(AF41,$I41-SUM($L41:AF41)), MAX(AF41,$I41-SUM($L41:AF41))) -> 0 | AH41: =IF($I41 >0, MIN(AG41,$I41-SUM($L41:AG41)), MAX(AG41,$I41-SUM($L41:AG41))) -> 0 | AI41: =IF($I41 >0, MIN(AH41,$I41-SUM($L41:AH41)), MAX(AH41,$I41-SUM($L41:AH41))) -> 0 | AJ41: =IF($I41 >0, MIN(AI41,$I41-SUM($L41:AI41)), MAX(AI41,$I41-SUM($L41:AI41))) -> 0 | AK41: =IF($I41 >0, MIN(AJ41,$I41-SUM($L41:AJ41)), MAX(AJ41,$I41-SUM($L41:AJ41))) -> 0 | AL41: =IF($I41 >0, MIN(AK41,$I41-SUM($L41:AK41)), MAX(AK41,$I41-SUM($L41:AK41))) -> 0 | AM41: =IF($I41 >0, MIN(AL41,$I41-SUM($L41:AL41)), MAX(AL41,$I41-SUM($L41:AL41))) -> 0 | AN41: =IF($I41 >0, MIN(AM41,$I41-SUM($L41:AM41)), MAX(AM41,$I41-SUM($L41:AM41))) -> 0 | AO41: =IF($I41 >0, MIN(AN41,$I41-SUM($L41:AN41)), MAX(AN41,$I41-SUM($L41:AN41))) -> 0
E42: 1993-03-31 | G42: £m 09/10 prices | I42: 2.327822879 | J42: > | N42: =$I42/M$34 -> 0.116391144 | O42: =IF($I42 >0, MIN(N42,$I42-SUM($L42:N42)), MAX(N42,$I42-SUM($L42:N42))) -> 0.116391144 | P42: =IF($I42 >0, MIN(O42,$I42-SUM($L42:O42)), MAX(O42,$I42-SUM($L42:O42))) -> 0.116391144 | Q42: =IF($I42 >0, MIN(P42,$I42-SUM($L42:P42)), MAX(P42,$I42-SUM($L42:P42))) -> 0.116391144 | R42: =IF($I42 >0, MIN(Q42,$I42-SUM($L42:Q42)), MAX(Q42,$I42-SUM($L42:Q42))) -> 0.116391144 | S42: =IF($I42 >0, MIN(R42,$I42-SUM($L42:R42)), MAX(R42,$I42-SUM($L42:R42))) -> 0.116391144 | T42: =IF($I42 >0, MIN(S42,$I42-SUM($L42:S42)), MAX(S42,$I42-SUM($L42:S42))) -> 0.116391144 | U42: =IF($I42 >0, MIN(T42,$I42-SUM($L42:T42)), MAX(T42,$I42-SUM($L42:T42))) -> 0.116391144 | V42: =IF($I42 >0, MIN(U42,$I42-SUM($L42:U42)), MAX(U42,$I42-SUM($L42:U42))) -> 0.116391144 | W42: =IF($I42 >0, MIN(V42,$I42-SUM($L42:V42)), MAX(V42,$I42-SUM($L42:V42))) -> 0.116391144 | X42: =IF($I42 >0, MIN(W42,$I42-SUM($L42:W42)), MAX(W42,$I42-SUM($L42:W42))) -> 0.116391144 | Y42: =IF($I42 >0, MIN(X42,$I42-SUM($L42:X42)), MAX(X42,$I42-SUM($L42:X42))) -> 0.116391144 | Z42: =IF($I42 >0, MIN(Y42,$I42-SUM($L42:Y42)), MAX(Y42,$I42-SUM($L42:Y42))) -> 0.116391144 | AA42: =IF($I42 >0, MIN(Z42,$I42-SUM($L42:Z42)), MAX(Z42,$I42-SUM($L42:Z42))) -> 0.116391144 | AB42: =IF($I42 >0, MIN(AA42,$I42-SUM($L42:AA42)), MAX(AA42,$I42-SUM($L42:AA42))) -> 0.116391144 | AC42: =IF($I42 >0, MIN(AB42,$I42-SUM($L42:AB42)), MAX(AB42,$I42-SUM($L42:AB42))) -> 0.116391144 | AD42: =IF($I42 >0, MIN(AC42,$I42-SUM($L42:AC42)), MAX(AC42,$I42-SUM($L42:AC42))) -> 0.116391144 | AE42: =IF($I42 >0, MIN(AD42,$I42-SUM($L42:AD42)), MAX(AD42,$I42-SUM($L42:AD42))) -> 0.116391144 | AF42: =IF($I42 >0, MIN(AE42,$I42-SUM($L42:AE42)), MAX(AE42,$I42-SUM($L42:AE42))) -> 0.116391144 | AG42: =IF($I42 >0, MIN(AF42,$I42-SUM($L42:AF42)), MAX(AF42,$I42-SUM($L42:AF42))) -> 0.116391144 | AH42: =IF($I42 >0, MIN(AG42,$I42-SUM($L42:AG42)), MAX(AG42,$I42-SUM($L42:AG42))) -> 4.440892099e-16 | AI42: =IF($I42 >0, MIN(AH42,$I42-SUM($L42:AH42)), MAX(AH42,$I42-SUM($L42:AH42))) -> 0 | AJ42: =IF($I42 >0, MIN(AI42,$I42-SUM($L42:AI42)), MAX(AI42,$I42-SUM($L42:AI42))) -> 0 | AK42: =IF($I42 >0, MIN(AJ42,$I42-SUM($L42:AJ42)), MAX(AJ42,$I42-SUM($L42:AJ42))) -> 0 | AL42: =IF($I42 >0, MIN(AK42,$I42-SUM($L42:AK42)), MAX(AK42,$I42-SUM($L42:AK42))) -> 0 | AM42: =IF($I42 >0, MIN(AL42,$I42-SUM($L42:AL42)), MAX(AL42,$I42-SUM($L42:AL42))) -> 0 | AN42: =IF($I42 >0, MIN(AM42,$I42-SUM($L42:AM42)), MAX(AM42,$I42-SUM($L42:AM42))) -> 0 | AO42: =IF($I42 >0, MIN(AN42,$I42-SUM($L42:AN42)), MAX(AN42,$I42-SUM($L42:AN42))) -> 0
E43: 1994-03-31 | G43: £m 09/10 prices | I43: 26.41201469 | J43: > | O43: =$I43/N$34 -> 1.320600735 | P43: =IF($I43 >0, MIN(O43,$I43-SUM($L43:O43)), MAX(O43,$I43-SUM($L43:O43))) -> 1.320600735 | Q43: =IF($I43 >0, MIN(P43,$I43-SUM($L43:P43)), MAX(P43,$I43-SUM($L43:P43))) -> 1.320600735 | R43: =IF($I43 >0, MIN(Q43,$I43-SUM($L43:Q43)), MAX(Q43,$I43-SUM($L43:Q43))) -> 1.320600735 | S43: =IF($I43 >0, MIN(R43,$I43-SUM($L43:R43)), MAX(R43,$I43-SUM($L43:R43))) -> 1.320600735 | T43: =IF($I43 >0, MIN(S43,$I43-SUM($L43:S43)), MAX(S43,$I43-SUM($L43:S43))) -> 1.320600735 | U43: =IF($I43 >0, MIN(T43,$I43-SUM($L43:T43)), MAX(T43,$I43-SUM($L43:T43))) -> 1.320600735 | V43: =IF($I43 >0, MIN(U43,$I43-SUM($L43:U43)), MAX(U43,$I43-SUM($L43:U43))) -> 1.320600735 | W43: =IF($I43 >0, MIN(V43,$I43-SUM($L43:V43)), MAX(V43,$I43-SUM($L43:V43))) -> 1.320600735 | X43: =IF($I43 >0, MIN(W43,$I43-SUM($L43:W43)), MAX(W43,$I43-SUM($L43:W43))) -> 1.320600735 | Y43: =IF($I43 >0, MIN(X43,$I43-SUM($L43:X43)), MAX(X43,$I43-SUM($L43:X43))) -> 1.320600735 | Z43: =IF($I43 >0, MIN(Y43,$I43-SUM($L43:Y43)), MAX(Y43,$I43-SUM($L43:Y43))) -> 1.320600735 | AA43: =IF($I43 >0, MIN(Z43,$I43-SUM($L43:Z43)), MAX(Z43,$I43-SUM($L43:Z43))) -> 1.320600735 | AB43: =IF($I43 >0, MIN(AA43,$I43-SUM($L43:AA43)), MAX(AA43,$I43-SUM($L43:AA43))) -> 1.320600735 | AC43: =IF($I43 >0, MIN(AB43,$I43-SUM($L43:AB43)), MAX(AB43,$I43-SUM($L43:AB43))) -> 1.320600735 | AD43: =IF($I43 >0, MIN(AC43,$I43-SUM($L43:AC43)), MAX(AC43,$I43-SUM($L43:AC43))) -> 1.320600735 | AE43: =IF($I43 >0, MIN(AD43,$I43-SUM($L43:AD43)), MAX(AD43,$I43-SUM($L43:AD43))) -> 1.320600735 | AF43: =IF($I43 >0, MIN(AE43,$I43-SUM($L43:AE43)), MAX(AE43,$I43-SUM($L43:AE43))) -> 1.320600735 | AG43: =IF($I43 >0, MIN(AF43,$I43-SUM($L43:AF43)), MAX(AF43,$I43-SUM($L43:AF43))) -> 1.320600735 | AH43: =IF($I43 >0, MIN(AG43,$I43-SUM($L43:AG43)), MAX(AG43,$I43-SUM($L43:AG43))) -> 1.320600735 | AI43: =IF($I43 >0, MIN(AH43,$I43-SUM($L43:AH43)), MAX(AH43,$I43-SUM($L43:AH43))) -> 7.105427358e-15 | AJ43: =IF($I43 >0, MIN(AI43,$I43-SUM($L43:AI43)), MAX(AI43,$I43-SUM($L43:AI43))) -> 0 | AK43: =IF($I43 >0, MIN(AJ43,$I43-SUM($L43:AJ43)), MAX(AJ43,$I43-SUM($L43:AJ43))) -> 0 | AL43: =IF($I43 >0, MIN(AK43,$I43-SUM($L43:AK43)), MAX(AK43,$I43-SUM($L43:AK43))) -> 0 | AM43: =IF($I43 >0, MIN(AL43,$I43-SUM($L43:AL43)), MAX(AL43,$I43-SUM($L43:AL43))) -> 0 | AN43: =IF($I43 >0, MIN(AM43,$I43-SUM($L43:AM43)), MAX(AM43,$I43-SUM($L43:AM43))) -> 0 | AO43: =IF($I43 >0, MIN(AN43,$I43-SUM($L43:AN43)), MAX(AN43,$I43-SUM($L43:AN43))) -> 0
E44: 1995-03-31 | G44: £m 09/10 prices | I44: 11.06815457 | J44: > | P44: =$I44/O$34 -> 0.5534077285 | Q44: =IF($I44 >0, MIN(P44,$I44-SUM($L44:P44)), MAX(P44,$I44-SUM($L44:P44))) -> 0.5534077285 | R44: =IF($I44 >0, MIN(Q44,$I44-SUM($L44:Q44)), MAX(Q44,$I44-SUM($L44:Q44))) -> 0.5534077285 | S44: =IF($I44 >0, MIN(R44,$I44-SUM($L44:R44)), MAX(R44,$I44-SUM($L44:R44))) -> 0.5534077285 | T44: =IF($I44 >0, MIN(S44,$I44-SUM($L44:S44)), MAX(S44,$I44-SUM($L44:S44))) -> 0.5534077285 | U44: =IF($I44 >0, MIN(T44,$I44-SUM($L44:T44)), MAX(T44,$I44-SUM($L44:T44))) -> 0.5534077285 | V44: =IF($I44 >0, MIN(U44,$I44-SUM($L44:U44)), MAX(U44,$I44-SUM($L44:U44))) -> 0.5534077285 | W44: =IF($I44 >0, MIN(V44,$I44-SUM($L44:V44)), MAX(V44,$I44-SUM($L44:V44))) -> 0.5534077285 | X44: =IF($I44 >0, MIN(W44,$I44-SUM($L44:W44)), MAX(W44,$I44-SUM($L44:W44))) -> 0.5534077285 | Y44: =IF($I44 >0, MIN(X44,$I44-SUM($L44:X44)), MAX(X44,$I44-SUM($L44:X44))) -> 0.5534077285 | Z44: =IF($I44 >0, MIN(Y44,$I44-SUM($L44:Y44)), MAX(Y44,$I44-SUM($L44:Y44))) -> 0.5534077285 | AA44: =IF($I44 >0, MIN(Z44,$I44-SUM($L44:Z44)), MAX(Z44,$I44-SUM($L44:Z44))) -> 0.5534077285 | AB44: =IF($I44 >0, MIN(AA44,$I44-SUM($L44:AA44)), MAX(AA44,$I44-SUM($L44:AA44))) -> 0.5534077285 | AC44: =IF($I44 >0, MIN(AB44,$I44-SUM($L44:AB44)), MAX(AB44,$I44-SUM($L44:AB44))) -> 0.5534077285 | AD44: =IF($I44 >0, MIN(AC44,$I44-SUM($L44:AC44)), MAX(AC44,$I44-SUM($L44:AC44))) -> 0.5534077285 | AE44: =IF($I44 >0, MIN(AD44,$I44-SUM($L44:AD44)), MAX(AD44,$I44-SUM($L44:AD44))) -> 0.5534077285 | AF44: =IF($I44 >0, MIN(AE44,$I44-SUM($L44:AE44)), MAX(AE44,$I44-SUM($L44:AE44))) -> 0.5534077285 | AG44: =IF($I44 >0, MIN(AF44,$I44-SUM($L44:AF44)), MAX(AF44,$I44-SUM($L44:AF44))) -> 0.5534077285 | AH44: =IF($I44 >0, MIN(AG44,$I44-SUM($L44:AG44)), MAX(AG44,$I44-SUM($L44:AG44))) -> 0.5534077285 | AI44: =IF($I44 >0, MIN(AH44,$I44-SUM($L44:AH44)), MAX(AH44,$I44-SUM($L44:AH44))) -> 0.5534077285 | AJ44: =IF($I44 >0, MIN(AI44,$I44-SUM($L44:AI44)), MAX(AI44,$I44-SUM($L44:AI44))) -> 1.776356839e-15 | AK44: =IF($I44 >0, MIN(AJ44,$I44-SUM($L44:AJ44)), MAX(AJ44,$I44-SUM($L44:AJ44))) -> 0 | AL44: =IF($I44 >0, MIN(AK44,$I44-SUM($L44:AK44)), MAX(AK44,$I44-SUM($L44:AK44))) -> 0 | AM44: =IF($I44 >0, MIN(AL44,$I44-SUM($L44:AL44)), MAX(AL44,$I44-SUM($L44:AL44))) -> 0 | AN44: =IF($I44 >0, MIN(AM44,$I44-SUM($L44:AM44)), MAX(AM44,$I44-SUM($L44:AM44))) -> 0 | AO44: =IF($I44 >0, MIN(AN44,$I44-SUM($L44:AN44)), MAX(AN44,$I44-SUM($L44:AN44))) -> 0
E45: 1996-03-31 | G45: £m 09/10 prices | I45: 11.33170309 | J45: > | Q45: =$I45/P$34 -> 0.5665851543 | R45: =IF($I45 >0, MIN(Q45,$I45-SUM($L45:Q45)), MAX(Q45,$I45-SUM($L45:Q45))) -> 0.5665851543 | S45: =IF($I45 >0, MIN(R45,$I45-SUM($L45:R45)), MAX(R45,$I45-SUM($L45:R45))) -> 0.5665851543 | T45: =IF($I45 >0, MIN(S45,$I45-SUM($L45:S45)), MAX(S45,$I45-SUM($L45:S45))) -> 0.5665851543 | U45: =IF($I45 >0, MIN(T45,$I45-SUM($L45:T45)), MAX(T45,$I45-SUM($L45:T45))) -> 0.5665851543 | V45: =IF($I45 >0, MIN(U45,$I45-SUM($L45:U45)), MAX(U45,$I45-SUM($L45:U45))) -> 0.5665851543 | W45: =IF($I45 >0, MIN(V45,$I45-SUM($L45:V45)), MAX(V45,$I45-SUM($L45:V45))) -> 0.5665851543 | X45: =IF($I45 >0, MIN(W45,$I45-SUM($L45:W45)), MAX(W45,$I45-SUM($L45:W45))) -> 0.5665851543 | Y45: =IF($I45 >0, MIN(X45,$I45-SUM($L45:X45)), MAX(X45,$I45-SUM($L45:X45))) -> 0.5665851543 | Z45: =IF($I45 >0, MIN(Y45,$I45-SUM($L45:Y45)), MAX(Y45,$I45-SUM($L45:Y45))) -> 0.5665851543 | AA45: =IF($I45 >0, MIN(Z45,$I45-SUM($L45:Z45)), MAX(Z45,$I45-SUM($L45:Z45))) -> 0.5665851543 | AB45: =IF($I45 >0, MIN(AA45,$I45-SUM($L45:AA45)), MAX(AA45,$I45-SUM($L45:AA45))) -> 0.5665851543 | AC45: =IF($I45 >0, MIN(AB45,$I45-SUM($L45:AB45)), MAX(AB45,$I45-SUM($L45:AB45))) -> 0.5665851543 | AD45: =IF($I45 >0, MIN(AC45,$I45-SUM($L45:AC45)), MAX(AC45,$I45-SUM($L45:AC45))) -> 0.5665851543 | AE45: =IF($I45 >0, MIN(AD45,$I45-SUM($L45:AD45)), MAX(AD45,$I45-SUM($L45:AD45))) -> 0.5665851543 | AF45: =IF($I45 >0, MIN(AE45,$I45-SUM($L45:AE45)), MAX(AE45,$I45-SUM($L45:AE45))) -> 0.5665851543 | AG45: =IF($I45 >0, MIN(AF45,$I45-SUM($L45:AF45)), MAX(AF45,$I45-SUM($L45:AF45))) -> 0.5665851543 | AH45: =IF($I45 >0, MIN(AG45,$I45-SUM($L45:AG45)), MAX(AG45,$I45-SUM($L45:AG45))) -> 0.5665851543 | AI45: =IF($I45 >0, MIN(AH45,$I45-SUM($L45:AH45)), MAX(AH45,$I45-SUM($L45:AH45))) -> 0.5665851543 | AJ45: =IF($I45 >0, MIN(AI45,$I45-SUM($L45:AI45)), MAX(AI45,$I45-SUM($L45:AI45))) -> 0.5665851543 | AK45: =IF($I45 >0, MIN(AJ45,$I45-SUM($L45:AJ45)), MAX(AJ45,$I45-SUM($L45:AJ45))) -> 3.552713679e-15 | AL45: =IF($I45 >0, MIN(AK45,$I45-SUM($L45:AK45)), MAX(AK45,$I45-SUM($L45:AK45))) -> 0 | AM45: =IF($I45 >0, MIN(AL45,$I45-SUM($L45:AL45)), MAX(AL45,$I45-SUM($L45:AL45))) -> 0 | AN45: =IF($I45 >0, MIN(AM45,$I45-SUM($L45:AM45)), MAX(AM45,$I45-SUM($L45:AM45))) -> 0 | AO45: =IF($I45 >0, MIN(AN45,$I45-SUM($L45:AN45)), MAX(AN45,$I45-SUM($L45:AN45))) -> 0
E46: 1997-03-31 | G46: £m 09/10 prices | I46: 13.54964129 | J46: > | R46: =$I46/Q$34 -> 0.6774820646 | S46: =IF($I46 >0, MIN(R46,$I46-SUM($L46:R46)), MAX(R46,$I46-SUM($L46:R46))) -> 0.6774820646 | T46: =IF($I46 >0, MIN(S46,$I46-SUM($L46:S46)), MAX(S46,$I46-SUM($L46:S46))) -> 0.6774820646 | U46: =IF($I46 >0, MIN(T46,$I46-SUM($L46:T46)), MAX(T46,$I46-SUM($L46:T46))) -> 0.6774820646 | V46: =IF($I46 >0, MIN(U46,$I46-SUM($L46:U46)), MAX(U46,$I46-SUM($L46:U46))) -> 0.6774820646 | W46: =IF($I46 >0, MIN(V46,$I46-SUM($L46:V46)), MAX(V46,$I46-SUM($L46:V46))) -> 0.6774820646 | X46: =IF($I46 >0, MIN(W46,$I46-SUM($L46:W46)), MAX(W46,$I46-SUM($L46:W46))) -> 0.6774820646 | Y46: =IF($I46 >0, MIN(X46,$I46-SUM($L46:X46)), MAX(X46,$I46-SUM($L46:X46))) -> 0.6774820646 | Z46: =IF($I46 >0, MIN(Y46,$I46-SUM($L46:Y46)), MAX(Y46,$I46-SUM($L46:Y46))) -> 0.6774820646 | AA46: =IF($I46 >0, MIN(Z46,$I46-SUM($L46:Z46)), MAX(Z46,$I46-SUM($L46:Z46))) -> 0.6774820646 | AB46: =IF($I46 >0, MIN(AA46,$I46-SUM($L46:AA46)), MAX(AA46,$I46-SUM($L46:AA46))) -> 0.6774820646 | AC46: =IF($I46 >0, MIN(AB46,$I46-SUM($L46:AB46)), MAX(AB46,$I46-SUM($L46:AB46))) -> 0.6774820646 | AD46: =IF($I46 >0, MIN(AC46,$I46-SUM($L46:AC46)), MAX(AC46,$I46-SUM($L46:AC46))) -> 0.6774820646 | AE46: =IF($I46 >0, MIN(AD46,$I46-SUM($L46:AD46)), MAX(AD46,$I46-SUM($L46:AD46))) -> 0.6774820646 | AF46: =IF($I46 >0, MIN(AE46,$I46-SUM($L46:AE46)), MAX(AE46,$I46-SUM($L46:AE46))) -> 0.6774820646 | AG46: =IF($I46 >0, MIN(AF46,$I46-SUM($L46:AF46)), MAX(AF46,$I46-SUM($L46:AF46))) -> 0.6774820646 | AH46: =IF($I46 >0, MIN(AG46,$I46-SUM($L46:AG46)), MAX(AG46,$I46-SUM($L46:AG46))) -> 0.6774820646 | AI46: =IF($I46 >0, MIN(AH46,$I46-SUM($L46:AH46)), MAX(AH46,$I46-SUM($L46:AH46))) -> 0.6774820646 | AJ46: =IF($I46 >0, MIN(AI46,$I46-SUM($L46:AI46)), MAX(AI46,$I46-SUM($L46:AI46))) -> 0.6774820646 | AK46: =IF($I46 >0, MIN(AJ46,$I46-SUM($L46:AJ46)), MAX(AJ46,$I46-SUM($L46:AJ46))) -> 0.6774820646 | AL46: =IF($I46 >0, MIN(AK46,$I46-SUM($L46:AK46)), MAX(AK46,$I46-SUM($L46:AK46))) -> 7.105427358e-15 | AM46: =IF($I46 >0, MIN(AL46,$I46-SUM($L46:AL46)), MAX(AL46,$I46-SUM($L46:AL46))) -> 0 | AN46: =IF($I46 >0, MIN(AM46,$I46-SUM($L46:AM46)), MAX(AM46,$I46-SUM($L46:AM46))) -> 0 | AO46: =IF($I46 >0, MIN(AN46,$I46-SUM($L46:AN46)), MAX(AN46,$I46-SUM($L46:AN46))) -> 0
E47: 1998-03-31 | G47: £m 09/10 prices | I47: 16.20016352 | J47: > | S47: =$I47/R$34 -> 0.8100081759 | T47: =IF($I47 >0, MIN(S47,$I47-SUM($L47:S47)), MAX(S47,$I47-SUM($L47:S47))) -> 0.8100081759 | U47: =IF($I47 >0, MIN(T47,$I47-SUM($L47:T47)), MAX(T47,$I47-SUM($L47:T47))) -> 0.8100081759 | V47: =IF($I47 >0, MIN(U47,$I47-SUM($L47:U47)), MAX(U47,$I47-SUM($L47:U47))) -> 0.8100081759 | W47: =IF($I47 >0, MIN(V47,$I47-SUM($L47:V47)), MAX(V47,$I47-SUM($L47:V47))) -> 0.8100081759 | X47: =IF($I47 >0, MIN(W47,$I47-SUM($L47:W47)), MAX(W47,$I47-SUM($L47:W47))) -> 0.8100081759 | Y47: =IF($I47 >0, MIN(X47,$I47-SUM($L47:X47)), MAX(X47,$I47-SUM($L47:X47))) -> 0.8100081759 | Z47: =IF($I47 >0, MIN(Y47,$I47-SUM($L47:Y47)), MAX(Y47,$I47-SUM($L47:Y47))) -> 0.8100081759 | AA47: =IF($I47 >0, MIN(Z47,$I47-SUM($L47:Z47)), MAX(Z47,$I47-SUM($L47:Z47))) -> 0.8100081759 | AB47: =IF($I47 >0, MIN(AA47,$I47-SUM($L47:AA47)), MAX(AA47,$I47-SUM($L47:AA47))) -> 0.8100081759 | AC47: =IF($I47 >0, MIN(AB47,$I47-SUM($L47:AB47)), MAX(AB47,$I47-SUM($L47:AB47))) -> 0.8100081759 | AD47: =IF($I47 >0, MIN(AC47,$I47-SUM($L47:AC47)), MAX(AC47,$I47-SUM($L47:AC47))) -> 0.8100081759 | AE47: =IF($I47 >0, MIN(AD47,$I47-SUM($L47:AD47)), MAX(AD47,$I47-SUM($L47:AD47))) -> 0.8100081759 | AF47: =IF($I47 >0, MIN(AE47,$I47-SUM($L47:AE47)), MAX(AE47,$I47-SUM($L47:AE47))) -> 0.8100081759 | AG47: =IF($I47 >0, MIN(AF47,$I47-SUM($L47:AF47)), MAX(AF47,$I47-SUM($L47:AF47))) -> 0.8100081759 | AH47: =IF($I47 >0, MIN(AG47,$I47-SUM($L47:AG47)), MAX(AG47,$I47-SUM($L47:AG47))) -> 0.8100081759 | AI47: =IF($I47 >0, MIN(AH47,$I47-SUM($L47:AH47)), MAX(AH47,$I47-SUM($L47:AH47))) -> 0.8100081759 | AJ47: =IF($I47 >0, MIN(AI47,$I47-SUM($L47:AI47)), MAX(AI47,$I47-SUM($L47:AI47))) -> 0.8100081759 | AK47: =IF($I47 >0, MIN(AJ47,$I47-SUM($L47:AJ47)), MAX(AJ47,$I47-SUM($L47:AJ47))) -> 0.8100081759 | AL47: =IF($I47 >0, MIN(AK47,$I47-SUM($L47:AK47)), MAX(AK47,$I47-SUM($L47:AK47))) -> 0.8100081759 | AM47: =IF($I47 >0, MIN(AL47,$I47-SUM($L47:AL47)), MAX(AL47,$I47-SUM($L47:AL47))) -> 0 | AN47: =IF($I47 >0, MIN(AM47,$I47-SUM($L47:AM47)), MAX(AM47,$I47-SUM($L47:AM47))) -> 0 | AO47: =IF($I47 >0, MIN(AN47,$I47-SUM($L47:AN47)), MAX(AN47,$I47-SUM($L47:AN47))) -> 0
E48: 1999-03-31 | G48: £m 09/10 prices | I48: 11.94751933 | J48: > | T48: =$I48/S$34 -> 0.5973759666 | U48: =IF($I48 >0, MIN(T48,$I48-SUM($L48:T48)), MAX(T48,$I48-SUM($L48:T48))) -> 0.5973759666 | V48: =IF($I48 >0, MIN(U48,$I48-SUM($L48:U48)), MAX(U48,$I48-SUM($L48:U48))) -> 0.5973759666 | W48: =IF($I48 >0, MIN(V48,$I48-SUM($L48:V48)), MAX(V48,$I48-SUM($L48:V48))) -> 0.5973759666 | X48: =IF($I48 >0, MIN(W48,$I48-SUM($L48:W48)), MAX(W48,$I48-SUM($L48:W48))) -> 0.5973759666 | Y48: =IF($I48 >0, MIN(X48,$I48-SUM($L48:X48)), MAX(X48,$I48-SUM($L48:X48))) -> 0.5973759666 | Z48: =IF($I48 >0, MIN(Y48,$I48-SUM($L48:Y48)), MAX(Y48,$I48-SUM($L48:Y48))) -> 0.5973759666 | AA48: =IF($I48 >0, MIN(Z48,$I48-SUM($L48:Z48)), MAX(Z48,$I48-SUM($L48:Z48))) -> 0.5973759666 | AB48: =IF($I48 >0, MIN(AA48,$I48-SUM($L48:AA48)), MAX(AA48,$I48-SUM($L48:AA48))) -> 0.5973759666 | AC48: =IF($I48 >0, MIN(AB48,$I48-SUM($L48:AB48)), MAX(AB48,$I48-SUM($L48:AB48))) -> 0.5973759666 | AD48: =IF($I48 >0, MIN(AC48,$I48-SUM($L48:AC48)), MAX(AC48,$I48-SUM($L48:AC48))) -> 0.5973759666 | AE48: =IF($I48 >0, MIN(AD48,$I48-SUM($L48:AD48)), MAX(AD48,$I48-SUM($L48:AD48))) -> 0.5973759666 | AF48: =IF($I48 >0, MIN(AE48,$I48-SUM($L48:AE48)), MAX(AE48,$I48-SUM($L48:AE48))) -> 0.5973759666 | AG48: =IF($I48 >0, MIN(AF48,$I48-SUM($L48:AF48)), MAX(AF48,$I48-SUM($L48:AF48))) -> 0.5973759666 | AH48: =IF($I48 >0, MIN(AG48,$I48-SUM($L48:AG48)), MAX(AG48,$I48-SUM($L48:AG48))) -> 0.5973759666 | AI48: =IF($I48 >0, MIN(AH48,$I48-SUM($L48:AH48)), MAX(AH48,$I48-SUM($L48:AH48))) -> 0.5973759666 | AJ48: =IF($I48 >0, MIN(AI48,$I48-SUM($L48:AI48)), MAX(AI48,$I48-SUM($L48:AI48))) -> 0.5973759666 | AK48: =IF($I48 >0, MIN(AJ48,$I48-SUM($L48:AJ48)), MAX(AJ48,$I48-SUM($L48:AJ48))) -> 0.5973759666 | AL48: =IF($I48 >0, MIN(AK48,$I48-SUM($L48:AK48)), MAX(AK48,$I48-SUM($L48:AK48))) -> 0.5973759666 | AM48: =IF($I48 >0, MIN(AL48,$I48-SUM($L48:AL48)), MAX(AL48,$I48-SUM($L48:AL48))) -> 0.5973759666 | AN48: =IF($I48 >0, MIN(AM48,$I48-SUM($L48:AM48)), MAX(AM48,$I48-SUM($L48:AM48))) -> 1.776356839e-15 | AO48: =IF($I48 >0, MIN(AN48,$I48-SUM($L48:AN48)), MAX(AN48,$I48-SUM($L48:AN48))) -> 0
E49: 2000-03-31 | G49: £m 09/10 prices | I49: 21.7906823 | J49: > | U49: =$I49/T$34 -> 1.089534115 | V49: =IF($I49 >0, MIN(U49,$I49-SUM($L49:U49)), MAX(U49,$I49-SUM($L49:U49))) -> 1.089534115 | W49: =IF($I49 >0, MIN(V49,$I49-SUM($L49:V49)), MAX(V49,$I49-SUM($L49:V49))) -> 1.089534115 | X49: =IF($I49 >0, MIN(W49,$I49-SUM($L49:W49)), MAX(W49,$I49-SUM($L49:W49))) -> 1.089534115 | Y49: =IF($I49 >0, MIN(X49,$I49-SUM($L49:X49)), MAX(X49,$I49-SUM($L49:X49))) -> 1.089534115 | Z49: =IF($I49 >0, MIN(Y49,$I49-SUM($L49:Y49)), MAX(Y49,$I49-SUM($L49:Y49))) -> 1.089534115 | AA49: =IF($I49 >0, MIN(Z49,$I49-SUM($L49:Z49)), MAX(Z49,$I49-SUM($L49:Z49))) -> 1.089534115 | AB49: =IF($I49 >0, MIN(AA49,$I49-SUM($L49:AA49)), MAX(AA49,$I49-SUM($L49:AA49))) -> 1.089534115 | AC49: =IF($I49 >0, MIN(AB49,$I49-SUM($L49:AB49)), MAX(AB49,$I49-SUM($L49:AB49))) -> 1.089534115 | AD49: =IF($I49 >0, MIN(AC49,$I49-SUM($L49:AC49)), MAX(AC49,$I49-SUM($L49:AC49))) -> 1.089534115 | AE49: =IF($I49 >0, MIN(AD49,$I49-SUM($L49:AD49)), MAX(AD49,$I49-SUM($L49:AD49))) -> 1.089534115 | AF49: =IF($I49 >0, MIN(AE49,$I49-SUM($L49:AE49)), MAX(AE49,$I49-SUM($L49:AE49))) -> 1.089534115 | AG49: =IF($I49 >0, MIN(AF49,$I49-SUM($L49:AF49)), MAX(AF49,$I49-SUM($L49:AF49))) -> 1.089534115 | AH49: =IF($I49 >0, MIN(AG49,$I49-SUM($L49:AG49)), MAX(AG49,$I49-SUM($L49:AG49))) -> 1.089534115 | AI49: =IF($I49 >0, MIN(AH49,$I49-SUM($L49:AH49)), MAX(AH49,$I49-SUM($L49:AH49))) -> 1.089534115 | AJ49: =IF($I49 >0, MIN(AI49,$I49-SUM($L49:AI49)), MAX(AI49,$I49-SUM($L49:AI49))) -> 1.089534115 | AK49: =IF($I49 >0, MIN(AJ49,$I49-SUM($L49:AJ49)), MAX(AJ49,$I49-SUM($L49:AJ49))) -> 1.089534115 | AL49: =IF($I49 >0, MIN(AK49,$I49-SUM($L49:AK49)), MAX(AK49,$I49-SUM($L49:AK49))) -> 1.089534115 | AM49: =IF($I49 >0, MIN(AL49,$I49-SUM($L49:AL49)), MAX(AL49,$I49-SUM($L49:AL49))) -> 1.089534115 | AN49: =IF($I49 >0, MIN(AM49,$I49-SUM($L49:AM49)), MAX(AM49,$I49-SUM($L49:AM49))) -> 1.089534115 | AO49: =IF($I49 >0, MIN(AN49,$I49-SUM($L49:AN49)), MAX(AN49,$I49-SUM($L49:AN49))) -> 7.105427358e-15
E50: 2001-03-31 | G50: £m 09/10 prices | I50: 11.33451618 | J50: > | V50: =$I50/U$34 -> 0.5667258091 | W50: =IF($I50 >0, MIN(V50,$I50-SUM($L50:V50)), MAX(V50,$I50-SUM($L50:V50))) -> 0.5667258091 | X50: =IF($I50 >0, MIN(W50,$I50-SUM($L50:W50)), MAX(W50,$I50-SUM($L50:W50))) -> 0.5667258091 | Y50: =IF($I50 >0, MIN(X50,$I50-SUM($L50:X50)), MAX(X50,$I50-SUM($L50:X50))) -> 0.5667258091 | Z50: =IF($I50 >0, MIN(Y50,$I50-SUM($L50:Y50)), MAX(Y50,$I50-SUM($L50:Y50))) -> 0.5667258091 | AA50: =IF($I50 >0, MIN(Z50,$I50-SUM($L50:Z50)), MAX(Z50,$I50-SUM($L50:Z50))) -> 0.5667258091 | AB50: =IF($I50 >0, MIN(AA50,$I50-SUM($L50:AA50)), MAX(AA50,$I50-SUM($L50:AA50))) -> 0.5667258091 | AC50: =IF($I50 >0, MIN(AB50,$I50-SUM($L50:AB50)), MAX(AB50,$I50-SUM($L50:AB50))) -> 0.5667258091 | AD50: =IF($I50 >0, MIN(AC50,$I50-SUM($L50:AC50)), MAX(AC50,$I50-SUM($L50:AC50))) -> 0.5667258091 | AE50: =IF($I50 >0, MIN(AD50,$I50-SUM($L50:AD50)), MAX(AD50,$I50-SUM($L50:AD50))) -> 0.5667258091 | AF50: =IF($I50 >0, MIN(AE50,$I50-SUM($L50:AE50)), MAX(AE50,$I50-SUM($L50:AE50))) -> 0.5667258091 | AG50: =IF($I50 >0, MIN(AF50,$I50-SUM($L50:AF50)), MAX(AF50,$I50-SUM($L50:AF50))) -> 0.5667258091 | AH50: =IF($I50 >0, MIN(AG50,$I50-SUM($L50:AG50)), MAX(AG50,$I50-SUM($L50:AG50))) -> 0.5667258091 | AI50: =IF($I50 >0, MIN(AH50,$I50-SUM($L50:AH50)), MAX(AH50,$I50-SUM($L50:AH50))) -> 0.5667258091 | AJ50: =IF($I50 >0, MIN(AI50,$I50-SUM($L50:AI50)), MAX(AI50,$I50-SUM($L50:AI50))) -> 0.5667258091 | AK50: =IF($I50 >0, MIN(AJ50,$I50-SUM($L50:AJ50)), MAX(AJ50,$I50-SUM($L50:AJ50))) -> 0.5667258091 | AL50: =IF($I50 >0, MIN(AK50,$I50-SUM($L50:AK50)), MAX(AK50,$I50-SUM($L50:AK50))) -> 0.5667258091 | AM50: =IF($I50 >0, MIN(AL50,$I50-SUM($L50:AL50)), MAX(AL50,$I50-SUM($L50:AL50))) -> 0.5667258091 | AN50: =IF($I50 >0, MIN(AM50,$I50-SUM($L50:AM50)), MAX(AM50,$I50-SUM($L50:AM50))) -> 0.5667258091 | AO50: =IF($I50 >0, MIN(AN50,$I50-SUM($L50:AN50)), MAX(AN50,$I50-SUM($L50:AN50))) -> 0.5667258091
E51: 2002-03-31 | G51: £m 09/10 prices | I51: 8.276285554 | J51: > | W51: =$I51/V$34 -> 0.4138142777 | X51: =IF($I51 >0, MIN(W51,$I51-SUM($L51:W51)), MAX(W51,$I51-SUM($L51:W51))) -> 0.4138142777 | Y51: =IF($I51 >0, MIN(X51,$I51-SUM($L51:X51)), MAX(X51,$I51-SUM($L51:X51))) -> 0.4138142777 | Z51: =IF($I51 >0, MIN(Y51,$I51-SUM($L51:Y51)), MAX(Y51,$I51-SUM($L51:Y51))) -> 0.4138142777 | AA51: =IF($I51 >0, MIN(Z51,$I51-SUM($L51:Z51)), MAX(Z51,$I51-SUM($L51:Z51))) -> 0.4138142777 | AB51: =IF($I51 >0, MIN(AA51,$I51-SUM($L51:AA51)), MAX(AA51,$I51-SUM($L51:AA51))) -> 0.4138142777 | AC51: =IF($I51 >0, MIN(AB51,$I51-SUM($L51:AB51)), MAX(AB51,$I51-SUM($L51:AB51))) -> 0.4138142777 | AD51: =IF($I51 >0, MIN(AC51,$I51-SUM($L51:AC51)), MAX(AC51,$I51-SUM($L51:AC51))) -> 0.4138142777 | AE51: =IF($I51 >0, MIN(AD51,$I51-SUM($L51:AD51)), MAX(AD51,$I51-SUM($L51:AD51))) -> 0.4138142777 | AF51: =IF($I51 >0, MIN(AE51,$I51-SUM($L51:AE51)), MAX(AE51,$I51-SUM($L51:AE51))) -> 0.4138142777 | AG51: =IF($I51 >0, MIN(AF51,$I51-SUM($L51:AF51)), MAX(AF51,$I51-SUM($L51:AF51))) -> 0.4138142777 | AH51: =IF($I51 >0, MIN(AG51,$I51-SUM($L51:AG51)), MAX(AG51,$I51-SUM($L51:AG51))) -> 0.4138142777 | AI51: =IF($I51 >0, MIN(AH51,$I51-SUM($L51:AH51)), MAX(AH51,$I51-SUM($L51:AH51))) -> 0.4138142777 | AJ51: =IF($I51 >0, MIN(AI51,$I51-SUM($L51:AI51)), MAX(AI51,$I51-SUM($L51:AI51))) -> 0.4138142777 | AK51: =IF($I51 >0, MIN(AJ51,$I51-SUM($L51:AJ51)), MAX(AJ51,$I51-SUM($L51:AJ51))) -> 0.4138142777 | AL51: =IF($I51 >0, MIN(AK51,$I51-SUM($L51:AK51)), MAX(AK51,$I51-SUM($L51:AK51))) -> 0.4138142777 | AM51: =IF($I51 >0, MIN(AL51,$I51-SUM($L51:AL51)), MAX(AL51,$I51-SUM($L51:AL51))) -> 0.4138142777 | AN51: =IF($I51 >0, MIN(AM51,$I51-SUM($L51:AM51)), MAX(AM51,$I51-SUM($L51:AM51))) -> 0.4138142777 | AO51: =IF($I51 >0, MIN(AN51,$I51-SUM($L51:AN51)), MAX(AN51,$I51-SUM($L51:AN51))) -> 0.4138142777
E52: 2003-03-31 | G52: £m 09/10 prices | I52: 9.518840549 | J52: > | X52: =$I52/W$34 -> 0.4759420275 | Y52: =IF($I52 >0, MIN(X52,$I52-SUM($L52:X52)), MAX(X52,$I52-SUM($L52:X52))) -> 0.4759420275 | Z52: =IF($I52 >0, MIN(Y52,$I52-SUM($L52:Y52)), MAX(Y52,$I52-SUM($L52:Y52))) -> 0.4759420275 | AA52: =IF($I52 >0, MIN(Z52,$I52-SUM($L52:Z52)), MAX(Z52,$I52-SUM($L52:Z52))) -> 0.4759420275 | AB52: =IF($I52 >0, MIN(AA52,$I52-SUM($L52:AA52)), MAX(AA52,$I52-SUM($L52:AA52))) -> 0.4759420275 | AC52: =IF($I52 >0, MIN(AB52,$I52-SUM($L52:AB52)), MAX(AB52,$I52-SUM($L52:AB52))) -> 0.4759420275 | AD52: =IF($I52 >0, MIN(AC52,$I52-SUM($L52:AC52)), MAX(AC52,$I52-SUM($L52:AC52))) -> 0.4759420275 | AE52: =IF($I52 >0, MIN(AD52,$I52-SUM($L52:AD52)), MAX(AD52,$I52-SUM($L52:AD52))) -> 0.4759420275 | AF52: =IF($I52 >0, MIN(AE52,$I52-SUM($L52:AE52)), MAX(AE52,$I52-SUM($L52:AE52))) -> 0.4759420275 | AG52: =IF($I52 >0, MIN(AF52,$I52-SUM($L52:AF52)), MAX(AF52,$I52-SUM($L52:AF52))) -> 0.4759420275 | AH52: =IF($I52 >0, MIN(AG52,$I52-SUM($L52:AG52)), MAX(AG52,$I52-SUM($L52:AG52))) -> 0.4759420275 | AI52: =IF($I52 >0, MIN(AH52,$I52-SUM($L52:AH52)), MAX(AH52,$I52-SUM($L52:AH52))) -> 0.4759420275 | AJ52: =IF($I52 >0, MIN(AI52,$I52-SUM($L52:AI52)), MAX(AI52,$I52-SUM($L52:AI52))) -> 0.4759420275 | AK52: =IF($I52 >0, MIN(AJ52,$I52-SUM($L52:AJ52)), MAX(AJ52,$I52-SUM($L52:AJ52))) -> 0.4759420275 | AL52: =IF($I52 >0, MIN(AK52,$I52-SUM($L52:AK52)), MAX(AK52,$I52-SUM($L52:AK52))) -> 0.4759420275 | AM52: =IF($I52 >0, MIN(AL52,$I52-SUM($L52:AL52)), MAX(AL52,$I52-SUM($L52:AL52))) -> 0.4759420275 | AN52: =IF($I52 >0, MIN(AM52,$I52-SUM($L52:AM52)), MAX(AM52,$I52-SUM($L52:AM52))) -> 0.4759420275 | AO52: =IF($I52 >0, MIN(AN52,$I52-SUM($L52:AN52)), MAX(AN52,$I52-SUM($L52:AN52))) -> 0.4759420275
E53: 2004-03-31 | G53: £m 09/10 prices | I53: 10.21749924 | J53: > | Y53: =$I53/X$34 -> 0.5108749618 | Z53: =IF($I53 >0, MIN(Y53,$I53-SUM($L53:Y53)), MAX(Y53,$I53-SUM($L53:Y53))) -> 0.5108749618 | AA53: =IF($I53 >0, MIN(Z53,$I53-SUM($L53:Z53)), MAX(Z53,$I53-SUM($L53:Z53))) -> 0.5108749618 | AB53: =IF($I53 >0, MIN(AA53,$I53-SUM($L53:AA53)), MAX(AA53,$I53-SUM($L53:AA53))) -> 0.5108749618 | AC53: =IF($I53 >0, MIN(AB53,$I53-SUM($L53:AB53)), MAX(AB53,$I53-SUM($L53:AB53))) -> 0.5108749618 | AD53: =IF($I53 >0, MIN(AC53,$I53-SUM($L53:AC53)), MAX(AC53,$I53-SUM($L53:AC53))) -> 0.5108749618 | AE53: =IF($I53 >0, MIN(AD53,$I53-SUM($L53:AD53)), MAX(AD53,$I53-SUM($L53:AD53))) -> 0.5108749618 | AF53: =IF($I53 >0, MIN(AE53,$I53-SUM($L53:AE53)), MAX(AE53,$I53-SUM($L53:AE53))) -> 0.5108749618 | AG53: =IF($I53 >0, MIN(AF53,$I53-SUM($L53:AF53)), MAX(AF53,$I53-SUM($L53:AF53))) -> 0.5108749618 | AH53: =IF($I53 >0, MIN(AG53,$I53-SUM($L53:AG53)), MAX(AG53,$I53-SUM($L53:AG53))) -> 0.5108749618 | AI53: =IF($I53 >0, MIN(AH53,$I53-SUM($L53:AH53)), MAX(AH53,$I53-SUM($L53:AH53))) -> 0.5108749618 | AJ53: =IF($I53 >0, MIN(AI53,$I53-SUM($L53:AI53)), MAX(AI53,$I53-SUM($L53:AI53))) -> 0.5108749618 | AK53: =IF($I53 >0, MIN(AJ53,$I53-SUM($L53:AJ53)), MAX(AJ53,$I53-SUM($L53:AJ53))) -> 0.5108749618 | AL53: =IF($I53 >0, MIN(AK53,$I53-SUM($L53:AK53)), MAX(AK53,$I53-SUM($L53:AK53))) -> 0.5108749618 | AM53: =IF($I53 >0, MIN(AL53,$I53-SUM($L53:AL53)), MAX(AL53,$I53-SUM($L53:AL53))) -> 0.5108749618 | AN53: =IF($I53 >0, MIN(AM53,$I53-SUM($L53:AM53)), MAX(AM53,$I53-SUM($L53:AM53))) -> 0.5108749618 | AO53: =IF($I53 >0, MIN(AN53,$I53-SUM($L53:AN53)), MAX(AN53,$I53-SUM($L53:AN53))) -> 0.5108749618
E54: 2005-03-31 | G54: £m 09/10 prices | I54: 48.46724408 | J54: > | Z54: =$I54/Y$34 -> 2.423362204 | AA54: =IF($I54 >0, MIN(Z54,$I54-SUM($L54:Z54)), MAX(Z54,$I54-SUM($L54:Z54))) -> 2.423362204 | AB54: =IF($I54 >0, MIN(AA54,$I54-SUM($L54:AA54)), MAX(AA54,$I54-SUM($L54:AA54))) -> 2.423362204 | AC54: =IF($I54 >0, MIN(AB54,$I54-SUM($L54:AB54)), MAX(AB54,$I54-SUM($L54:AB54))) -> 2.423362204 | AD54: =IF($I54 >0, MIN(AC54,$I54-SUM($L54:AC54)), MAX(AC54,$I54-SUM($L54:AC54))) -> 2.423362204 | AE54: =IF($I54 >0, MIN(AD54,$I54-SUM($L54:AD54)), MAX(AD54,$I54-SUM($L54:AD54))) -> 2.423362204 | AF54: =IF($I54 >0, MIN(AE54,$I54-SUM($L54:AE54)), MAX(AE54,$I54-SUM($L54:AE54))) -> 2.423362204 | AG54: =IF($I54 >0, MIN(AF54,$I54-SUM($L54:AF54)), MAX(AF54,$I54-SUM($L54:AF54))) -> 2.423362204 | AH54: =IF($I54 >0, MIN(AG54,$I54-SUM($L54:AG54)), MAX(AG54,$I54-SUM($L54:AG54))) -> 2.423362204 | AI54: =IF($I54 >0, MIN(AH54,$I54-SUM($L54:AH54)), MAX(AH54,$I54-SUM($L54:AH54))) -> 2.423362204 | AJ54: =IF($I54 >0, MIN(AI54,$I54-SUM($L54:AI54)), MAX(AI54,$I54-SUM($L54:AI54))) -> 2.423362204 | AK54: =IF($I54 >0, MIN(AJ54,$I54-SUM($L54:AJ54)), MAX(AJ54,$I54-SUM($L54:AJ54))) -> 2.423362204 | AL54: =IF($I54 >0, MIN(AK54,$I54-SUM($L54:AK54)), MAX(AK54,$I54-SUM($L54:AK54))) -> 2.423362204 | AM54: =IF($I54 >0, MIN(AL54,$I54-SUM($L54:AL54)), MAX(AL54,$I54-SUM($L54:AL54))) -> 2.423362204 | AN54: =IF($I54 >0, MIN(AM54,$I54-SUM($L54:AM54)), MAX(AM54,$I54-SUM($L54:AM54))) -> 2.423362204 | AO54: =IF($I54 >0, MIN(AN54,$I54-SUM($L54:AN54)), MAX(AN54,$I54-SUM($L54:AN54))) -> 2.423362204
E55: 2006-03-31 | G55: £m 09/10 prices | I55: 22.22494925 | J55: > | AA55: =$I55/Z$34 -> 1.111247463 | AB55: =IF($I55 >0, MIN(AA55,$I55-SUM($L55:AA55)), MAX(AA55,$I55-SUM($L55:AA55))) -> 1.111247463 | AC55: =IF($I55 >0, MIN(AB55,$I55-SUM($L55:AB55)), MAX(AB55,$I55-SUM($L55:AB55))) -> 1.111247463 | AD55: =IF($I55 >0, MIN(AC55,$I55-SUM($L55:AC55)), MAX(AC55,$I55-SUM($L55:AC55))) -> 1.111247463 | AE55: =IF($I55 >0, MIN(AD55,$I55-SUM($L55:AD55)), MAX(AD55,$I55-SUM($L55:AD55))) -> 1.111247463 | AF55: =IF($I55 >0, MIN(AE55,$I55-SUM($L55:AE55)), MAX(AE55,$I55-SUM($L55:AE55))) -> 1.111247463 | AG55: =IF($I55 >0, MIN(AF55,$I55-SUM($L55:AF55)), MAX(AF55,$I55-SUM($L55:AF55))) -> 1.111247463 | AH55: =IF($I55 >0, MIN(AG55,$I55-SUM($L55:AG55)), MAX(AG55,$I55-SUM($L55:AG55))) -> 1.111247463 | AI55: =IF($I55 >0, MIN(AH55,$I55-SUM($L55:AH55)), MAX(AH55,$I55-SUM($L55:AH55))) -> 1.111247463 | AJ55: =IF($I55 >0, MIN(AI55,$I55-SUM($L55:AI55)), MAX(AI55,$I55-SUM($L55:AI55))) -> 1.111247463 | AK55: =IF($I55 >0, MIN(AJ55,$I55-SUM($L55:AJ55)), MAX(AJ55,$I55-SUM($L55:AJ55))) -> 1.111247463 | AL55: =IF($I55 >0, MIN(AK55,$I55-SUM($L55:AK55)), MAX(AK55,$I55-SUM($L55:AK55))) -> 1.111247463 | AM55: =IF($I55 >0, MIN(AL55,$I55-SUM($L55:AL55)), MAX(AL55,$I55-SUM($L55:AL55))) -> 1.111247463 | AN55: =IF($I55 >0, MIN(AM55,$I55-SUM($L55:AM55)), MAX(AM55,$I55-SUM($L55:AM55))) -> 1.111247463 | AO55: =IF($I55 >0, MIN(AN55,$I55-SUM($L55:AN55)), MAX(AN55,$I55-SUM($L55:AN55))) -> 1.111247463
E56: 2007-03-31 | G56: £m 09/10 prices | I56: 26.57813046 | J56: > | AB56: =$I56/AA$34 -> 1.328906523 | AC56: =IF($I56 >0, MIN(AB56,$I56-SUM($L56:AB56)), MAX(AB56,$I56-SUM($L56:AB56))) -> 1.328906523 | AD56: =IF($I56 >0, MIN(AC56,$I56-SUM($L56:AC56)), MAX(AC56,$I56-SUM($L56:AC56))) -> 1.328906523 | AE56: =IF($I56 >0, MIN(AD56,$I56-SUM($L56:AD56)), MAX(AD56,$I56-SUM($L56:AD56))) -> 1.328906523 | AF56: =IF($I56 >0, MIN(AE56,$I56-SUM($L56:AE56)), MAX(AE56,$I56-SUM($L56:AE56))) -> 1.328906523 | AG56: =IF($I56 >0, MIN(AF56,$I56-SUM($L56:AF56)), MAX(AF56,$I56-SUM($L56:AF56))) -> 1.328906523 | AH56: =IF($I56 >0, MIN(AG56,$I56-SUM($L56:AG56)), MAX(AG56,$I56-SUM($L56:AG56))) -> 1.328906523 | AI56: =IF($I56 >0, MIN(AH56,$I56-SUM($L56:AH56)), MAX(AH56,$I56-SUM($L56:AH56))) -> 1.328906523 | AJ56: =IF($I56 >0, MIN(AI56,$I56-SUM($L56:AI56)), MAX(AI56,$I56-SUM($L56:AI56))) -> 1.328906523 | AK56: =IF($I56 >0, MIN(AJ56,$I56-SUM($L56:AJ56)), MAX(AJ56,$I56-SUM($L56:AJ56))) -> 1.328906523 | AL56: =IF($I56 >0, MIN(AK56,$I56-SUM($L56:AK56)), MAX(AK56,$I56-SUM($L56:AK56))) -> 1.328906523 | AM56: =IF($I56 >0, MIN(AL56,$I56-SUM($L56:AL56)), MAX(AL56,$I56-SUM($L56:AL56))) -> 1.328906523 | AN56: =IF($I56 >0, MIN(AM56,$I56-SUM($L56:AM56)), MAX(AM56,$I56-SUM($L56:AM56))) -> 1.328906523 | AO56: =IF($I56 >0, MIN(AN56,$I56-SUM($L56:AN56)), MAX(AN56,$I56-SUM($L56:AN56))) -> 1.328906523
E57: 2008-03-31 | G57: £m 09/10 prices | I57: 46.56066118 | J57: > | AC57: =$I57/AB$34 -> 2.328033059 | AD57: =IF($I57 >0, MIN(AC57,$I57-SUM($L57:AC57)), MAX(AC57,$I57-SUM($L57:AC57))) -> 2.328033059 | AE57: =IF($I57 >0, MIN(AD57,$I57-SUM($L57:AD57)), MAX(AD57,$I57-SUM($L57:AD57))) -> 2.328033059 | AF57: =IF($I57 >0, MIN(AE57,$I57-SUM($L57:AE57)), MAX(AE57,$I57-SUM($L57:AE57))) -> 2.328033059 | AG57: =IF($I57 >0, MIN(AF57,$I57-SUM($L57:AF57)), MAX(AF57,$I57-SUM($L57:AF57))) -> 2.328033059 | AH57: =IF($I57 >0, MIN(AG57,$I57-SUM($L57:AG57)), MAX(AG57,$I57-SUM($L57:AG57))) -> 2.328033059 | AI57: =IF($I57 >0, MIN(AH57,$I57-SUM($L57:AH57)), MAX(AH57,$I57-SUM($L57:AH57))) -> 2.328033059 | AJ57: =IF($I57 >0, MIN(AI57,$I57-SUM($L57:AI57)), MAX(AI57,$I57-SUM($L57:AI57))) -> 2.328033059 | AK57: =IF($I57 >0, MIN(AJ57,$I57-SUM($L57:AJ57)), MAX(AJ57,$I57-SUM($L57:AJ57))) -> 2.328033059 | AL57: =IF($I57 >0, MIN(AK57,$I57-SUM($L57:AK57)), MAX(AK57,$I57-SUM($L57:AK57))) -> 2.328033059 | AM57: =IF($I57 >0, MIN(AL57,$I57-SUM($L57:AL57)), MAX(AL57,$I57-SUM($L57:AL57))) -> 2.328033059 | AN57: =IF($I57 >0, MIN(AM57,$I57-SUM($L57:AM57)), MAX(AM57,$I57-SUM($L57:AM57))) -> 2.328033059 | AO57: =IF($I57 >0, MIN(AN57,$I57-SUM($L57:AN57)), MAX(AN57,$I57-SUM($L57:AN57))) -> 2.328033059
E58: 2009-03-31 | G58: £m 09/10 prices | I58: 54.24521673 | J58: > | AD58: =$I58/AC$34 -> 2.712260837 | AE58: =IF($I58 >0, MIN(AD58,$I58-SUM($L58:AD58)), MAX(AD58,$I58-SUM($L58:AD58))) -> 2.712260837 | AF58: =IF($I58 >0, MIN(AE58,$I58-SUM($L58:AE58)), MAX(AE58,$I58-SUM($L58:AE58))) -> 2.712260837 | AG58: =IF($I58 >0, MIN(AF58,$I58-SUM($L58:AF58)), MAX(AF58,$I58-SUM($L58:AF58))) -> 2.712260837 | AH58: =IF($I58 >0, MIN(AG58,$I58-SUM($L58:AG58)), MAX(AG58,$I58-SUM($L58:AG58))) -> 2.712260837 | AI58: =IF($I58 >0, MIN(AH58,$I58-SUM($L58:AH58)), MAX(AH58,$I58-SUM($L58:AH58))) -> 2.712260837 | AJ58: =IF($I58 >0, MIN(AI58,$I58-SUM($L58:AI58)), MAX(AI58,$I58-SUM($L58:AI58))) -> 2.712260837 | AK58: =IF($I58 >0, MIN(AJ58,$I58-SUM($L58:AJ58)), MAX(AJ58,$I58-SUM($L58:AJ58))) -> 2.712260837 | AL58: =IF($I58 >0, MIN(AK58,$I58-SUM($L58:AK58)), MAX(AK58,$I58-SUM($L58:AK58))) -> 2.712260837 | AM58: =IF($I58 >0, MIN(AL58,$I58-SUM($L58:AL58)), MAX(AL58,$I58-SUM($L58:AL58))) -> 2.712260837 | AN58: =IF($I58 >0, MIN(AM58,$I58-SUM($L58:AM58)), MAX(AM58,$I58-SUM($L58:AM58))) -> 2.712260837 | AO58: =IF($I58 >0, MIN(AN58,$I58-SUM($L58:AN58)), MAX(AN58,$I58-SUM($L58:AN58))) -> 2.712260837
E59: 2010-03-31 | G59: £m 09/10 prices | I59: 39.448 | J59: > | AE59: =$I59/AD$34 -> 1.9724 | AF59: =IF($I59 >0, MIN(AE59,$I59-SUM($L59:AE59)), MAX(AE59,$I59-SUM($L59:AE59))) -> 1.9724 | AG59: =IF($I59 >0, MIN(AF59,$I59-SUM($L59:AF59)), MAX(AF59,$I59-SUM($L59:AF59))) -> 1.9724 | AH59: =IF($I59 >0, MIN(AG59,$I59-SUM($L59:AG59)), MAX(AG59,$I59-SUM($L59:AG59))) -> 1.9724 | AI59: =IF($I59 >0, MIN(AH59,$I59-SUM($L59:AH59)), MAX(AH59,$I59-SUM($L59:AH59))) -> 1.9724 | AJ59: =IF($I59 >0, MIN(AI59,$I59-SUM($L59:AI59)), MAX(AI59,$I59-SUM($L59:AI59))) -> 1.9724 | AK59: =IF($I59 >0, MIN(AJ59,$I59-SUM($L59:AJ59)), MAX(AJ59,$I59-SUM($L59:AJ59))) -> 1.9724 | AL59: =IF($I59 >0, MIN(AK59,$I59-SUM($L59:AK59)), MAX(AK59,$I59-SUM($L59:AK59))) -> 1.9724 | AM59: =IF($I59 >0, MIN(AL59,$I59-SUM($L59:AL59)), MAX(AL59,$I59-SUM($L59:AL59))) -> 1.9724 | AN59: =IF($I59 >0, MIN(AM59,$I59-SUM($L59:AM59)), MAX(AM59,$I59-SUM($L59:AM59))) -> 1.9724 | AO59: =IF($I59 >0, MIN(AN59,$I59-SUM($L59:AN59)), MAX(AN59,$I59-SUM($L59:AN59))) -> 1.9724
E60: 2011-03-31 | G60: £m 09/10 prices | I60: 33.45131111 | J60: > | AF60: =$I60/AE$34 -> 1.672565555 | AG60: =IF($I60 >0, MIN(AF60,$I60-SUM($L60:AF60)), MAX(AF60,$I60-SUM($L60:AF60))) -> 1.672565555 | AH60: =IF($I60 >0, MIN(AG60,$I60-SUM($L60:AG60)), MAX(AG60,$I60-SUM($L60:AG60))) -> 1.672565555 | AI60: =IF($I60 >0, MIN(AH60,$I60-SUM($L60:AH60)), MAX(AH60,$I60-SUM($L60:AH60))) -> 1.672565555 | AJ60: =IF($I60 >0, MIN(AI60,$I60-SUM($L60:AI60)), MAX(AI60,$I60-SUM($L60:AI60))) -> 1.672565555 | AK60: =IF($I60 >0, MIN(AJ60,$I60-SUM($L60:AJ60)), MAX(AJ60,$I60-SUM($L60:AJ60))) -> 1.672565555 | AL60: =IF($I60 >0, MIN(AK60,$I60-SUM($L60:AK60)), MAX(AK60,$I60-SUM($L60:AK60))) -> 1.672565555 | AM60: =IF($I60 >0, MIN(AL60,$I60-SUM($L60:AL60)), MAX(AL60,$I60-SUM($L60:AL60))) -> 1.672565555 | AN60: =IF($I60 >0, MIN(AM60,$I60-SUM($L60:AM60)), MAX(AM60,$I60-SUM($L60:AM60))) -> 1.672565555 | AO60: =IF($I60 >0, MIN(AN60,$I60-SUM($L60:AN60)), MAX(AN60,$I60-SUM($L60:AN60))) -> 1.672565555
E61: 2012-03-31 | G61: £m 09/10 prices | I61: 28.94311233 | J61: > | AG61: =$I61/AF$34 -> 1.447155617 | AH61: =IF($I61 >0, MIN(AG61,$I61-SUM($L61:AG61)), MAX(AG61,$I61-SUM($L61:AG61))) -> 1.447155617 | AI61: =IF($I61 >0, MIN(AH61,$I61-SUM($L61:AH61)), MAX(AH61,$I61-SUM($L61:AH61))) -> 1.447155617 | AJ61: =IF($I61 >0, MIN(AI61,$I61-SUM($L61:AI61)), MAX(AI61,$I61-SUM($L61:AI61))) -> 1.447155617 | AK61: =IF($I61 >0, MIN(AJ61,$I61-SUM($L61:AJ61)), MAX(AJ61,$I61-SUM($L61:AJ61))) -> 1.447155617 | AL61: =IF($I61 >0, MIN(AK61,$I61-SUM($L61:AK61)), MAX(AK61,$I61-SUM($L61:AK61))) -> 1.447155617 | AM61: =IF($I61 >0, MIN(AL61,$I61-SUM($L61:AL61)), MAX(AL61,$I61-SUM($L61:AL61))) -> 1.447155617 | AN61: =IF($I61 >0, MIN(AM61,$I61-SUM($L61:AM61)), MAX(AM61,$I61-SUM($L61:AM61))) -> 1.447155617 | AO61: =IF($I61 >0, MIN(AN61,$I61-SUM($L61:AN61)), MAX(AN61,$I61-SUM($L61:AN61))) -> 1.447155617
E62: 2013-03-31 | G62: £m 09/10 prices | I62: 76.4 | AH62: =$I62/AG$34 -> 3.82 | AI62: =IF($I62 >0, MIN(AH62,$I62-SUM($L62:AH62)), MAX(AH62,$I62-SUM($L62:AH62))) -> 3.82 | AJ62: =IF($I62 >0, MIN(AI62,$I62-SUM($L62:AI62)), MAX(AI62,$I62-SUM($L62:AI62))) -> 3.82 | AK62: =IF($I62 >0, MIN(AJ62,$I62-SUM($L62:AJ62)), MAX(AJ62,$I62-SUM($L62:AJ62))) -> 3.82 | AL62: =IF($I62 >0, MIN(AK62,$I62-SUM($L62:AK62)), MAX(AK62,$I62-SUM($L62:AK62))) -> 3.82 | AM62: =IF($I62 >0, MIN(AL62,$I62-SUM($L62:AL62)), MAX(AL62,$I62-SUM($L62:AL62))) -> 3.82 | AN62: =IF($I62 >0, MIN(AM62,$I62-SUM($L62:AM62)), MAX(AM62,$I62-SUM($L62:AM62))) -> 3.82 | AO62: =IF($I62 >0, MIN(AN62,$I62-SUM($L62:AN62)), MAX(AN62,$I62-SUM($L62:AN62))) -> 3.82
E63: 2014-03-31 | G63: £m 09/10 prices | I63: 86.86230888 | AI63: =$I63/AH$34 -> 4.028396934 | AJ63: =IF($I63 >0, MIN(AI63,$I63-SUM($L63:AI63)), MAX(AI63,$I63-SUM($L63:AI63))) -> 4.028396934 | AK63: =IF($I63 >0, MIN(AJ63,$I63-SUM($L63:AJ63)), MAX(AJ63,$I63-SUM($L63:AJ63))) -> 4.028396934 | AL63: =IF($I63 >0, MIN(AK63,$I63-SUM($L63:AK63)), MAX(AK63,$I63-SUM($L63:AK63))) -> 4.028396934 | AM63: =IF($I63 >0, MIN(AL63,$I63-SUM($L63:AL63)), MAX(AL63,$I63-SUM($L63:AL63))) -> 4.028396934 | AN63: =IF($I63 >0, MIN(AM63,$I63-SUM($L63:AM63)), MAX(AM63,$I63-SUM($L63:AM63))) -> 4.028396934 | AO63: =IF($I63 >0, MIN(AN63,$I63-SUM($L63:AN63)), MAX(AN63,$I63-SUM($L63:AN63))) -> 4.028396934
E64: 2015-03-31 | G64: £m 09/10 prices | I64: 276.1933015 | AJ64: =$I64/AI$34 -> 11.94349412 | AK64: =IF($I64 >0, MIN(AJ64,$I64-SUM($L64:AJ64)), MAX(AJ64,$I64-SUM($L64:AJ64))) -> 11.94349412 | AL64: =IF($I64 >0, MIN(AK64,$I64-SUM($L64:AK64)), MAX(AK64,$I64-SUM($L64:AK64))) -> 11.94349412 | AM64: =IF($I64 >0, MIN(AL64,$I64-SUM($L64:AL64)), MAX(AL64,$I64-SUM($L64:AL64))) -> 11.94349412 | AN64: =IF($I64 >0, MIN(AM64,$I64-SUM($L64:AM64)), MAX(AM64,$I64-SUM($L64:AM64))) -> 11.94349412 | AO64: =IF($I64 >0, MIN(AN64,$I64-SUM($L64:AN64)), MAX(AN64,$I64-SUM($L64:AN64))) -> 11.94349412
E65: 2016-03-31 | G65: £m 09/10 prices | I65: 507.0624145 | AK65: =$I65/AJ$34 -> 20.53923704 | AL65: =IF($I65 >0, MIN(AK65,$I65-SUM($L65:AK65)), MAX(AK65,$I65-SUM($L65:AK65))) -> 20.53923704 | AM65: =IF($I65 >0, MIN(AL65,$I65-SUM($L65:AL65)), MAX(AL65,$I65-SUM($L65:AL65))) -> 20.53923704 | AN65: =IF($I65 >0, MIN(AM65,$I65-SUM($L65:AM65)), MAX(AM65,$I65-SUM($L65:AM65))) -> 20.53923704 | AO65: =IF($I65 >0, MIN(AN65,$I65-SUM($L65:AN65)), MAX(AN65,$I65-SUM($L65:AN65))) -> 20.53923704
E66: 2017-03-31 | G66: £m 09/10 prices | I66: 423.3943063 | AL66: =$I66/AK$34 -> 16.12930691 | AM66: =IF($I66 >0, MIN(AL66,$I66-SUM($L66:AL66)), MAX(AL66,$I66-SUM($L66:AL66))) -> 16.12930691 | AN66: =IF($I66 >0, MIN(AM66,$I66-SUM($L66:AM66)), MAX(AM66,$I66-SUM($L66:AM66))) -> 16.12930691 | AO66: =IF($I66 >0, MIN(AN66,$I66-SUM($L66:AN66)), MAX(AN66,$I66-SUM($L66:AN66))) -> 16.12930691
E67: 2018-03-31 | G67: £m 09/10 prices | I67: 317.0888095 | AM67: =$I67/AL$34 -> 11.40094596 | AN67: =IF($I67 >0, MIN(AM67,$I67-SUM($L67:AM67)), MAX(AM67,$I67-SUM($L67:AM67))) -> 11.40094596 | AO67: =IF($I67 >0, MIN(AN67,$I67-SUM($L67:AN67)), MAX(AN67,$I67-SUM($L67:AN67))) -> 11.40094596
E68: 2019-03-31 | G68: £m 09/10 prices | I68: 207.0438231 | AN68: =$I68/AM$34 -> 7.04830036 | AO68: =IF($I68 >0, MIN(AN68,$I68-SUM($L68:AN68)), MAX(AN68,$I68-SUM($L68:AN68))) -> 7.04830036
E69: 2020-03-31 | G69: £m 09/10 prices | I69: 77.25577109 | AO69: =$I69/AN$34 -> 2.497156237
E70: 2021-03-31 | G70: £m 09/10 prices | I70: 73.94035995
C72: Non-accelerated post-vesting depreciation
C73: Note: Non-accelerated depreciation calculations are used to establish the "RAV differential" accumulated as the difference between non-accelerated and accelerated depreciation before full depreciation of vesting assets.
D75: Depreciation parameters
E77: Non-accelerated post-vesting asset life | G77: years | J77: > | K77: =Input!K231 -> 48 | L77: =Input!L231 -> 48 | M77: =Input!M231 -> 48 | N77: =Input!N231 -> 48 | O77: =Input!O231 -> 48 | P77: =Input!P231 -> 48 | Q77: =Input!Q231 -> 48 | R77: =Input!R231 -> 48 | S77: =Input!S231 -> 48 | T77: =Input!T231 -> 48 | U77: =Input!U231 -> 48 | V77: =Input!V231 -> 48 | W77: =Input!W231 -> 48 | X77: =Input!X231 -> 48 | Y77: =Input!Y231 -> 48 | Z77: =Input!Z231 -> 48 | AA77: =Input!AA231 -> 48 | AB77: =Input!AB231 -> 48 | AC77: =Input!AC231 -> 48 | AD77: =Input!AD231 -> 48 | AE77: =Input!AE231 -> 48 | AF77: =Input!AF231 -> 48 | AG77: =Input!AG231 -> 48 | AH77: =Input!AH231 -> 21.5625 | AI77: =Input!AI231 -> 23.125 | AJ77: =Input!AJ231 -> 24.6875 | AK77: =Input!AK231 -> 26.25 | AL77: =Input!AL231 -> 27.8125 | AM77: =Input!AM231 -> 29.375 | AN77: =Input!AN231 -> 30.9375 | AO77: =Input!AO231 -> 32.5
E78: Non-accelerated post-vesting depreciation applied | G78: text | J78: > | L78: =YEAR(L$4) < YEAR($I$25) + $I$26 -> TRUE | M78: TRUE | N78: TRUE | O78: TRUE | P78: TRUE | Q78: TRUE | R78: TRUE | S78: TRUE | T78: TRUE | U78: TRUE | V78: TRUE | W78: TRUE | X78: TRUE | Y78: TRUE | Z78: TRUE | AA78: TRUE | AB78: TRUE | AC78: TRUE | AD78: TRUE | AE78: TRUE | AF78: TRUE | AG78: FALSE | AH78: FALSE | AI78: FALSE | AJ78: FALSE | AK78: FALSE | AL78: FALSE | AM78: FALSE | AN78: FALSE | AO78: FALSE
D80: Depreciation schedule
E82: Non-accelerated depreciation of additions from year ending | I82: Net additions
E83: 1991-03-31 | G83: £m 09/10 prices | I83: =TRANSPOSE(K15:AO15) -> 26.34837128 | J83: > | L83: =$I83/K$77 -> 0.5489244017 | M83: =IF($I83 >0, MIN(L83,$I83-SUM($L83:L83)), MAX(L83,$I83-SUM($L83:L83))) -> 0.5489244017 | N83: =IF($I83 >0, MIN(M83,$I83-SUM($L83:M83)), MAX(M83,$I83-SUM($L83:M83))) -> 0.5489244017 | O83: =IF($I83 >0, MIN(N83,$I83-SUM($L83:N83)), MAX(N83,$I83-SUM($L83:N83))) -> 0.5489244017 | P83: =IF($I83 >0, MIN(O83,$I83-SUM($L83:O83)), MAX(O83,$I83-SUM($L83:O83))) -> 0.5489244017 | Q83: =IF($I83 >0, MIN(P83,$I83-SUM($L83:P83)), MAX(P83,$I83-SUM($L83:P83))) -> 0.5489244017 | R83: =IF($I83 >0, MIN(Q83,$I83-SUM($L83:Q83)), MAX(Q83,$I83-SUM($L83:Q83))) -> 0.5489244017 | S83: =IF($I83 >0, MIN(R83,$I83-SUM($L83:R83)), MAX(R83,$I83-SUM($L83:R83))) -> 0.5489244017 | T83: =IF($I83 >0, MIN(S83,$I83-SUM($L83:S83)), MAX(S83,$I83-SUM($L83:S83))) -> 0.5489244017 | U83: =IF($I83 >0, MIN(T83,$I83-SUM($L83:T83)), MAX(T83,$I83-SUM($L83:T83))) -> 0.5489244017 | V83: =IF($I83 >0, MIN(U83,$I83-SUM($L83:U83)), MAX(U83,$I83-SUM($L83:U83))) -> 0.5489244017 | W83: =IF($I83 >0, MIN(V83,$I83-SUM($L83:V83)), MAX(V83,$I83-SUM($L83:V83))) -> 0.5489244017 | X83: =IF($I83 >0, MIN(W83,$I83-SUM($L83:W83)), MAX(W83,$I83-SUM($L83:W83))) -> 0.5489244017 | Y83: =IF($I83 >0, MIN(X83,$I83-SUM($L83:X83)), MAX(X83,$I83-SUM($L83:X83))) -> 0.5489244017 | Z83: =IF($I83 >0, MIN(Y83,$I83-SUM($L83:Y83)), MAX(Y83,$I83-SUM($L83:Y83))) -> 0.5489244017 | AA83: =IF($I83 >0, MIN(Z83,$I83-SUM($L83:Z83)), MAX(Z83,$I83-SUM($L83:Z83))) -> 0.5489244017 | AB83: =IF($I83 >0, MIN(AA83,$I83-SUM($L83:AA83)), MAX(AA83,$I83-SUM($L83:AA83))) -> 0.5489244017 | AC83: =IF($I83 >0, MIN(AB83,$I83-SUM($L83:AB83)), MAX(AB83,$I83-SUM($L83:AB83))) -> 0.5489244017 | AD83: =IF($I83 >0, MIN(AC83,$I83-SUM($L83:AC83)), MAX(AC83,$I83-SUM($L83:AC83))) -> 0.5489244017 | AE83: =IF($I83 >0, MIN(AD83,$I83-SUM($L83:AD83)), MAX(AD83,$I83-SUM($L83:AD83))) -> 0.5489244017 | AF83: =IF($I83 >0, MIN(AE83,$I83-SUM($L83:AE83)), MAX(AE83,$I83-SUM($L83:AE83))) -> 0.5489244017 | AG83: =IF($I83 >0, MIN(AF83,$I83-SUM($L83:AF83)), MAX(AF83,$I83-SUM($L83:AF83))) -> 0.5489244017 | AH83: =IF($I83 >0, MIN(AG83,$I83-SUM($L83:AG83)), MAX(AG83,$I83-SUM($L83:AG83))) -> 0.5489244017 | AI83: =IF($I83 >0, MIN(AH83,$I83-SUM($L83:AH83)), MAX(AH83,$I83-SUM($L83:AH83))) -> 0.5489244017 | AJ83: =IF($I83 >0, MIN(AI83,$I83-SUM($L83:AI83)), MAX(AI83,$I83-SUM($L83:AI83))) -> 0.5489244017 | AK83: =IF($I83 >0, MIN(AJ83,$I83-SUM($L83:AJ83)), MAX(AJ83,$I83-SUM($L83:AJ83))) -> 0.5489244017 | AL83: =IF($I83 >0, MIN(AK83,$I83-SUM($L83:AK83)), MAX(AK83,$I83-SUM($L83:AK83))) -> 0.5489244017 | AM83: =IF($I83 >0, MIN(AL83,$I83-SUM($L83:AL83)), MAX(AL83,$I83-SUM($L83:AL83))) -> 0.5489244017 | AN83: =IF($I83 >0, MIN(AM83,$I83-SUM($L83:AM83)), MAX(AM83,$I83-SUM($L83:AM83))) -> 0.5489244017 | AO83: =IF($I83 >0, MIN(AN83,$I83-SUM($L83:AN83)), MAX(AN83,$I83-SUM($L83:AN83))) -> 0.5489244017
E84: 1992-03-31 | G84: £m 09/10 prices | I84: 23.75490237 | J84: > | M84: =$I84/L$77 -> 0.4948937994 | N84: =IF($I84 >0, MIN(M84,$I84-SUM($L84:M84)), MAX(M84,$I84-SUM($L84:M84))) -> 0.4948937994 | O84: =IF($I84 >0, MIN(N84,$I84-SUM($L84:N84)), MAX(N84,$I84-SUM($L84:N84))) -> 0.4948937994 | P84: =IF($I84 >0, MIN(O84,$I84-SUM($L84:O84)), MAX(O84,$I84-SUM($L84:O84))) -> 0.4948937994 | Q84: =IF($I84 >0, MIN(P84,$I84-SUM($L84:P84)), MAX(P84,$I84-SUM($L84:P84))) -> 0.4948937994 | R84: =IF($I84 >0, MIN(Q84,$I84-SUM($L84:Q84)), MAX(Q84,$I84-SUM($L84:Q84))) -> 0.4948937994 | S84: =IF($I84 >0, MIN(R84,$I84-SUM($L84:R84)), MAX(R84,$I84-SUM($L84:R84))) -> 0.4948937994 | T84: =IF($I84 >0, MIN(S84,$I84-SUM($L84:S84)), MAX(S84,$I84-SUM($L84:S84))) -> 0.4948937994 | U84: =IF($I84 >0, MIN(T84,$I84-SUM($L84:T84)), MAX(T84,$I84-SUM($L84:T84))) -> 0.4948937994 | V84: =IF($I84 >0, MIN(U84,$I84-SUM($L84:U84)), MAX(U84,$I84-SUM($L84:U84))) -> 0.4948937994 | W84: =IF($I84 >0, MIN(V84,$I84-SUM($L84:V84)), MAX(V84,$I84-SUM($L84:V84))) -> 0.4948937994 | X84: =IF($I84 >0, MIN(W84,$I84-SUM($L84:W84)), MAX(W84,$I84-SUM($L84:W84))) -> 0.4948937994 | Y84: =IF($I84 >0, MIN(X84,$I84-SUM($L84:X84)), MAX(X84,$I84-SUM($L84:X84))) -> 0.4948937994 | Z84: =IF($I84 >0, MIN(Y84,$I84-SUM($L84:Y84)), MAX(Y84,$I84-SUM($L84:Y84))) -> 0.4948937994 | AA84: =IF($I84 >0, MIN(Z84,$I84-SUM($L84:Z84)), MAX(Z84,$I84-SUM($L84:Z84))) -> 0.4948937994 | AB84: =IF($I84 >0, MIN(AA84,$I84-SUM($L84:AA84)), MAX(AA84,$I84-SUM($L84:AA84))) -> 0.4948937994 | AC84: =IF($I84 >0, MIN(AB84,$I84-SUM($L84:AB84)), MAX(AB84,$I84-SUM($L84:AB84))) -> 0.4948937994 | AD84: =IF($I84 >0, MIN(AC84,$I84-SUM($L84:AC84)), MAX(AC84,$I84-SUM($L84:AC84))) -> 0.4948937994 | AE84: =IF($I84 >0, MIN(AD84,$I84-SUM($L84:AD84)), MAX(AD84,$I84-SUM($L84:AD84))) -> 0.4948937994 | AF84: =IF($I84 >0, MIN(AE84,$I84-SUM($L84:AE84)), MAX(AE84,$I84-SUM($L84:AE84))) -> 0.4948937994 | AG84: =IF($I84 >0, MIN(AF84,$I84-SUM($L84:AF84)), MAX(AF84,$I84-SUM($L84:AF84))) -> 0.4948937994 | AH84: =IF($I84 >0, MIN(AG84,$I84-SUM($L84:AG84)), MAX(AG84,$I84-SUM($L84:AG84))) -> 0.4948937994 | AI84: =IF($I84 >0, MIN(AH84,$I84-SUM($L84:AH84)), MAX(AH84,$I84-SUM($L84:AH84))) -> 0.4948937994 | AJ84: =IF($I84 >0, MIN(AI84,$I84-SUM($L84:AI84)), MAX(AI84,$I84-SUM($L84:AI84))) -> 0.4948937994 | AK84: =IF($I84 >0, MIN(AJ84,$I84-SUM($L84:AJ84)), MAX(AJ84,$I84-SUM($L84:AJ84))) -> 0.4948937994 | AL84: =IF($I84 >0, MIN(AK84,$I84-SUM($L84:AK84)), MAX(AK84,$I84-SUM($L84:AK84))) -> 0.4948937994 | AM84: =IF($I84 >0, MIN(AL84,$I84-SUM($L84:AL84)), MAX(AL84,$I84-SUM($L84:AL84))) -> 0.4948937994 | AN84: =IF($I84 >0, MIN(AM84,$I84-SUM($L84:AM84)), MAX(AM84,$I84-SUM($L84:AM84))) -> 0.4948937994 | AO84: =IF($I84 >0, MIN(AN84,$I84-SUM($L84:AN84)), MAX(AN84,$I84-SUM($L84:AN84))) -> 0.4948937994
E85: 1993-03-31 | G85: £m 09/10 prices | I85: 2.327822879 | J85: > | N85: =$I85/M$77 -> 0.04849630999 | O85: =IF($I85 >0, MIN(N85,$I85-SUM($L85:N85)), MAX(N85,$I85-SUM($L85:N85))) -> 0.04849630999 | P85: =IF($I85 >0, MIN(O85,$I85-SUM($L85:O85)), MAX(O85,$I85-SUM($L85:O85))) -> 0.04849630999 | Q85: =IF($I85 >0, MIN(P85,$I85-SUM($L85:P85)), MAX(P85,$I85-SUM($L85:P85))) -> 0.04849630999 | R85: =IF($I85 >0, MIN(Q85,$I85-SUM($L85:Q85)), MAX(Q85,$I85-SUM($L85:Q85))) -> 0.04849630999 | S85: =IF($I85 >0, MIN(R85,$I85-SUM($L85:R85)), MAX(R85,$I85-SUM($L85:R85))) -> 0.04849630999 | T85: =IF($I85 >0, MIN(S85,$I85-SUM($L85:S85)), MAX(S85,$I85-SUM($L85:S85))) -> 0.04849630999 | U85: =IF($I85 >0, MIN(T85,$I85-SUM($L85:T85)), MAX(T85,$I85-SUM($L85:T85))) -> 0.04849630999 | V85: =IF($I85 >0, MIN(U85,$I85-SUM($L85:U85)), MAX(U85,$I85-SUM($L85:U85))) -> 0.04849630999 | W85: =IF($I85 >0, MIN(V85,$I85-SUM($L85:V85)), MAX(V85,$I85-SUM($L85:V85))) -> 0.04849630999 | X85: =IF($I85 >0, MIN(W85,$I85-SUM($L85:W85)), MAX(W85,$I85-SUM($L85:W85))) -> 0.04849630999 | Y85: =IF($I85 >0, MIN(X85,$I85-SUM($L85:X85)), MAX(X85,$I85-SUM($L85:X85))) -> 0.04849630999 | Z85: =IF($I85 >0, MIN(Y85,$I85-SUM($L85:Y85)), MAX(Y85,$I85-SUM($L85:Y85))) -> 0.04849630999 | AA85: =IF($I85 >0, MIN(Z85,$I85-SUM($L85:Z85)), MAX(Z85,$I85-SUM($L85:Z85))) -> 0.04849630999 | AB85: =IF($I85 >0, MIN(AA85,$I85-SUM($L85:AA85)), MAX(AA85,$I85-SUM($L85:AA85))) -> 0.04849630999 | AC85: =IF($I85 >0, MIN(AB85,$I85-SUM($L85:AB85)), MAX(AB85,$I85-SUM($L85:AB85))) -> 0.04849630999 | AD85: =IF($I85 >0, MIN(AC85,$I85-SUM($L85:AC85)), MAX(AC85,$I85-SUM($L85:AC85))) -> 0.04849630999 | AE85: =IF($I85 >0, MIN(AD85,$I85-SUM($L85:AD85)), MAX(AD85,$I85-SUM($L85:AD85))) -> 0.04849630999 | AF85: =IF($I85 >0, MIN(AE85,$I85-SUM($L85:AE85)), MAX(AE85,$I85-SUM($L85:AE85))) -> 0.04849630999 | AG85: =IF($I85 >0, MIN(AF85,$I85-SUM($L85:AF85)), MAX(AF85,$I85-SUM($L85:AF85))) -> 0.04849630999 | AH85: =IF($I85 >0, MIN(AG85,$I85-SUM($L85:AG85)), MAX(AG85,$I85-SUM($L85:AG85))) -> 0.04849630999 | AI85: =IF($I85 >0, MIN(AH85,$I85-SUM($L85:AH85)), MAX(AH85,$I85-SUM($L85:AH85))) -> 0.04849630999 | AJ85: =IF($I85 >0, MIN(AI85,$I85-SUM($L85:AI85)), MAX(AI85,$I85-SUM($L85:AI85))) -> 0.04849630999 | AK85: =IF($I85 >0, MIN(AJ85,$I85-SUM($L85:AJ85)), MAX(AJ85,$I85-SUM($L85:AJ85))) -> 0.04849630999 | AL85: =IF($I85 >0, MIN(AK85,$I85-SUM($L85:AK85)), MAX(AK85,$I85-SUM($L85:AK85))) -> 0.04849630999 | AM85: =IF($I85 >0, MIN(AL85,$I85-SUM($L85:AL85)), MAX(AL85,$I85-SUM($L85:AL85))) -> 0.04849630999 | AN85: =IF($I85 >0, MIN(AM85,$I85-SUM($L85:AM85)), MAX(AM85,$I85-SUM($L85:AM85))) -> 0.04849630999 | AO85: =IF($I85 >0, MIN(AN85,$I85-SUM($L85:AN85)), MAX(AN85,$I85-SUM($L85:AN85))) -> 0.04849630999
E86: 1994-03-31 | G86: £m 09/10 prices | I86: 26.41201469 | J86: > | O86: =$I86/N$77 -> 0.5502503061 | P86: =IF($I86 >0, MIN(O86,$I86-SUM($L86:O86)), MAX(O86,$I86-SUM($L86:O86))) -> 0.5502503061 | Q86: =IF($I86 >0, MIN(P86,$I86-SUM($L86:P86)), MAX(P86,$I86-SUM($L86:P86))) -> 0.5502503061 | R86: =IF($I86 >0, MIN(Q86,$I86-SUM($L86:Q86)), MAX(Q86,$I86-SUM($L86:Q86))) -> 0.5502503061 | S86: =IF($I86 >0, MIN(R86,$I86-SUM($L86:R86)), MAX(R86,$I86-SUM($L86:R86))) -> 0.5502503061 | T86: =IF($I86 >0, MIN(S86,$I86-SUM($L86:S86)), MAX(S86,$I86-SUM($L86:S86))) -> 0.5502503061 | U86: =IF($I86 >0, MIN(T86,$I86-SUM($L86:T86)), MAX(T86,$I86-SUM($L86:T86))) -> 0.5502503061 | V86: =IF($I86 >0, MIN(U86,$I86-SUM($L86:U86)), MAX(U86,$I86-SUM($L86:U86))) -> 0.5502503061 | W86: =IF($I86 >0, MIN(V86,$I86-SUM($L86:V86)), MAX(V86,$I86-SUM($L86:V86))) -> 0.5502503061 | X86: =IF($I86 >0, MIN(W86,$I86-SUM($L86:W86)), MAX(W86,$I86-SUM($L86:W86))) -> 0.5502503061 | Y86: =IF($I86 >0, MIN(X86,$I86-SUM($L86:X86)), MAX(X86,$I86-SUM($L86:X86))) -> 0.5502503061 | Z86: =IF($I86 >0, MIN(Y86,$I86-SUM($L86:Y86)), MAX(Y86,$I86-SUM($L86:Y86))) -> 0.5502503061 | AA86: =IF($I86 >0, MIN(Z86,$I86-SUM($L86:Z86)), MAX(Z86,$I86-SUM($L86:Z86))) -> 0.5502503061 | AB86: =IF($I86 >0, MIN(AA86,$I86-SUM($L86:AA86)), MAX(AA86,$I86-SUM($L86:AA86))) -> 0.5502503061 | AC86: =IF($I86 >0, MIN(AB86,$I86-SUM($L86:AB86)), MAX(AB86,$I86-SUM($L86:AB86))) -> 0.5502503061 | AD86: =IF($I86 >0, MIN(AC86,$I86-SUM($L86:AC86)), MAX(AC86,$I86-SUM($L86:AC86))) -> 0.5502503061 | AE86: =IF($I86 >0, MIN(AD86,$I86-SUM($L86:AD86)), MAX(AD86,$I86-SUM($L86:AD86))) -> 0.5502503061 | AF86: =IF($I86 >0, MIN(AE86,$I86-SUM($L86:AE86)), MAX(AE86,$I86-SUM($L86:AE86))) -> 0.5502503061 | AG86: =IF($I86 >0, MIN(AF86,$I86-SUM($L86:AF86)), MAX(AF86,$I86-SUM($L86:AF86))) -> 0.5502503061 | AH86: =IF($I86 >0, MIN(AG86,$I86-SUM($L86:AG86)), MAX(AG86,$I86-SUM($L86:AG86))) -> 0.5502503061 | AI86: =IF($I86 >0, MIN(AH86,$I86-SUM($L86:AH86)), MAX(AH86,$I86-SUM($L86:AH86))) -> 0.5502503061 | AJ86: =IF($I86 >0, MIN(AI86,$I86-SUM($L86:AI86)), MAX(AI86,$I86-SUM($L86:AI86))) -> 0.5502503061 | AK86: =IF($I86 >0, MIN(AJ86,$I86-SUM($L86:AJ86)), MAX(AJ86,$I86-SUM($L86:AJ86))) -> 0.5502503061 | AL86: =IF($I86 >0, MIN(AK86,$I86-SUM($L86:AK86)), MAX(AK86,$I86-SUM($L86:AK86))) -> 0.5502503061 | AM86: =IF($I86 >0, MIN(AL86,$I86-SUM($L86:AL86)), MAX(AL86,$I86-SUM($L86:AL86))) -> 0.5502503061 | AN86: =IF($I86 >0, MIN(AM86,$I86-SUM($L86:AM86)), MAX(AM86,$I86-SUM($L86:AM86))) -> 0.5502503061 | AO86: =IF($I86 >0, MIN(AN86,$I86-SUM($L86:AN86)), MAX(AN86,$I86-SUM($L86:AN86))) -> 0.5502503061
E87: 1995-03-31 | G87: £m 09/10 prices | I87: 11.06815457 | J87: > | P87: =$I87/O$77 -> 0.2305865535 | Q87: =IF($I87 >0, MIN(P87,$I87-SUM($L87:P87)), MAX(P87,$I87-SUM($L87:P87))) -> 0.2305865535 | R87: =IF($I87 >0, MIN(Q87,$I87-SUM($L87:Q87)), MAX(Q87,$I87-SUM($L87:Q87))) -> 0.2305865535 | S87: =IF($I87 >0, MIN(R87,$I87-SUM($L87:R87)), MAX(R87,$I87-SUM($L87:R87))) -> 0.2305865535 | T87: =IF($I87 >0, MIN(S87,$I87-SUM($L87:S87)), MAX(S87,$I87-SUM($L87:S87))) -> 0.2305865535 | U87: =IF($I87 >0, MIN(T87,$I87-SUM($L87:T87)), MAX(T87,$I87-SUM($L87:T87))) -> 0.2305865535 | V87: =IF($I87 >0, MIN(U87,$I87-SUM($L87:U87)), MAX(U87,$I87-SUM($L87:U87))) -> 0.2305865535 | W87: =IF($I87 >0, MIN(V87,$I87-SUM($L87:V87)), MAX(V87,$I87-SUM($L87:V87))) -> 0.2305865535 | X87: =IF($I87 >0, MIN(W87,$I87-SUM($L87:W87)), MAX(W87,$I87-SUM($L87:W87))) -> 0.2305865535 | Y87: =IF($I87 >0, MIN(X87,$I87-SUM($L87:X87)), MAX(X87,$I87-SUM($L87:X87))) -> 0.2305865535 | Z87: =IF($I87 >0, MIN(Y87,$I87-SUM($L87:Y87)), MAX(Y87,$I87-SUM($L87:Y87))) -> 0.2305865535 | AA87: =IF($I87 >0, MIN(Z87,$I87-SUM($L87:Z87)), MAX(Z87,$I87-SUM($L87:Z87))) -> 0.2305865535 | AB87: =IF($I87 >0, MIN(AA87,$I87-SUM($L87:AA87)), MAX(AA87,$I87-SUM($L87:AA87))) -> 0.2305865535 | AC87: =IF($I87 >0, MIN(AB87,$I87-SUM($L87:AB87)), MAX(AB87,$I87-SUM($L87:AB87))) -> 0.2305865535 | AD87: =IF($I87 >0, MIN(AC87,$I87-SUM($L87:AC87)), MAX(AC87,$I87-SUM($L87:AC87))) -> 0.2305865535 | AE87: =IF($I87 >0, MIN(AD87,$I87-SUM($L87:AD87)), MAX(AD87,$I87-SUM($L87:AD87))) -> 0.2305865535 | AF87: =IF($I87 >0, MIN(AE87,$I87-SUM($L87:AE87)), MAX(AE87,$I87-SUM($L87:AE87))) -> 0.2305865535 | AG87: =IF($I87 >0, MIN(AF87,$I87-SUM($L87:AF87)), MAX(AF87,$I87-SUM($L87:AF87))) -> 0.2305865535 | AH87: =IF($I87 >0, MIN(AG87,$I87-SUM($L87:AG87)), MAX(AG87,$I87-SUM($L87:AG87))) -> 0.2305865535 | AI87: =IF($I87 >0, MIN(AH87,$I87-SUM($L87:AH87)), MAX(AH87,$I87-SUM($L87:AH87))) -> 0.2305865535 | AJ87: =IF($I87 >0, MIN(AI87,$I87-SUM($L87:AI87)), MAX(AI87,$I87-SUM($L87:AI87))) -> 0.2305865535 | AK87: =IF($I87 >0, MIN(AJ87,$I87-SUM($L87:AJ87)), MAX(AJ87,$I87-SUM($L87:AJ87))) -> 0.2305865535 | AL87: =IF($I87 >0, MIN(AK87,$I87-SUM($L87:AK87)), MAX(AK87,$I87-SUM($L87:AK87))) -> 0.2305865535 | AM87: =IF($I87 >0, MIN(AL87,$I87-SUM($L87:AL87)), MAX(AL87,$I87-SUM($L87:AL87))) -> 0.2305865535 | AN87: =IF($I87 >0, MIN(AM87,$I87-SUM($L87:AM87)), MAX(AM87,$I87-SUM($L87:AM87))) -> 0.2305865535 | AO87: =IF($I87 >0, MIN(AN87,$I87-SUM($L87:AN87)), MAX(AN87,$I87-SUM($L87:AN87))) -> 0.2305865535
E88: 1996-03-31 | G88: £m 09/10 prices | I88: 11.33170309 | J88: > | Q88: =$I88/P$77 -> 0.2360771476 | R88: =IF($I88 >0, MIN(Q88,$I88-SUM($L88:Q88)), MAX(Q88,$I88-SUM($L88:Q88))) -> 0.2360771476 | S88: =IF($I88 >0, MIN(R88,$I88-SUM($L88:R88)), MAX(R88,$I88-SUM($L88:R88))) -> 0.2360771476 | T88: =IF($I88 >0, MIN(S88,$I88-SUM($L88:S88)), MAX(S88,$I88-SUM($L88:S88))) -> 0.2360771476 | U88: =IF($I88 >0, MIN(T88,$I88-SUM($L88:T88)), MAX(T88,$I88-SUM($L88:T88))) -> 0.2360771476 | V88: =IF($I88 >0, MIN(U88,$I88-SUM($L88:U88)), MAX(U88,$I88-SUM($L88:U88))) -> 0.2360771476 | W88: =IF($I88 >0, MIN(V88,$I88-SUM($L88:V88)), MAX(V88,$I88-SUM($L88:V88))) -> 0.2360771476 | X88: =IF($I88 >0, MIN(W88,$I88-SUM($L88:W88)), MAX(W88,$I88-SUM($L88:W88))) -> 0.2360771476 | Y88: =IF($I88 >0, MIN(X88,$I88-SUM($L88:X88)), MAX(X88,$I88-SUM($L88:X88))) -> 0.2360771476 | Z88: =IF($I88 >0, MIN(Y88,$I88-SUM($L88:Y88)), MAX(Y88,$I88-SUM($L88:Y88))) -> 0.2360771476 | AA88: =IF($I88 >0, MIN(Z88,$I88-SUM($L88:Z88)), MAX(Z88,$I88-SUM($L88:Z88))) -> 0.2360771476 | AB88: =IF($I88 >0, MIN(AA88,$I88-SUM($L88:AA88)), MAX(AA88,$I88-SUM($L88:AA88))) -> 0.2360771476 | AC88: =IF($I88 >0, MIN(AB88,$I88-SUM($L88:AB88)), MAX(AB88,$I88-SUM($L88:AB88))) -> 0.2360771476 | AD88: =IF($I88 >0, MIN(AC88,$I88-SUM($L88:AC88)), MAX(AC88,$I88-SUM($L88:AC88))) -> 0.2360771476 | AE88: =IF($I88 >0, MIN(AD88,$I88-SUM($L88:AD88)), MAX(AD88,$I88-SUM($L88:AD88))) -> 0.2360771476 | AF88: =IF($I88 >0, MIN(AE88,$I88-SUM($L88:AE88)), MAX(AE88,$I88-SUM($L88:AE88))) -> 0.2360771476 | AG88: =IF($I88 >0, MIN(AF88,$I88-SUM($L88:AF88)), MAX(AF88,$I88-SUM($L88:AF88))) -> 0.2360771476 | AH88: =IF($I88 >0, MIN(AG88,$I88-SUM($L88:AG88)), MAX(AG88,$I88-SUM($L88:AG88))) -> 0.2360771476 | AI88: =IF($I88 >0, MIN(AH88,$I88-SUM($L88:AH88)), MAX(AH88,$I88-SUM($L88:AH88))) -> 0.2360771476 | AJ88: =IF($I88 >0, MIN(AI88,$I88-SUM($L88:AI88)), MAX(AI88,$I88-SUM($L88:AI88))) -> 0.2360771476 | AK88: =IF($I88 >0, MIN(AJ88,$I88-SUM($L88:AJ88)), MAX(AJ88,$I88-SUM($L88:AJ88))) -> 0.2360771476 | AL88: =IF($I88 >0, MIN(AK88,$I88-SUM($L88:AK88)), MAX(AK88,$I88-SUM($L88:AK88))) -> 0.2360771476 | AM88: =IF($I88 >0, MIN(AL88,$I88-SUM($L88:AL88)), MAX(AL88,$I88-SUM($L88:AL88))) -> 0.2360771476 | AN88: =IF($I88 >0, MIN(AM88,$I88-SUM($L88:AM88)), MAX(AM88,$I88-SUM($L88:AM88))) -> 0.2360771476 | AO88: =IF($I88 >0, MIN(AN88,$I88-SUM($L88:AN88)), MAX(AN88,$I88-SUM($L88:AN88))) -> 0.2360771476
E89: 1997-03-31 | G89: £m 09/10 prices | I89: 13.54964129 | J89: > | R89: =$I89/Q$77 -> 0.2822841936 | S89: =IF($I89 >0, MIN(R89,$I89-SUM($L89:R89)), MAX(R89,$I89-SUM($L89:R89))) -> 0.2822841936 | T89: =IF($I89 >0, MIN(S89,$I89-SUM($L89:S89)), MAX(S89,$I89-SUM($L89:S89))) -> 0.2822841936 | U89: =IF($I89 >0, MIN(T89,$I89-SUM($L89:T89)), MAX(T89,$I89-SUM($L89:T89))) -> 0.2822841936 | V89: =IF($I89 >0, MIN(U89,$I89-SUM($L89:U89)), MAX(U89,$I89-SUM($L89:U89))) -> 0.2822841936 | W89: =IF($I89 >0, MIN(V89,$I89-SUM($L89:V89)), MAX(V89,$I89-SUM($L89:V89))) -> 0.2822841936 | X89: =IF($I89 >0, MIN(W89,$I89-SUM($L89:W89)), MAX(W89,$I89-SUM($L89:W89))) -> 0.2822841936 | Y89: =IF($I89 >0, MIN(X89,$I89-SUM($L89:X89)), MAX(X89,$I89-SUM($L89:X89))) -> 0.2822841936 | Z89: =IF($I89 >0, MIN(Y89,$I89-SUM($L89:Y89)), MAX(Y89,$I89-SUM($L89:Y89))) -> 0.2822841936 | AA89: =IF($I89 >0, MIN(Z89,$I89-SUM($L89:Z89)), MAX(Z89,$I89-SUM($L89:Z89))) -> 0.2822841936 | AB89: =IF($I89 >0, MIN(AA89,$I89-SUM($L89:AA89)), MAX(AA89,$I89-SUM($L89:AA89))) -> 0.2822841936 | AC89: =IF($I89 >0, MIN(AB89,$I89-SUM($L89:AB89)), MAX(AB89,$I89-SUM($L89:AB89))) -> 0.2822841936 | AD89: =IF($I89 >0, MIN(AC89,$I89-SUM($L89:AC89)), MAX(AC89,$I89-SUM($L89:AC89))) -> 0.2822841936 | AE89: =IF($I89 >0, MIN(AD89,$I89-SUM($L89:AD89)), MAX(AD89,$I89-SUM($L89:AD89))) -> 0.2822841936 | AF89: =IF($I89 >0, MIN(AE89,$I89-SUM($L89:AE89)), MAX(AE89,$I89-SUM($L89:AE89))) -> 0.2822841936 | AG89: =IF($I89 >0, MIN(AF89,$I89-SUM($L89:AF89)), MAX(AF89,$I89-SUM($L89:AF89))) -> 0.2822841936 | AH89: =IF($I89 >0, MIN(AG89,$I89-SUM($L89:AG89)), MAX(AG89,$I89-SUM($L89:AG89))) -> 0.2822841936 | AI89: =IF($I89 >0, MIN(AH89,$I89-SUM($L89:AH89)), MAX(AH89,$I89-SUM($L89:AH89))) -> 0.2822841936 | AJ89: =IF($I89 >0, MIN(AI89,$I89-SUM($L89:AI89)), MAX(AI89,$I89-SUM($L89:AI89))) -> 0.2822841936 | AK89: =IF($I89 >0, MIN(AJ89,$I89-SUM($L89:AJ89)), MAX(AJ89,$I89-SUM($L89:AJ89))) -> 0.2822841936 | AL89: =IF($I89 >0, MIN(AK89,$I89-SUM($L89:AK89)), MAX(AK89,$I89-SUM($L89:AK89))) -> 0.2822841936 | AM89: =IF($I89 >0, MIN(AL89,$I89-SUM($L89:AL89)), MAX(AL89,$I89-SUM($L89:AL89))) -> 0.2822841936 | AN89: =IF($I89 >0, MIN(AM89,$I89-SUM($L89:AM89)), MAX(AM89,$I89-SUM($L89:AM89))) -> 0.2822841936 | AO89: =IF($I89 >0, MIN(AN89,$I89-SUM($L89:AN89)), MAX(AN89,$I89-SUM($L89:AN89))) -> 0.2822841936
E90: 1998-03-31 | G90: £m 09/10 prices | I90: 16.20016352 | J90: > | S90: =$I90/R$77 -> 0.3375034066 | T90: =IF($I90 >0, MIN(S90,$I90-SUM($L90:S90)), MAX(S90,$I90-SUM($L90:S90))) -> 0.3375034066 | U90: =IF($I90 >0, MIN(T90,$I90-SUM($L90:T90)), MAX(T90,$I90-SUM($L90:T90))) -> 0.3375034066 | V90: =IF($I90 >0, MIN(U90,$I90-SUM($L90:U90)), MAX(U90,$I90-SUM($L90:U90))) -> 0.3375034066 | W90: =IF($I90 >0, MIN(V90,$I90-SUM($L90:V90)), MAX(V90,$I90-SUM($L90:V90))) -> 0.3375034066 | X90: =IF($I90 >0, MIN(W90,$I90-SUM($L90:W90)), MAX(W90,$I90-SUM($L90:W90))) -> 0.3375034066 | Y90: =IF($I90 >0, MIN(X90,$I90-SUM($L90:X90)), MAX(X90,$I90-SUM($L90:X90))) -> 0.3375034066 | Z90: =IF($I90 >0, MIN(Y90,$I90-SUM($L90:Y90)), MAX(Y90,$I90-SUM($L90:Y90))) -> 0.3375034066 | AA90: =IF($I90 >0, MIN(Z90,$I90-SUM($L90:Z90)), MAX(Z90,$I90-SUM($L90:Z90))) -> 0.3375034066 | AB90: =IF($I90 >0, MIN(AA90,$I90-SUM($L90:AA90)), MAX(AA90,$I90-SUM($L90:AA90))) -> 0.3375034066 | AC90: =IF($I90 >0, MIN(AB90,$I90-SUM($L90:AB90)), MAX(AB90,$I90-SUM($L90:AB90))) -> 0.3375034066 | AD90: =IF($I90 >0, MIN(AC90,$I90-SUM($L90:AC90)), MAX(AC90,$I90-SUM($L90:AC90))) -> 0.3375034066 | AE90: =IF($I90 >0, MIN(AD90,$I90-SUM($L90:AD90)), MAX(AD90,$I90-SUM($L90:AD90))) -> 0.3375034066 | AF90: =IF($I90 >0, MIN(AE90,$I90-SUM($L90:AE90)), MAX(AE90,$I90-SUM($L90:AE90))) -> 0.3375034066 | AG90: =IF($I90 >0, MIN(AF90,$I90-SUM($L90:AF90)), MAX(AF90,$I90-SUM($L90:AF90))) -> 0.3375034066 | AH90: =IF($I90 >0, MIN(AG90,$I90-SUM($L90:AG90)), MAX(AG90,$I90-SUM($L90:AG90))) -> 0.3375034066 | AI90: =IF($I90 >0, MIN(AH90,$I90-SUM($L90:AH90)), MAX(AH90,$I90-SUM($L90:AH90))) -> 0.3375034066 | AJ90: =IF($I90 >0, MIN(AI90,$I90-SUM($L90:AI90)), MAX(AI90,$I90-SUM($L90:AI90))) -> 0.3375034066 | AK90: =IF($I90 >0, MIN(AJ90,$I90-SUM($L90:AJ90)), MAX(AJ90,$I90-SUM($L90:AJ90))) -> 0.3375034066 | AL90: =IF($I90 >0, MIN(AK90,$I90-SUM($L90:AK90)), MAX(AK90,$I90-SUM($L90:AK90))) -> 0.3375034066 | AM90: =IF($I90 >0, MIN(AL90,$I90-SUM($L90:AL90)), MAX(AL90,$I90-SUM($L90:AL90))) -> 0.3375034066 | AN90: =IF($I90 >0, MIN(AM90,$I90-SUM($L90:AM90)), MAX(AM90,$I90-SUM($L90:AM90))) -> 0.3375034066 | AO90: =IF($I90 >0, MIN(AN90,$I90-SUM($L90:AN90)), MAX(AN90,$I90-SUM($L90:AN90))) -> 0.3375034066
E91: 1999-03-31 | G91: £m 09/10 prices | I91: 11.94751933 | J91: > | T91: =$I91/S$77 -> 0.2489066528 | U91: =IF($I91 >0, MIN(T91,$I91-SUM($L91:T91)), MAX(T91,$I91-SUM($L91:T91))) -> 0.2489066528 | V91: =IF($I91 >0, MIN(U91,$I91-SUM($L91:U91)), MAX(U91,$I91-SUM($L91:U91))) -> 0.2489066528 | W91: =IF($I91 >0, MIN(V91,$I91-SUM($L91:V91)), MAX(V91,$I91-SUM($L91:V91))) -> 0.2489066528 | X91: =IF($I91 >0, MIN(W91,$I91-SUM($L91:W91)), MAX(W91,$I91-SUM($L91:W91))) -> 0.2489066528 | Y91: =IF($I91 >0, MIN(X91,$I91-SUM($L91:X91)), MAX(X91,$I91-SUM($L91:X91))) -> 0.2489066528 | Z91: =IF($I91 >0, MIN(Y91,$I91-SUM($L91:Y91)), MAX(Y91,$I91-SUM($L91:Y91))) -> 0.2489066528 | AA91: =IF($I91 >0, MIN(Z91,$I91-SUM($L91:Z91)), MAX(Z91,$I91-SUM($L91:Z91))) -> 0.2489066528 | AB91: =IF($I91 >0, MIN(AA91,$I91-SUM($L91:AA91)), MAX(AA91,$I91-SUM($L91:AA91))) -> 0.2489066528 | AC91: =IF($I91 >0, MIN(AB91,$I91-SUM($L91:AB91)), MAX(AB91,$I91-SUM($L91:AB91))) -> 0.2489066528 | AD91: =IF($I91 >0, MIN(AC91,$I91-SUM($L91:AC91)), MAX(AC91,$I91-SUM($L91:AC91))) -> 0.2489066528 | AE91: =IF($I91 >0, MIN(AD91,$I91-SUM($L91:AD91)), MAX(AD91,$I91-SUM($L91:AD91))) -> 0.2489066528 | AF91: =IF($I91 >0, MIN(AE91,$I91-SUM($L91:AE91)), MAX(AE91,$I91-SUM($L91:AE91))) -> 0.2489066528 | AG91: =IF($I91 >0, MIN(AF91,$I91-SUM($L91:AF91)), MAX(AF91,$I91-SUM($L91:AF91))) -> 0.2489066528 | AH91: =IF($I91 >0, MIN(AG91,$I91-SUM($L91:AG91)), MAX(AG91,$I91-SUM($L91:AG91))) -> 0.2489066528 | AI91: =IF($I91 >0, MIN(AH91,$I91-SUM($L91:AH91)), MAX(AH91,$I91-SUM($L91:AH91))) -> 0.2489066528 | AJ91: =IF($I91 >0, MIN(AI91,$I91-SUM($L91:AI91)), MAX(AI91,$I91-SUM($L91:AI91))) -> 0.2489066528 | AK91: =IF($I91 >0, MIN(AJ91,$I91-SUM($L91:AJ91)), MAX(AJ91,$I91-SUM($L91:AJ91))) -> 0.2489066528 | AL91: =IF($I91 >0, MIN(AK91,$I91-SUM($L91:AK91)), MAX(AK91,$I91-SUM($L91:AK91))) -> 0.2489066528 | AM91: =IF($I91 >0, MIN(AL91,$I91-SUM($L91:AL91)), MAX(AL91,$I91-SUM($L91:AL91))) -> 0.2489066528 | AN91: =IF($I91 >0, MIN(AM91,$I91-SUM($L91:AM91)), MAX(AM91,$I91-SUM($L91:AM91))) -> 0.2489066528 | AO91: =IF($I91 >0, MIN(AN91,$I91-SUM($L91:AN91)), MAX(AN91,$I91-SUM($L91:AN91))) -> 0.2489066528
E92: 2000-03-31 | G92: £m 09/10 prices | I92: 21.7906823 | J92: > | U92: =$I92/T$77 -> 0.4539725478 | V92: =IF($I92 >0, MIN(U92,$I92-SUM($L92:U92)), MAX(U92,$I92-SUM($L92:U92))) -> 0.4539725478 | W92: =IF($I92 >0, MIN(V92,$I92-SUM($L92:V92)), MAX(V92,$I92-SUM($L92:V92))) -> 0.4539725478 | X92: =IF($I92 >0, MIN(W92,$I92-SUM($L92:W92)), MAX(W92,$I92-SUM($L92:W92))) -> 0.4539725478 | Y92: =IF($I92 >0, MIN(X92,$I92-SUM($L92:X92)), MAX(X92,$I92-SUM($L92:X92))) -> 0.4539725478 | Z92: =IF($I92 >0, MIN(Y92,$I92-SUM($L92:Y92)), MAX(Y92,$I92-SUM($L92:Y92))) -> 0.4539725478 | AA92: =IF($I92 >0, MIN(Z92,$I92-SUM($L92:Z92)), MAX(Z92,$I92-SUM($L92:Z92))) -> 0.4539725478 | AB92: =IF($I92 >0, MIN(AA92,$I92-SUM($L92:AA92)), MAX(AA92,$I92-SUM($L92:AA92))) -> 0.4539725478 | AC92: =IF($I92 >0, MIN(AB92,$I92-SUM($L92:AB92)), MAX(AB92,$I92-SUM($L92:AB92))) -> 0.4539725478 | AD92: =IF($I92 >0, MIN(AC92,$I92-SUM($L92:AC92)), MAX(AC92,$I92-SUM($L92:AC92))) -> 0.4539725478 | AE92: =IF($I92 >0, MIN(AD92,$I92-SUM($L92:AD92)), MAX(AD92,$I92-SUM($L92:AD92))) -> 0.4539725478 | AF92: =IF($I92 >0, MIN(AE92,$I92-SUM($L92:AE92)), MAX(AE92,$I92-SUM($L92:AE92))) -> 0.4539725478 | AG92: =IF($I92 >0, MIN(AF92,$I92-SUM($L92:AF92)), MAX(AF92,$I92-SUM($L92:AF92))) -> 0.4539725478 | AH92: =IF($I92 >0, MIN(AG92,$I92-SUM($L92:AG92)), MAX(AG92,$I92-SUM($L92:AG92))) -> 0.4539725478 | AI92: =IF($I92 >0, MIN(AH92,$I92-SUM($L92:AH92)), MAX(AH92,$I92-SUM($L92:AH92))) -> 0.4539725478 | AJ92: =IF($I92 >0, MIN(AI92,$I92-SUM($L92:AI92)), MAX(AI92,$I92-SUM($L92:AI92))) -> 0.4539725478 | AK92: =IF($I92 >0, MIN(AJ92,$I92-SUM($L92:AJ92)), MAX(AJ92,$I92-SUM($L92:AJ92))) -> 0.4539725478 | AL92: =IF($I92 >0, MIN(AK92,$I92-SUM($L92:AK92)), MAX(AK92,$I92-SUM($L92:AK92))) -> 0.4539725478 | AM92: =IF($I92 >0, MIN(AL92,$I92-SUM($L92:AL92)), MAX(AL92,$I92-SUM($L92:AL92))) -> 0.4539725478 | AN92: =IF($I92 >0, MIN(AM92,$I92-SUM($L92:AM92)), MAX(AM92,$I92-SUM($L92:AM92))) -> 0.4539725478 | AO92: =IF($I92 >0, MIN(AN92,$I92-SUM($L92:AN92)), MAX(AN92,$I92-SUM($L92:AN92))) -> 0.4539725478
E93: 2001-03-31 | G93: £m 09/10 prices | I93: 11.33451618 | J93: > | V93: =$I93/U$77 -> 0.2361357538 | W93: =IF($I93 >0, MIN(V93,$I93-SUM($L93:V93)), MAX(V93,$I93-SUM($L93:V93))) -> 0.2361357538 | X93: =IF($I93 >0, MIN(W93,$I93-SUM($L93:W93)), MAX(W93,$I93-SUM($L93:W93))) -> 0.2361357538 | Y93: =IF($I93 >0, MIN(X93,$I93-SUM($L93:X93)), MAX(X93,$I93-SUM($L93:X93))) -> 0.2361357538 | Z93: =IF($I93 >0, MIN(Y93,$I93-SUM($L93:Y93)), MAX(Y93,$I93-SUM($L93:Y93))) -> 0.2361357538 | AA93: =IF($I93 >0, MIN(Z93,$I93-SUM($L93:Z93)), MAX(Z93,$I93-SUM($L93:Z93))) -> 0.2361357538 | AB93: =IF($I93 >0, MIN(AA93,$I93-SUM($L93:AA93)), MAX(AA93,$I93-SUM($L93:AA93))) -> 0.2361357538 | AC93: =IF($I93 >0, MIN(AB93,$I93-SUM($L93:AB93)), MAX(AB93,$I93-SUM($L93:AB93))) -> 0.2361357538 | AD93: =IF($I93 >0, MIN(AC93,$I93-SUM($L93:AC93)), MAX(AC93,$I93-SUM($L93:AC93))) -> 0.2361357538 | AE93: =IF($I93 >0, MIN(AD93,$I93-SUM($L93:AD93)), MAX(AD93,$I93-SUM($L93:AD93))) -> 0.2361357538 | AF93: =IF($I93 >0, MIN(AE93,$I93-SUM($L93:AE93)), MAX(AE93,$I93-SUM($L93:AE93))) -> 0.2361357538 | AG93: =IF($I93 >0, MIN(AF93,$I93-SUM($L93:AF93)), MAX(AF93,$I93-SUM($L93:AF93))) -> 0.2361357538 | AH93: =IF($I93 >0, MIN(AG93,$I93-SUM($L93:AG93)), MAX(AG93,$I93-SUM($L93:AG93))) -> 0.2361357538 | AI93: =IF($I93 >0, MIN(AH93,$I93-SUM($L93:AH93)), MAX(AH93,$I93-SUM($L93:AH93))) -> 0.2361357538 | AJ93: =IF($I93 >0, MIN(AI93,$I93-SUM($L93:AI93)), MAX(AI93,$I93-SUM($L93:AI93))) -> 0.2361357538 | AK93: =IF($I93 >0, MIN(AJ93,$I93-SUM($L93:AJ93)), MAX(AJ93,$I93-SUM($L93:AJ93))) -> 0.2361357538 | AL93: =IF($I93 >0, MIN(AK93,$I93-SUM($L93:AK93)), MAX(AK93,$I93-SUM($L93:AK93))) -> 0.2361357538 | AM93: =IF($I93 >0, MIN(AL93,$I93-SUM($L93:AL93)), MAX(AL93,$I93-SUM($L93:AL93))) -> 0.2361357538 | AN93: =IF($I93 >0, MIN(AM93,$I93-SUM($L93:AM93)), MAX(AM93,$I93-SUM($L93:AM93))) -> 0.2361357538 | AO93: =IF($I93 >0, MIN(AN93,$I93-SUM($L93:AN93)), MAX(AN93,$I93-SUM($L93:AN93))) -> 0.2361357538
E94: 2002-03-31 | G94: £m 09/10 prices | I94: 8.276285554 | J94: > | W94: =$I94/V$77 -> 0.1724226157 | X94: =IF($I94 >0, MIN(W94,$I94-SUM($L94:W94)), MAX(W94,$I94-SUM($L94:W94))) -> 0.1724226157 | Y94: =IF($I94 >0, MIN(X94,$I94-SUM($L94:X94)), MAX(X94,$I94-SUM($L94:X94))) -> 0.1724226157 | Z94: =IF($I94 >0, MIN(Y94,$I94-SUM($L94:Y94)), MAX(Y94,$I94-SUM($L94:Y94))) -> 0.1724226157 | AA94: =IF($I94 >0, MIN(Z94,$I94-SUM($L94:Z94)), MAX(Z94,$I94-SUM($L94:Z94))) -> 0.1724226157 | AB94: =IF($I94 >0, MIN(AA94,$I94-SUM($L94:AA94)), MAX(AA94,$I94-SUM($L94:AA94))) -> 0.1724226157 | AC94: =IF($I94 >0, MIN(AB94,$I94-SUM($L94:AB94)), MAX(AB94,$I94-SUM($L94:AB94))) -> 0.1724226157 | AD94: =IF($I94 >0, MIN(AC94,$I94-SUM($L94:AC94)), MAX(AC94,$I94-SUM($L94:AC94))) -> 0.1724226157 | AE94: =IF($I94 >0, MIN(AD94,$I94-SUM($L94:AD94)), MAX(AD94,$I94-SUM($L94:AD94))) -> 0.1724226157 | AF94: =IF($I94 >0, MIN(AE94,$I94-SUM($L94:AE94)), MAX(AE94,$I94-SUM($L94:AE94))) -> 0.1724226157 | AG94: =IF($I94 >0, MIN(AF94,$I94-SUM($L94:AF94)), MAX(AF94,$I94-SUM($L94:AF94))) -> 0.1724226157 | AH94: =IF($I94 >0, MIN(AG94,$I94-SUM($L94:AG94)), MAX(AG94,$I94-SUM($L94:AG94))) -> 0.1724226157 | AI94: =IF($I94 >0, MIN(AH94,$I94-SUM($L94:AH94)), MAX(AH94,$I94-SUM($L94:AH94))) -> 0.1724226157 | AJ94: =IF($I94 >0, MIN(AI94,$I94-SUM($L94:AI94)), MAX(AI94,$I94-SUM($L94:AI94))) -> 0.1724226157 | AK94: =IF($I94 >0, MIN(AJ94,$I94-SUM($L94:AJ94)), MAX(AJ94,$I94-SUM($L94:AJ94))) -> 0.1724226157 | AL94: =IF($I94 >0, MIN(AK94,$I94-SUM($L94:AK94)), MAX(AK94,$I94-SUM($L94:AK94))) -> 0.1724226157 | AM94: =IF($I94 >0, MIN(AL94,$I94-SUM($L94:AL94)), MAX(AL94,$I94-SUM($L94:AL94))) -> 0.1724226157 | AN94: =IF($I94 >0, MIN(AM94,$I94-SUM($L94:AM94)), MAX(AM94,$I94-SUM($L94:AM94))) -> 0.1724226157 | AO94: =IF($I94 >0, MIN(AN94,$I94-SUM($L94:AN94)), MAX(AN94,$I94-SUM($L94:AN94))) -> 0.1724226157
E95: 2003-03-31 | G95: £m 09/10 prices | I95: 9.518840549 | J95: > | X95: =$I95/W$77 -> 0.1983091781 | Y95: =IF($I95 >0, MIN(X95,$I95-SUM($L95:X95)), MAX(X95,$I95-SUM($L95:X95))) -> 0.1983091781 | Z95: =IF($I95 >0, MIN(Y95,$I95-SUM($L95:Y95)), MAX(Y95,$I95-SUM($L95:Y95))) -> 0.1983091781 | AA95: =IF($I95 >0, MIN(Z95,$I95-SUM($L95:Z95)), MAX(Z95,$I95-SUM($L95:Z95))) -> 0.1983091781 | AB95: =IF($I95 >0, MIN(AA95,$I95-SUM($L95:AA95)), MAX(AA95,$I95-SUM($L95:AA95))) -> 0.1983091781 | AC95: =IF($I95 >0, MIN(AB95,$I95-SUM($L95:AB95)), MAX(AB95,$I95-SUM($L95:AB95))) -> 0.1983091781 | AD95: =IF($I95 >0, MIN(AC95,$I95-SUM($L95:AC95)), MAX(AC95,$I95-SUM($L95:AC95))) -> 0.1983091781 | AE95: =IF($I95 >0, MIN(AD95,$I95-SUM($L95:AD95)), MAX(AD95,$I95-SUM($L95:AD95))) -> 0.1983091781 | AF95: =IF($I95 >0, MIN(AE95,$I95-SUM($L95:AE95)), MAX(AE95,$I95-SUM($L95:AE95))) -> 0.1983091781 | AG95: =IF($I95 >0, MIN(AF95,$I95-SUM($L95:AF95)), MAX(AF95,$I95-SUM($L95:AF95))) -> 0.1983091781 | AH95: =IF($I95 >0, MIN(AG95,$I95-SUM($L95:AG95)), MAX(AG95,$I95-SUM($L95:AG95))) -> 0.1983091781 | AI95: =IF($I95 >0, MIN(AH95,$I95-SUM($L95:AH95)), MAX(AH95,$I95-SUM($L95:AH95))) -> 0.1983091781 | AJ95: =IF($I95 >0, MIN(AI95,$I95-SUM($L95:AI95)), MAX(AI95,$I95-SUM($L95:AI95))) -> 0.1983091781 | AK95: =IF($I95 >0, MIN(AJ95,$I95-SUM($L95:AJ95)), MAX(AJ95,$I95-SUM($L95:AJ95))) -> 0.1983091781 | AL95: =IF($I95 >0, MIN(AK95,$I95-SUM($L95:AK95)), MAX(AK95,$I95-SUM($L95:AK95))) -> 0.1983091781 | AM95: =IF($I95 >0, MIN(AL95,$I95-SUM($L95:AL95)), MAX(AL95,$I95-SUM($L95:AL95))) -> 0.1983091781 | AN95: =IF($I95 >0, MIN(AM95,$I95-SUM($L95:AM95)), MAX(AM95,$I95-SUM($L95:AM95))) -> 0.1983091781 | AO95: =IF($I95 >0, MIN(AN95,$I95-SUM($L95:AN95)), MAX(AN95,$I95-SUM($L95:AN95))) -> 0.1983091781
E96: 2004-03-31 | G96: £m 09/10 prices | I96: 10.21749924 | J96: > | Y96: =$I96/X$77 -> 0.2128645674 | Z96: =IF($I96 >0, MIN(Y96,$I96-SUM($L96:Y96)), MAX(Y96,$I96-SUM($L96:Y96))) -> 0.2128645674 | AA96: =IF($I96 >0, MIN(Z96,$I96-SUM($L96:Z96)), MAX(Z96,$I96-SUM($L96:Z96))) -> 0.2128645674 | AB96: =IF($I96 >0, MIN(AA96,$I96-SUM($L96:AA96)), MAX(AA96,$I96-SUM($L96:AA96))) -> 0.2128645674 | AC96: =IF($I96 >0, MIN(AB96,$I96-SUM($L96:AB96)), MAX(AB96,$I96-SUM($L96:AB96))) -> 0.2128645674 | AD96: =IF($I96 >0, MIN(AC96,$I96-SUM($L96:AC96)), MAX(AC96,$I96-SUM($L96:AC96))) -> 0.2128645674 | AE96: =IF($I96 >0, MIN(AD96,$I96-SUM($L96:AD96)), MAX(AD96,$I96-SUM($L96:AD96))) -> 0.2128645674 | AF96: =IF($I96 >0, MIN(AE96,$I96-SUM($L96:AE96)), MAX(AE96,$I96-SUM($L96:AE96))) -> 0.2128645674 | AG96: =IF($I96 >0, MIN(AF96,$I96-SUM($L96:AF96)), MAX(AF96,$I96-SUM($L96:AF96))) -> 0.2128645674 | AH96: =IF($I96 >0, MIN(AG96,$I96-SUM($L96:AG96)), MAX(AG96,$I96-SUM($L96:AG96))) -> 0.2128645674 | AI96: =IF($I96 >0, MIN(AH96,$I96-SUM($L96:AH96)), MAX(AH96,$I96-SUM($L96:AH96))) -> 0.2128645674 | AJ96: =IF($I96 >0, MIN(AI96,$I96-SUM($L96:AI96)), MAX(AI96,$I96-SUM($L96:AI96))) -> 0.2128645674 | AK96: =IF($I96 >0, MIN(AJ96,$I96-SUM($L96:AJ96)), MAX(AJ96,$I96-SUM($L96:AJ96))) -> 0.2128645674 | AL96: =IF($I96 >0, MIN(AK96,$I96-SUM($L96:AK96)), MAX(AK96,$I96-SUM($L96:AK96))) -> 0.2128645674 | AM96: =IF($I96 >0, MIN(AL96,$I96-SUM($L96:AL96)), MAX(AL96,$I96-SUM($L96:AL96))) -> 0.2128645674 | AN96: =IF($I96 >0, MIN(AM96,$I96-SUM($L96:AM96)), MAX(AM96,$I96-SUM($L96:AM96))) -> 0.2128645674 | AO96: =IF($I96 >0, MIN(AN96,$I96-SUM($L96:AN96)), MAX(AN96,$I96-SUM($L96:AN96))) -> 0.2128645674
E97: 2005-03-31 | G97: £m 09/10 prices | I97: 48.46724408 | J97: > | Z97: =$I97/Y$77 -> 1.009734252 | AA97: =IF($I97 >0, MIN(Z97,$I97-SUM($L97:Z97)), MAX(Z97,$I97-SUM($L97:Z97))) -> 1.009734252 | AB97: =IF($I97 >0, MIN(AA97,$I97-SUM($L97:AA97)), MAX(AA97,$I97-SUM($L97:AA97))) -> 1.009734252 | AC97: =IF($I97 >0, MIN(AB97,$I97-SUM($L97:AB97)), MAX(AB97,$I97-SUM($L97:AB97))) -> 1.009734252 | AD97: =IF($I97 >0, MIN(AC97,$I97-SUM($L97:AC97)), MAX(AC97,$I97-SUM($L97:AC97))) -> 1.009734252 | AE97: =IF($I97 >0, MIN(AD97,$I97-SUM($L97:AD97)), MAX(AD97,$I97-SUM($L97:AD97))) -> 1.009734252 | AF97: =IF($I97 >0, MIN(AE97,$I97-SUM($L97:AE97)), MAX(AE97,$I97-SUM($L97:AE97))) -> 1.009734252 | AG97: =IF($I97 >0, MIN(AF97,$I97-SUM($L97:AF97)), MAX(AF97,$I97-SUM($L97:AF97))) -> 1.009734252 | AH97: =IF($I97 >0, MIN(AG97,$I97-SUM($L97:AG97)), MAX(AG97,$I97-SUM($L97:AG97))) -> 1.009734252 | AI97: =IF($I97 >0, MIN(AH97,$I97-SUM($L97:AH97)), MAX(AH97,$I97-SUM($L97:AH97))) -> 1.009734252 | AJ97: =IF($I97 >0, MIN(AI97,$I97-SUM($L97:AI97)), MAX(AI97,$I97-SUM($L97:AI97))) -> 1.009734252 | AK97: =IF($I97 >0, MIN(AJ97,$I97-SUM($L97:AJ97)), MAX(AJ97,$I97-SUM($L97:AJ97))) -> 1.009734252 | AL97: =IF($I97 >0, MIN(AK97,$I97-SUM($L97:AK97)), MAX(AK97,$I97-SUM($L97:AK97))) -> 1.009734252 | AM97: =IF($I97 >0, MIN(AL97,$I97-SUM($L97:AL97)), MAX(AL97,$I97-SUM($L97:AL97))) -> 1.009734252 | AN97: =IF($I97 >0, MIN(AM97,$I97-SUM($L97:AM97)), MAX(AM97,$I97-SUM($L97:AM97))) -> 1.009734252 | AO97: =IF($I97 >0, MIN(AN97,$I97-SUM($L97:AN97)), MAX(AN97,$I97-SUM($L97:AN97))) -> 1.009734252
E98: 2006-03-31 | G98: £m 09/10 prices | I98: 22.22494925 | J98: > | AA98: =$I98/Z$77 -> 0.4630197761 | AB98: =IF($I98 >0, MIN(AA98,$I98-SUM($L98:AA98)), MAX(AA98,$I98-SUM($L98:AA98))) -> 0.4630197761 | AC98: =IF($I98 >0, MIN(AB98,$I98-SUM($L98:AB98)), MAX(AB98,$I98-SUM($L98:AB98))) -> 0.4630197761 | AD98: =IF($I98 >0, MIN(AC98,$I98-SUM($L98:AC98)), MAX(AC98,$I98-SUM($L98:AC98))) -> 0.4630197761 | AE98: =IF($I98 >0, MIN(AD98,$I98-SUM($L98:AD98)), MAX(AD98,$I98-SUM($L98:AD98))) -> 0.4630197761 | AF98: =IF($I98 >0, MIN(AE98,$I98-SUM($L98:AE98)), MAX(AE98,$I98-SUM($L98:AE98))) -> 0.4630197761 | AG98: =IF($I98 >0, MIN(AF98,$I98-SUM($L98:AF98)), MAX(AF98,$I98-SUM($L98:AF98))) -> 0.4630197761 | AH98: =IF($I98 >0, MIN(AG98,$I98-SUM($L98:AG98)), MAX(AG98,$I98-SUM($L98:AG98))) -> 0.4630197761 | AI98: =IF($I98 >0, MIN(AH98,$I98-SUM($L98:AH98)), MAX(AH98,$I98-SUM($L98:AH98))) -> 0.4630197761 | AJ98: =IF($I98 >0, MIN(AI98,$I98-SUM($L98:AI98)), MAX(AI98,$I98-SUM($L98:AI98))) -> 0.4630197761 | AK98: =IF($I98 >0, MIN(AJ98,$I98-SUM($L98:AJ98)), MAX(AJ98,$I98-SUM($L98:AJ98))) -> 0.4630197761 | AL98: =IF($I98 >0, MIN(AK98,$I98-SUM($L98:AK98)), MAX(AK98,$I98-SUM($L98:AK98))) -> 0.4630197761 | AM98: =IF($I98 >0, MIN(AL98,$I98-SUM($L98:AL98)), MAX(AL98,$I98-SUM($L98:AL98))) -> 0.4630197761 | AN98: =IF($I98 >0, MIN(AM98,$I98-SUM($L98:AM98)), MAX(AM98,$I98-SUM($L98:AM98))) -> 0.4630197761 | AO98: =IF($I98 >0, MIN(AN98,$I98-SUM($L98:AN98)), MAX(AN98,$I98-SUM($L98:AN98))) -> 0.4630197761
E99: 2007-03-31 | G99: £m 09/10 prices | I99: 26.57813046 | J99: > | AB99: =$I99/AA$77 -> 0.5537110513 | AC99: =IF($I99 >0, MIN(AB99,$I99-SUM($L99:AB99)), MAX(AB99,$I99-SUM($L99:AB99))) -> 0.5537110513 | AD99: =IF($I99 >0, MIN(AC99,$I99-SUM($L99:AC99)), MAX(AC99,$I99-SUM($L99:AC99))) -> 0.5537110513 | AE99: =IF($I99 >0, MIN(AD99,$I99-SUM($L99:AD99)), MAX(AD99,$I99-SUM($L99:AD99))) -> 0.5537110513 | AF99: =IF($I99 >0, MIN(AE99,$I99-SUM($L99:AE99)), MAX(AE99,$I99-SUM($L99:AE99))) -> 0.5537110513 | AG99: =IF($I99 >0, MIN(AF99,$I99-SUM($L99:AF99)), MAX(AF99,$I99-SUM($L99:AF99))) -> 0.5537110513 | AH99: =IF($I99 >0, MIN(AG99,$I99-SUM($L99:AG99)), MAX(AG99,$I99-SUM($L99:AG99))) -> 0.5537110513 | AI99: =IF($I99 >0, MIN(AH99,$I99-SUM($L99:AH99)), MAX(AH99,$I99-SUM($L99:AH99))) -> 0.5537110513 | AJ99: =IF($I99 >0, MIN(AI99,$I99-SUM($L99:AI99)), MAX(AI99,$I99-SUM($L99:AI99))) -> 0.5537110513 | AK99: =IF($I99 >0, MIN(AJ99,$I99-SUM($L99:AJ99)), MAX(AJ99,$I99-SUM($L99:AJ99))) -> 0.5537110513 | AL99: =IF($I99 >0, MIN(AK99,$I99-SUM($L99:AK99)), MAX(AK99,$I99-SUM($L99:AK99))) -> 0.5537110513 | AM99: =IF($I99 >0, MIN(AL99,$I99-SUM($L99:AL99)), MAX(AL99,$I99-SUM($L99:AL99))) -> 0.5537110513 | AN99: =IF($I99 >0, MIN(AM99,$I99-SUM($L99:AM99)), MAX(AM99,$I99-SUM($L99:AM99))) -> 0.5537110513 | AO99: =IF($I99 >0, MIN(AN99,$I99-SUM($L99:AN99)), MAX(AN99,$I99-SUM($L99:AN99))) -> 0.5537110513
E100: 2008-03-31 | G100: £m 09/10 prices | I100: 46.56066118 | J100: > | AC100: =$I100/AB$77 -> 0.9700137746 | AD100: =IF($I100 >0, MIN(AC100,$I100-SUM($L100:AC100)), MAX(AC100,$I100-SUM($L100:AC100))) -> 0.9700137746 | AE100: =IF($I100 >0, MIN(AD100,$I100-SUM($L100:AD100)), MAX(AD100,$I100-SUM($L100:AD100))) -> 0.9700137746 | AF100: =IF($I100 >0, MIN(AE100,$I100-SUM($L100:AE100)), MAX(AE100,$I100-SUM($L100:AE100))) -> 0.9700137746 | AG100: =IF($I100 >0, MIN(AF100,$I100-SUM($L100:AF100)), MAX(AF100,$I100-SUM($L100:AF100))) -> 0.9700137746 | AH100: =IF($I100 >0, MIN(AG100,$I100-SUM($L100:AG100)), MAX(AG100,$I100-SUM($L100:AG100))) -> 0.9700137746 | AI100: =IF($I100 >0, MIN(AH100,$I100-SUM($L100:AH100)), MAX(AH100,$I100-SUM($L100:AH100))) -> 0.9700137746 | AJ100: =IF($I100 >0, MIN(AI100,$I100-SUM($L100:AI100)), MAX(AI100,$I100-SUM($L100:AI100))) -> 0.9700137746 | AK100: =IF($I100 >0, MIN(AJ100,$I100-SUM($L100:AJ100)), MAX(AJ100,$I100-SUM($L100:AJ100))) -> 0.9700137746 | AL100: =IF($I100 >0, MIN(AK100,$I100-SUM($L100:AK100)), MAX(AK100,$I100-SUM($L100:AK100))) -> 0.9700137746 | AM100: =IF($I100 >0, MIN(AL100,$I100-SUM($L100:AL100)), MAX(AL100,$I100-SUM($L100:AL100))) -> 0.9700137746 | AN100: =IF($I100 >0, MIN(AM100,$I100-SUM($L100:AM100)), MAX(AM100,$I100-SUM($L100:AM100))) -> 0.9700137746 | AO100: =IF($I100 >0, MIN(AN100,$I100-SUM($L100:AN100)), MAX(AN100,$I100-SUM($L100:AN100))) -> 0.9700137746
E101: 2009-03-31 | G101: £m 09/10 prices | I101: 54.24521673 | J101: > | AD101: =$I101/AC$77 -> 1.130108682 | AE101: =IF($I101 >0, MIN(AD101,$I101-SUM($L101:AD101)), MAX(AD101,$I101-SUM($L101:AD101))) -> 1.130108682 | AF101: =IF($I101 >0, MIN(AE101,$I101-SUM($L101:AE101)), MAX(AE101,$I101-SUM($L101:AE101))) -> 1.130108682 | AG101: =IF($I101 >0, MIN(AF101,$I101-SUM($L101:AF101)), MAX(AF101,$I101-SUM($L101:AF101))) -> 1.130108682 | AH101: =IF($I101 >0, MIN(AG101,$I101-SUM($L101:AG101)), MAX(AG101,$I101-SUM($L101:AG101))) -> 1.130108682 | AI101: =IF($I101 >0, MIN(AH101,$I101-SUM($L101:AH101)), MAX(AH101,$I101-SUM($L101:AH101))) -> 1.130108682 | AJ101: =IF($I101 >0, MIN(AI101,$I101-SUM($L101:AI101)), MAX(AI101,$I101-SUM($L101:AI101))) -> 1.130108682 | AK101: =IF($I101 >0, MIN(AJ101,$I101-SUM($L101:AJ101)), MAX(AJ101,$I101-SUM($L101:AJ101))) -> 1.130108682 | AL101: =IF($I101 >0, MIN(AK101,$I101-SUM($L101:AK101)), MAX(AK101,$I101-SUM($L101:AK101))) -> 1.130108682 | AM101: =IF($I101 >0, MIN(AL101,$I101-SUM($L101:AL101)), MAX(AL101,$I101-SUM($L101:AL101))) -> 1.130108682 | AN101: =IF($I101 >0, MIN(AM101,$I101-SUM($L101:AM101)), MAX(AM101,$I101-SUM($L101:AM101))) -> 1.130108682 | AO101: =IF($I101 >0, MIN(AN101,$I101-SUM($L101:AN101)), MAX(AN101,$I101-SUM($L101:AN101))) -> 1.130108682
E102: 2010-03-31 | G102: £m 09/10 prices | I102: 39.448 | J102: > | AE102: =$I102/AD$77 -> 0.8218333333 | AF102: =IF($I102 >0, MIN(AE102,$I102-SUM($L102:AE102)), MAX(AE102,$I102-SUM($L102:AE102))) -> 0.8218333333 | AG102: =IF($I102 >0, MIN(AF102,$I102-SUM($L102:AF102)), MAX(AF102,$I102-SUM($L102:AF102))) -> 0.8218333333 | AH102: =IF($I102 >0, MIN(AG102,$I102-SUM($L102:AG102)), MAX(AG102,$I102-SUM($L102:AG102))) -> 0.8218333333 | AI102: =IF($I102 >0, MIN(AH102,$I102-SUM($L102:AH102)), MAX(AH102,$I102-SUM($L102:AH102))) -> 0.8218333333 | AJ102: =IF($I102 >0, MIN(AI102,$I102-SUM($L102:AI102)), MAX(AI102,$I102-SUM($L102:AI102))) -> 0.8218333333 | AK102: =IF($I102 >0, MIN(AJ102,$I102-SUM($L102:AJ102)), MAX(AJ102,$I102-SUM($L102:AJ102))) -> 0.8218333333 | AL102: =IF($I102 >0, MIN(AK102,$I102-SUM($L102:AK102)), MAX(AK102,$I102-SUM($L102:AK102))) -> 0.8218333333 | AM102: =IF($I102 >0, MIN(AL102,$I102-SUM($L102:AL102)), MAX(AL102,$I102-SUM($L102:AL102))) -> 0.8218333333 | AN102: =IF($I102 >0, MIN(AM102,$I102-SUM($L102:AM102)), MAX(AM102,$I102-SUM($L102:AM102))) -> 0.8218333333 | AO102: =IF($I102 >0, MIN(AN102,$I102-SUM($L102:AN102)), MAX(AN102,$I102-SUM($L102:AN102))) -> 0.8218333333
E103: 2011-03-31 | G103: £m 09/10 prices | I103: 33.45131111 | J103: > | AF103: =$I103/AE$77 -> 0.6969023147 | AG103: =IF($I103 >0, MIN(AF103,$I103-SUM($L103:AF103)), MAX(AF103,$I103-SUM($L103:AF103))) -> 0.6969023147 | AH103: =IF($I103 >0, MIN(AG103,$I103-SUM($L103:AG103)), MAX(AG103,$I103-SUM($L103:AG103))) -> 0.6969023147 | AI103: =IF($I103 >0, MIN(AH103,$I103-SUM($L103:AH103)), MAX(AH103,$I103-SUM($L103:AH103))) -> 0.6969023147 | AJ103: =IF($I103 >0, MIN(AI103,$I103-SUM($L103:AI103)), MAX(AI103,$I103-SUM($L103:AI103))) -> 0.6969023147 | AK103: =IF($I103 >0, MIN(AJ103,$I103-SUM($L103:AJ103)), MAX(AJ103,$I103-SUM($L103:AJ103))) -> 0.6969023147 | AL103: =IF($I103 >0, MIN(AK103,$I103-SUM($L103:AK103)), MAX(AK103,$I103-SUM($L103:AK103))) -> 0.6969023147 | AM103: =IF($I103 >0, MIN(AL103,$I103-SUM($L103:AL103)), MAX(AL103,$I103-SUM($L103:AL103))) -> 0.6969023147 | AN103: =IF($I103 >0, MIN(AM103,$I103-SUM($L103:AM103)), MAX(AM103,$I103-SUM($L103:AM103))) -> 0.6969023147 | AO103: =IF($I103 >0, MIN(AN103,$I103-SUM($L103:AN103)), MAX(AN103,$I103-SUM($L103:AN103))) -> 0.6969023147
E104: 2012-03-31 | G104: £m 09/10 prices | I104: 28.94311233 | J104: > | AG104: =$I104/AF$77 -> 0.602981507 | AH104: =IF($I104 >0, MIN(AG104,$I104-SUM($L104:AG104)), MAX(AG104,$I104-SUM($L104:AG104))) -> 0.602981507 | AI104: =IF($I104 >0, MIN(AH104,$I104-SUM($L104:AH104)), MAX(AH104,$I104-SUM($L104:AH104))) -> 0.602981507 | AJ104: =IF($I104 >0, MIN(AI104,$I104-SUM($L104:AI104)), MAX(AI104,$I104-SUM($L104:AI104))) -> 0.602981507 | AK104: =IF($I104 >0, MIN(AJ104,$I104-SUM($L104:AJ104)), MAX(AJ104,$I104-SUM($L104:AJ104))) -> 0.602981507 | AL104: =IF($I104 >0, MIN(AK104,$I104-SUM($L104:AK104)), MAX(AK104,$I104-SUM($L104:AK104))) -> 0.602981507 | AM104: =IF($I104 >0, MIN(AL104,$I104-SUM($L104:AL104)), MAX(AL104,$I104-SUM($L104:AL104))) -> 0.602981507 | AN104: =IF($I104 >0, MIN(AM104,$I104-SUM($L104:AM104)), MAX(AM104,$I104-SUM($L104:AM104))) -> 0.602981507 | AO104: =IF($I104 >0, MIN(AN104,$I104-SUM($L104:AN104)), MAX(AN104,$I104-SUM($L104:AN104))) -> 0.602981507
E105: 2013-03-31 | G105: £m 09/10 prices | I105: 76.4 | AH105: =$I105/AG$77 -> 1.591666667 | AI105: =IF($I105 >0, MIN(AH105,$I105-SUM($L105:AH105)), MAX(AH105,$I105-SUM($L105:AH105))) -> 1.591666667 | AJ105: =IF($I105 >0, MIN(AI105,$I105-SUM($L105:AI105)), MAX(AI105,$I105-SUM($L105:AI105))) -> 1.591666667 | AK105: =IF($I105 >0, MIN(AJ105,$I105-SUM($L105:AJ105)), MAX(AJ105,$I105-SUM($L105:AJ105))) -> 1.591666667 | AL105: =IF($I105 >0, MIN(AK105,$I105-SUM($L105:AK105)), MAX(AK105,$I105-SUM($L105:AK105))) -> 1.591666667 | AM105: =IF($I105 >0, MIN(AL105,$I105-SUM($L105:AL105)), MAX(AL105,$I105-SUM($L105:AL105))) -> 1.591666667 | AN105: =IF($I105 >0, MIN(AM105,$I105-SUM($L105:AM105)), MAX(AM105,$I105-SUM($L105:AM105))) -> 1.591666667 | AO105: =IF($I105 >0, MIN(AN105,$I105-SUM($L105:AN105)), MAX(AN105,$I105-SUM($L105:AN105))) -> 1.591666667
E106: 2014-03-31 | G106: £m 09/10 prices | I106: 86.86230888 | AI106: =$I106/AH$77 -> 4.028396934 | AJ106: =IF($I106 >0, MIN(AI106,$I106-SUM($L106:AI106)), MAX(AI106,$I106-SUM($L106:AI106))) -> 4.028396934 | AK106: =IF($I106 >0, MIN(AJ106,$I106-SUM($L106:AJ106)), MAX(AJ106,$I106-SUM($L106:AJ106))) -> 4.028396934 | AL106: =IF($I106 >0, MIN(AK106,$I106-SUM($L106:AK106)), MAX(AK106,$I106-SUM($L106:AK106))) -> 4.028396934 | AM106: =IF($I106 >0, MIN(AL106,$I106-SUM($L106:AL106)), MAX(AL106,$I106-SUM($L106:AL106))) -> 4.028396934 | AN106: =IF($I106 >0, MIN(AM106,$I106-SUM($L106:AM106)), MAX(AM106,$I106-SUM($L106:AM106))) -> 4.028396934 | AO106: =IF($I106 >0, MIN(AN106,$I106-SUM($L106:AN106)), MAX(AN106,$I106-SUM($L106:AN106))) -> 4.028396934
E107: 2015-03-31 | G107: £m 09/10 prices | I107: 276.1933015 | AJ107: =$I107/AI$77 -> 11.94349412 | AK107: =IF($I107 >0, MIN(AJ107,$I107-SUM($L107:AJ107)), MAX(AJ107,$I107-SUM($L107:AJ107))) -> 11.94349412 | AL107: =IF($I107 >0, MIN(AK107,$I107-SUM($L107:AK107)), MAX(AK107,$I107-SUM($L107:AK107))) -> 11.94349412 | AM107: =IF($I107 >0, MIN(AL107,$I107-SUM($L107:AL107)), MAX(AL107,$I107-SUM($L107:AL107))) -> 11.94349412 | AN107: =IF($I107 >0, MIN(AM107,$I107-SUM($L107:AM107)), MAX(AM107,$I107-SUM($L107:AM107))) -> 11.94349412 | AO107: =IF($I107 >0, MIN(AN107,$I107-SUM($L107:AN107)), MAX(AN107,$I107-SUM($L107:AN107))) -> 11.94349412
E108: 2016-03-31 | G108: £m 09/10 prices | I108: 507.0624145 | AK108: =$I108/AJ$77 -> 20.53923704 | AL108: =IF($I108 >0, MIN(AK108,$I108-SUM($L108:AK108)), MAX(AK108,$I108-SUM($L108:AK108))) -> 20.53923704 | AM108: =IF($I108 >0, MIN(AL108,$I108-SUM($L108:AL108)), MAX(AL108,$I108-SUM($L108:AL108))) -> 20.53923704 | AN108: =IF($I108 >0, MIN(AM108,$I108-SUM($L108:AM108)), MAX(AM108,$I108-SUM($L108:AM108))) -> 20.53923704 | AO108: =IF($I108 >0, MIN(AN108,$I108-SUM($L108:AN108)), MAX(AN108,$I108-SUM($L108:AN108))) -> 20.53923704
E109: 2017-03-31 | G109: £m 09/10 prices | I109: 423.3943063 | AL109: =$I109/AK$77 -> 16.12930691 | AM109: =IF($I109 >0, MIN(AL109,$I109-SUM($L109:AL109)), MAX(AL109,$I109-SUM($L109:AL109))) -> 16.12930691 | AN109: =IF($I109 >0, MIN(AM109,$I109-SUM($L109:AM109)), MAX(AM109,$I109-SUM($L109:AM109))) -> 16.12930691 | AO109: =IF($I109 >0, MIN(AN109,$I109-SUM($L109:AN109)), MAX(AN109,$I109-SUM($L109:AN109))) -> 16.12930691
E110: 2018-03-31 | G110: £m 09/10 prices | I110: 317.0888095 | AM110: =$I110/AL$77 -> 11.40094596 | AN110: =IF($I110 >0, MIN(AM110,$I110-SUM($L110:AM110)), MAX(AM110,$I110-SUM($L110:AM110))) -> 11.40094596 | AO110: =IF($I110 >0, MIN(AN110,$I110-SUM($L110:AN110)), MAX(AN110,$I110-SUM($L110:AN110))) -> 11.40094596
E111: 2019-03-31 | G111: £m 09/10 prices | I111: 207.0438231 | AN111: =$I111/AM$77 -> 7.04830036 | AO111: =IF($I111 >0, MIN(AN111,$I111-SUM($L111:AN111)), MAX(AN111,$I111-SUM($L111:AN111))) -> 7.04830036
E112: 2020-03-31 | G112: £m 09/10 prices | I112: 77.25577109 | AO112: =$I112/AN$77 -> 2.497156237
E113: 2021-03-31 | G113: £m 09/10 prices | I113: 73.94035995
C115: Accelerated RAV differential post-vesting depreciation
C116: Note: The RAV differential accumulated from the accelerated and non-accelerated schedules above is released once pre-vesting assets are fully depreciated over an input smoothing profile.
D118: Depreciation parameters
E120: RAV differential is accruing differences | G120: flag | J120: > | L120: =IF(L78, 1, 0) -> 1 | M120: =IF(M78, 1, 0) -> 1 | N120: 1 | O120: 1 | P120: 1 | Q120: 1 | R120: 1 | S120: 1 | T120: 1 | U120: 1 | V120: 1 | W120: 1 | X120: 1 | Y120: 1 | Z120: 1 | AA120: 1 | AB120: 1 | AC120: 1 | AD120: 1 | AE120: 1 | AF120: 1 | AG120: 0 | AH120: 0 | AI120: 0 | AJ120: 0 | AK120: 0 | AL120: 0 | AM120: 0 | AN120: 0 | AO120: 0
E121: Smoothing period | G121: years | I121: =Input!I233 -> 30
E122: Smoothing profile for recovery of RAV differential | G122: % | L122: =IF($I121 = 0, 0, IF(AND(YEAR(L$4) >= YEAR($I$25) + $I$26, YEAR(L$4) < YEAR($I$25) + $I$26 + $I121), 1, 0) / $I121) -> 0 | M122: 0 | N122: 0 | O122: 0 | P122: 0 | Q122: 0 | R122: 0 | S122: 0 | T122: 0 | U122: 0 | V122: 0 | W122: 0 | X122: 0 | Y122: 0 | Z122: 0 | AA122: 0 | AB122: 0 | AC122: 0 | AD122: 0 | AE122: 0 | AF122: 0 | AG122: 0.03333333333 | AH122: 0.03333333333 | AI122: 0.03333333333 | AJ122: 0.03333333333 | AK122: 0.03333333333 | AL122: 0.03333333333 | AM122: 0.03333333333 | AN122: 0.03333333333 | AO122: 0.03333333333
D124: Pre-RIIO transfer to depreciation
E126: Year ending | K126: =K4 -> 1991-03-31 | L126: =L4 -> 1992-03-31 | M126: =M4 -> 1993-03-31 | N126: 1994-03-31 | O126: 1995-03-31 | P126: 1996-03-31 | Q126: 1997-03-31 | R126: 1998-03-31 | S126: 1999-03-31 | T126: 2000-03-31 | U126: 2001-03-31 | V126: 2002-03-31 | W126: 2003-03-31 | X126: 2004-03-31 | Y126: 2005-03-31 | Z126: 2006-03-31 | AA126: 2007-03-31 | AB126: 2008-03-31 | AC126: 2009-03-31 | AD126: 2010-03-31 | AE126: 2011-03-31 | AF126: 2012-03-31 | AG126: 2013-03-31 | AH126: 2014-03-31 | AI126: 2015-03-31 | AJ126: 2016-03-31 | AK126: 2017-03-31 | AL126: 2018-03-31 | AM126: 2019-03-31 | AN126: 2020-03-31 | AO126: 2021-03-31
E127: Pre-RIIO transfers to depreciation | K127: =K120 * K20 -> 0 | L127: =L120 * L20 -> 0 | M127: =M120 * M20 -> 0 | N127: 0 | O127: 0 | P127: 0 | Q127: 0 | R127: 0 | S127: 0 | T127: 0 | U127: 0 | V127: 0 | W127: 0 | X127: 0 | Y127: 0 | Z127: 0 | AA127: 0 | AB127: 0 | AC127: 0 | AD127: 0 | AE127: 0 | AF127: 0 | AG127: 0 | AH127: 0 | AI127: 0 | AJ127: 0 | AK127: 0 | AL127: 0 | AM127: 0 | AN127: 0 | AO127: 0
D129: Depreciation schedule
E131: RAV differential depreciation of additions from year ending | I131: RAV differential
E132: 1991-03-31 | G132: £m 09/10 prices | I132: =SUMPRODUCT(L40:AO40, L$120:AO$120) - SUMPRODUCT(L83:AO83, L$120:AO$120) + HLOOKUP(E132, $K$126:$AO$127,2, FALSE) -> 14.82095885 | J132: > | L132: =$I132 * L$122 -> 0 | M132: =$I132 * M$122 -> 0 | N132: 0 | O132: 0 | P132: 0 | Q132: 0 | R132: 0 | S132: 0 | T132: 0 | U132: 0 | V132: 0 | W132: 0 | X132: 0 | Y132: 0 | Z132: 0 | AA132: 0 | AB132: 0 | AC132: 0 | AD132: 0 | AE132: 0 | AF132: 0 | AG132: 0.4940319616 | AH132: =$I132 * AH$122 -> 0.4940319616 | AI132: =$I132 * AI$122 -> 0.4940319616 | AJ132: 0.4940319616 | AK132: 0.4940319616 | AL132: 0.4940319616 | AM132: 0.4940319616 | AN132: 0.4940319616 | AO132: 0.4940319616
E133: 1992-03-31 | G133: £m 09/10 prices | I133: 13.85702638 | J133: > | M133: =$I133 * M$122 -> 0 | N133: 0 | O133: 0 | P133: 0 | Q133: 0 | R133: 0 | S133: 0 | T133: 0 | U133: 0 | V133: 0 | W133: 0 | X133: 0 | Y133: 0 | Z133: 0 | AA133: 0 | AB133: 0 | AC133: 0 | AD133: 0 | AE133: 0 | AF133: 0 | AG133: 0.4619008794 | AH133: 0.4619008794 | AI133: 0.4619008794 | AJ133: 0.4619008794 | AK133: 0.4619008794 | AL133: 0.4619008794 | AM133: 0.4619008794 | AN133: 0.4619008794 | AO133: 0.4619008794
E134: 1993-03-31 | G134: £m 09/10 prices | I134: 1.290001846 | J134: > | N134: =$I134 * N$122 -> 0 | O134: 0 | P134: 0 | Q134: 0 | R134: 0 | S134: 0 | T134: 0 | U134: 0 | V134: 0 | W134: 0 | X134: 0 | Y134: 0 | Z134: 0 | AA134: 0 | AB134: 0 | AC134: 0 | AD134: 0 | AE134: 0 | AF134: 0 | AG134: 0.04300006152 | AH134: 0.04300006152 | AI134: 0.04300006152 | AJ134: 0.04300006152 | AK134: 0.04300006152 | AL134: 0.04300006152 | AM134: 0.04300006152 | AN134: 0.04300006152 | AO134: 0.04300006152
E135: 1994-03-31 | G135: £m 09/10 prices | I135: 13.86630771 | J135: > | O135: =$I135 * O$122 -> 0 | P135: 0 | Q135: 0 | R135: 0 | S135: 0 | T135: 0 | U135: 0 | V135: 0 | W135: 0 | X135: 0 | Y135: 0 | Z135: 0 | AA135: 0 | AB135: 0 | AC135: 0 | AD135: 0 | AE135: 0 | AF135: 0 | AG135: 0.4622102571 | AH135: 0.4622102571 | AI135: 0.4622102571 | AJ135: 0.4622102571 | AK135: 0.4622102571 | AL135: 0.4622102571 | AM135: 0.4622102571 | AN135: 0.4622102571 | AO135: 0.4622102571
E136: 1995-03-31 | G136: £m 09/10 prices | I136: 5.487959974 | J136: > | P136: =$I136 * P$122 -> 0 | Q136: 0 | R136: 0 | S136: 0 | T136: 0 | U136: 0 | V136: 0 | W136: 0 | X136: 0 | Y136: 0 | Z136: 0 | AA136: 0 | AB136: 0 | AC136: 0 | AD136: 0 | AE136: 0 | AF136: 0 | AG136: 0.1829319991 | AH136: 0.1829319991 | AI136: 0.1829319991 | AJ136: 0.1829319991 | AK136: 0.1829319991 | AL136: 0.1829319991 | AM136: 0.1829319991 | AN136: 0.1829319991 | AO136: 0.1829319991
E137: 1996-03-31 | G137: £m 09/10 prices | I137: 5.288128107 | J137: > | Q137: =$I137 * Q$122 -> 0 | R137: 0 | S137: 0 | T137: 0 | U137: 0 | V137: 0 | W137: 0 | X137: 0 | Y137: 0 | Z137: 0 | AA137: 0 | AB137: 0 | AC137: 0 | AD137: 0 | AE137: 0 | AF137: 0 | AG137: 0.1762709369 | AH137: 0.1762709369 | AI137: 0.1762709369 | AJ137: 0.1762709369 | AK137: 0.1762709369 | AL137: 0.1762709369 | AM137: 0.1762709369 | AN137: 0.1762709369 | AO137: 0.1762709369
E138: 1997-03-31 | G138: £m 09/10 prices | I138: 5.927968065 | J138: > | R138: =$I138 * R$122 -> 0 | S138: 0 | T138: 0 | U138: 0 | V138: 0 | W138: 0 | X138: 0 | Y138: 0 | Z138: 0 | AA138: 0 | AB138: 0 | AC138: 0 | AD138: 0 | AE138: 0 | AF138: 0 | AG138: 0.1975989355 | AH138: 0.1975989355 | AI138: 0.1975989355 | AJ138: 0.1975989355 | AK138: 0.1975989355 | AL138: 0.1975989355 | AM138: 0.1975989355 | AN138: 0.1975989355 | AO138: 0.1975989355
E139: 1998-03-31 | G139: £m 09/10 prices | I139: 6.61506677 | J139: > | S139: =$I139 * S$122 -> 0 | T139: 0 | U139: 0 | V139: 0 | W139: 0 | X139: 0 | Y139: 0 | Z139: 0 | AA139: 0 | AB139: 0 | AC139: 0 | AD139: 0 | AE139: 0 | AF139: 0 | AG139: 0.2205022257 | AH139: 0.2205022257 | AI139: 0.2205022257 | AJ139: 0.2205022257 | AK139: 0.2205022257 | AL139: 0.2205022257 | AM139: 0.2205022257 | AN139: 0.2205022257 | AO139: 0.2205022257
E140: 1999-03-31 | G140: £m 09/10 prices | I140: 4.53010108 | J140: > | T140: =$I140 * T$122 -> 0 | U140: 0 | V140: 0 | W140: 0 | X140: 0 | Y140: 0 | Z140: 0 | AA140: 0 | AB140: 0 | AC140: 0 | AD140: 0 | AE140: 0 | AF140: 0 | AG140: 0.1510033693 | AH140: 0.1510033693 | AI140: 0.1510033693 | AJ140: 0.1510033693 | AK140: 0.1510033693 | AL140: 0.1510033693 | AM140: 0.1510033693 | AN140: 0.1510033693 | AO140: 0.1510033693
E141: 2000-03-31 | G141: £m 09/10 prices | I141: 7.626738804 | J141: > | U141: =$I141 * U$122 -> 0 | V141: 0 | W141: 0 | X141: 0 | Y141: 0 | Z141: 0 | AA141: 0 | AB141: 0 | AC141: 0 | AD141: 0 | AE141: 0 | AF141: 0 | AG141: 0.2542246268 | AH141: 0.2542246268 | AI141: 0.2542246268 | AJ141: 0.2542246268 | AK141: 0.2542246268 | AL141: 0.2542246268 | AM141: 0.2542246268 | AN141: 0.2542246268 | AO141: 0.2542246268
E142: 2001-03-31 | G142: £m 09/10 prices | I142: 3.636490609 | J142: > | V142: =$I142 * V$122 -> 0 | W142: 0 | X142: 0 | Y142: 0 | Z142: 0 | AA142: 0 | AB142: 0 | AC142: 0 | AD142: 0 | AE142: 0 | AF142: 0 | AG142: =$I142 * AG$122 -> 0.1212163536 | AH142: 0.1212163536 | AI142: 0.1212163536 | AJ142: 0.1212163536 | AK142: 0.1212163536 | AL142: 0.1212163536 | AM142: 0.1212163536 | AN142: 0.1212163536 | AO142: 0.1212163536
E143: 2002-03-31 | G143: £m 09/10 prices | I143: 2.41391662 | J143: > | W143: =$I143 * W$122 -> 0 | X143: =$I143 * X$122 -> 0 | Y143: 0 | Z143: 0 | AA143: 0 | AB143: 0 | AC143: 0 | AD143: 0 | AE143: 0 | AF143: 0 | AG143: 0.08046388733 | AH143: 0.08046388733 | AI143: 0.08046388733 | AJ143: 0.08046388733 | AK143: 0.08046388733 | AL143: 0.08046388733 | AM143: 0.08046388733 | AN143: 0.08046388733 | AO143: 0.08046388733
E144: 2003-03-31 | G144: £m 09/10 prices | I144: 2.498695644 | J144: > | X144: =$I144 * X$122 -> 0 | Y144: 0 | Z144: 0 | AA144: 0 | AB144: 0 | AC144: 0 | AD144: 0 | AE144: 0 | AF144: 0 | AG144: 0.08328985481 | AH144: 0.08328985481 | AI144: 0.08328985481 | AJ144: 0.08328985481 | AK144: 0.08328985481 | AL144: 0.08328985481 | AM144: 0.08328985481 | AN144: 0.08328985481 | AO144: 0.08328985481
E145: 2004-03-31 | G145: £m 09/10 prices | I145: 2.384083155 | J145: > | Y145: =$I145 * Y$122 -> 0 | Z145: 0 | AA145: 0 | AB145: 0 | AC145: 0 | AD145: 0 | AE145: 0 | AF145: 0 | AG145: 0.0794694385 | AH145: 0.0794694385 | AI145: 0.0794694385 | AJ145: 0.0794694385 | AK145: 0.0794694385 | AL145: 0.0794694385 | AM145: 0.0794694385 | AN145: 0.0794694385 | AO145: 0.0794694385
E146: 2005-03-31 | G146: £m 09/10 prices | I146: 9.895395667 | J146: > | Z146: =$I146 * Z$122 -> 0 | AA146: 0 | AB146: 0 | AC146: 0 | AD146: 0 | AE146: 0 | AF146: 0 | AG146: 0.3298465222 | AH146: 0.3298465222 | AI146: 0.3298465222 | AJ146: 0.3298465222 | AK146: 0.3298465222 | AL146: 0.3298465222 | AM146: 0.3298465222 | AN146: 0.3298465222 | AO146: 0.3298465222
E147: 2006-03-31 | G147: £m 09/10 prices | I147: 3.88936612 | J147: > | AA147: =$I147 * AA$122 -> 0 | AB147: 0 | AC147: 0 | AD147: 0 | AE147: 0 | AF147: 0 | AG147: 0.1296455373 | AH147: 0.1296455373 | AI147: 0.1296455373 | AJ147: 0.1296455373 | AK147: 0.1296455373 | AL147: 0.1296455373 | AM147: 0.1296455373 | AN147: 0.1296455373 | AO147: 0.1296455373
E148: 2007-03-31 | G148: £m 09/10 prices | I148: 3.875977359 | J148: > | AB148: =$I148 * AB$122 -> 0 | AC148: 0 | AD148: 0 | AE148: 0 | AF148: 0 | AG148: 0.1291992453 | AH148: 0.1291992453 | AI148: 0.1291992453 | AJ148: 0.1291992453 | AK148: 0.1291992453 | AL148: 0.1291992453 | AM148: 0.1291992453 | AN148: 0.1291992453 | AO148: 0.1291992453
E149: 2008-03-31 | G149: £m 09/10 prices | I149: 5.432077138 | J149: > | AC149: =$I149 * AC$122 -> 0 | AD149: 0 | AE149: 0 | AF149: 0 | AG149: 0.1810692379 | AH149: 0.1810692379 | AI149: 0.1810692379 | AJ149: 0.1810692379 | AK149: 0.1810692379 | AL149: 0.1810692379 | AM149: 0.1810692379 | AN149: 0.1810692379 | AO149: 0.1810692379
E150: 2009-03-31 | G150: £m 09/10 prices | I150: 4.746456464 | J150: > | AD150: =$I150 * AD$122 -> 0 | AE150: 0 | AF150: 0 | AG150: 0.1582152155 | AH150: 0.1582152155 | AI150: 0.1582152155 | AJ150: 0.1582152155 | AK150: 0.1582152155 | AL150: 0.1582152155 | AM150: 0.1582152155 | AN150: 0.1582152155 | AO150: 0.1582152155
E151: 2010-03-31 | G151: £m 09/10 prices | I151: 2.301133333 | J151: > | AE151: =$I151 * AE$122 -> 0 | AF151: 0 | AG151: 0.07670444444 | AH151: 0.07670444444 | AI151: 0.07670444444 | AJ151: 0.07670444444 | AK151: 0.07670444444 | AL151: 0.07670444444 | AM151: 0.07670444444 | AN151: 0.07670444444 | AO151: 0.07670444444
E152: 2011-03-31 | G152: £m 09/10 prices | I152: 0.9756632406 | J152: > | AF152: =$I152 * AF$122 -> 0 | AG152: 0.03252210802 | AH152: 0.03252210802 | AI152: 0.03252210802 | AJ152: 0.03252210802 | AK152: 0.03252210802 | AL152: 0.03252210802 | AM152: 0.03252210802 | AN152: 0.03252210802 | AO152: 0.03252210802
E153: 2012-03-31 | G153: £m 09/10 prices | I153: 0 | J153: > | AG153: =$I153 * AG$122 -> 0 | AH153: 0 | AI153: 0 | AJ153: 0 | AK153: 0 | AL153: 0 | AM153: 0 | AN153: 0 | AO153: 0
E154: 2013-03-31 | G154: £m 09/10 prices | I154: 0 | AH154: =$I154 * AH$122 -> 0 | AI154: 0 | AJ154: 0 | AK154: 0 | AL154: 0 | AM154: 0 | AN154: 0 | AO154: 0
E155: 2014-03-31 | G155: £m 09/10 prices | I155: 0 | AI155: =$I155 * AI$122 -> 0 | AJ155: 0 | AK155: 0 | AL155: 0 | AM155: 0 | AN155: 0 | AO155: 0
E156: 2015-03-31 | G156: £m 09/10 prices | I156: 0 | AJ156: =$I156 * AJ$122 -> 0 | AK156: 0 | AL156: 0 | AM156: 0 | AN156: 0 | AO156: 0
E157: 2016-03-31 | G157: £m 09/10 prices | I157: 0 | AK157: =$I157 * AK$122 -> 0 | AL157: 0 | AM157: 0 | AN157: 0 | AO157: 0
E158: 2017-03-31 | G158: £m 09/10 prices | I158: 0 | AL158: =$I158 * AL$122 -> 0 | AM158: =$I158 * AM$122 -> 0 | AN158: 0 | AO158: 0
E159: 2018-03-31 | G159: £m 09/10 prices | I159: 0 | AM159: =$I159 * AM$122 -> 0 | AN159: 0 | AO159: 0
E160: 2019-03-31 | G160: £m 09/10 prices | I160: 0 | AN160: =$I160 * AN$122 -> 0 | AO160: =$I160 * AO$122 -> 0
E161: 2020-03-31 | G161: £m 09/10 prices | I161: 0 | AO161: =$I161 * AO$122 -> 0
E162: 2021-03-31 | G162: £m 09/10 prices | I162: 0
C164: Depreciation values applied
C165: Note: Before vesting assets are fully depreciated, regulatory depreciation is just non-accelerated depreciation. Afterwards it is accelerated depreciation plus any smoothed RAV differential value available.
E167: Depreciation allowed on additions from year ending | I167: Net additions
E168: 1991-03-31 | G168: £m 09/10 prices | I168: =I83 -> 26.34837128 | J168: > | L168: =(L$78 * L83) + (L$35 * L40) + L132 -> 0.5489244017 | M168: 0.5489244017 | N168: 0.5489244017 | O168: 0.5489244017 | P168: 0.5489244017 | Q168: 0.5489244017 | R168: 0.5489244017 | S168: 0.5489244017 | T168: 0.5489244017 | U168: 0.5489244017 | V168: 0.5489244017 | W168: 0.5489244017 | X168: 0.5489244017 | Y168: 0.5489244017 | Z168: 0.5489244017 | AA168: 0.5489244017 | AB168: 0.5489244017 | AC168: 0.5489244017 | AD168: 0.5489244017 | AE168: 0.5489244017 | AF168: 0.5489244017 | AG168: 0.4940319616 | AH168: 0.4940319616 | AI168: 0.4940319616 | AJ168: 0.4940319616 | AK168: 0.4940319616 | AL168: 0.4940319616 | AM168: 0.4940319616 | AN168: 0.4940319616 | AO168: 0.4940319616
E169: 1992-03-31 | G169: £m 09/10 prices | I169: =I84 -> 23.75490237 | J169: > | M169: =(M$78 * M84) + (M$35 * M41) + M133 -> 0.4948937994 | N169: 0.4948937994 | O169: 0.4948937994 | P169: 0.4948937994 | Q169: 0.4948937994 | R169: 0.4948937994 | S169: 0.4948937994 | T169: 0.4948937994 | U169: 0.4948937994 | V169: 0.4948937994 | W169: 0.4948937994 | X169: 0.4948937994 | Y169: 0.4948937994 | Z169: 0.4948937994 | AA169: 0.4948937994 | AB169: 0.4948937994 | AC169: 0.4948937994 | AD169: 0.4948937994 | AE169: 0.4948937994 | AF169: 0.4948937994 | AG169: 0.4619008794 | AH169: 0.4619008794 | AI169: 0.4619008794 | AJ169: 0.4619008794 | AK169: 0.4619008794 | AL169: 0.4619008794 | AM169: 0.4619008794 | AN169: 0.4619008794 | AO169: 0.4619008794
E170: 1993-03-31 | G170: £m 09/10 prices | I170: 2.327822879 | J170: > | N170: =(N$78 * N85) + (N$35 * N42) + N134 -> 0.04849630999 | O170: 0.04849630999 | P170: 0.04849630999 | Q170: 0.04849630999 | R170: 0.04849630999 | S170: 0.04849630999 | T170: 0.04849630999 | U170: 0.04849630999 | V170: 0.04849630999 | W170: 0.04849630999 | X170: 0.04849630999 | Y170: 0.04849630999 | Z170: 0.04849630999 | AA170: 0.04849630999 | AB170: 0.04849630999 | AC170: 0.04849630999 | AD170: 0.04849630999 | AE170: 0.04849630999 | AF170: 0.04849630999 | AG170: 0.1593912055 | AH170: 0.04300006152 | AI170: 0.04300006152 | AJ170: 0.04300006152 | AK170: 0.04300006152 | AL170: 0.04300006152 | AM170: 0.04300006152 | AN170: 0.04300006152 | AO170: 0.04300006152
E171: 1994-03-31 | G171: £m 09/10 prices | I171: 26.41201469 | J171: > | O171: =(O$78 * O86) + (O$35 * O43) + O135 -> 0.5502503061 | P171: 0.5502503061 | Q171: 0.5502503061 | R171: 0.5502503061 | S171: 0.5502503061 | T171: 0.5502503061 | U171: 0.5502503061 | V171: 0.5502503061 | W171: 0.5502503061 | X171: 0.5502503061 | Y171: 0.5502503061 | Z171: 0.5502503061 | AA171: 0.5502503061 | AB171: 0.5502503061 | AC171: 0.5502503061 | AD171: 0.5502503061 | AE171: 0.5502503061 | AF171: 0.5502503061 | AG171: 1.782810992 | AH171: 1.782810992 | AI171: 0.4622102571 | AJ171: 0.4622102571 | AK171: 0.4622102571 | AL171: 0.4622102571 | AM171: 0.4622102571 | AN171: 0.4622102571 | AO171: 0.4622102571
E172: 1995-03-31 | G172: £m 09/10 prices | I172: 11.06815457 | J172: > | P172: =(P$78 * P87) + (P$35 * P44) + P136 -> 0.2305865535 | Q172: 0.2305865535 | R172: 0.2305865535 | S172: 0.2305865535 | T172: 0.2305865535 | U172: 0.2305865535 | V172: 0.2305865535 | W172: 0.2305865535 | X172: 0.2305865535 | Y172: 0.2305865535 | Z172: 0.2305865535 | AA172: 0.2305865535 | AB172: 0.2305865535 | AC172: 0.2305865535 | AD172: 0.2305865535 | AE172: 0.2305865535 | AF172: 0.2305865535 | AG172: 0.7363397276 | AH172: 0.7363397276 | AI172: 0.7363397276 | AJ172: 0.1829319991 | AK172: 0.1829319991 | AL172: 0.1829319991 | AM172: 0.1829319991 | AN172: 0.1829319991 | AO172: 0.1829319991
E173: 1996-03-31 | G173: £m 09/10 prices | I173: 11.33170309 | J173: > | Q173: =(Q$78 * Q88) + (Q$35 * Q45) + Q137 -> 0.2360771476 | R173: 0.2360771476 | S173: 0.2360771476 | T173: 0.2360771476 | U173: 0.2360771476 | V173: 0.2360771476 | W173: 0.2360771476 | X173: 0.2360771476 | Y173: 0.2360771476 | Z173: 0.2360771476 | AA173: 0.2360771476 | AB173: 0.2360771476 | AC173: 0.2360771476 | AD173: 0.2360771476 | AE173: 0.2360771476 | AF173: 0.2360771476 | AG173: 0.7428560912 | AH173: 0.7428560912 | AI173: 0.7428560912 | AJ173: 0.7428560912 | AK173: 0.1762709369 | AL173: 0.1762709369 | AM173: 0.1762709369 | AN173: 0.1762709369 | AO173: 0.1762709369
E174: 1997-03-31 | G174: £m 09/10 prices | I174: 13.54964129 | J174: > | R174: =(R$78 * R89) + (R$35 * R46) + R138 -> 0.2822841936 | S174: 0.2822841936 | T174: 0.2822841936 | U174: 0.2822841936 | V174: 0.2822841936 | W174: 0.2822841936 | X174: 0.2822841936 | Y174: 0.2822841936 | Z174: 0.2822841936 | AA174: 0.2822841936 | AB174: 0.2822841936 | AC174: 0.2822841936 | AD174: 0.2822841936 | AE174: 0.2822841936 | AF174: 0.2822841936 | AG174: 0.8750810001 | AH174: 0.8750810001 | AI174: 0.8750810001 | AJ174: 0.8750810001 | AK174: 0.8750810001 | AL174: 0.1975989355 | AM174: 0.1975989355 | AN174: 0.1975989355 | AO174: 0.1975989355
E175: 1998-03-31 | G175: £m 09/10 prices | I175: 16.20016352 | J175: > | S175: =(S$78 * S90) + (S$35 * S47) + S139 -> 0.3375034066 | T175: 0.3375034066 | U175: 0.3375034066 | V175: 0.3375034066 | W175: 0.3375034066 | X175: 0.3375034066 | Y175: 0.3375034066 | Z175: 0.3375034066 | AA175: 0.3375034066 | AB175: 0.3375034066 | AC175: 0.3375034066 | AD175: 0.3375034066 | AE175: 0.3375034066 | AF175: 0.3375034066 | AG175: 1.030510402 | AH175: 1.030510402 | AI175: 1.030510402 | AJ175: 1.030510402 | AK175: 1.030510402 | AL175: 1.030510402 | AM175: 0.2205022257 | AN175: 0.2205022257 | AO175: 0.2205022257
E176: 1999-03-31 | G176: £m 09/10 prices | I176: 11.94751933 | J176: > | T176: =(T$78 * T91) + (T$35 * T48) + T140 -> 0.2489066528 | U176: 0.2489066528 | V176: 0.2489066528 | W176: 0.2489066528 | X176: 0.2489066528 | Y176: 0.2489066528 | Z176: 0.2489066528 | AA176: 0.2489066528 | AB176: 0.2489066528 | AC176: 0.2489066528 | AD176: 0.2489066528 | AE176: 0.2489066528 | AF176: 0.2489066528 | AG176: 0.748379336 | AH176: 0.748379336 | AI176: 0.748379336 | AJ176: 0.748379336 | AK176: 0.748379336 | AL176: 0.748379336 | AM176: 0.748379336 | AN176: 0.1510033693 | AO176: 0.1510033693
E177: 2000-03-31 | G177: £m 09/10 prices | I177: 21.7906823 | J177: > | U177: =(U$78 * U92) + (U$35 * U49) + U141 -> 0.4539725478 | V177: 0.4539725478 | W177: 0.4539725478 | X177: 0.4539725478 | Y177: 0.4539725478 | Z177: 0.4539725478 | AA177: 0.4539725478 | AB177: 0.4539725478 | AC177: 0.4539725478 | AD177: 0.4539725478 | AE177: 0.4539725478 | AF177: 0.4539725478 | AG177: 1.343758742 | AH177: 1.343758742 | AI177: 1.343758742 | AJ177: 1.343758742 | AK177: 1.343758742 | AL177: 1.343758742 | AM177: 1.343758742 | AN177: 1.343758742 | AO177: 0.2542246268
E178: 2001-03-31 | G178: £m 09/10 prices | I178: 11.33451618 | J178: > | V178: =(V$78 * V93) + (V$35 * V50) + V142 -> 0.2361357538 | W178: 0.2361357538 | X178: 0.2361357538 | Y178: 0.2361357538 | Z178: 0.2361357538 | AA178: 0.2361357538 | AB178: 0.2361357538 | AC178: 0.2361357538 | AD178: 0.2361357538 | AE178: 0.2361357538 | AF178: 0.2361357538 | AG178: 0.6879421627 | AH178: 0.6879421627 | AI178: 0.6879421627 | AJ178: 0.6879421627 | AK178: 0.6879421627 | AL178: 0.6879421627 | AM178: 0.6879421627 | AN178: 0.6879421627 | AO178: 0.6879421627
E179: 2002-03-31 | G179: £m 09/10 prices | I179: 8.276285554 | J179: > | W179: =(W$78 * W94) + (W$35 * W51) + W143 -> 0.1724226157 | X179: 0.1724226157 | Y179: 0.1724226157 | Z179: 0.1724226157 | AA179: 0.1724226157 | AB179: 0.1724226157 | AC179: 0.1724226157 | AD179: 0.1724226157 | AE179: 0.1724226157 | AF179: 0.1724226157 | AG179: 0.494278165 | AH179: 0.494278165 | AI179: 0.494278165 | AJ179: 0.494278165 | AK179: 0.494278165 | AL179: 0.494278165 | AM179: 0.494278165 | AN179: 0.494278165 | AO179: 0.494278165
E180: 2003-03-31 | G180: £m 09/10 prices | I180: 9.518840549 | J180: > | X180: =(X$78 * X95) + (X$35 * X52) + X144 -> 0.1983091781 | Y180: 0.1983091781 | Z180: 0.1983091781 | AA180: 0.1983091781 | AB180: 0.1983091781 | AC180: 0.1983091781 | AD180: 0.1983091781 | AE180: 0.1983091781 | AF180: 0.1983091781 | AG180: 0.5592318823 | AH180: 0.5592318823 | AI180: 0.5592318823 | AJ180: 0.5592318823 | AK180: 0.5592318823 | AL180: 0.5592318823 | AM180: 0.5592318823 | AN180: 0.5592318823 | AO180: 0.5592318823
E181: 2004-03-31 | G181: £m 09/10 prices | I181: 10.21749924 | J181: > | Y181: =(Y$78 * Y96) + (Y$35 * Y53) + Y145 -> 0.2128645674 | Z181: 0.2128645674 | AA181: 0.2128645674 | AB181: 0.2128645674 | AC181: 0.2128645674 | AD181: 0.2128645674 | AE181: 0.2128645674 | AF181: 0.2128645674 | AG181: 0.5903444002 | AH181: 0.5903444002 | AI181: 0.5903444002 | AJ181: 0.5903444002 | AK181: 0.5903444002 | AL181: 0.5903444002 | AM181: 0.5903444002 | AN181: 0.5903444002 | AO181: 0.5903444002
E182: 2005-03-31 | G182: £m 09/10 prices | I182: 48.46724408 | J182: > | Z182: =(Z$78 * Z97) + (Z$35 * Z54) + Z146 -> 1.009734252 | AA182: 1.009734252 | AB182: 1.009734252 | AC182: 1.009734252 | AD182: 1.009734252 | AE182: 1.009734252 | AF182: 1.009734252 | AG182: 2.753208726 | AH182: 2.753208726 | AI182: 2.753208726 | AJ182: 2.753208726 | AK182: 2.753208726 | AL182: 2.753208726 | AM182: 2.753208726 | AN182: 2.753208726 | AO182: 2.753208726
E183: 2006-03-31 | G183: £m 09/10 prices | I183: 22.22494925 | J183: > | AA183: =(AA$78 * AA98) + (AA$35 * AA55) + AA147 -> 0.4630197761 | AB183: 0.4630197761 | AC183: 0.4630197761 | AD183: 0.4630197761 | AE183: 0.4630197761 | AF183: 0.4630197761 | AG183: 1.240893 | AH183: 1.240893 | AI183: 1.240893 | AJ183: 1.240893 | AK183: 1.240893 | AL183: 1.240893 | AM183: 1.240893 | AN183: 1.240893 | AO183: 1.240893
E184: 2007-03-31 | G184: £m 09/10 prices | I184: 26.57813046 | J184: > | AB184: =(AB$78 * AB99) + (AB$35 * AB56) + AB148 -> 0.5537110513 | AC184: 0.5537110513 | AD184: 0.5537110513 | AE184: 0.5537110513 | AF184: 0.5537110513 | AG184: 1.458105768 | AH184: 1.458105768 | AI184: 1.458105768 | AJ184: 1.458105768 | AK184: 1.458105768 | AL184: 1.458105768 | AM184: 1.458105768 | AN184: 1.458105768 | AO184: 1.458105768
